Workbook

Sheet Overview

Sheet Select School
B3: =VLOOKUP(C3,SchList!$I$1:$J$499,2,FALSE) -> 9999 | C3: 1

Sheet Grade 6 Report
A2: Click here to return to the school and sheet selection interface
A3: ='Select School'!B3 -> 9999
A4: =TEXT(A3,"0000")&"-"&VLOOKUP(A3,SchList!$A$2:$B$504,2,FALSE) -> 9999-District
A5: Reading - Grade 6
A6: Level of Proficiency at 70% or above | B6: Total # of Students | C6: % of Students Tested | D6: ='G6-8 Matrix'!C2&" ["&'G6-8 Matrix'!C3&"]" -> Overall [33] | F6: ='G6-8 Matrix'!D2&" ["&'G6-8 Matrix'!D3&"]" -> Vocabulary [5] | H6: ='G6-8 Matrix'!E2&" ["&'G6-8 Matrix'!E3&"]" -> Reading Application [14] | J6: ='G6-8 Matrix'!F2&" ["&'G6-8 Matrix'!F3&"]" -> Literary Analysis Fiction/Nonfiction [7] | L6: ='G6-8 Matrix'!G2&" ["&'G6-8 Matrix'!G3&"]" -> Informational Text/ Research Process [7]
D7: Average Score | E7: % Proficient | F7: Average Score | G7: % Proficient | H7: Average Score | I7: % Proficient | J7: Average Score | K7: % Proficient | L7: Average Score | M7: % Proficient
A8: All students | B8: =IFERROR(VLOOKUP(TEXT($A$3,"0000"),Mem_All!$A$2:$O$500,10,FALSE),"NA") -> 26280 | C8: =IFERROR((IF(OR(B8=0,B8="",B8="NA"),"NA",((IF(VLOOKUP($A$3,'G6-RALL'!$A$6:$AM$500,3,FALSE)>=B8,"100% ("&VLOOKUP($A$3,'G6-RALL'!$A$6:$AM$500,3,FALSE)&")",(ROUND((VLOOKUP($A$3,'G6-RALL'!$A$6:$AM$500,3,FALSE)/B8*100),0))&"% ("&IF(VLOOKUP($A$3,'G6-RALL'!$A$6:$AM$500,3,FALSE)="",0,VLOOKUP($A$3,'G6-RALL'!$A$6:$AM$500,3,FALSE))&")"))))),"0% (0)") -> 92% (24131) | D8: =IFERROR((IF($C8="NA","NA",VLOOKUP($A$3,'G6-RALL'!$A$6:$AM$500,4,FALSE))),"NA") -> 18.78967303 | E8: =IFERROR((IF($C8="NA","NA",ROUND(VLOOKUP($A$3,'G6-RALL'!$A$6:$AM$500,6,FALSE),0)&"% ("&IF(VLOOKUP($A$3,'G6-RALL'!$A$6:$AM$500,5,FALSE)="",0,VLOOKUP($A$3,'G6-RALL'!$A$6:$AM$500,5,FALSE))&")")),"NA") -> 25% (6141) | F8: =IFERROR((IF($C8="NA","NA",VLOOKUP($A$3,'G6-RALL'!$A$6:$AM$500,7,FALSE))),"NA") -> 2.881869794 | G8: =IFERROR((IF($C8="NA","NA",ROUND(VLOOKUP($A$3,'G6-RALL'!$A$6:$AM$500,9,FALSE),0)&"% ("&IF(VLOOKUP($A$3,'G6-RALL'!$A$6:$AM$500,8,FALSE)="",0,VLOOKUP($A$3,'G6-RALL'!$A$6:$AM$500,8,FALSE))&")")),"NA") -> 35% (8396) | H8: =IFERROR((IF($C8="NA","NA",VLOOKUP($A$3,'G6-RALL'!$A$6:$AM$500,10,FALSE))),"NA") -> 8.047300153 | I8: =IFERROR((IF($C8="NA","NA",ROUND(VLOOKUP($A$3,'G6-RALL'!$A$6:$AM$500,12,FALSE),0)&"% ("&IF(VLOOKUP($A$3,'G6-RALL'!$A$6:$AM$500,11,FALSE)="",0,VLOOKUP($A$3,'G6-RALL'!$A$6:$AM$500,11,FALSE))&")")),"NA") -> 36% (8778) | J8: =IFERROR((IF($C8="NA","NA",VLOOKUP($A$3,'G6-RALL'!$A$6:$AM$500,13,FALSE))),"NA") -> 4.45970743 | K8: =IFERROR((IF($C8="NA","NA",ROUND(VLOOKUP($A$3,'G6-RALL'!$A$6:$AM$500,15,FALSE),0)&"% ("&IF(VLOOKUP($A$3,'G6-RALL'!$A$6:$AM$500,14,FALSE)="",0,VLOOKUP($A$3,'G6-RALL'!$A$6:$AM$500,14,FALSE))&")")),"NA") -> 53% (12778) | L8: =IFERROR((IF($C8="NA","NA",VLOOKUP($A$3,'G6-RALL'!$A$6:$AM$500,16,FALSE))),"NA") -> 3.398893539 | M8: =IFERROR((IF($C8="NA","NA",ROUND(VLOOKUP($A$3,'G6-RALL'!$A$6:$AM$500,18,FALSE),0)&"% ("&IF(VLOOKUP($A$3,'G6-RALL'!$A$6:$AM$500,17,FALSE)="",0,VLOOKUP($A$3,'G6-RALL'!$A$6:$AM$500,17,FALSE))&")")),"NA") -> 25% (6017)
A9: FCAT Level 1 | B9: =IFERROR(VLOOKUP(TEXT($A$3,"0000"),MEM_RL1!$A$2:$M$500,7,FALSE),"NA") -> 4209 | C9: =IFERROR((IF(OR(B9=0,B9="",B9="NA"),"NA",((IF(VLOOKUP($A$3,'G6-RL1'!$A$6:$AM$500,3,FALSE)>=B9,"100% ("&VLOOKUP($A$3,'G6-RL1'!$A$6:$AM$500,3,FALSE)&")",(ROUND((VLOOKUP($A$3,'G6-RL1'!$A$6:$AM$500,3,FALSE)/B9*100),0))&"% ("&IF(VLOOKUP($A$3,'G6-RL1'!$A$6:$AM$500,3,FALSE)="",0,VLOOKUP($A$3,'G6-RL1'!$A$6:$AM$500,3,FALSE))&")"))))),"0% (0)") -> 91% (3849) | D9: =IFERROR((IF($C9="NA","NA",VLOOKUP($A$3,'G6-RL1'!$A$6:$AM$500,4,FALSE))),"NA") -> 11.95593661 | E9: =IFERROR((IF($C9="NA","NA",ROUND(VLOOKUP($A$3,'G6-RL1'!$A$6:$AM$500,6,FALSE),0)&"% ("&IF(VLOOKUP($A$3,'G6-RL1'!$A$6:$AM$500,5,FALSE)="",0,VLOOKUP($A$3,'G6-RL1'!$A$6:$AM$500,5,FALSE))&")")),"NA") -> 0% (13) | F9: =IFERROR((IF($C9="NA","NA",VLOOKUP($A$3,'G6-RL1'!$A$6:$AM$500,7,FALSE))),"NA") -> 1.866406859 | G9: =IFERROR((IF($C9="NA","NA",ROUND(VLOOKUP($A$3,'G6-RL1'!$A$6:$AM$500,9,FALSE),0)&"% ("&IF(VLOOKUP($A$3,'G6-RL1'!$A$6:$AM$500,8,FALSE)="",0,VLOOKUP($A$3,'G6-RL1'!$A$6:$AM$500,8,FALSE))&")")),"NA") -> 8% (298) | H9: =IFERROR((IF($C9="NA","NA",VLOOKUP($A$3,'G6-RL1'!$A$6:$AM$500,10,FALSE))),"NA") -> 4.837542219 | I9: =IFERROR((IF($C9="NA","NA",ROUND(VLOOKUP($A$3,'G6-RL1'!$A$6:$AM$500,12,FALSE),0)&"% ("&IF(VLOOKUP($A$3,'G6-RL1'!$A$6:$AM$500,11,FALSE)="",0,VLOOKUP($A$3,'G6-RL1'!$A$6:$AM$500,11,FALSE))&")")),"NA") -> 2% (90) | J9: =IFERROR((IF($C9="NA","NA",VLOOKUP($A$3,'G6-RL1'!$A$6:$AM$500,13,FALSE))),"NA") -> 2.948272279 | K9: =IFERROR((IF($C9="NA","NA",ROUND(VLOOKUP($A$3,'G6-RL1'!$A$6:$AM$500,15,FALSE),0)&"% ("&IF(VLOOKUP($A$3,'G6-RL1'!$A$6:$AM$500,14,FALSE)="",0,VLOOKUP($A$3,'G6-RL1'!$A$6:$AM$500,14,FALSE))&")")),"NA") -> 13% (495) | L9: =IFERROR((IF($C9="NA","NA",VLOOKUP($A$3,'G6-RL1'!$A$6:$AM$500,16,FALSE))),"NA") -> 2.308521694 | M9: =IFERROR((IF($C9="NA","NA",ROUND(VLOOKUP($A$3,'G6-RL1'!$A$6:$AM$500,18,FALSE),0)&"% ("&IF(VLOOKUP($A$3,'G6-RL1'!$A$6:$AM$500,17,FALSE)="",0,VLOOKUP($A$3,'G6-RL1'!$A$6:$AM$500,17,FALSE))&")")),"NA") -> 5% (176)
A10: FCAT Level 2 | B10: =IFERROR(VLOOKUP(TEXT($A$3,"0000"),MEM_RL2!$A$2:$O$500,7,FALSE),"NA") -> 5755 | C10: =IFERROR((IF(OR(B10=0,B10="",B10="NA"),"NA",((IF(VLOOKUP($A$3,'G6-RL2'!$A$6:$AM$500,3,FALSE)>=B10,"100% ("&VLOOKUP($A$3,'G6-RL2'!$A$6:$AM$500,3,FALSE)&")",(ROUND((VLOOKUP($A$3,'G6-RL2'!$A$6:$AM$500,3,FALSE)/B10*100),0))&"% ("&IF(VLOOKUP($A$3,'G6-RL2'!$A$6:$AM$500,3,FALSE)="",0,VLOOKUP($A$3,'G6-RL2'!$A$6:$AM$500,3,FALSE))&")"))))),"0% (0)") -> 92% (5286) | D10: =IFERROR((IF($C10="NA","NA",VLOOKUP($A$3,'G6-RL2'!$A$6:$AM$500,4,FALSE))),"NA") -> 15.64390844 | E10: =IFERROR((IF($C10="NA","NA",ROUND(VLOOKUP($A$3,'G6-RL2'!$A$6:$AM$500,6,FALSE),0)&"% ("&IF(VLOOKUP($A$3,'G6-RL2'!$A$6:$AM$500,5,FALSE)="",0,VLOOKUP($A$3,'G6-RL2'!$A$6:$AM$500,5,FALSE))&")")),"NA") -> 3% (137) | F10: =IFERROR((IF($C10="NA","NA",VLOOKUP($A$3,'G6-RL2'!$A$6:$AM$500,7,FALSE))),"NA") -> 2.343038214 | G10: =IFERROR((IF($C10="NA","NA",ROUND(VLOOKUP($A$3,'G6-RL2'!$A$6:$AM$500,9,FALSE),0)&"% ("&IF(VLOOKUP($A$3,'G6-RL2'!$A$6:$AM$500,8,FALSE)="",0,VLOOKUP($A$3,'G6-RL2'!$A$6:$AM$500,8,FALSE))&")")),"NA") -> 17% (876) | H10: =IFERROR((IF($C10="NA","NA",VLOOKUP($A$3,'G6-RL2'!$A$6:$AM$500,10,FALSE))),"NA") -> 6.638876277 | I10: =IFERROR((IF($C10="NA","NA",ROUND(VLOOKUP($A$3,'G6-RL2'!$A$6:$AM$500,12,FALSE),0)&"% ("&IF(VLOOKUP($A$3,'G6-RL2'!$A$6:$AM$500,11,FALSE)="",0,VLOOKUP($A$3,'G6-RL2'!$A$6:$AM$500,11,FALSE))&")")),"NA") -> 12% (621) | J10: =IFERROR((IF($C10="NA","NA",VLOOKUP($A$3,'G6-RL2'!$A$6:$AM$500,13,FALSE))),"NA") -> 3.879511918 | K10: =IFERROR((IF($C10="NA","NA",ROUND(VLOOKUP($A$3,'G6-RL2'!$A$6:$AM$500,15,FALSE),0)&"% ("&IF(VLOOKUP($A$3,'G6-RL2'!$A$6:$AM$500,14,FALSE)="",0,VLOOKUP($A$3,'G6-RL2'!$A$6:$AM$500,14,FALSE))&")")),"NA") -> 34% (1816) | L10: =IFERROR((IF($C10="NA","NA",VLOOKUP($A$3,'G6-RL2'!$A$6:$AM$500,16,FALSE))),"NA") -> 2.785300795 | M10: =IFERROR((IF($C10="NA","NA",ROUND(VLOOKUP($A$3,'G6-RL2'!$A$6:$AM$500,18,FALSE),0)&"% ("&IF(VLOOKUP($A$3,'G6-RL2'!$A$6:$AM$500,17,FALSE)="",0,VLOOKUP($A$3,'G6-RL2'!$A$6:$AM$500,17,FALSE))&")")),"NA") -> 10% (529)
A11: FCAT Level 3 | B11: =IFERROR(VLOOKUP(TEXT($A$3,"0000"),MEM_RL3!$A$2:$O$500,7,FALSE),"NA") -> 6518 | C11: =IFERROR((IF(OR(B11=0,B11="",B11="NA"),"NA",((IF(VLOOKUP($A$3,'G6-RL3'!$A$6:$AM$500,3,FALSE)>=B11,"100% ("&VLOOKUP($A$3,'G6-RL3'!$A$6:$AM$500,3,FALSE)&")",(ROUND((VLOOKUP($A$3,'G6-RL3'!$A$6:$AM$500,3,FALSE)/B11*100),0))&"% ("&IF(VLOOKUP($A$3,'G6-RL3'!$A$6:$AM$500,3,FALSE)="",0,VLOOKUP($A$3,'G6-RL3'!$A$6:$AM$500,3,FALSE))&")"))))),"0% (0)") -> 94% (6105) | D11: =IFERROR((IF($C11="NA","NA",VLOOKUP($A$3,'G6-RL3'!$A$6:$AM$500,4,FALSE))),"NA") -> 19.34910729 | E11: =IFERROR((IF($C11="NA","NA",ROUND(VLOOKUP($A$3,'G6-RL3'!$A$6:$AM$500,6,FALSE),0)&"% ("&IF(VLOOKUP($A$3,'G6-RL3'!$A$6:$AM$500,5,FALSE)="",0,VLOOKUP($A$3,'G6-RL3'!$A$6:$AM$500,5,FALSE))&")")),"NA") -> 17% (1045) | F11: =IFERROR((IF($C11="NA","NA",VLOOKUP($A$3,'G6-RL3'!$A$6:$AM$500,7,FALSE))),"NA") -> 2.948484848 | G11: =IFERROR((IF($C11="NA","NA",ROUND(VLOOKUP($A$3,'G6-RL3'!$A$6:$AM$500,9,FALSE),0)&"% ("&IF(VLOOKUP($A$3,'G6-RL3'!$A$6:$AM$500,8,FALSE)="",0,VLOOKUP($A$3,'G6-RL3'!$A$6:$AM$500,8,FALSE))&")")),"NA") -> 33% (2006) | H11: =IFERROR((IF($C11="NA","NA",VLOOKUP($A$3,'G6-RL3'!$A$6:$AM$500,10,FALSE))),"NA") -> 8.348452088 | I11: =IFERROR((IF($C11="NA","NA",ROUND(VLOOKUP($A$3,'G6-RL3'!$A$6:$AM$500,12,FALSE),0)&"% ("&IF(VLOOKUP($A$3,'G6-RL3'!$A$6:$AM$500,11,FALSE)="",0,VLOOKUP($A$3,'G6-RL3'!$A$6:$AM$500,11,FALSE))&")")),"NA") -> 34% (2098) | J11: =IFERROR((IF($C11="NA","NA",VLOOKUP($A$3,'G6-RL3'!$A$6:$AM$500,13,FALSE))),"NA") -> 4.631809992 | K11: =IFERROR((IF($C11="NA","NA",ROUND(VLOOKUP($A$3,'G6-RL3'!$A$6:$AM$500,15,FALSE),0)&"% ("&IF(VLOOKUP($A$3,'G6-RL3'!$A$6:$AM$500,14,FALSE)="",0,VLOOKUP($A$3,'G6-RL3'!$A$6:$AM$500,14,FALSE))&")")),"NA") -> 57% (3497) | L11: =IFERROR((IF($C11="NA","NA",VLOOKUP($A$3,'G6-RL3'!$A$6:$AM$500,16,FALSE))),"NA") -> 3.424635545 | M11: =IFERROR((IF($C11="NA","NA",ROUND(VLOOKUP($A$3,'G6-RL3'!$A$6:$AM$500,18,FALSE),0)&"% ("&IF(VLOOKUP($A$3,'G6-RL3'!$A$6:$AM$500,17,FALSE)="",0,VLOOKUP($A$3,'G6-RL3'!$A$6:$AM$500,17,FALSE))&")")),"NA") -> 21% (1311)
A12: FCAT Level 4 | B12: =IFERROR(VLOOKUP(TEXT($A$3,"0000"),MEM_RL4!$A$2:$P$500,7,FALSE),"NA") -> 5570 | C12: =IFERROR((IF(OR(B12=0,B12="",B12="NA"),"NA",((IF(VLOOKUP($A$3,'G6-RL4'!$A$6:$AM$500,3,FALSE)>=B12,"100% ("&VLOOKUP($A$3,'G6-RL4'!$A$6:$AM$500,3,FALSE)&")",(ROUND((VLOOKUP($A$3,'G6-RL4'!$A$6:$AM$500,3,FALSE)/B12*100),0))&"% ("&IF(VLOOKUP($A$3,'G6-RL4'!$A$6:$AM$500,3,FALSE)="",0,VLOOKUP($A$3,'G6-RL4'!$A$6:$AM$500,3,FALSE))&")"))))),"0% (0)") -> 95% (5292) | D12: =IFERROR((IF($C12="NA","NA",VLOOKUP($A$3,'G6-RL4'!$A$6:$AM$500,4,FALSE))),"NA") -> 23.00676493 | E12: =IFERROR((IF($C12="NA","NA",ROUND(VLOOKUP($A$3,'G6-RL4'!$A$6:$AM$500,6,FALSE),0)&"% ("&IF(VLOOKUP($A$3,'G6-RL4'!$A$6:$AM$500,5,FALSE)="",0,VLOOKUP($A$3,'G6-RL4'!$A$6:$AM$500,5,FALSE))&")")),"NA") -> 50% (2628) | F12: =IFERROR((IF($C12="NA","NA",VLOOKUP($A$3,'G6-RL4'!$A$6:$AM$500,7,FALSE))),"NA") -> 3.546995465 | G12: =IFERROR((IF($C12="NA","NA",ROUND(VLOOKUP($A$3,'G6-RL4'!$A$6:$AM$500,9,FALSE),0)&"% ("&IF(VLOOKUP($A$3,'G6-RL4'!$A$6:$AM$500,8,FALSE)="",0,VLOOKUP($A$3,'G6-RL4'!$A$6:$AM$500,8,FALSE))&")")),"NA") -> 55% (2919) | H12: =IFERROR((IF($C12="NA","NA",VLOOKUP($A$3,'G6-RL4'!$A$6:$AM$500,10,FALSE))),"NA") -> 10.00251323 | I12: =IFERROR((IF($C12="NA","NA",ROUND(VLOOKUP($A$3,'G6-RL4'!$A$6:$AM$500,12,FALSE),0)&"% ("&IF(VLOOKUP($A$3,'G6-RL4'!$A$6:$AM$500,11,FALSE)="",0,VLOOKUP($A$3,'G6-RL4'!$A$6:$AM$500,11,FALSE))&")")),"NA") -> 65% (3425) | J12: =IFERROR((IF($C12="NA","NA",VLOOKUP($A$3,'G6-RL4'!$A$6:$AM$500,13,FALSE))),"NA") -> 5.345823885 | K12: =IFERROR((IF($C12="NA","NA",ROUND(VLOOKUP($A$3,'G6-RL4'!$A$6:$AM$500,15,FALSE),0)&"% ("&IF(VLOOKUP($A$3,'G6-RL4'!$A$6:$AM$500,14,FALSE)="",0,VLOOKUP($A$3,'G6-RL4'!$A$6:$AM$500,14,FALSE))&")")),"NA") -> 79% (4182) | L12: =IFERROR((IF($C12="NA","NA",VLOOKUP($A$3,'G6-RL4'!$A$6:$AM$500,16,FALSE))),"NA") -> 4.122108844 | M12: =IFERROR((IF($C12="NA","NA",ROUND(VLOOKUP($A$3,'G6-RL4'!$A$6:$AM$500,18,FALSE),0)&"% ("&IF(VLOOKUP($A$3,'G6-RL4'!$A$6:$AM$500,17,FALSE)="",0,VLOOKUP($A$3,'G6-RL4'!$A$6:$AM$500,17,FALSE))&")")),"NA") -> 40% (2143)
A13: FCAT Level 5 | B13: =IFERROR(VLOOKUP(TEXT($A$3,"0000"),MEM_RL5!$A$2:$P$500,6,FALSE),"NA") -> 2831 | C13: =IFERROR((IF(OR(B13=0,B13="",B13="NA"),"NA",((IF(VLOOKUP($A$3,'G6-RL5'!$A$6:$AM$500,3,FALSE)>=B13,"100% ("&VLOOKUP($A$3,'G6-RL5'!$A$6:$AM$500,3,FALSE)&")",(ROUND((VLOOKUP($A$3,'G6-RL5'!$A$6:$AM$500,3,FALSE)/B13*100),0))&"% ("&IF(VLOOKUP($A$3,'G6-RL5'!$A$6:$AM$500,3,FALSE)="",0,VLOOKUP($A$3,'G6-RL5'!$A$6:$AM$500,3,FALSE))&")"))))),"0% (0)") -> 97% (2733) | D13: =IFERROR((IF($C13="NA","NA",VLOOKUP($A$3,'G6-RL5'!$A$6:$AM$500,4,FALSE))),"NA") -> 26.01324552 | E13: =IFERROR((IF($C13="NA","NA",ROUND(VLOOKUP($A$3,'G6-RL5'!$A$6:$AM$500,6,FALSE),0)&"% ("&IF(VLOOKUP($A$3,'G6-RL5'!$A$6:$AM$500,5,FALSE)="",0,VLOOKUP($A$3,'G6-RL5'!$A$6:$AM$500,5,FALSE))&")")),"NA") -> 80% (2191) | F13: =IFERROR((IF($C13="NA","NA",VLOOKUP($A$3,'G6-RL5'!$A$6:$AM$500,7,FALSE))),"NA") -> 4.083424808 | G13: =IFERROR((IF($C13="NA","NA",ROUND(VLOOKUP($A$3,'G6-RL5'!$A$6:$AM$500,9,FALSE),0)&"% ("&IF(VLOOKUP($A$3,'G6-RL5'!$A$6:$AM$500,8,FALSE)="",0,VLOOKUP($A$3,'G6-RL5'!$A$6:$AM$500,8,FALSE))&")")),"NA") -> 76% (2081) | H13: =IFERROR((IF($C13="NA","NA",VLOOKUP($A$3,'G6-RL5'!$A$6:$AM$500,10,FALSE))),"NA") -> 11.2356019 | I13: =IFERROR((IF($C13="NA","NA",ROUND(VLOOKUP($A$3,'G6-RL5'!$A$6:$AM$500,12,FALSE),0)&"% ("&IF(VLOOKUP($A$3,'G6-RL5'!$A$6:$AM$500,11,FALSE)="",0,VLOOKUP($A$3,'G6-RL5'!$A$6:$AM$500,11,FALSE))&")")),"NA") -> 85% (2334) | J13: =IFERROR((IF($C13="NA","NA",VLOOKUP($A$3,'G6-RL5'!$A$6:$AM$500,13,FALSE))),"NA") -> 5.835931211 | K13: =IFERROR((IF($C13="NA","NA",ROUND(VLOOKUP($A$3,'G6-RL5'!$A$6:$AM$500,15,FALSE),0)&"% ("&IF(VLOOKUP($A$3,'G6-RL5'!$A$6:$AM$500,14,FALSE)="",0,VLOOKUP($A$3,'G6-RL5'!$A$6:$AM$500,14,FALSE))&")")),"NA") -> 90% (2453) | L13: =IFERROR((IF($C13="NA","NA",VLOOKUP($A$3,'G6-RL5'!$A$6:$AM$500,16,FALSE))),"NA") -> 4.860409806 | M13: =IFERROR((IF($C13="NA","NA",ROUND(VLOOKUP($A$3,'G6-RL5'!$A$6:$AM$500,18,FALSE),0)&"% ("&IF(VLOOKUP($A$3,'G6-RL5'!$A$6:$AM$500,17,FALSE)="",0,VLOOKUP($A$3,'G6-RL5'!$A$6:$AM$500,17,FALSE))&")")),"NA") -> 63% (1719)
A14: White | B14: =IFERROR(VLOOKUP(TEXT($A$3,"0000"),MEM_W!$A$2:$O$500,10,FALSE),"NA") -> 2173 | C14: =IFERROR((IF(OR(B14=0,B14="",B14="NA"),"NA",((IF(VLOOKUP($A$3,'G6-RW'!$A$6:$AM$500,3,FALSE)>=B14,"100% ("&VLOOKUP($A$3,'G6-RW'!$A$6:$AM$500,3,FALSE)&")",(ROUND((VLOOKUP($A$3,'G6-RW'!$A$6:$AM$500,3,FALSE)/B14*100),0))&"% ("&IF(VLOOKUP($A$3,'G6-RW'!$A$6:$AM$500,3,FALSE)="",0,VLOOKUP($A$3,'G6-RW'!$A$6:$AM$500,3,FALSE))&")"))))),"0% (0)") -> 93% (2012) | D14: =IFERROR((IF($C14="NA","NA",VLOOKUP($A$3,'G6-RW'!$A$6:$AM$500,4,FALSE))),"NA") -> 21.73439364 | E14: =IFERROR((IF($C14="NA","NA",ROUND(VLOOKUP($A$3,'G6-RW'!$A$6:$AM$500,6,FALSE),0)&"% ("&IF(VLOOKUP($A$3,'G6-RW'!$A$6:$AM$500,5,FALSE)="",0,VLOOKUP($A$3,'G6-RW'!$A$6:$AM$500,5,FALSE))&")")),"NA") -> 44% (876) | F14: =IFERROR((IF($C14="NA","NA",VLOOKUP($A$3,'G6-RW'!$A$6:$AM$500,7,FALSE))),"NA") -> 3.431013917 | G14: =IFERROR((IF($C14="NA","NA",ROUND(VLOOKUP($A$3,'G6-RW'!$A$6:$AM$500,9,FALSE),0)&"% ("&IF(VLOOKUP($A$3,'G6-RW'!$A$6:$AM$500,8,FALSE)="",0,VLOOKUP($A$3,'G6-RW'!$A$6:$AM$500,8,FALSE))&")")),"NA") -> 54% (1083) | H14: =IFERROR((IF($C14="NA","NA",VLOOKUP($A$3,'G6-RW'!$A$6:$AM$500,10,FALSE))),"NA") -> 9.318439364 | I14: =IFERROR((IF($C14="NA","NA",ROUND(VLOOKUP($A$3,'G6-RW'!$A$6:$AM$500,12,FALSE),0)&"% ("&IF(VLOOKUP($A$3,'G6-RW'!$A$6:$AM$500,11,FALSE)="",0,VLOOKUP($A$3,'G6-RW'!$A$6:$AM$500,11,FALSE))&")")),"NA") -> 55% (1106) | J14: =IFERROR((IF($C14="NA","NA",VLOOKUP($A$3,'G6-RW'!$A$6:$AM$500,13,FALSE))),"NA") -> 4.994483101 | K14: =IFERROR((IF($C14="NA","NA",ROUND(VLOOKUP($A$3,'G6-RW'!$A$6:$AM$500,15,FALSE),0)&"% ("&IF(VLOOKUP($A$3,'G6-RW'!$A$6:$AM$500,14,FALSE)="",0,VLOOKUP($A$3,'G6-RW'!$A$6:$AM$500,14,FALSE))&")")),"NA") -> 68% (1370) | L14: =IFERROR((IF($C14="NA","NA",VLOOKUP($A$3,'G6-RW'!$A$6:$AM$500,16,FALSE))),"NA") -> 3.997713718 | M14: =IFERROR((IF($C14="NA","NA",ROUND(VLOOKUP($A$3,'G6-RW'!$A$6:$AM$500,18,FALSE),0)&"% ("&IF(VLOOKUP($A$3,'G6-RW'!$A$6:$AM$500,17,FALSE)="",0,VLOOKUP($A$3,'G6-RW'!$A$6:$AM$500,17,FALSE))&")")),"NA") -> 39% (789)
A15: Black | B15: =IFERROR(VLOOKUP(TEXT($A$3,"0000"),MEM_B!$A$2:$O$500,10,FALSE),"NA") -> 6072 | C15: =IFERROR((IF(OR(B15=0,B15="",B15="NA"),"NA",((IF(VLOOKUP($A$3,'G6-RB'!$A$6:$AM$500,3,FALSE)>=B15,"100% ("&VLOOKUP($A$3,'G6-RB'!$A$6:$AM$500,3,FALSE)&")",(ROUND((VLOOKUP($A$3,'G6-RB'!$A$6:$AM$500,3,FALSE)/B15*100),0))&"% ("&IF(VLOOKUP($A$3,'G6-RB'!$A$6:$AM$500,3,FALSE)="",0,VLOOKUP($A$3,'G6-RB'!$A$6:$AM$500,3,FALSE))&")"))))),"0% (0)") -> 90% (5485) | D15: =IFERROR((IF($C15="NA","NA",VLOOKUP($A$3,'G6-RB'!$A$6:$AM$500,4,FALSE))),"NA") -> 16.88539654 | E15: =IFERROR((IF($C15="NA","NA",ROUND(VLOOKUP($A$3,'G6-RB'!$A$6:$AM$500,6,FALSE),0)&"% ("&IF(VLOOKUP($A$3,'G6-RB'!$A$6:$AM$500,5,FALSE)="",0,VLOOKUP($A$3,'G6-RB'!$A$6:$AM$500,5,FALSE))&")")),"NA") -> 14% (759) | F15: =IFERROR((IF($C15="NA","NA",VLOOKUP($A$3,'G6-RB'!$A$6:$AM$500,7,FALSE))),"NA") -> 2.53857794 | G15: =IFERROR((IF($C15="NA","NA",ROUND(VLOOKUP($A$3,'G6-RB'!$A$6:$AM$500,9,FALSE),0)&"% ("&IF(VLOOKUP($A$3,'G6-RB'!$A$6:$AM$500,8,FALSE)="",0,VLOOKUP($A$3,'G6-RB'!$A$6:$AM$500,8,FALSE))&")")),"NA") -> 24% (1296) | H15: =IFERROR((IF($C15="NA","NA",VLOOKUP($A$3,'G6-RB'!$A$6:$AM$500,10,FALSE))),"NA") -> 7.206690975 | I15: =IFERROR((IF($C15="NA","NA",ROUND(VLOOKUP($A$3,'G6-RB'!$A$6:$AM$500,12,FALSE),0)&"% ("&IF(VLOOKUP($A$3,'G6-RB'!$A$6:$AM$500,11,FALSE)="",0,VLOOKUP($A$3,'G6-RB'!$A$6:$AM$500,11,FALSE))&")")),"NA") -> 24% (1315) | J15: =IFERROR((IF($C15="NA","NA",VLOOKUP($A$3,'G6-RB'!$A$6:$AM$500,13,FALSE))),"NA") -> 4.078687329 | K15: =IFERROR((IF($C15="NA","NA",ROUND(VLOOKUP($A$3,'G6-RB'!$A$6:$AM$500,15,FALSE),0)&"% ("&IF(VLOOKUP($A$3,'G6-RB'!$A$6:$AM$500,14,FALSE)="",0,VLOOKUP($A$3,'G6-RB'!$A$6:$AM$500,14,FALSE))&")")),"NA") -> 43% (2333) | L15: =IFERROR((IF($C15="NA","NA",VLOOKUP($A$3,'G6-RB'!$A$6:$AM$500,16,FALSE))),"NA") -> 3.063245214 | M15: =IFERROR((IF($C15="NA","NA",ROUND(VLOOKUP($A$3,'G6-RB'!$A$6:$AM$500,18,FALSE),0)&"% ("&IF(VLOOKUP($A$3,'G6-RB'!$A$6:$AM$500,17,FALSE)="",0,VLOOKUP($A$3,'G6-RB'!$A$6:$AM$500,17,FALSE))&")")),"NA") -> 17% (913)
A16: Hispanic | B16: =IFERROR(VLOOKUP(TEXT($A$3,"0000"),MEM_H!$A$2:$O$500,10,FALSE),"NA") -> 17605 | C16: =IFERROR((IF(OR(B16=0,B16="",B16="NA"),"NA",((IF(VLOOKUP($A$3,'G6-RH'!$A$6:$AM$500,3,FALSE)>=B16,"100% ("&VLOOKUP($A$3,'G6-RH'!$A$6:$AM$500,3,FALSE)&")",(ROUND((VLOOKUP($A$3,'G6-RH'!$A$6:$AM$500,3,FALSE)/B16*100),0))&"% ("&IF(VLOOKUP($A$3,'G6-RH'!$A$6:$AM$500,3,FALSE)="",0,VLOOKUP($A$3,'G6-RH'!$A$6:$AM$500,3,FALSE))&")"))))),"0% (0)") -> 92% (16235) | D16: =IFERROR((IF($C16="NA","NA",VLOOKUP($A$3,'G6-RH'!$A$6:$AM$500,4,FALSE))),"NA") -> 18.99411765 | E16: =IFERROR((IF($C16="NA","NA",ROUND(VLOOKUP($A$3,'G6-RH'!$A$6:$AM$500,6,FALSE),0)&"% ("&IF(VLOOKUP($A$3,'G6-RH'!$A$6:$AM$500,5,FALSE)="",0,VLOOKUP($A$3,'G6-RH'!$A$6:$AM$500,5,FALSE))&")")),"NA") -> 27% (4328) | F16: =IFERROR((IF($C16="NA","NA",VLOOKUP($A$3,'G6-RH'!$A$6:$AM$500,7,FALSE))),"NA") -> 2.922975054 | G16: =IFERROR((IF($C16="NA","NA",ROUND(VLOOKUP($A$3,'G6-RH'!$A$6:$AM$500,9,FALSE),0)&"% ("&IF(VLOOKUP($A$3,'G6-RH'!$A$6:$AM$500,8,FALSE)="",0,VLOOKUP($A$3,'G6-RH'!$A$6:$AM$500,8,FALSE))&")")),"NA") -> 36% (5815) | H16: =IFERROR((IF($C16="NA","NA",VLOOKUP($A$3,'G6-RH'!$A$6:$AM$500,10,FALSE))),"NA") -> 8.137825685 | I16: =IFERROR((IF($C16="NA","NA",ROUND(VLOOKUP($A$3,'G6-RH'!$A$6:$AM$500,12,FALSE),0)&"% ("&IF(VLOOKUP($A$3,'G6-RH'!$A$6:$AM$500,11,FALSE)="",0,VLOOKUP($A$3,'G6-RH'!$A$6:$AM$500,11,FALSE))&")")),"NA") -> 38% (6134) | J16: =IFERROR((IF($C16="NA","NA",VLOOKUP($A$3,'G6-RH'!$A$6:$AM$500,13,FALSE))),"NA") -> 4.507797967 | K16: =IFERROR((IF($C16="NA","NA",ROUND(VLOOKUP($A$3,'G6-RH'!$A$6:$AM$500,15,FALSE),0)&"% ("&IF(VLOOKUP($A$3,'G6-RH'!$A$6:$AM$500,14,FALSE)="",0,VLOOKUP($A$3,'G6-RH'!$A$6:$AM$500,14,FALSE))&")")),"NA") -> 54% (8798) | L16: =IFERROR((IF($C16="NA","NA",VLOOKUP($A$3,'G6-RH'!$A$6:$AM$500,16,FALSE))),"NA") -> 3.432516169 | M16: =IFERROR((IF($C16="NA","NA",ROUND(VLOOKUP($A$3,'G6-RH'!$A$6:$AM$500,18,FALSE),0)&"% ("&IF(VLOOKUP($A$3,'G6-RH'!$A$6:$AM$500,17,FALSE)="",0,VLOOKUP($A$3,'G6-RH'!$A$6:$AM$500,17,FALSE))&")")),"NA") -> 26% (4153)
A17: Asian | B17: =IFERROR(VLOOKUP(TEXT($A$3,"0000"),MEM_A!$A$2:$O$500,10,FALSE),"NA") -> 300 | C17: =IFERROR((IF(OR(B17=0,B17="",B17="NA"),"NA",((IF(VLOOKUP($A$3,'G6-RA'!$A$6:$AM$500,3,FALSE)>=B17,"100% ("&VLOOKUP($A$3,'G6-RA'!$A$6:$AM$500,3,FALSE)&")",(ROUND((VLOOKUP($A$3,'G6-RA'!$A$6:$AM$500,3,FALSE)/B17*100),0))&"% ("&IF(VLOOKUP($A$3,'G6-RA'!$A$6:$AM$500,3,FALSE)="",0,VLOOKUP($A$3,'G6-RA'!$A$6:$AM$500,3,FALSE))&")"))))),"0% (0)") -> 91% (273) | D17: =IFERROR((IF($C17="NA","NA",VLOOKUP($A$3,'G6-RA'!$A$6:$AM$500,4,FALSE))),"NA") -> 22.68205128 | E17: =IFERROR((IF($C17="NA","NA",ROUND(VLOOKUP($A$3,'G6-RA'!$A$6:$AM$500,6,FALSE),0)&"% ("&IF(VLOOKUP($A$3,'G6-RA'!$A$6:$AM$500,5,FALSE)="",0,VLOOKUP($A$3,'G6-RA'!$A$6:$AM$500,5,FALSE))&")")),"NA") -> 52% (141) | F17: =IFERROR((IF($C17="NA","NA",VLOOKUP($A$3,'G6-RA'!$A$6:$AM$500,7,FALSE))),"NA") -> 3.493406593 | G17: =IFERROR((IF($C17="NA","NA",ROUND(VLOOKUP($A$3,'G6-RA'!$A$6:$AM$500,9,FALSE),0)&"% ("&IF(VLOOKUP($A$3,'G6-RA'!$A$6:$AM$500,8,FALSE)="",0,VLOOKUP($A$3,'G6-RA'!$A$6:$AM$500,8,FALSE))&")")),"NA") -> 56% (153) | H17: =IFERROR((IF($C17="NA","NA",VLOOKUP($A$3,'G6-RA'!$A$6:$AM$500,10,FALSE))),"NA") -> 9.823076923 | I17: =IFERROR((IF($C17="NA","NA",ROUND(VLOOKUP($A$3,'G6-RA'!$A$6:$AM$500,12,FALSE),0)&"% ("&IF(VLOOKUP($A$3,'G6-RA'!$A$6:$AM$500,11,FALSE)="",0,VLOOKUP($A$3,'G6-RA'!$A$6:$AM$500,11,FALSE))&")")),"NA") -> 64% (174) | J17: =IFERROR((IF($C17="NA","NA",VLOOKUP($A$3,'G6-RA'!$A$6:$AM$500,13,FALSE))),"NA") -> 5.153479853 | K17: =IFERROR((IF($C17="NA","NA",ROUND(VLOOKUP($A$3,'G6-RA'!$A$6:$AM$500,15,FALSE),0)&"% ("&IF(VLOOKUP($A$3,'G6-RA'!$A$6:$AM$500,14,FALSE)="",0,VLOOKUP($A$3,'G6-RA'!$A$6:$AM$500,14,FALSE))&")")),"NA") -> 73% (199) | L17: =IFERROR((IF($C17="NA","NA",VLOOKUP($A$3,'G6-RA'!$A$6:$AM$500,16,FALSE))),"NA") -> 4.211721612 | M17: =IFERROR((IF($C17="NA","NA",ROUND(VLOOKUP($A$3,'G6-RA'!$A$6:$AM$500,18,FALSE),0)&"% ("&IF(VLOOKUP($A$3,'G6-RA'!$A$6:$AM$500,17,FALSE)="",0,VLOOKUP($A$3,'G6-RA'!$A$6:$AM$500,17,FALSE))&")")),"NA") -> 45% (124)
A18: Am. Indian | B18: =IFERROR(VLOOKUP(TEXT($A$3,"0000"),MEM_I!$A$2:$O$500,10,FALSE),"NA") -> 13 | C18: =IFERROR((IF(OR(B18=0,B18="",B18="NA"),"NA",((IF(VLOOKUP($A$3,'G6-RI'!$A$6:$AM$500,3,FALSE)>=B18,"100% ("&VLOOKUP($A$3,'G6-RI'!$A$6:$AM$500,3,FALSE)&")",(ROUND((VLOOKUP($A$3,'G6-RI'!$A$6:$AM$500,3,FALSE)/B18*100),0))&"% ("&IF(VLOOKUP($A$3,'G6-RI'!$A$6:$AM$500,3,FALSE)="",0,VLOOKUP($A$3,'G6-RI'!$A$6:$AM$500,3,FALSE))&")"))))),"0% (0)") -> 85% (11) | D18: =IFERROR((IF($C18="NA","NA",VLOOKUP($A$3,'G6-RI'!$A$6:$AM$500,4,FALSE))),"NA") -> 18.54545455 | E18: =IFERROR((IF($C18="NA","NA",ROUND(VLOOKUP($A$3,'G6-RI'!$A$6:$AM$500,6,FALSE),0)&"% ("&IF(VLOOKUP($A$3,'G6-RI'!$A$6:$AM$500,5,FALSE)="",0,VLOOKUP($A$3,'G6-RI'!$A$6:$AM$500,5,FALSE))&")")),"NA") -> 27% (3) | F18: =IFERROR((IF($C18="NA","NA",VLOOKUP($A$3,'G6-RI'!$A$6:$AM$500,7,FALSE))),"NA") -> 2.909090909 | G18: =IFERROR((IF($C18="NA","NA",ROUND(VLOOKUP($A$3,'G6-RI'!$A$6:$AM$500,9,FALSE),0)&"% ("&IF(VLOOKUP($A$3,'G6-RI'!$A$6:$AM$500,8,FALSE)="",0,VLOOKUP($A$3,'G6-RI'!$A$6:$AM$500,8,FALSE))&")")),"NA") -> 27% (3) | H18: =IFERROR((IF($C18="NA","NA",VLOOKUP($A$3,'G6-RI'!$A$6:$AM$500,10,FALSE))),"NA") -> 7.727272727 | I18: =IFERROR((IF($C18="NA","NA",ROUND(VLOOKUP($A$3,'G6-RI'!$A$6:$AM$500,12,FALSE),0)&"% ("&IF(VLOOKUP($A$3,'G6-RI'!$A$6:$AM$500,11,FALSE)="",0,VLOOKUP($A$3,'G6-RI'!$A$6:$AM$500,11,FALSE))&")")),"NA") -> 45% (5) | J18: =IFERROR((IF($C18="NA","NA",VLOOKUP($A$3,'G6-RI'!$A$6:$AM$500,13,FALSE))),"NA") -> 4.454545455 | K18: =IFERROR((IF($C18="NA","NA",ROUND(VLOOKUP($A$3,'G6-RI'!$A$6:$AM$500,15,FALSE),0)&"% ("&IF(VLOOKUP($A$3,'G6-RI'!$A$6:$AM$500,14,FALSE)="",0,VLOOKUP($A$3,'G6-RI'!$A$6:$AM$500,14,FALSE))&")")),"NA") -> 64% (7) | L18: =IFERROR((IF($C18="NA","NA",VLOOKUP($A$3,'G6-RI'!$A$6:$AM$500,16,FALSE))),"NA") -> 3.454545455 | M18: =IFERROR((IF($C18="NA","NA",ROUND(VLOOKUP($A$3,'G6-RI'!$A$6:$AM$500,18,FALSE),0)&"% ("&IF(VLOOKUP($A$3,'G6-RI'!$A$6:$AM$500,17,FALSE)="",0,VLOOKUP($A$3,'G6-RI'!$A$6:$AM$500,17,FALSE))&")")),"NA") -> 36% (4)
A19: ED | B19: =IFERROR(VLOOKUP(TEXT($A$3,"0000"),MEM_ED!$A$2:$O$500,10,FALSE),"NA") -> 20619 | C19: =IFERROR((IF(OR(B19=0,B19="",B19="NA"),"NA",((IF(VLOOKUP($A$3,'G6-RED'!$A$6:$AM$500,3,FALSE)>=B19,"100% ("&VLOOKUP($A$3,'G6-RED'!$A$6:$AM$500,3,FALSE)&")",(ROUND((VLOOKUP($A$3,'G6-RED'!$A$6:$AM$500,3,FALSE)/B19*100),0))&"% ("&IF(VLOOKUP($A$3,'G6-RED'!$A$6:$AM$500,3,FALSE)="",0,VLOOKUP($A$3,'G6-RED'!$A$6:$AM$500,3,FALSE))&")"))))),"0% (0)") -> 92% (19016) | D19: =IFERROR((IF($C19="NA","NA",VLOOKUP($A$3,'G6-RED'!$A$6:$AM$500,4,FALSE))),"NA") -> 18.03034287 | E19: =IFERROR((IF($C19="NA","NA",ROUND(VLOOKUP($A$3,'G6-RED'!$A$6:$AM$500,6,FALSE),0)&"% ("&IF(VLOOKUP($A$3,'G6-RED'!$A$6:$AM$500,5,FALSE)="",0,VLOOKUP($A$3,'G6-RED'!$A$6:$AM$500,5,FALSE))&")")),"NA") -> 21% (3934) | F19: =IFERROR((IF($C19="NA","NA",VLOOKUP($A$3,'G6-RED'!$A$6:$AM$500,7,FALSE))),"NA") -> 2.750473286 | G19: =IFERROR((IF($C19="NA","NA",ROUND(VLOOKUP($A$3,'G6-RED'!$A$6:$AM$500,9,FALSE),0)&"% ("&IF(VLOOKUP($A$3,'G6-RED'!$A$6:$AM$500,8,FALSE)="",0,VLOOKUP($A$3,'G6-RED'!$A$6:$AM$500,8,FALSE))&")")),"NA") -> 31% (5811) | H19: =IFERROR((IF($C19="NA","NA",VLOOKUP($A$3,'G6-RED'!$A$6:$AM$500,10,FALSE))),"NA") -> 7.714503576 | I19: =IFERROR((IF($C19="NA","NA",ROUND(VLOOKUP($A$3,'G6-RED'!$A$6:$AM$500,12,FALSE),0)&"% ("&IF(VLOOKUP($A$3,'G6-RED'!$A$6:$AM$500,11,FALSE)="",0,VLOOKUP($A$3,'G6-RED'!$A$6:$AM$500,11,FALSE))&")")),"NA") -> 32% (6025) | J19: =IFERROR((IF($C19="NA","NA",VLOOKUP($A$3,'G6-RED'!$A$6:$AM$500,13,FALSE))),"NA") -> 4.313599074 | K19: =IFERROR((IF($C19="NA","NA",ROUND(VLOOKUP($A$3,'G6-RED'!$A$6:$AM$500,15,FALSE),0)&"% ("&IF(VLOOKUP($A$3,'G6-RED'!$A$6:$AM$500,14,FALSE)="",0,VLOOKUP($A$3,'G6-RED'!$A$6:$AM$500,14,FALSE))&")")),"NA") -> 49% (9278) | L19: =IFERROR((IF($C19="NA","NA",VLOOKUP($A$3,'G6-RED'!$A$6:$AM$500,16,FALSE))),"NA") -> 3.255195625 | M19: =IFERROR((IF($C19="NA","NA",ROUND(VLOOKUP($A$3,'G6-RED'!$A$6:$AM$500,18,FALSE),0)&"% ("&IF(VLOOKUP($A$3,'G6-RED'!$A$6:$AM$500,17,FALSE)="",0,VLOOKUP($A$3,'G6-RED'!$A$6:$AM$500,17,FALSE))&")")),"NA") -> 21% (4054)
A20: ELL | B20: =IFERROR(VLOOKUP(TEXT($A$3,"0000"),MEM_ELL!$A$2:$O$500,10,FALSE),"NA") -> 4805 | C20: =IFERROR((IF(OR(B20=0,B20="",B20="NA"),"NA",((IF(VLOOKUP($A$3,'G6-RELL'!$A$6:$AM$500,3,FALSE)>=B20,"100% ("&VLOOKUP($A$3,'G6-RELL'!$A$6:$AM$500,3,FALSE)&")",(ROUND((VLOOKUP($A$3,'G6-RELL'!$A$6:$AM$500,3,FALSE)/B20*100),0))&"% ("&IF(VLOOKUP($A$3,'G6-RELL'!$A$6:$AM$500,3,FALSE)="",0,VLOOKUP($A$3,'G6-RELL'!$A$6:$AM$500,3,FALSE))&")"))))),"0% (0)") -> 87% (4179) | D20: =IFERROR((IF($C20="NA","NA",VLOOKUP($A$3,'G6-RELL'!$A$6:$AM$500,4,FALSE))),"NA") -> 14.60588658 | E20: =IFERROR((IF($C20="NA","NA",ROUND(VLOOKUP($A$3,'G6-RELL'!$A$6:$AM$500,6,FALSE),0)&"% ("&IF(VLOOKUP($A$3,'G6-RELL'!$A$6:$AM$500,5,FALSE)="",0,VLOOKUP($A$3,'G6-RELL'!$A$6:$AM$500,5,FALSE))&")")),"NA") -> 7% (281) | F20: =IFERROR((IF($C20="NA","NA",VLOOKUP($A$3,'G6-RELL'!$A$6:$AM$500,7,FALSE))),"NA") -> 2.208901651 | G20: =IFERROR((IF($C20="NA","NA",ROUND(VLOOKUP($A$3,'G6-RELL'!$A$6:$AM$500,9,FALSE),0)&"% ("&IF(VLOOKUP($A$3,'G6-RELL'!$A$6:$AM$500,8,FALSE)="",0,VLOOKUP($A$3,'G6-RELL'!$A$6:$AM$500,8,FALSE))&")")),"NA") -> 16% (680) | H20: =IFERROR((IF($C20="NA","NA",VLOOKUP($A$3,'G6-RELL'!$A$6:$AM$500,10,FALSE))),"NA") -> 6.148360852 | I20: =IFERROR((IF($C20="NA","NA",ROUND(VLOOKUP($A$3,'G6-RELL'!$A$6:$AM$500,12,FALSE),0)&"% ("&IF(VLOOKUP($A$3,'G6-RELL'!$A$6:$AM$500,11,FALSE)="",0,VLOOKUP($A$3,'G6-RELL'!$A$6:$AM$500,11,FALSE))&")")),"NA") -> 14% (586) | J20: =IFERROR((IF($C20="NA","NA",VLOOKUP($A$3,'G6-RELL'!$A$6:$AM$500,13,FALSE))),"NA") -> 3.566642737 | K20: =IFERROR((IF($C20="NA","NA",ROUND(VLOOKUP($A$3,'G6-RELL'!$A$6:$AM$500,15,FALSE),0)&"% ("&IF(VLOOKUP($A$3,'G6-RELL'!$A$6:$AM$500,14,FALSE)="",0,VLOOKUP($A$3,'G6-RELL'!$A$6:$AM$500,14,FALSE))&")")),"NA") -> 30% (1244) | L20: =IFERROR((IF($C20="NA","NA",VLOOKUP($A$3,'G6-RELL'!$A$6:$AM$500,16,FALSE))),"NA") -> 2.681981335 | M20: =IFERROR((IF($C20="NA","NA",ROUND(VLOOKUP($A$3,'G6-RELL'!$A$6:$AM$500,18,FALSE),0)&"% ("&IF(VLOOKUP($A$3,'G6-RELL'!$A$6:$AM$500,17,FALSE)="",0,VLOOKUP($A$3,'G6-RELL'!$A$6:$AM$500,17,FALSE))&")")),"NA") -> 10% (429)
A21: SWD | B21: =IFERROR(VLOOKUP(TEXT($A$3,"0000"),MEM_SWD!$A$2:$O$500,10,FALSE),"NA") -> 2629 | C21: =IFERROR((IF(OR(B21=0,B21="",B21="NA"),"NA",((IF(VLOOKUP($A$3,'G6-RSWD'!$A$6:$AM$500,3,FALSE)>=B21,"100% ("&VLOOKUP($A$3,'G6-RSWD'!$A$6:$AM$500,3,FALSE)&")",(ROUND((VLOOKUP($A$3,'G6-RSWD'!$A$6:$AM$500,3,FALSE)/B21*100),0))&"% ("&IF(VLOOKUP($A$3,'G6-RSWD'!$A$6:$AM$500,3,FALSE)="",0,VLOOKUP($A$3,'G6-RSWD'!$A$6:$AM$500,3,FALSE))&")"))))),"0% (0)") -> 88% (2312) | D21: =IFERROR((IF($C21="NA","NA",VLOOKUP($A$3,'G6-RSWD'!$A$6:$AM$500,4,FALSE))),"NA") -> 14.14446367 | E21: =IFERROR((IF($C21="NA","NA",ROUND(VLOOKUP($A$3,'G6-RSWD'!$A$6:$AM$500,6,FALSE),0)&"% ("&IF(VLOOKUP($A$3,'G6-RSWD'!$A$6:$AM$500,5,FALSE)="",0,VLOOKUP($A$3,'G6-RSWD'!$A$6:$AM$500,5,FALSE))&")")),"NA") -> 7% (154) | F21: =IFERROR((IF($C21="NA","NA",VLOOKUP($A$3,'G6-RSWD'!$A$6:$AM$500,7,FALSE))),"NA") -> 2.249134948 | G21: =IFERROR((IF($C21="NA","NA",ROUND(VLOOKUP($A$3,'G6-RSWD'!$A$6:$AM$500,9,FALSE),0)&"% ("&IF(VLOOKUP($A$3,'G6-RSWD'!$A$6:$AM$500,8,FALSE)="",0,VLOOKUP($A$3,'G6-RSWD'!$A$6:$AM$500,8,FALSE))&")")),"NA") -> 17% (404) | H21: =IFERROR((IF($C21="NA","NA",VLOOKUP($A$3,'G6-RSWD'!$A$6:$AM$500,10,FALSE))),"NA") -> 5.913711073 | I21: =IFERROR((IF($C21="NA","NA",ROUND(VLOOKUP($A$3,'G6-RSWD'!$A$6:$AM$500,12,FALSE),0)&"% ("&IF(VLOOKUP($A$3,'G6-RSWD'!$A$6:$AM$500,11,FALSE)="",0,VLOOKUP($A$3,'G6-RSWD'!$A$6:$AM$500,11,FALSE))&")")),"NA") -> 13% (292) | J21: =IFERROR((IF($C21="NA","NA",VLOOKUP($A$3,'G6-RSWD'!$A$6:$AM$500,13,FALSE))),"NA") -> 3.402032872 | K21: =IFERROR((IF($C21="NA","NA",ROUND(VLOOKUP($A$3,'G6-RSWD'!$A$6:$AM$500,15,FALSE),0)&"% ("&IF(VLOOKUP($A$3,'G6-RSWD'!$A$6:$AM$500,14,FALSE)="",0,VLOOKUP($A$3,'G6-RSWD'!$A$6:$AM$500,14,FALSE))&")")),"NA") -> 26% (591) | L21: =IFERROR((IF($C21="NA","NA",VLOOKUP($A$3,'G6-RSWD'!$A$6:$AM$500,16,FALSE))),"NA") -> 2.584515571 | M21: =IFERROR((IF($C21="NA","NA",ROUND(VLOOKUP($A$3,'G6-RSWD'!$A$6:$AM$500,18,FALSE),0)&"% ("&IF(VLOOKUP($A$3,'G6-RSWD'!$A$6:$AM$500,17,FALSE)="",0,VLOOKUP($A$3,'G6-RSWD'!$A$6:$AM$500,17,FALSE))&")")),"NA") -> 10% (225)
A22: Math - Grade 6
A23: Level of Proficiency at 70% or above | B23: Total # of Students | C23: % of Students Tested | D23: ='G6-8 Matrix'!C10&" ["&'G6-8 Matrix'!C11&"]" -> Overall [35] | F23: ='G6-8 Matrix'!D10&" ["&'G6-8 Matrix'!D11&"]" -> Fractions, Ratios/ Proportional Relationships, and Statistics [20] | H23: ='G6-8 Matrix'!E10&" ["&'G6-8 Matrix'!E11&"]" -> Expressions and Equations [8] | J23: ='G6-8 Matrix'!F10&" ["&'G6-8 Matrix'!F11&"]" -> Geometry and Measurement [7]
D24: Average Score | E24: % Proficient | F24: Average Score | G24: % Proficient | H24: Average Score | I24: % Proficient | J24: Average Score | K24: % Proficient
A25: All students | B25: =IFERROR(VLOOKUP(TEXT($A$3,"0000"),Mem_All!$A$2:$O$500,10,FALSE),"NA") -> 26280 | C25: =IFERROR((IF(OR(B25=0,B25="",B25="NA"),"NA",((IF(VLOOKUP($A$3,'G6-MALL'!$A$6:$AM$500,3,FALSE)>=B25,"100% ("&VLOOKUP($A$3,'G6-MALL'!$A$6:$AM$500,3,FALSE)&")",(ROUND((VLOOKUP($A$3,'G6-MALL'!$A$6:$AM$500,3,FALSE)/B25*100),0))&"% ("&IF(VLOOKUP($A$3,'G6-MALL'!$A$6:$AM$500,3,FALSE)="",0,VLOOKUP($A$3,'G6-MALL'!$A$6:$AM$500,3,FALSE))&")"))))),"0% (0)") -> 93% (24488) | D25: =IFERROR((IF($C25="NA","NA",VLOOKUP($A$3,'G6-MALL'!$A$6:$AM$500,4,FALSE))),"NA") -> 10.55392029 | E25: =IFERROR((IF($C25="NA","NA",ROUND(VLOOKUP($A$3,'G6-MALL'!$A$6:$AM$500,6,FALSE),0)&"% ("&IF(VLOOKUP($A$3,'G6-MALL'!$A$6:$AM$500,5,FALSE)="",0,VLOOKUP($A$3,'G6-MALL'!$A$6:$AM$500,5,FALSE))&")")),"NA") -> 1% (147) | F25: =IFERROR((IF($C25="NA","NA",VLOOKUP($A$3,'G6-MALL'!$A$6:$AM$500,10,FALSE))),"NA") -> 5.447966351 | G25: =IFERROR((IF($C25="NA","NA",ROUND(VLOOKUP($A$3,'G6-MALL'!$A$6:$AM$500,12,FALSE),0)&"% ("&IF(VLOOKUP($A$3,'G6-MALL'!$A$6:$AM$500,11,FALSE)="",0,VLOOKUP($A$3,'G6-MALL'!$A$6:$AM$500,11,FALSE))&")")),"NA") -> 1% (194) | H25: =IFERROR((IF($C25="NA","NA",VLOOKUP($A$3,'G6-MALL'!$A$6:$AM$500,7,FALSE))),"NA") -> 3.411875204 | I25: =IFERROR((IF($C25="NA","NA",ROUND(VLOOKUP($A$3,'G6-MALL'!$A$6:$AM$500,9,FALSE),0)&"% ("&IF(VLOOKUP($A$3,'G6-MALL'!$A$6:$AM$500,8,FALSE)="",0,VLOOKUP($A$3,'G6-MALL'!$A$6:$AM$500,8,FALSE))&")")),"NA") -> 13% (3173) | J25: =IFERROR((IF($C25="NA","NA",VLOOKUP($A$3,'G6-MALL'!$A$6:$AM$500,13,FALSE))),"NA") -> 1.70676658 | K25: =IFERROR((IF($C25="NA","NA",ROUND(VLOOKUP($A$3,'G6-MALL'!$A$6:$AM$500,15,FALSE),0)&"% ("&IF(VLOOKUP($A$3,'G6-MALL'!$A$6:$AM$500,14,FALSE)="",0,VLOOKUP($A$3,'G6-MALL'!$A$6:$AM$500,14,FALSE))&")")),"NA") -> 2% (415)
A26: FCAT Level 1 | B26: =IFERROR(VLOOKUP(TEXT($A$3,"0000"),MEM_ML1!$A$2:$M$500,7,FALSE),"NA") -> 4537 | C26: =IFERROR((IF(OR(B26=0,B26="",B26="NA"),"NA",((IF(VLOOKUP($A$3,'G6-ML1'!$A$6:$AM$500,3,FALSE)>=B26,"100% ("&VLOOKUP($A$3,'G6-ML1'!$A$6:$AM$500,3,FALSE)&")",(ROUND((VLOOKUP($A$3,'G6-ML1'!$A$6:$AM$500,3,FALSE)/B26*100),0))&"% ("&IF(VLOOKUP($A$3,'G6-ML1'!$A$6:$AM$500,3,FALSE)="",0,VLOOKUP($A$3,'G6-ML1'!$A$6:$AM$500,3,FALSE))&")"))))),"0% (0)") -> 91% (4147) | D26: =IFERROR((IF($C26="NA","NA",VLOOKUP($A$3,'G6-ML1'!$A$6:$AM$500,4,FALSE))),"NA") -> 7.625632988 | E26: =IFERROR((IF($C26="NA","NA",ROUND(VLOOKUP($A$3,'G6-ML1'!$A$6:$AM$500,6,FALSE),0)&"% ("&IF(VLOOKUP($A$3,'G6-ML1'!$A$6:$AM$500,5,FALSE)="",0,VLOOKUP($A$3,'G6-ML1'!$A$6:$AM$500,5,FALSE))&")")),"NA") -> 0% (0) | F26: =IFERROR((IF($C26="NA","NA",VLOOKUP($A$3,'G6-ML1'!$A$6:$AM$500,10,FALSE))),"NA") -> 4.172244996 | G26: =IFERROR((IF($C26="NA","NA",ROUND(VLOOKUP($A$3,'G6-ML1'!$A$6:$AM$500,12,FALSE),0)&"% ("&IF(VLOOKUP($A$3,'G6-ML1'!$A$6:$AM$500,11,FALSE)="",0,VLOOKUP($A$3,'G6-ML1'!$A$6:$AM$500,11,FALSE))&")")),"NA") -> 0% (0) | H26: =IFERROR((IF($C26="NA","NA",VLOOKUP($A$3,'G6-ML1'!$A$6:$AM$500,7,FALSE))),"NA") -> 2.232288401 | I26: =IFERROR((IF($C26="NA","NA",ROUND(VLOOKUP($A$3,'G6-ML1'!$A$6:$AM$500,9,FALSE),0)&"% ("&IF(VLOOKUP($A$3,'G6-ML1'!$A$6:$AM$500,8,FALSE)="",0,VLOOKUP($A$3,'G6-ML1'!$A$6:$AM$500,8,FALSE))&")")),"NA") -> 1% (35) | J26: =IFERROR((IF($C26="NA","NA",VLOOKUP($A$3,'G6-ML1'!$A$6:$AM$500,13,FALSE))),"NA") -> 1.213431396 | K26: =IFERROR((IF($C26="NA","NA",ROUND(VLOOKUP($A$3,'G6-ML1'!$A$6:$AM$500,15,FALSE),0)&"% ("&IF(VLOOKUP($A$3,'G6-ML1'!$A$6:$AM$500,14,FALSE)="",0,VLOOKUP($A$3,'G6-ML1'!$A$6:$AM$500,14,FALSE))&")")),"NA") -> 0% (13)
A27: FCAT Level 2 | B27: =IFERROR(VLOOKUP(TEXT($A$3,"0000"),MEM_ML2!$A$2:$O$500,7,FALSE),"NA") -> 6026 | C27: =IFERROR((IF(OR(B27=0,B27="",B27="NA"),"NA",((IF(VLOOKUP($A$3,'G6-ML2'!$A$6:$AM$500,3,FALSE)>=B27,"100% ("&VLOOKUP($A$3,'G6-ML2'!$A$6:$AM$500,3,FALSE)&")",(ROUND((VLOOKUP($A$3,'G6-ML2'!$A$6:$AM$500,3,FALSE)/B27*100),0))&"% ("&IF(VLOOKUP($A$3,'G6-ML2'!$A$6:$AM$500,3,FALSE)="",0,VLOOKUP($A$3,'G6-ML2'!$A$6:$AM$500,3,FALSE))&")"))))),"0% (0)") -> 94% (5672) | D27: =IFERROR((IF($C27="NA","NA",VLOOKUP($A$3,'G6-ML2'!$A$6:$AM$500,4,FALSE))),"NA") -> 8.261124824 | E27: =IFERROR((IF($C27="NA","NA",ROUND(VLOOKUP($A$3,'G6-ML2'!$A$6:$AM$500,6,FALSE),0)&"% ("&IF(VLOOKUP($A$3,'G6-ML2'!$A$6:$AM$500,5,FALSE)="",0,VLOOKUP($A$3,'G6-ML2'!$A$6:$AM$500,5,FALSE))&")")),"NA") -> 0% (0) | F27: =IFERROR((IF($C27="NA","NA",VLOOKUP($A$3,'G6-ML2'!$A$6:$AM$500,10,FALSE))),"NA") -> 4.177362482 | G27: =IFERROR((IF($C27="NA","NA",ROUND(VLOOKUP($A$3,'G6-ML2'!$A$6:$AM$500,12,FALSE),0)&"% ("&IF(VLOOKUP($A$3,'G6-ML2'!$A$6:$AM$500,11,FALSE)="",0,VLOOKUP($A$3,'G6-ML2'!$A$6:$AM$500,11,FALSE))&")")),"NA") -> 0% (0) | H27: =IFERROR((IF($C27="NA","NA",VLOOKUP($A$3,'G6-ML2'!$A$6:$AM$500,7,FALSE))),"NA") -> 2.753755289 | I27: =IFERROR((IF($C27="NA","NA",ROUND(VLOOKUP($A$3,'G6-ML2'!$A$6:$AM$500,9,FALSE),0)&"% ("&IF(VLOOKUP($A$3,'G6-ML2'!$A$6:$AM$500,8,FALSE)="",0,VLOOKUP($A$3,'G6-ML2'!$A$6:$AM$500,8,FALSE))&")")),"NA") -> 3% (157) | J27: =IFERROR((IF($C27="NA","NA",VLOOKUP($A$3,'G6-ML2'!$A$6:$AM$500,13,FALSE))),"NA") -> 1.335472496 | K27: =IFERROR((IF($C27="NA","NA",ROUND(VLOOKUP($A$3,'G6-ML2'!$A$6:$AM$500,15,FALSE),0)&"% ("&IF(VLOOKUP($A$3,'G6-ML2'!$A$6:$AM$500,14,FALSE)="",0,VLOOKUP($A$3,'G6-ML2'!$A$6:$AM$500,14,FALSE))&")")),"NA") -> 0% (14)
A28: FCAT Level 3 | B28: =IFERROR(VLOOKUP(TEXT($A$3,"0000"),MEM_ML3!$A$2:$O$500,7,FALSE),"NA") -> 6985 | C28: =IFERROR((IF(OR(B28=0,B28="",B28="NA"),"NA",((IF(VLOOKUP($A$3,'G6-ML3'!$A$6:$AM$500,3,FALSE)>=B28,"100% ("&VLOOKUP($A$3,'G6-ML3'!$A$6:$AM$500,3,FALSE)&")",(ROUND((VLOOKUP($A$3,'G6-ML3'!$A$6:$AM$500,3,FALSE)/B28*100),0))&"% ("&IF(VLOOKUP($A$3,'G6-ML3'!$A$6:$AM$500,3,FALSE)="",0,VLOOKUP($A$3,'G6-ML3'!$A$6:$AM$500,3,FALSE))&")"))))),"0% (0)") -> 96% (6709) | D28: =IFERROR((IF($C28="NA","NA",VLOOKUP($A$3,'G6-ML3'!$A$6:$AM$500,4,FALSE))),"NA") -> 10.08876137 | E28: =IFERROR((IF($C28="NA","NA",ROUND(VLOOKUP($A$3,'G6-ML3'!$A$6:$AM$500,6,FALSE),0)&"% ("&IF(VLOOKUP($A$3,'G6-ML3'!$A$6:$AM$500,5,FALSE)="",0,VLOOKUP($A$3,'G6-ML3'!$A$6:$AM$500,5,FALSE))&")")),"NA") -> 0% (0) | F28: =IFERROR((IF($C28="NA","NA",VLOOKUP($A$3,'G6-ML3'!$A$6:$AM$500,10,FALSE))),"NA") -> 5.029631838 | G28: =IFERROR((IF($C28="NA","NA",ROUND(VLOOKUP($A$3,'G6-ML3'!$A$6:$AM$500,12,FALSE),0)&"% ("&IF(VLOOKUP($A$3,'G6-ML3'!$A$6:$AM$500,11,FALSE)="",0,VLOOKUP($A$3,'G6-ML3'!$A$6:$AM$500,11,FALSE))&")")),"NA") -> 0% (1) | H28: =IFERROR((IF($C28="NA","NA",VLOOKUP($A$3,'G6-ML3'!$A$6:$AM$500,7,FALSE))),"NA") -> 3.399373975 | I28: =IFERROR((IF($C28="NA","NA",ROUND(VLOOKUP($A$3,'G6-ML3'!$A$6:$AM$500,9,FALSE),0)&"% ("&IF(VLOOKUP($A$3,'G6-ML3'!$A$6:$AM$500,8,FALSE)="",0,VLOOKUP($A$3,'G6-ML3'!$A$6:$AM$500,8,FALSE))&")")),"NA") -> 8% (544) | J28: =IFERROR((IF($C28="NA","NA",VLOOKUP($A$3,'G6-ML3'!$A$6:$AM$500,13,FALSE))),"NA") -> 1.65713221 | K28: =IFERROR((IF($C28="NA","NA",ROUND(VLOOKUP($A$3,'G6-ML3'!$A$6:$AM$500,15,FALSE),0)&"% ("&IF(VLOOKUP($A$3,'G6-ML3'!$A$6:$AM$500,14,FALSE)="",0,VLOOKUP($A$3,'G6-ML3'!$A$6:$AM$500,14,FALSE))&")")),"NA") -> 1% (40)
A29: FCAT Level 4 | B29: =IFERROR(VLOOKUP(TEXT($A$3,"0000"),MEM_ML4!$A$2:$P$500,7,FALSE),"NA") -> 4573 | C29: =IFERROR((IF(OR(B29=0,B29="",B29="NA"),"NA",((IF(VLOOKUP($A$3,'G6-ML4'!$A$6:$AM$500,3,FALSE)>=B29,"100% ("&VLOOKUP($A$3,'G6-ML4'!$A$6:$AM$500,3,FALSE)&")",(ROUND((VLOOKUP($A$3,'G6-ML4'!$A$6:$AM$500,3,FALSE)/B29*100),0))&"% ("&IF(VLOOKUP($A$3,'G6-ML4'!$A$6:$AM$500,3,FALSE)="",0,VLOOKUP($A$3,'G6-ML4'!$A$6:$AM$500,3,FALSE))&")"))))),"0% (0)") -> 97% (4445) | D29: =IFERROR((IF($C29="NA","NA",VLOOKUP($A$3,'G6-ML4'!$A$6:$AM$500,4,FALSE))),"NA") -> 13.13705287 | E29: =IFERROR((IF($C29="NA","NA",ROUND(VLOOKUP($A$3,'G6-ML4'!$A$6:$AM$500,6,FALSE),0)&"% ("&IF(VLOOKUP($A$3,'G6-ML4'!$A$6:$AM$500,5,FALSE)="",0,VLOOKUP($A$3,'G6-ML4'!$A$6:$AM$500,5,FALSE))&")")),"NA") -> 0% (6) | F29: =IFERROR((IF($C29="NA","NA",VLOOKUP($A$3,'G6-ML4'!$A$6:$AM$500,10,FALSE))),"NA") -> 6.751338583 | G29: =IFERROR((IF($C29="NA","NA",ROUND(VLOOKUP($A$3,'G6-ML4'!$A$6:$AM$500,12,FALSE),0)&"% ("&IF(VLOOKUP($A$3,'G6-ML4'!$A$6:$AM$500,11,FALSE)="",0,VLOOKUP($A$3,'G6-ML4'!$A$6:$AM$500,11,FALSE))&")")),"NA") -> 0% (21) | H29: =IFERROR((IF($C29="NA","NA",VLOOKUP($A$3,'G6-ML4'!$A$6:$AM$500,7,FALSE))),"NA") -> 4.303847019 | I29: =IFERROR((IF($C29="NA","NA",ROUND(VLOOKUP($A$3,'G6-ML4'!$A$6:$AM$500,9,FALSE),0)&"% ("&IF(VLOOKUP($A$3,'G6-ML4'!$A$6:$AM$500,8,FALSE)="",0,VLOOKUP($A$3,'G6-ML4'!$A$6:$AM$500,8,FALSE))&")")),"NA") -> 22% (973) | J29: =IFERROR((IF($C29="NA","NA",VLOOKUP($A$3,'G6-ML4'!$A$6:$AM$500,13,FALSE))),"NA") -> 2.083262092 | K29: =IFERROR((IF($C29="NA","NA",ROUND(VLOOKUP($A$3,'G6-ML4'!$A$6:$AM$500,15,FALSE),0)&"% ("&IF(VLOOKUP($A$3,'G6-ML4'!$A$6:$AM$500,14,FALSE)="",0,VLOOKUP($A$3,'G6-ML4'!$A$6:$AM$500,14,FALSE))&")")),"NA") -> 2% (74)
A30: FCAT Level 5 | B30: =IFERROR(VLOOKUP(TEXT($A$3,"0000"),MEM_ML5!$A$2:$P$500,7,FALSE),"NA") -> 2746 | C30: =IFERROR((IF(OR(B30=0,B30="",B30="NA"),"NA",((IF(VLOOKUP($A$3,'G6-ML5'!$A$6:$AM$500,3,FALSE)>=B30,"100% ("&VLOOKUP($A$3,'G6-ML5'!$A$6:$AM$500,3,FALSE)&")",(ROUND((VLOOKUP($A$3,'G6-ML5'!$A$6:$AM$500,3,FALSE)/B30*100),0))&"% ("&IF(VLOOKUP($A$3,'G6-ML5'!$A$6:$AM$500,3,FALSE)="",0,VLOOKUP($A$3,'G6-ML5'!$A$6:$AM$500,3,FALSE))&")"))))),"0% (0)") -> 97% (2651) | D30: =IFERROR((IF($C30="NA","NA",VLOOKUP($A$3,'G6-ML5'!$A$6:$AM$500,4,FALSE))),"NA") -> 17.54190871 | E30: =IFERROR((IF($C30="NA","NA",ROUND(VLOOKUP($A$3,'G6-ML5'!$A$6:$AM$500,6,FALSE),0)&"% ("&IF(VLOOKUP($A$3,'G6-ML5'!$A$6:$AM$500,5,FALSE)="",0,VLOOKUP($A$3,'G6-ML5'!$A$6:$AM$500,5,FALSE))&")")),"NA") -> 5% (137) | F30: =IFERROR((IF($C30="NA","NA",VLOOKUP($A$3,'G6-ML5'!$A$6:$AM$500,10,FALSE))),"NA") -> 9.257412297 | G30: =IFERROR((IF($C30="NA","NA",ROUND(VLOOKUP($A$3,'G6-ML5'!$A$6:$AM$500,12,FALSE),0)&"% ("&IF(VLOOKUP($A$3,'G6-ML5'!$A$6:$AM$500,11,FALSE)="",0,VLOOKUP($A$3,'G6-ML5'!$A$6:$AM$500,11,FALSE))&")")),"NA") -> 6% (165) | H30: =IFERROR((IF($C30="NA","NA",VLOOKUP($A$3,'G6-ML5'!$A$6:$AM$500,7,FALSE))),"NA") -> 5.42406639 | I30: =IFERROR((IF($C30="NA","NA",ROUND(VLOOKUP($A$3,'G6-ML5'!$A$6:$AM$500,9,FALSE),0)&"% ("&IF(VLOOKUP($A$3,'G6-ML5'!$A$6:$AM$500,8,FALSE)="",0,VLOOKUP($A$3,'G6-ML5'!$A$6:$AM$500,8,FALSE))&")")),"NA") -> 53% (1409) | J30: =IFERROR((IF($C30="NA","NA",VLOOKUP($A$3,'G6-ML5'!$A$6:$AM$500,13,FALSE))),"NA") -> 2.85560166 | K30: =IFERROR((IF($C30="NA","NA",ROUND(VLOOKUP($A$3,'G6-ML5'!$A$6:$AM$500,15,FALSE),0)&"% ("&IF(VLOOKUP($A$3,'G6-ML5'!$A$6:$AM$500,14,FALSE)="",0,VLOOKUP($A$3,'G6-ML5'!$A$6:$AM$500,14,FALSE))&")")),"NA") -> 10% (272)
A31: White | B31: =IFERROR(VLOOKUP(TEXT($A$3,"0000"),MEM_W!$A$2:$O$500,10,FALSE),"NA") -> 2173 | C31: =IFERROR((IF(OR(B31=0,B31="",B31="NA"),"NA",((IF(VLOOKUP($A$3,'G6-MW'!$A$6:$AM$500,3,FALSE)>=B31,"100% ("&VLOOKUP($A$3,'G6-MW'!$A$6:$AM$500,3,FALSE)&")",(ROUND((VLOOKUP($A$3,'G6-MW'!$A$6:$AM$500,3,FALSE)/B31*100),0))&"% ("&IF(VLOOKUP($A$3,'G6-MW'!$A$6:$AM$500,3,FALSE)="",0,VLOOKUP($A$3,'G6-MW'!$A$6:$AM$500,3,FALSE))&")"))))),"0% (0)") -> 93% (2030) | D31: =IFERROR((IF($C31="NA","NA",VLOOKUP($A$3,'G6-MW'!$A$6:$AM$500,4,FALSE))),"NA") -> 12.53891626 | E31: =IFERROR((IF($C31="NA","NA",ROUND(VLOOKUP($A$3,'G6-MW'!$A$6:$AM$500,6,FALSE),0)&"% ("&IF(VLOOKUP($A$3,'G6-MW'!$A$6:$AM$500,5,FALSE)="",0,VLOOKUP($A$3,'G6-MW'!$A$6:$AM$500,5,FALSE))&")")),"NA") -> 1% (27) | F31: =IFERROR((IF($C31="NA","NA",VLOOKUP($A$3,'G6-MW'!$A$6:$AM$500,10,FALSE))),"NA") -> 6.641576355 | G31: =IFERROR((IF($C31="NA","NA",ROUND(VLOOKUP($A$3,'G6-MW'!$A$6:$AM$500,12,FALSE),0)&"% ("&IF(VLOOKUP($A$3,'G6-MW'!$A$6:$AM$500,11,FALSE)="",0,VLOOKUP($A$3,'G6-MW'!$A$6:$AM$500,11,FALSE))&")")),"NA") -> 2% (47) | H31: =IFERROR((IF($C31="NA","NA",VLOOKUP($A$3,'G6-MW'!$A$6:$AM$500,7,FALSE))),"NA") -> 3.96364532 | I31: =IFERROR((IF($C31="NA","NA",ROUND(VLOOKUP($A$3,'G6-MW'!$A$6:$AM$500,9,FALSE),0)&"% ("&IF(VLOOKUP($A$3,'G6-MW'!$A$6:$AM$500,8,FALSE)="",0,VLOOKUP($A$3,'G6-MW'!$A$6:$AM$500,8,FALSE))&")")),"NA") -> 22% (440) | J31: =IFERROR((IF($C31="NA","NA",VLOOKUP($A$3,'G6-MW'!$A$6:$AM$500,13,FALSE))),"NA") -> 1.94408867 | K31: =IFERROR((IF($C31="NA","NA",ROUND(VLOOKUP($A$3,'G6-MW'!$A$6:$AM$500,15,FALSE),0)&"% ("&IF(VLOOKUP($A$3,'G6-MW'!$A$6:$AM$500,14,FALSE)="",0,VLOOKUP($A$3,'G6-MW'!$A$6:$AM$500,14,FALSE))&")")),"NA") -> 3% (64)
A32: Black | B32: =IFERROR(VLOOKUP(TEXT($A$3,"0000"),MEM_B!$A$2:$O$500,10,FALSE),"NA") -> 6072 | C32: =IFERROR((IF(OR(B32=0,B32="",B32="NA"),"NA",((IF(VLOOKUP($A$3,'G6-MB'!$A$6:$AM$500,3,FALSE)>=B32,"100% ("&VLOOKUP($A$3,'G6-MB'!$A$6:$AM$500,3,FALSE)&")",(ROUND((VLOOKUP($A$3,'G6-MB'!$A$6:$AM$500,3,FALSE)/B32*100),0))&"% ("&IF(VLOOKUP($A$3,'G6-MB'!$A$6:$AM$500,3,FALSE)="",0,VLOOKUP($A$3,'G6-MB'!$A$6:$AM$500,3,FALSE))&")"))))),"0% (0)") -> 91% (5507) | D32: =IFERROR((IF($C32="NA","NA",VLOOKUP($A$3,'G6-MB'!$A$6:$AM$500,4,FALSE))),"NA") -> 9.559796622 | E32: =IFERROR((IF($C32="NA","NA",ROUND(VLOOKUP($A$3,'G6-MB'!$A$6:$AM$500,6,FALSE),0)&"% ("&IF(VLOOKUP($A$3,'G6-MB'!$A$6:$AM$500,5,FALSE)="",0,VLOOKUP($A$3,'G6-MB'!$A$6:$AM$500,5,FALSE))&")")),"NA") -> 0% (10) | F32: =IFERROR((IF($C32="NA","NA",VLOOKUP($A$3,'G6-MB'!$A$6:$AM$500,10,FALSE))),"NA") -> 4.812275286 | G32: =IFERROR((IF($C32="NA","NA",ROUND(VLOOKUP($A$3,'G6-MB'!$A$6:$AM$500,12,FALSE),0)&"% ("&IF(VLOOKUP($A$3,'G6-MB'!$A$6:$AM$500,11,FALSE)="",0,VLOOKUP($A$3,'G6-MB'!$A$6:$AM$500,11,FALSE))&")")),"NA") -> 0% (12) | H32: =IFERROR((IF($C32="NA","NA",VLOOKUP($A$3,'G6-MB'!$A$6:$AM$500,7,FALSE))),"NA") -> 3.112475032 | I32: =IFERROR((IF($C32="NA","NA",ROUND(VLOOKUP($A$3,'G6-MB'!$A$6:$AM$500,9,FALSE),0)&"% ("&IF(VLOOKUP($A$3,'G6-MB'!$A$6:$AM$500,8,FALSE)="",0,VLOOKUP($A$3,'G6-MB'!$A$6:$AM$500,8,FALSE))&")")),"NA") -> 9% (485) | J32: =IFERROR((IF($C32="NA","NA",VLOOKUP($A$3,'G6-MB'!$A$6:$AM$500,13,FALSE))),"NA") -> 1.624750318 | K32: =IFERROR((IF($C32="NA","NA",ROUND(VLOOKUP($A$3,'G6-MB'!$A$6:$AM$500,15,FALSE),0)&"% ("&IF(VLOOKUP($A$3,'G6-MB'!$A$6:$AM$500,14,FALSE)="",0,VLOOKUP($A$3,'G6-MB'!$A$6:$AM$500,14,FALSE))&")")),"NA") -> 1% (54)
A33: Hispanic | B33: =IFERROR(VLOOKUP(TEXT($A$3,"0000"),MEM_H!$A$2:$O$500,10,FALSE),"NA") -> 17605 | C33: =IFERROR((IF(OR(B33=0,B33="",B33="NA"),"NA",((IF(VLOOKUP($A$3,'G6-MH'!$A$6:$AM$500,3,FALSE)>=B33,"100% ("&VLOOKUP($A$3,'G6-MH'!$A$6:$AM$500,3,FALSE)&")",(ROUND((VLOOKUP($A$3,'G6-MH'!$A$6:$AM$500,3,FALSE)/B33*100),0))&"% ("&IF(VLOOKUP($A$3,'G6-MH'!$A$6:$AM$500,3,FALSE)="",0,VLOOKUP($A$3,'G6-MH'!$A$6:$AM$500,3,FALSE))&")"))))),"0% (0)") -> 94% (16549) | D33: =IFERROR((IF($C33="NA","NA",VLOOKUP($A$3,'G6-MH'!$A$6:$AM$500,4,FALSE))),"NA") -> 10.57240921 | E33: =IFERROR((IF($C33="NA","NA",ROUND(VLOOKUP($A$3,'G6-MH'!$A$6:$AM$500,6,FALSE),0)&"% ("&IF(VLOOKUP($A$3,'G6-MH'!$A$6:$AM$500,5,FALSE)="",0,VLOOKUP($A$3,'G6-MH'!$A$6:$AM$500,5,FALSE))&")")),"NA") -> 1% (93) | F33: =IFERROR((IF($C33="NA","NA",VLOOKUP($A$3,'G6-MH'!$A$6:$AM$500,10,FALSE))),"NA") -> 5.473164542 | G33: =IFERROR((IF($C33="NA","NA",ROUND(VLOOKUP($A$3,'G6-MH'!$A$6:$AM$500,12,FALSE),0)&"% ("&IF(VLOOKUP($A$3,'G6-MH'!$A$6:$AM$500,11,FALSE)="",0,VLOOKUP($A$3,'G6-MH'!$A$6:$AM$500,11,FALSE))&")")),"NA") -> 1% (118) | H33: =IFERROR((IF($C33="NA","NA",VLOOKUP($A$3,'G6-MH'!$A$6:$AM$500,7,FALSE))),"NA") -> 3.417004049 | I33: =IFERROR((IF($C33="NA","NA",ROUND(VLOOKUP($A$3,'G6-MH'!$A$6:$AM$500,9,FALSE),0)&"% ("&IF(VLOOKUP($A$3,'G6-MH'!$A$6:$AM$500,8,FALSE)="",0,VLOOKUP($A$3,'G6-MH'!$A$6:$AM$500,8,FALSE))&")")),"NA") -> 13% (2126) | J33: =IFERROR((IF($C33="NA","NA",VLOOKUP($A$3,'G6-MH'!$A$6:$AM$500,13,FALSE))),"NA") -> 1.689757689 | K33: =IFERROR((IF($C33="NA","NA",ROUND(VLOOKUP($A$3,'G6-MH'!$A$6:$AM$500,15,FALSE),0)&"% ("&IF(VLOOKUP($A$3,'G6-MH'!$A$6:$AM$500,14,FALSE)="",0,VLOOKUP($A$3,'G6-MH'!$A$6:$AM$500,14,FALSE))&")")),"NA") -> 2% (271)
A34: Asian | B34: =IFERROR(VLOOKUP(TEXT($A$3,"0000"),MEM_A!$A$2:$O$500,10,FALSE),"NA") -> 300 | C34: =IFERROR((IF(OR(B34=0,B34="",B34="NA"),"NA",((IF(VLOOKUP($A$3,'G6-MA'!$A$6:$AM$500,3,FALSE)>=B34,"100% ("&VLOOKUP($A$3,'G6-MA'!$A$6:$AM$500,3,FALSE)&")",(ROUND((VLOOKUP($A$3,'G6-MA'!$A$6:$AM$500,3,FALSE)/B34*100),0))&"% ("&IF(VLOOKUP($A$3,'G6-MA'!$A$6:$AM$500,3,FALSE)="",0,VLOOKUP($A$3,'G6-MA'!$A$6:$AM$500,3,FALSE))&")"))))),"0% (0)") -> 91% (274) | D34: =IFERROR((IF($C34="NA","NA",VLOOKUP($A$3,'G6-MA'!$A$6:$AM$500,4,FALSE))),"NA") -> 14.53759124 | E34: =IFERROR((IF($C34="NA","NA",ROUND(VLOOKUP($A$3,'G6-MA'!$A$6:$AM$500,6,FALSE),0)&"% ("&IF(VLOOKUP($A$3,'G6-MA'!$A$6:$AM$500,5,FALSE)="",0,VLOOKUP($A$3,'G6-MA'!$A$6:$AM$500,5,FALSE))&")")),"NA") -> 6% (16) | F34: =IFERROR((IF($C34="NA","NA",VLOOKUP($A$3,'G6-MA'!$A$6:$AM$500,10,FALSE))),"NA") -> 7.482481752 | G34: =IFERROR((IF($C34="NA","NA",ROUND(VLOOKUP($A$3,'G6-MA'!$A$6:$AM$500,12,FALSE),0)&"% ("&IF(VLOOKUP($A$3,'G6-MA'!$A$6:$AM$500,11,FALSE)="",0,VLOOKUP($A$3,'G6-MA'!$A$6:$AM$500,11,FALSE))&")")),"NA") -> 6% (16) | H34: =IFERROR((IF($C34="NA","NA",VLOOKUP($A$3,'G6-MA'!$A$6:$AM$500,7,FALSE))),"NA") -> 4.548540146 | I34: =IFERROR((IF($C34="NA","NA",ROUND(VLOOKUP($A$3,'G6-MA'!$A$6:$AM$500,9,FALSE),0)&"% ("&IF(VLOOKUP($A$3,'G6-MA'!$A$6:$AM$500,8,FALSE)="",0,VLOOKUP($A$3,'G6-MA'!$A$6:$AM$500,8,FALSE))&")")),"NA") -> 35% (96) | J34: =IFERROR((IF($C34="NA","NA",VLOOKUP($A$3,'G6-MA'!$A$6:$AM$500,13,FALSE))),"NA") -> 2.499270073 | K34: =IFERROR((IF($C34="NA","NA",ROUND(VLOOKUP($A$3,'G6-MA'!$A$6:$AM$500,15,FALSE),0)&"% ("&IF(VLOOKUP($A$3,'G6-MA'!$A$6:$AM$500,14,FALSE)="",0,VLOOKUP($A$3,'G6-MA'!$A$6:$AM$500,14,FALSE))&")")),"NA") -> 8% (22)
A35: Am. Indian | B35: =IFERROR(VLOOKUP(TEXT($A$3,"0000"),MEM_I!$A$2:$O$500,10,FALSE),"NA") -> 13 | C35: =IFERROR((IF(OR(B35=0,B35="",B35="NA"),"NA",((IF(VLOOKUP($A$3,'G6-MI'!$A$6:$AM$500,3,FALSE)>=B35,"100% ("&VLOOKUP($A$3,'G6-MI'!$A$6:$AM$500,3,FALSE)&")",(ROUND((VLOOKUP($A$3,'G6-MI'!$A$6:$AM$500,3,FALSE)/B35*100),0))&"% ("&IF(VLOOKUP($A$3,'G6-MI'!$A$6:$AM$500,3,FALSE)="",0,VLOOKUP($A$3,'G6-MI'!$A$6:$AM$500,3,FALSE))&")"))))),"0% (0)") -> 92% (12) | D35: =IFERROR((IF($C35="NA","NA",VLOOKUP($A$3,'G6-MI'!$A$6:$AM$500,4,FALSE))),"NA") -> 12 | E35: =IFERROR((IF($C35="NA","NA",ROUND(VLOOKUP($A$3,'G6-MI'!$A$6:$AM$500,6,FALSE),0)&"% ("&IF(VLOOKUP($A$3,'G6-MI'!$A$6:$AM$500,5,FALSE)="",0,VLOOKUP($A$3,'G6-MI'!$A$6:$AM$500,5,FALSE))&")")),"NA") -> 0% (0) | F35: =IFERROR((IF($C35="NA","NA",VLOOKUP($A$3,'G6-MI'!$A$6:$AM$500,10,FALSE))),"NA") -> 6.333333333 | G35: =IFERROR((IF($C35="NA","NA",ROUND(VLOOKUP($A$3,'G6-MI'!$A$6:$AM$500,12,FALSE),0)&"% ("&IF(VLOOKUP($A$3,'G6-MI'!$A$6:$AM$500,11,FALSE)="",0,VLOOKUP($A$3,'G6-MI'!$A$6:$AM$500,11,FALSE))&")")),"NA") -> 0% (0) | H35: =IFERROR((IF($C35="NA","NA",VLOOKUP($A$3,'G6-MI'!$A$6:$AM$500,7,FALSE))),"NA") -> 3.75 | I35: =IFERROR((IF($C35="NA","NA",ROUND(VLOOKUP($A$3,'G6-MI'!$A$6:$AM$500,9,FALSE),0)&"% ("&IF(VLOOKUP($A$3,'G6-MI'!$A$6:$AM$500,8,FALSE)="",0,VLOOKUP($A$3,'G6-MI'!$A$6:$AM$500,8,FALSE))&")")),"NA") -> 17% (2) | J35: =IFERROR((IF($C35="NA","NA",VLOOKUP($A$3,'G6-MI'!$A$6:$AM$500,13,FALSE))),"NA") -> 1.916666667 | K35: =IFERROR((IF($C35="NA","NA",ROUND(VLOOKUP($A$3,'G6-MI'!$A$6:$AM$500,15,FALSE),0)&"% ("&IF(VLOOKUP($A$3,'G6-MI'!$A$6:$AM$500,14,FALSE)="",0,VLOOKUP($A$3,'G6-MI'!$A$6:$AM$500,14,FALSE))&")")),"NA") -> 0% (0)
A36: ED | B36: =IFERROR(VLOOKUP(TEXT($A$3,"0000"),MEM_ED!$A$2:$O$500,10,FALSE),"NA") -> 20619 | C36: =IFERROR((IF(OR(B36=0,B36="",B36="NA"),"NA",((IF(VLOOKUP($A$3,'G6-MED'!$A$6:$AM$500,3,FALSE)>=B36,"100% ("&VLOOKUP($A$3,'G6-MED'!$A$6:$AM$500,3,FALSE)&")",(ROUND((VLOOKUP($A$3,'G6-MED'!$A$6:$AM$500,3,FALSE)/B36*100),0))&"% ("&IF(VLOOKUP($A$3,'G6-MED'!$A$6:$AM$500,3,FALSE)="",0,VLOOKUP($A$3,'G6-MED'!$A$6:$AM$500,3,FALSE))&")"))))),"0% (0)") -> 94% (19368) | D36: =IFERROR((IF($C36="NA","NA",VLOOKUP($A$3,'G6-MED'!$A$6:$AM$500,4,FALSE))),"NA") -> 10.05919558 | E36: =IFERROR((IF($C36="NA","NA",ROUND(VLOOKUP($A$3,'G6-MED'!$A$6:$AM$500,6,FALSE),0)&"% ("&IF(VLOOKUP($A$3,'G6-MED'!$A$6:$AM$500,5,FALSE)="",0,VLOOKUP($A$3,'G6-MED'!$A$6:$AM$500,5,FALSE))&")")),"NA") -> 0% (60) | F36: =IFERROR((IF($C36="NA","NA",VLOOKUP($A$3,'G6-MED'!$A$6:$AM$500,10,FALSE))),"NA") -> 5.163300289 | G36: =IFERROR((IF($C36="NA","NA",ROUND(VLOOKUP($A$3,'G6-MED'!$A$6:$AM$500,12,FALSE),0)&"% ("&IF(VLOOKUP($A$3,'G6-MED'!$A$6:$AM$500,11,FALSE)="",0,VLOOKUP($A$3,'G6-MED'!$A$6:$AM$500,11,FALSE))&")")),"NA") -> 0% (71) | H36: =IFERROR((IF($C36="NA","NA",VLOOKUP($A$3,'G6-MED'!$A$6:$AM$500,7,FALSE))),"NA") -> 3.277018794 | I36: =IFERROR((IF($C36="NA","NA",ROUND(VLOOKUP($A$3,'G6-MED'!$A$6:$AM$500,9,FALSE),0)&"% ("&IF(VLOOKUP($A$3,'G6-MED'!$A$6:$AM$500,8,FALSE)="",0,VLOOKUP($A$3,'G6-MED'!$A$6:$AM$500,8,FALSE))&")")),"NA") -> 11% (2048) | J36: =IFERROR((IF($C36="NA","NA",VLOOKUP($A$3,'G6-MED'!$A$6:$AM$500,13,FALSE))),"NA") -> 1.631051219 | K36: =IFERROR((IF($C36="NA","NA",ROUND(VLOOKUP($A$3,'G6-MED'!$A$6:$AM$500,15,FALSE),0)&"% ("&IF(VLOOKUP($A$3,'G6-MED'!$A$6:$AM$500,14,FALSE)="",0,VLOOKUP($A$3,'G6-MED'!$A$6:$AM$500,14,FALSE))&")")),"NA") -> 1% (236)
A37: ELL | B37: =IFERROR(VLOOKUP(TEXT($A$3,"0000"),MEM_ELL!$A$2:$O$500,10,FALSE),"NA") -> 4805 | C37: =IFERROR((IF(OR(B37=0,B37="",B37="NA"),"NA",((IF(VLOOKUP($A$3,'G6-MELL'!$A$6:$AM$500,3,FALSE)>=B37,"100% ("&VLOOKUP($A$3,'G6-MELL'!$A$6:$AM$500,3,FALSE)&")",(ROUND((VLOOKUP($A$3,'G6-MELL'!$A$6:$AM$500,3,FALSE)/B37*100),0))&"% ("&IF(VLOOKUP($A$3,'G6-MELL'!$A$6:$AM$500,3,FALSE)="",0,VLOOKUP($A$3,'G6-MELL'!$A$6:$AM$500,3,FALSE))&")"))))),"0% (0)") -> 89% (4275) | D37: =IFERROR((IF($C37="NA","NA",VLOOKUP($A$3,'G6-MELL'!$A$6:$AM$500,4,FALSE))),"NA") -> 8.661052632 | E37: =IFERROR((IF($C37="NA","NA",ROUND(VLOOKUP($A$3,'G6-MELL'!$A$6:$AM$500,6,FALSE),0)&"% ("&IF(VLOOKUP($A$3,'G6-MELL'!$A$6:$AM$500,5,FALSE)="",0,VLOOKUP($A$3,'G6-MELL'!$A$6:$AM$500,5,FALSE))&")")),"NA") -> 0% (1) | F37: =IFERROR((IF($C37="NA","NA",VLOOKUP($A$3,'G6-MELL'!$A$6:$AM$500,10,FALSE))),"NA") -> 4.501052632 | G37: =IFERROR((IF($C37="NA","NA",ROUND(VLOOKUP($A$3,'G6-MELL'!$A$6:$AM$500,12,FALSE),0)&"% ("&IF(VLOOKUP($A$3,'G6-MELL'!$A$6:$AM$500,11,FALSE)="",0,VLOOKUP($A$3,'G6-MELL'!$A$6:$AM$500,11,FALSE))&")")),"NA") -> 0% (3) | H37: =IFERROR((IF($C37="NA","NA",VLOOKUP($A$3,'G6-MELL'!$A$6:$AM$500,7,FALSE))),"NA") -> 2.768888889 | I37: =IFERROR((IF($C37="NA","NA",ROUND(VLOOKUP($A$3,'G6-MELL'!$A$6:$AM$500,9,FALSE),0)&"% ("&IF(VLOOKUP($A$3,'G6-MELL'!$A$6:$AM$500,8,FALSE)="",0,VLOOKUP($A$3,'G6-MELL'!$A$6:$AM$500,8,FALSE))&")")),"NA") -> 5% (224) | J37: =IFERROR((IF($C37="NA","NA",VLOOKUP($A$3,'G6-MELL'!$A$6:$AM$500,13,FALSE))),"NA") -> 1.391111111 | K37: =IFERROR((IF($C37="NA","NA",ROUND(VLOOKUP($A$3,'G6-MELL'!$A$6:$AM$500,15,FALSE),0)&"% ("&IF(VLOOKUP($A$3,'G6-MELL'!$A$6:$AM$500,14,FALSE)="",0,VLOOKUP($A$3,'G6-MELL'!$A$6:$AM$500,14,FALSE))&")")),"NA") -> 0% (20)
A38: SWD | B38: =IFERROR(VLOOKUP(TEXT($A$3,"0000"),MEM_SWD!$A$2:$O$500,10,FALSE),"NA") -> 2629 | C38: =IFERROR((IF(OR(B38=0,B38="",B38="NA"),"NA",((IF(VLOOKUP($A$3,'G6-MSWD'!$A$6:$AM$500,3,FALSE)>=B38,"100% ("&VLOOKUP($A$3,'G6-MSWD'!$A$6:$AM$500,3,FALSE)&")",(ROUND((VLOOKUP($A$3,'G6-MSWD'!$A$6:$AM$500,3,FALSE)/B38*100),0))&"% ("&IF(VLOOKUP($A$3,'G6-MSWD'!$A$6:$AM$500,3,FALSE)="",0,VLOOKUP($A$3,'G6-MSWD'!$A$6:$AM$500,3,FALSE))&")"))))),"0% (0)") -> 91% (2381) | D38: =IFERROR((IF($C38="NA","NA",VLOOKUP($A$3,'G6-MSWD'!$A$6:$AM$500,4,FALSE))),"NA") -> 8.632801344 | E38: =IFERROR((IF($C38="NA","NA",ROUND(VLOOKUP($A$3,'G6-MSWD'!$A$6:$AM$500,6,FALSE),0)&"% ("&IF(VLOOKUP($A$3,'G6-MSWD'!$A$6:$AM$500,5,FALSE)="",0,VLOOKUP($A$3,'G6-MSWD'!$A$6:$AM$500,5,FALSE))&")")),"NA") -> 0% (5) | F38: =IFERROR((IF($C38="NA","NA",VLOOKUP($A$3,'G6-MSWD'!$A$6:$AM$500,10,FALSE))),"NA") -> 4.592692146 | G38: =IFERROR((IF($C38="NA","NA",ROUND(VLOOKUP($A$3,'G6-MSWD'!$A$6:$AM$500,12,FALSE),0)&"% ("&IF(VLOOKUP($A$3,'G6-MSWD'!$A$6:$AM$500,11,FALSE)="",0,VLOOKUP($A$3,'G6-MSWD'!$A$6:$AM$500,11,FALSE))&")")),"NA") -> 0% (6) | H38: =IFERROR((IF($C38="NA","NA",VLOOKUP($A$3,'G6-MSWD'!$A$6:$AM$500,7,FALSE))),"NA") -> 2.668920622 | I38: =IFERROR((IF($C38="NA","NA",ROUND(VLOOKUP($A$3,'G6-MSWD'!$A$6:$AM$500,9,FALSE),0)&"% ("&IF(VLOOKUP($A$3,'G6-MSWD'!$A$6:$AM$500,8,FALSE)="",0,VLOOKUP($A$3,'G6-MSWD'!$A$6:$AM$500,8,FALSE))&")")),"NA") -> 4% (91) | J38: =IFERROR((IF($C38="NA","NA",VLOOKUP($A$3,'G6-MSWD'!$A$6:$AM$500,13,FALSE))),"NA") -> 1.375934481 | K38: =IFERROR((IF($C38="NA","NA",ROUND(VLOOKUP($A$3,'G6-MSWD'!$A$6:$AM$500,15,FALSE),0)&"% ("&IF(VLOOKUP($A$3,'G6-MSWD'!$A$6:$AM$500,14,FALSE)="",0,VLOOKUP($A$3,'G6-MSWD'!$A$6:$AM$500,14,FALSE))&")")),"NA") -> 1% (16)

Sheet Grade 7 Report
A2: Click here to return to the school and sheet selection interface
A3: ='Select School'!B3 -> 9999
A4: =TEXT(A3,"0000")&"-"&VLOOKUP(A3,SchList!$A$2:$B$504,2,FALSE) -> 9999-District
A5: Reading - Grade 7
A6: Level of Proficiency at 70% or above | B6: Total # of Students | C6: % of Students Tested | D6: ='G6-8 Matrix'!C2&"["&'G6-8 Matrix'!C5&"]" -> Overall[39] | F6: ='G6-8 Matrix'!D2&"["&'G6-8 Matrix'!D5&"]" -> Vocabulary[7] | H6: ='G6-8 Matrix'!E2&"["&'G6-8 Matrix'!E5&"]" -> Reading Application[19] | J6: ='G6-8 Matrix'!F2&"["&'G6-8 Matrix'!F5&"]" -> Literary Analysis Fiction/Nonfiction[6] | L6: ='G6-8 Matrix'!G2&"["&'G6-8 Matrix'!G5&"]" -> Informational Text/ Research Process[7]
D7: Average Score | E7: % Proficient | F7: Average Score | G7: % Proficient | H7: Average Score | I7: % Proficient | J7: Average Score | K7: % Proficient | L7: Average Score | M7: % Proficient
A8: All students | B8: =IFERROR(VLOOKUP(TEXT($A$3,"0000"),Mem_All!$A$2:$O$500,11,FALSE),"NA") -> 26951 | C8: =IFERROR((IF(OR(B8=0,B8="",B8="NA"),"NA",((IF(VLOOKUP($A$3,'G7-RALL'!$A$6:$AM$500,3,FALSE)>=B8,"100% ("&VLOOKUP($A$3,'G7-RALL'!$A$6:$AM$500,3,FALSE)&")",(ROUND((VLOOKUP($A$3,'G7-RALL'!$A$6:$AM$500,3,FALSE)/B8*100),0))&"% ("&IF(VLOOKUP($A$3,'G7-RALL'!$A$6:$AM$500,3,FALSE)="",0,VLOOKUP($A$3,'G7-RALL'!$A$6:$AM$500,3,FALSE))&")"))))),"0% (0)") -> 93% (24954) | D8: =IFERROR((IF($C8="NA","NA",VLOOKUP($A$3,'G7-RALL'!$A$6:$AM$500,4,FALSE))),"NA") -> 24.58324517 | E8: =IFERROR((IF($C8="NA","NA",ROUND(VLOOKUP($A$3,'G7-RALL'!$A$6:$AM$500,6,FALSE),0)&"% ("&IF(VLOOKUP($A$3,'G7-RALL'!$A$6:$AM$500,5,FALSE)="",0,VLOOKUP($A$3,'G7-RALL'!$A$6:$AM$500,5,FALSE))&")")),"NA") -> 42% (10491) | F8: =IFERROR((IF($C8="NA","NA",VLOOKUP($A$3,'G7-RALL'!$A$6:$AM$500,7,FALSE))),"NA") -> 4.479358019 | G8: =IFERROR((IF($C8="NA","NA",ROUND(VLOOKUP($A$3,'G7-RALL'!$A$6:$AM$500,9,FALSE),0)&"% ("&IF(VLOOKUP($A$3,'G7-RALL'!$A$6:$AM$500,8,FALSE)="",0,VLOOKUP($A$3,'G7-RALL'!$A$6:$AM$500,8,FALSE))&")")),"NA") -> 53% (13280) | H8: =IFERROR((IF($C8="NA","NA",VLOOKUP($A$3,'G7-RALL'!$A$6:$AM$500,10,FALSE))),"NA") -> 11.91421415 | I8: =IFERROR((IF($C8="NA","NA",ROUND(VLOOKUP($A$3,'G7-RALL'!$A$6:$AM$500,12,FALSE),0)&"% ("&IF(VLOOKUP($A$3,'G7-RALL'!$A$6:$AM$500,11,FALSE)="",0,VLOOKUP($A$3,'G7-RALL'!$A$6:$AM$500,11,FALSE))&")")),"NA") -> 42% (10395) | J8: =IFERROR((IF($C8="NA","NA",VLOOKUP($A$3,'G7-RALL'!$A$6:$AM$500,13,FALSE))),"NA") -> 4.126588924 | K8: =IFERROR((IF($C8="NA","NA",ROUND(VLOOKUP($A$3,'G7-RALL'!$A$6:$AM$500,15,FALSE),0)&"% ("&IF(VLOOKUP($A$3,'G7-RALL'!$A$6:$AM$500,14,FALSE)="",0,VLOOKUP($A$3,'G7-RALL'!$A$6:$AM$500,14,FALSE))&")")),"NA") -> 48% (12046) | L8: =IFERROR((IF($C8="NA","NA",VLOOKUP($A$3,'G7-RALL'!$A$6:$AM$500,16,FALSE))),"NA") -> 4.057866474 | M8: =IFERROR((IF($C8="NA","NA",ROUND(VLOOKUP($A$3,'G7-RALL'!$A$6:$AM$500,18,FALSE),0)&"% ("&IF(VLOOKUP($A$3,'G7-RALL'!$A$6:$AM$500,17,FALSE)="",0,VLOOKUP($A$3,'G7-RALL'!$A$6:$AM$500,17,FALSE))&")")),"NA") -> 44% (10870)
A9: FCAT Level 1 | B9: =IFERROR(VLOOKUP(TEXT($A$3,"0000"),MEM_RL1!$A$2:$O$500,8,FALSE),"NA") -> 5382 | C9: =IFERROR((IF(OR(B9=0,B9="",B9="NA"),"NA",((IF(VLOOKUP($A$3,'G7-RL1'!$A$6:$AL$500,3,FALSE)>=B9,"100% ("&VLOOKUP($A$3,'G7-RL1'!$A$6:$AL$500,3,FALSE)&")",(ROUND((VLOOKUP($A$3,'G7-RL1'!$A$6:$AL$500,3,FALSE)/B9*100),0))&"% ("&IF(VLOOKUP($A$3,'G7-RL1'!$A$6:$AL$500,3,FALSE)="",0,VLOOKUP($A$3,'G7-RL1'!$A$6:$AL$500,3,FALSE))&")"))))),"0% (0)") -> 93% (4985) | D9: =IFERROR((IF($C9="NA","NA",VLOOKUP($A$3,'G7-RL1'!$A$6:$AL$500,4,FALSE))),"NA") -> 15.14583751 | E9: =IFERROR((IF($C9="NA","NA",ROUND(VLOOKUP($A$3,'G7-RL1'!$A$6:$AL$500,6,FALSE),0)&"% ("&IF(VLOOKUP($A$3,'G7-RL1'!$A$6:$AL$500,5,FALSE)="",0,VLOOKUP($A$3,'G7-RL1'!$A$6:$AL$500,5,FALSE))&")")),"NA") -> 1% (71) | F9: =IFERROR((IF($C9="NA","NA",VLOOKUP($A$3,'G7-RL1'!$A$6:$AL$500,7,FALSE))),"NA") -> 2.909769308 | G9: =IFERROR((IF($C9="NA","NA",ROUND(VLOOKUP($A$3,'G7-RL1'!$A$6:$AL$500,9,FALSE),0)&"% ("&IF(VLOOKUP($A$3,'G7-RL1'!$A$6:$AL$500,8,FALSE)="",0,VLOOKUP($A$3,'G7-RL1'!$A$6:$AL$500,8,FALSE))&")")),"NA") -> 14% (703) | H9: =IFERROR((IF($C9="NA","NA",VLOOKUP($A$3,'G7-RL1'!$A$6:$AL$500,10,FALSE))),"NA") -> 7.33887663 | I9: =IFERROR((IF($C9="NA","NA",ROUND(VLOOKUP($A$3,'G7-RL1'!$A$6:$AL$500,12,FALSE),0)&"% ("&IF(VLOOKUP($A$3,'G7-RL1'!$A$6:$AL$500,11,FALSE)="",0,VLOOKUP($A$3,'G7-RL1'!$A$6:$AL$500,11,FALSE))&")")),"NA") -> 2% (115) | J9: =IFERROR((IF($C9="NA","NA",VLOOKUP($A$3,'G7-RL1'!$A$6:$AL$500,13,FALSE))),"NA") -> 2.566980943 | K9: =IFERROR((IF($C9="NA","NA",ROUND(VLOOKUP($A$3,'G7-RL1'!$A$6:$AL$500,15,FALSE),0)&"% ("&IF(VLOOKUP($A$3,'G7-RL1'!$A$6:$AL$500,14,FALSE)="",0,VLOOKUP($A$3,'G7-RL1'!$A$6:$AL$500,14,FALSE))&")")),"NA") -> 9% (457) | L9: =IFERROR((IF($C9="NA","NA",VLOOKUP($A$3,'G7-RL1'!$A$6:$AL$500,16,FALSE))),"NA") -> 2.330872618 | M9: =IFERROR((IF($C9="NA","NA",ROUND(VLOOKUP($A$3,'G7-RL1'!$A$6:$AL$500,18,FALSE),0)&"% ("&IF(VLOOKUP($A$3,'G7-RL1'!$A$6:$AL$500,17,FALSE)="",0,VLOOKUP($A$3,'G7-RL1'!$A$6:$AL$500,17,FALSE))&")")),"NA") -> 6% (303)
A10: FCAT Level 2 | B10: =IFERROR(VLOOKUP(TEXT($A$3,"0000"),MEM_RL2!$A$2:$O$500,8,FALSE),"NA") -> 6496 | C10: =IFERROR((IF(OR(B10=0,B10="",B10="NA"),"NA",((IF(VLOOKUP($A$3,'G7-RL2'!$A$6:$AL$500,3,FALSE)>=B10,"100% ("&VLOOKUP($A$3,'G7-RL2'!$A$6:$AL$500,3,FALSE)&")",(ROUND((VLOOKUP($A$3,'G7-RL2'!$A$6:$AL$500,3,FALSE)/B10*100),0))&"% ("&IF(VLOOKUP($A$3,'G7-RL2'!$A$6:$AL$500,3,FALSE)="",0,VLOOKUP($A$3,'G7-RL2'!$A$6:$AL$500,3,FALSE))&")"))))),"0% (0)") -> 93% (6072) | D10: =IFERROR((IF($C10="NA","NA",VLOOKUP($A$3,'G7-RL2'!$A$6:$AL$500,4,FALSE))),"NA") -> 21.33527668 | E10: =IFERROR((IF($C10="NA","NA",ROUND(VLOOKUP($A$3,'G7-RL2'!$A$6:$AL$500,6,FALSE),0)&"% ("&IF(VLOOKUP($A$3,'G7-RL2'!$A$6:$AL$500,5,FALSE)="",0,VLOOKUP($A$3,'G7-RL2'!$A$6:$AL$500,5,FALSE))&")")),"NA") -> 14% (856) | F10: =IFERROR((IF($C10="NA","NA",VLOOKUP($A$3,'G7-RL2'!$A$6:$AL$500,7,FALSE))),"NA") -> 3.983761528 | G10: =IFERROR((IF($C10="NA","NA",ROUND(VLOOKUP($A$3,'G7-RL2'!$A$6:$AL$500,9,FALSE),0)&"% ("&IF(VLOOKUP($A$3,'G7-RL2'!$A$6:$AL$500,8,FALSE)="",0,VLOOKUP($A$3,'G7-RL2'!$A$6:$AL$500,8,FALSE))&")")),"NA") -> 38% (2282) | H10: =IFERROR((IF($C10="NA","NA",VLOOKUP($A$3,'G7-RL2'!$A$6:$AL$500,10,FALSE))),"NA") -> 10.21711133 | I10: =IFERROR((IF($C10="NA","NA",ROUND(VLOOKUP($A$3,'G7-RL2'!$A$6:$AL$500,12,FALSE),0)&"% ("&IF(VLOOKUP($A$3,'G7-RL2'!$A$6:$AL$500,11,FALSE)="",0,VLOOKUP($A$3,'G7-RL2'!$A$6:$AL$500,11,FALSE))&")")),"NA") -> 17% (1009) | J10: =IFERROR((IF($C10="NA","NA",VLOOKUP($A$3,'G7-RL2'!$A$6:$AL$500,13,FALSE))),"NA") -> 3.740019763 | K10: =IFERROR((IF($C10="NA","NA",ROUND(VLOOKUP($A$3,'G7-RL2'!$A$6:$AL$500,15,FALSE),0)&"% ("&IF(VLOOKUP($A$3,'G7-RL2'!$A$6:$AL$500,14,FALSE)="",0,VLOOKUP($A$3,'G7-RL2'!$A$6:$AL$500,14,FALSE))&")")),"NA") -> 31% (1874) | L10: =IFERROR((IF($C10="NA","NA",VLOOKUP($A$3,'G7-RL2'!$A$6:$AL$500,16,FALSE))),"NA") -> 3.405237154 | M10: =IFERROR((IF($C10="NA","NA",ROUND(VLOOKUP($A$3,'G7-RL2'!$A$6:$AL$500,18,FALSE),0)&"% ("&IF(VLOOKUP($A$3,'G7-RL2'!$A$6:$AL$500,17,FALSE)="",0,VLOOKUP($A$3,'G7-RL2'!$A$6:$AL$500,17,FALSE))&")")),"NA") -> 24% (1444)
A11: FCAT Level 3 | B11: =IFERROR(VLOOKUP(TEXT($A$3,"0000"),MEM_RL3!$A$2:$O$500,8,FALSE),"NA") -> 7175 | C11: =IFERROR((IF(OR(B11=0,B11="",B11="NA"),"NA",((IF(VLOOKUP($A$3,'G7-RL3'!$A$6:$AL$500,3,FALSE)>=B11,"100% ("&VLOOKUP($A$3,'G7-RL3'!$A$6:$AL$500,3,FALSE)&")",(ROUND((VLOOKUP($A$3,'G7-RL3'!$A$6:$AL$500,3,FALSE)/B11*100),0))&"% ("&IF(VLOOKUP($A$3,'G7-RL3'!$A$6:$AL$500,3,FALSE)="",0,VLOOKUP($A$3,'G7-RL3'!$A$6:$AL$500,3,FALSE))&")"))))),"0% (0)") -> 96% (6887) | D11: =IFERROR((IF($C11="NA","NA",VLOOKUP($A$3,'G7-RL3'!$A$6:$AL$500,4,FALSE))),"NA") -> 27.17284739 | E11: =IFERROR((IF($C11="NA","NA",ROUND(VLOOKUP($A$3,'G7-RL3'!$A$6:$AL$500,6,FALSE),0)&"% ("&IF(VLOOKUP($A$3,'G7-RL3'!$A$6:$AL$500,5,FALSE)="",0,VLOOKUP($A$3,'G7-RL3'!$A$6:$AL$500,5,FALSE))&")")),"NA") -> 54% (3721) | F11: =IFERROR((IF($C11="NA","NA",VLOOKUP($A$3,'G7-RL3'!$A$6:$AL$500,7,FALSE))),"NA") -> 4.905111079 | G11: =IFERROR((IF($C11="NA","NA",ROUND(VLOOKUP($A$3,'G7-RL3'!$A$6:$AL$500,9,FALSE),0)&"% ("&IF(VLOOKUP($A$3,'G7-RL3'!$A$6:$AL$500,8,FALSE)="",0,VLOOKUP($A$3,'G7-RL3'!$A$6:$AL$500,8,FALSE))&")")),"NA") -> 65% (4463) | H11: =IFERROR((IF($C11="NA","NA",VLOOKUP($A$3,'G7-RL3'!$A$6:$AL$500,10,FALSE))),"NA") -> 13.1634674 | I11: =IFERROR((IF($C11="NA","NA",ROUND(VLOOKUP($A$3,'G7-RL3'!$A$6:$AL$500,12,FALSE),0)&"% ("&IF(VLOOKUP($A$3,'G7-RL3'!$A$6:$AL$500,11,FALSE)="",0,VLOOKUP($A$3,'G7-RL3'!$A$6:$AL$500,11,FALSE))&")")),"NA") -> 52% (3584) | J11: =IFERROR((IF($C11="NA","NA",VLOOKUP($A$3,'G7-RL3'!$A$6:$AL$500,13,FALSE))),"NA") -> 4.601524612 | K11: =IFERROR((IF($C11="NA","NA",ROUND(VLOOKUP($A$3,'G7-RL3'!$A$6:$AL$500,15,FALSE),0)&"% ("&IF(VLOOKUP($A$3,'G7-RL3'!$A$6:$AL$500,14,FALSE)="",0,VLOOKUP($A$3,'G7-RL3'!$A$6:$AL$500,14,FALSE))&")")),"NA") -> 60% (4131) | L11: =IFERROR((IF($C11="NA","NA",VLOOKUP($A$3,'G7-RL3'!$A$6:$AL$500,16,FALSE))),"NA") -> 4.50262814 | M11: =IFERROR((IF($C11="NA","NA",ROUND(VLOOKUP($A$3,'G7-RL3'!$A$6:$AL$500,18,FALSE),0)&"% ("&IF(VLOOKUP($A$3,'G7-RL3'!$A$6:$AL$500,17,FALSE)="",0,VLOOKUP($A$3,'G7-RL3'!$A$6:$AL$500,17,FALSE))&")")),"NA") -> 53% (3623)
A12: FCAT Level 4 | B12: =IFERROR(VLOOKUP(TEXT($A$3,"0000"),MEM_RL4!$A$2:$O$500,8,FALSE),"NA") -> 4362 | C12: =IFERROR((IF(OR(B12=0,B12="",B12="NA"),"NA",((IF(VLOOKUP($A$3,'G7-RL4'!$A$6:$AL$500,3,FALSE)>=B12,"100% ("&VLOOKUP($A$3,'G7-RL4'!$A$6:$AL$500,3,FALSE)&")",(ROUND((VLOOKUP($A$3,'G7-RL4'!$A$6:$AL$500,3,FALSE)/B12*100),0))&"% ("&IF(VLOOKUP($A$3,'G7-RL4'!$A$6:$AL$500,3,FALSE)="",0,VLOOKUP($A$3,'G7-RL4'!$A$6:$AL$500,3,FALSE))&")"))))),"0% (0)") -> 96% (4197) | D12: =IFERROR((IF($C12="NA","NA",VLOOKUP($A$3,'G7-RL4'!$A$6:$AL$500,4,FALSE))),"NA") -> 31.94884441 | E12: =IFERROR((IF($C12="NA","NA",ROUND(VLOOKUP($A$3,'G7-RL4'!$A$6:$AL$500,6,FALSE),0)&"% ("&IF(VLOOKUP($A$3,'G7-RL4'!$A$6:$AL$500,5,FALSE)="",0,VLOOKUP($A$3,'G7-RL4'!$A$6:$AL$500,5,FALSE))&")")),"NA") -> 86% (3629) | F12: =IFERROR((IF($C12="NA","NA",VLOOKUP($A$3,'G7-RL4'!$A$6:$AL$500,7,FALSE))),"NA") -> 5.695782702 | G12: =IFERROR((IF($C12="NA","NA",ROUND(VLOOKUP($A$3,'G7-RL4'!$A$6:$AL$500,9,FALSE),0)&"% ("&IF(VLOOKUP($A$3,'G7-RL4'!$A$6:$AL$500,8,FALSE)="",0,VLOOKUP($A$3,'G7-RL4'!$A$6:$AL$500,8,FALSE))&")")),"NA") -> 86% (3618) | H12: =IFERROR((IF($C12="NA","NA",VLOOKUP($A$3,'G7-RL4'!$A$6:$AL$500,10,FALSE))),"NA") -> 15.58706219 | I12: =IFERROR((IF($C12="NA","NA",ROUND(VLOOKUP($A$3,'G7-RL4'!$A$6:$AL$500,12,FALSE),0)&"% ("&IF(VLOOKUP($A$3,'G7-RL4'!$A$6:$AL$500,11,FALSE)="",0,VLOOKUP($A$3,'G7-RL4'!$A$6:$AL$500,11,FALSE))&")")),"NA") -> 84% (3512) | J12: =IFERROR((IF($C12="NA","NA",VLOOKUP($A$3,'G7-RL4'!$A$6:$AL$500,13,FALSE))),"NA") -> 5.206814391 | K12: =IFERROR((IF($C12="NA","NA",ROUND(VLOOKUP($A$3,'G7-RL4'!$A$6:$AL$500,15,FALSE),0)&"% ("&IF(VLOOKUP($A$3,'G7-RL4'!$A$6:$AL$500,14,FALSE)="",0,VLOOKUP($A$3,'G7-RL4'!$A$6:$AL$500,14,FALSE))&")")),"NA") -> 82% (3431) | L12: =IFERROR((IF($C12="NA","NA",VLOOKUP($A$3,'G7-RL4'!$A$6:$AL$500,16,FALSE))),"NA") -> 5.456230641 | M12: =IFERROR((IF($C12="NA","NA",ROUND(VLOOKUP($A$3,'G7-RL4'!$A$6:$AL$500,18,FALSE),0)&"% ("&IF(VLOOKUP($A$3,'G7-RL4'!$A$6:$AL$500,17,FALSE)="",0,VLOOKUP($A$3,'G7-RL4'!$A$6:$AL$500,17,FALSE))&")")),"NA") -> 80% (3368)
A13: FCAT Level 5 | B13: =IFERROR(VLOOKUP(TEXT($A$3,"0000"),MEM_RL5!$A$2:$O$500,7,FALSE),"NA") -> 2167 | C13: =IFERROR((IF(OR(B13=0,B13="",B13="NA"),"NA",((IF(VLOOKUP($A$3,'G7-RL5'!$A$6:$AL$500,3,FALSE)>=B13,"100% ("&VLOOKUP($A$3,'G7-RL5'!$A$6:$AL$500,3,FALSE)&")",(ROUND((VLOOKUP($A$3,'G7-RL5'!$A$6:$AL$500,3,FALSE)/B13*100),0))&"% ("&IF(VLOOKUP($A$3,'G7-RL5'!$A$6:$AL$500,3,FALSE)="",0,VLOOKUP($A$3,'G7-RL5'!$A$6:$AL$500,3,FALSE))&")"))))),"0% (0)") -> 98% (2113) | D13: =IFERROR((IF($C13="NA","NA",VLOOKUP($A$3,'G7-RL5'!$A$6:$AL$500,4,FALSE))),"NA") -> 34.96346427 | E13: =IFERROR((IF($C13="NA","NA",ROUND(VLOOKUP($A$3,'G7-RL5'!$A$6:$AL$500,6,FALSE),0)&"% ("&IF(VLOOKUP($A$3,'G7-RL5'!$A$6:$AL$500,5,FALSE)="",0,VLOOKUP($A$3,'G7-RL5'!$A$6:$AL$500,5,FALSE))&")")),"NA") -> 97% (2058) | F13: =IFERROR((IF($C13="NA","NA",VLOOKUP($A$3,'G7-RL5'!$A$6:$AL$500,7,FALSE))),"NA") -> 6.175437766 | G13: =IFERROR((IF($C13="NA","NA",ROUND(VLOOKUP($A$3,'G7-RL5'!$A$6:$AL$500,9,FALSE),0)&"% ("&IF(VLOOKUP($A$3,'G7-RL5'!$A$6:$AL$500,8,FALSE)="",0,VLOOKUP($A$3,'G7-RL5'!$A$6:$AL$500,8,FALSE))&")")),"NA") -> 96% (2018) | H13: =IFERROR((IF($C13="NA","NA",VLOOKUP($A$3,'G7-RL5'!$A$6:$AL$500,10,FALSE))),"NA") -> 17.16814955 | I13: =IFERROR((IF($C13="NA","NA",ROUND(VLOOKUP($A$3,'G7-RL5'!$A$6:$AL$500,12,FALSE),0)&"% ("&IF(VLOOKUP($A$3,'G7-RL5'!$A$6:$AL$500,11,FALSE)="",0,VLOOKUP($A$3,'G7-RL5'!$A$6:$AL$500,11,FALSE))&")")),"NA") -> 96% (2024) | J13: =IFERROR((IF($C13="NA","NA",VLOOKUP($A$3,'G7-RL5'!$A$6:$AL$500,13,FALSE))),"NA") -> 5.534122101 | K13: =IFERROR((IF($C13="NA","NA",ROUND(VLOOKUP($A$3,'G7-RL5'!$A$6:$AL$500,15,FALSE),0)&"% ("&IF(VLOOKUP($A$3,'G7-RL5'!$A$6:$AL$500,14,FALSE)="",0,VLOOKUP($A$3,'G7-RL5'!$A$6:$AL$500,14,FALSE))&")")),"NA") -> 93% (1969) | L13: =IFERROR((IF($C13="NA","NA",VLOOKUP($A$3,'G7-RL5'!$A$6:$AL$500,16,FALSE))),"NA") -> 6.073308093 | M13: =IFERROR((IF($C13="NA","NA",ROUND(VLOOKUP($A$3,'G7-RL5'!$A$6:$AL$500,18,FALSE),0)&"% ("&IF(VLOOKUP($A$3,'G7-RL5'!$A$6:$AL$500,17,FALSE)="",0,VLOOKUP($A$3,'G7-RL5'!$A$6:$AL$500,17,FALSE))&")")),"NA") -> 93% (1961)
A14: White | B14: =IFERROR(VLOOKUP(TEXT($A$3,"0000"),MEM_W!$A$2:$O$500,11,FALSE),"NA") -> 2082 | C14: =IFERROR((IF(OR(B14=0,B14="",B14="NA"),"NA",((IF(VLOOKUP($A$3,'G7-RW'!$A$6:$AL$500,3,FALSE)>=B14,"100% ("&VLOOKUP($A$3,'G7-RW'!$A$6:$AL$500,3,FALSE)&")",(ROUND((VLOOKUP($A$3,'G7-RW'!$A$6:$AL$500,3,FALSE)/B14*100),0))&"% ("&IF(VLOOKUP($A$3,'G7-RW'!$A$6:$AL$500,3,FALSE)="",0,VLOOKUP($A$3,'G7-RW'!$A$6:$AL$500,3,FALSE))&")"))))),"0% (0)") -> 93% (1942) | D14: =IFERROR((IF($C14="NA","NA",VLOOKUP($A$3,'G7-RW'!$A$6:$AL$500,4,FALSE))),"NA") -> 28.45911432 | E14: =IFERROR((IF($C14="NA","NA",ROUND(VLOOKUP($A$3,'G7-RW'!$A$6:$AL$500,6,FALSE),0)&"% ("&IF(VLOOKUP($A$3,'G7-RW'!$A$6:$AL$500,5,FALSE)="",0,VLOOKUP($A$3,'G7-RW'!$A$6:$AL$500,5,FALSE))&")")),"NA") -> 62% (1207) | F14: =IFERROR((IF($C14="NA","NA",VLOOKUP($A$3,'G7-RW'!$A$6:$AL$500,7,FALSE))),"NA") -> 5.172399588 | G14: =IFERROR((IF($C14="NA","NA",ROUND(VLOOKUP($A$3,'G7-RW'!$A$6:$AL$500,9,FALSE),0)&"% ("&IF(VLOOKUP($A$3,'G7-RW'!$A$6:$AL$500,8,FALSE)="",0,VLOOKUP($A$3,'G7-RW'!$A$6:$AL$500,8,FALSE))&")")),"NA") -> 71% (1380) | H14: =IFERROR((IF($C14="NA","NA",VLOOKUP($A$3,'G7-RW'!$A$6:$AL$500,10,FALSE))),"NA") -> 13.8215242 | I14: =IFERROR((IF($C14="NA","NA",ROUND(VLOOKUP($A$3,'G7-RW'!$A$6:$AL$500,12,FALSE),0)&"% ("&IF(VLOOKUP($A$3,'G7-RW'!$A$6:$AL$500,11,FALSE)="",0,VLOOKUP($A$3,'G7-RW'!$A$6:$AL$500,11,FALSE))&")")),"NA") -> 61% (1176) | J14: =IFERROR((IF($C14="NA","NA",VLOOKUP($A$3,'G7-RW'!$A$6:$AL$500,13,FALSE))),"NA") -> 4.684963955 | K14: =IFERROR((IF($C14="NA","NA",ROUND(VLOOKUP($A$3,'G7-RW'!$A$6:$AL$500,15,FALSE),0)&"% ("&IF(VLOOKUP($A$3,'G7-RW'!$A$6:$AL$500,14,FALSE)="",0,VLOOKUP($A$3,'G7-RW'!$A$6:$AL$500,14,FALSE))&")")),"NA") -> 65% (1262) | L14: =IFERROR((IF($C14="NA","NA",VLOOKUP($A$3,'G7-RW'!$A$6:$AL$500,16,FALSE))),"NA") -> 4.786508754 | M14: =IFERROR((IF($C14="NA","NA",ROUND(VLOOKUP($A$3,'G7-RW'!$A$6:$AL$500,18,FALSE),0)&"% ("&IF(VLOOKUP($A$3,'G7-RW'!$A$6:$AL$500,17,FALSE)="",0,VLOOKUP($A$3,'G7-RW'!$A$6:$AL$500,17,FALSE))&")")),"NA") -> 61% (1175)
A15: Black | B15: =IFERROR(VLOOKUP(TEXT($A$3,"0000"),MEM_B!$A$2:$O$500,11,FALSE),"NA") -> 6240 | C15: =IFERROR((IF(OR(B15=0,B15="",B15="NA"),"NA",((IF(VLOOKUP($A$3,'G7-RB'!$A$6:$AL$500,3,FALSE)>=B15,"100% ("&VLOOKUP($A$3,'G7-RB'!$A$6:$AL$500,3,FALSE)&")",(ROUND((VLOOKUP($A$3,'G7-RB'!$A$6:$AL$500,3,FALSE)/B15*100),0))&"% ("&IF(VLOOKUP($A$3,'G7-RB'!$A$6:$AL$500,3,FALSE)="",0,VLOOKUP($A$3,'G7-RB'!$A$6:$AL$500,3,FALSE))&")"))))),"0% (0)") -> 91% (5684) | D15: =IFERROR((IF($C15="NA","NA",VLOOKUP($A$3,'G7-RB'!$A$6:$AL$500,4,FALSE))),"NA") -> 22.41993315 | E15: =IFERROR((IF($C15="NA","NA",ROUND(VLOOKUP($A$3,'G7-RB'!$A$6:$AL$500,6,FALSE),0)&"% ("&IF(VLOOKUP($A$3,'G7-RB'!$A$6:$AL$500,5,FALSE)="",0,VLOOKUP($A$3,'G7-RB'!$A$6:$AL$500,5,FALSE))&")")),"NA") -> 30% (1701) | F15: =IFERROR((IF($C15="NA","NA",VLOOKUP($A$3,'G7-RB'!$A$6:$AL$500,7,FALSE))),"NA") -> 4.075527797 | G15: =IFERROR((IF($C15="NA","NA",ROUND(VLOOKUP($A$3,'G7-RB'!$A$6:$AL$500,9,FALSE),0)&"% ("&IF(VLOOKUP($A$3,'G7-RB'!$A$6:$AL$500,8,FALSE)="",0,VLOOKUP($A$3,'G7-RB'!$A$6:$AL$500,8,FALSE))&")")),"NA") -> 42% (2388) | H15: =IFERROR((IF($C15="NA","NA",VLOOKUP($A$3,'G7-RB'!$A$6:$AL$500,10,FALSE))),"NA") -> 10.91704785 | I15: =IFERROR((IF($C15="NA","NA",ROUND(VLOOKUP($A$3,'G7-RB'!$A$6:$AL$500,12,FALSE),0)&"% ("&IF(VLOOKUP($A$3,'G7-RB'!$A$6:$AL$500,11,FALSE)="",0,VLOOKUP($A$3,'G7-RB'!$A$6:$AL$500,11,FALSE))&")")),"NA") -> 31% (1772) | J15: =IFERROR((IF($C15="NA","NA",VLOOKUP($A$3,'G7-RB'!$A$6:$AL$500,13,FALSE))),"NA") -> 3.768631246 | K15: =IFERROR((IF($C15="NA","NA",ROUND(VLOOKUP($A$3,'G7-RB'!$A$6:$AL$500,15,FALSE),0)&"% ("&IF(VLOOKUP($A$3,'G7-RB'!$A$6:$AL$500,14,FALSE)="",0,VLOOKUP($A$3,'G7-RB'!$A$6:$AL$500,14,FALSE))&")")),"NA") -> 37% (2129) | L15: =IFERROR((IF($C15="NA","NA",VLOOKUP($A$3,'G7-RB'!$A$6:$AL$500,16,FALSE))),"NA") -> 3.654574243 | M15: =IFERROR((IF($C15="NA","NA",ROUND(VLOOKUP($A$3,'G7-RB'!$A$6:$AL$500,18,FALSE),0)&"% ("&IF(VLOOKUP($A$3,'G7-RB'!$A$6:$AL$500,17,FALSE)="",0,VLOOKUP($A$3,'G7-RB'!$A$6:$AL$500,17,FALSE))&")")),"NA") -> 34% (1915)
A16: Hispanic | B16: =IFERROR(VLOOKUP(TEXT($A$3,"0000"),MEM_H!$A$2:$O$500,11,FALSE),"NA") -> 18177 | C16: =IFERROR((IF(OR(B16=0,B16="",B16="NA"),"NA",((IF(VLOOKUP($A$3,'G7-RH'!$A$6:$AL$500,3,FALSE)>=B16,"100% ("&VLOOKUP($A$3,'G7-RH'!$A$6:$AL$500,3,FALSE)&")",(ROUND((VLOOKUP($A$3,'G7-RH'!$A$6:$AL$500,3,FALSE)/B16*100),0))&"% ("&IF(VLOOKUP($A$3,'G7-RH'!$A$6:$AL$500,3,FALSE)="",0,VLOOKUP($A$3,'G7-RH'!$A$6:$AL$500,3,FALSE))&")"))))),"0% (0)") -> 93% (16908) | D16: =IFERROR((IF($C16="NA","NA",VLOOKUP($A$3,'G7-RH'!$A$6:$AL$500,4,FALSE))),"NA") -> 24.74486042 | E16: =IFERROR((IF($C16="NA","NA",ROUND(VLOOKUP($A$3,'G7-RH'!$A$6:$AL$500,6,FALSE),0)&"% ("&IF(VLOOKUP($A$3,'G7-RH'!$A$6:$AL$500,5,FALSE)="",0,VLOOKUP($A$3,'G7-RH'!$A$6:$AL$500,5,FALSE))&")")),"NA") -> 43% (7304) | F16: =IFERROR((IF($C16="NA","NA",VLOOKUP($A$3,'G7-RH'!$A$6:$AL$500,7,FALSE))),"NA") -> 4.515460137 | G16: =IFERROR((IF($C16="NA","NA",ROUND(VLOOKUP($A$3,'G7-RH'!$A$6:$AL$500,9,FALSE),0)&"% ("&IF(VLOOKUP($A$3,'G7-RH'!$A$6:$AL$500,8,FALSE)="",0,VLOOKUP($A$3,'G7-RH'!$A$6:$AL$500,8,FALSE))&")")),"NA") -> 54% (9208) | H16: =IFERROR((IF($C16="NA","NA",VLOOKUP($A$3,'G7-RH'!$A$6:$AL$500,10,FALSE))),"NA") -> 11.98526141 | I16: =IFERROR((IF($C16="NA","NA",ROUND(VLOOKUP($A$3,'G7-RH'!$A$6:$AL$500,12,FALSE),0)&"% ("&IF(VLOOKUP($A$3,'G7-RH'!$A$6:$AL$500,11,FALSE)="",0,VLOOKUP($A$3,'G7-RH'!$A$6:$AL$500,11,FALSE))&")")),"NA") -> 42% (7172) | J16: =IFERROR((IF($C16="NA","NA",VLOOKUP($A$3,'G7-RH'!$A$6:$AL$500,13,FALSE))),"NA") -> 4.157801041 | K16: =IFERROR((IF($C16="NA","NA",ROUND(VLOOKUP($A$3,'G7-RH'!$A$6:$AL$500,15,FALSE),0)&"% ("&IF(VLOOKUP($A$3,'G7-RH'!$A$6:$AL$500,14,FALSE)="",0,VLOOKUP($A$3,'G7-RH'!$A$6:$AL$500,14,FALSE))&")")),"NA") -> 49% (8366) | L16: =IFERROR((IF($C16="NA","NA",VLOOKUP($A$3,'G7-RH'!$A$6:$AL$500,16,FALSE))),"NA") -> 4.086219541 | M16: =IFERROR((IF($C16="NA","NA",ROUND(VLOOKUP($A$3,'G7-RH'!$A$6:$AL$500,18,FALSE),0)&"% ("&IF(VLOOKUP($A$3,'G7-RH'!$A$6:$AL$500,17,FALSE)="",0,VLOOKUP($A$3,'G7-RH'!$A$6:$AL$500,17,FALSE))&")")),"NA") -> 44% (7502)
A17: Asian | B17: =IFERROR(VLOOKUP(TEXT($A$3,"0000"),MEM_A!$A$2:$O$500,11,FALSE),"NA") -> 326 | C17: =IFERROR((IF(OR(B17=0,B17="",B17="NA"),"NA",((IF(VLOOKUP($A$3,'G7-RA'!$A$6:$AL$500,3,FALSE)>=B17,"100% ("&VLOOKUP($A$3,'G7-RA'!$A$6:$AL$500,3,FALSE)&")",(ROUND((VLOOKUP($A$3,'G7-RA'!$A$6:$AL$500,3,FALSE)/B17*100),0))&"% ("&IF(VLOOKUP($A$3,'G7-RA'!$A$6:$AL$500,3,FALSE)="",0,VLOOKUP($A$3,'G7-RA'!$A$6:$AL$500,3,FALSE))&")"))))),"0% (0)") -> 92% (300) | D17: =IFERROR((IF($C17="NA","NA",VLOOKUP($A$3,'G7-RA'!$A$6:$AL$500,4,FALSE))),"NA") -> 30.14966667 | E17: =IFERROR((IF($C17="NA","NA",ROUND(VLOOKUP($A$3,'G7-RA'!$A$6:$AL$500,6,FALSE),0)&"% ("&IF(VLOOKUP($A$3,'G7-RA'!$A$6:$AL$500,5,FALSE)="",0,VLOOKUP($A$3,'G7-RA'!$A$6:$AL$500,5,FALSE))&")")),"NA") -> 70% (211) | F17: =IFERROR((IF($C17="NA","NA",VLOOKUP($A$3,'G7-RA'!$A$6:$AL$500,7,FALSE))),"NA") -> 5.350333333 | G17: =IFERROR((IF($C17="NA","NA",ROUND(VLOOKUP($A$3,'G7-RA'!$A$6:$AL$500,9,FALSE),0)&"% ("&IF(VLOOKUP($A$3,'G7-RA'!$A$6:$AL$500,8,FALSE)="",0,VLOOKUP($A$3,'G7-RA'!$A$6:$AL$500,8,FALSE))&")")),"NA") -> 74% (222) | H17: =IFERROR((IF($C17="NA","NA",VLOOKUP($A$3,'G7-RA'!$A$6:$AL$500,10,FALSE))),"NA") -> 14.756 | I17: =IFERROR((IF($C17="NA","NA",ROUND(VLOOKUP($A$3,'G7-RA'!$A$6:$AL$500,12,FALSE),0)&"% ("&IF(VLOOKUP($A$3,'G7-RA'!$A$6:$AL$500,11,FALSE)="",0,VLOOKUP($A$3,'G7-RA'!$A$6:$AL$500,11,FALSE))&")")),"NA") -> 72% (215) | J17: =IFERROR((IF($C17="NA","NA",VLOOKUP($A$3,'G7-RA'!$A$6:$AL$500,13,FALSE))),"NA") -> 4.918333333 | K17: =IFERROR((IF($C17="NA","NA",ROUND(VLOOKUP($A$3,'G7-RA'!$A$6:$AL$500,15,FALSE),0)&"% ("&IF(VLOOKUP($A$3,'G7-RA'!$A$6:$AL$500,14,FALSE)="",0,VLOOKUP($A$3,'G7-RA'!$A$6:$AL$500,14,FALSE))&")")),"NA") -> 71% (214) | L17: =IFERROR((IF($C17="NA","NA",VLOOKUP($A$3,'G7-RA'!$A$6:$AL$500,16,FALSE))),"NA") -> 5.147666667 | M17: =IFERROR((IF($C17="NA","NA",ROUND(VLOOKUP($A$3,'G7-RA'!$A$6:$AL$500,18,FALSE),0)&"% ("&IF(VLOOKUP($A$3,'G7-RA'!$A$6:$AL$500,17,FALSE)="",0,VLOOKUP($A$3,'G7-RA'!$A$6:$AL$500,17,FALSE))&")")),"NA") -> 71% (213)
A18: Am. Indian | B18: =IFERROR(VLOOKUP(TEXT($A$3,"0000"),MEM_I!$A$2:$O$500,11,FALSE),"NA") -> 21 | C18: =IFERROR((IF(OR(B18=0,B18="",B18="NA"),"NA",((IF(VLOOKUP($A$3,'G7-RI'!$A$6:$AL$500,3,FALSE)>=B18,"100% ("&VLOOKUP($A$3,'G7-RI'!$A$6:$AL$500,3,FALSE)&")",(ROUND((VLOOKUP($A$3,'G7-RI'!$A$6:$AL$500,3,FALSE)/B18*100),0))&"% ("&IF(VLOOKUP($A$3,'G7-RI'!$A$6:$AL$500,3,FALSE)="",0,VLOOKUP($A$3,'G7-RI'!$A$6:$AL$500,3,FALSE))&")"))))),"0% (0)") -> 95% (20) | D18: =IFERROR((IF($C18="NA","NA",VLOOKUP($A$3,'G7-RI'!$A$6:$AL$500,4,FALSE))),"NA") -> 26.7 | E18: =IFERROR((IF($C18="NA","NA",ROUND(VLOOKUP($A$3,'G7-RI'!$A$6:$AL$500,6,FALSE),0)&"% ("&IF(VLOOKUP($A$3,'G7-RI'!$A$6:$AL$500,5,FALSE)="",0,VLOOKUP($A$3,'G7-RI'!$A$6:$AL$500,5,FALSE))&")")),"NA") -> 50% (10) | F18: =IFERROR((IF($C18="NA","NA",VLOOKUP($A$3,'G7-RI'!$A$6:$AL$500,7,FALSE))),"NA") -> 5.05 | G18: =IFERROR((IF($C18="NA","NA",ROUND(VLOOKUP($A$3,'G7-RI'!$A$6:$AL$500,9,FALSE),0)&"% ("&IF(VLOOKUP($A$3,'G7-RI'!$A$6:$AL$500,8,FALSE)="",0,VLOOKUP($A$3,'G7-RI'!$A$6:$AL$500,8,FALSE))&")")),"NA") -> 70% (14) | H18: =IFERROR((IF($C18="NA","NA",VLOOKUP($A$3,'G7-RI'!$A$6:$AL$500,10,FALSE))),"NA") -> 12.35 | I18: =IFERROR((IF($C18="NA","NA",ROUND(VLOOKUP($A$3,'G7-RI'!$A$6:$AL$500,12,FALSE),0)&"% ("&IF(VLOOKUP($A$3,'G7-RI'!$A$6:$AL$500,11,FALSE)="",0,VLOOKUP($A$3,'G7-RI'!$A$6:$AL$500,11,FALSE))&")")),"NA") -> 40% (8) | J18: =IFERROR((IF($C18="NA","NA",VLOOKUP($A$3,'G7-RI'!$A$6:$AL$500,13,FALSE))),"NA") -> 4.85 | K18: =IFERROR((IF($C18="NA","NA",ROUND(VLOOKUP($A$3,'G7-RI'!$A$6:$AL$500,15,FALSE),0)&"% ("&IF(VLOOKUP($A$3,'G7-RI'!$A$6:$AL$500,14,FALSE)="",0,VLOOKUP($A$3,'G7-RI'!$A$6:$AL$500,14,FALSE))&")")),"NA") -> 75% (15) | L18: =IFERROR((IF($C18="NA","NA",VLOOKUP($A$3,'G7-RI'!$A$6:$AL$500,16,FALSE))),"NA") -> 4.45 | M18: =IFERROR((IF($C18="NA","NA",ROUND(VLOOKUP($A$3,'G7-RI'!$A$6:$AL$500,18,FALSE),0)&"% ("&IF(VLOOKUP($A$3,'G7-RI'!$A$6:$AL$500,17,FALSE)="",0,VLOOKUP($A$3,'G7-RI'!$A$6:$AL$500,17,FALSE))&")")),"NA") -> 50% (10)
A19: ED | B19: =IFERROR(VLOOKUP(TEXT($A$3,"0000"),MEM_ED!$A$2:$O$500,11,FALSE),"NA") -> 21217 | C19: =IFERROR((IF(OR(B19=0,B19="",B19="NA"),"NA",((IF(VLOOKUP($A$3,'G7-RED'!$A$6:$AL$500,3,FALSE)>=B19,"100% ("&VLOOKUP($A$3,'G7-RED'!$A$6:$AL$500,3,FALSE)&")",(ROUND((VLOOKUP($A$3,'G7-RED'!$A$6:$AL$500,3,FALSE)/B19*100),0))&"% ("&IF(VLOOKUP($A$3,'G7-RED'!$A$6:$AL$500,3,FALSE)="",0,VLOOKUP($A$3,'G7-RED'!$A$6:$AL$500,3,FALSE))&")"))))),"0% (0)") -> 93% (19746) | D19: =IFERROR((IF($C19="NA","NA",VLOOKUP($A$3,'G7-RED'!$A$6:$AL$500,4,FALSE))),"NA") -> 23.46194672 | E19: =IFERROR((IF($C19="NA","NA",ROUND(VLOOKUP($A$3,'G7-RED'!$A$6:$AL$500,6,FALSE),0)&"% ("&IF(VLOOKUP($A$3,'G7-RED'!$A$6:$AL$500,5,FALSE)="",0,VLOOKUP($A$3,'G7-RED'!$A$6:$AL$500,5,FALSE))&")")),"NA") -> 36% (7132) | F19: =IFERROR((IF($C19="NA","NA",VLOOKUP($A$3,'G7-RED'!$A$6:$AL$500,7,FALSE))),"NA") -> 4.285495797 | G19: =IFERROR((IF($C19="NA","NA",ROUND(VLOOKUP($A$3,'G7-RED'!$A$6:$AL$500,9,FALSE),0)&"% ("&IF(VLOOKUP($A$3,'G7-RED'!$A$6:$AL$500,8,FALSE)="",0,VLOOKUP($A$3,'G7-RED'!$A$6:$AL$500,8,FALSE))&")")),"NA") -> 48% (9499) | H19: =IFERROR((IF($C19="NA","NA",VLOOKUP($A$3,'G7-RED'!$A$6:$AL$500,10,FALSE))),"NA") -> 11.37374152 | I19: =IFERROR((IF($C19="NA","NA",ROUND(VLOOKUP($A$3,'G7-RED'!$A$6:$AL$500,12,FALSE),0)&"% ("&IF(VLOOKUP($A$3,'G7-RED'!$A$6:$AL$500,11,FALSE)="",0,VLOOKUP($A$3,'G7-RED'!$A$6:$AL$500,11,FALSE))&")")),"NA") -> 36% (7139) | J19: =IFERROR((IF($C19="NA","NA",VLOOKUP($A$3,'G7-RED'!$A$6:$AL$500,13,FALSE))),"NA") -> 3.962174618 | K19: =IFERROR((IF($C19="NA","NA",ROUND(VLOOKUP($A$3,'G7-RED'!$A$6:$AL$500,15,FALSE),0)&"% ("&IF(VLOOKUP($A$3,'G7-RED'!$A$6:$AL$500,14,FALSE)="",0,VLOOKUP($A$3,'G7-RED'!$A$6:$AL$500,14,FALSE))&")")),"NA") -> 43% (8566) | L19: =IFERROR((IF($C19="NA","NA",VLOOKUP($A$3,'G7-RED'!$A$6:$AL$500,16,FALSE))),"NA") -> 3.847726122 | M19: =IFERROR((IF($C19="NA","NA",ROUND(VLOOKUP($A$3,'G7-RED'!$A$6:$AL$500,18,FALSE),0)&"% ("&IF(VLOOKUP($A$3,'G7-RED'!$A$6:$AL$500,17,FALSE)="",0,VLOOKUP($A$3,'G7-RED'!$A$6:$AL$500,17,FALSE))&")")),"NA") -> 38% (7584)
A20: ELL | B20: =IFERROR(VLOOKUP(TEXT($A$3,"0000"),MEM_ELL!$A$2:$O$500,11,FALSE),"NA") -> 4074 | C20: =IFERROR((IF(OR(B20=0,B20="",B20="NA"),"NA",((IF(VLOOKUP($A$3,'G7-RELL'!$A$6:$AL$500,3,FALSE)>=B20,"100% ("&VLOOKUP($A$3,'G7-RELL'!$A$6:$AL$500,3,FALSE)&")",(ROUND((VLOOKUP($A$3,'G7-RELL'!$A$6:$AL$500,3,FALSE)/B20*100),0))&"% ("&IF(VLOOKUP($A$3,'G7-RELL'!$A$6:$AL$500,3,FALSE)="",0,VLOOKUP($A$3,'G7-RELL'!$A$6:$AL$500,3,FALSE))&")"))))),"0% (0)") -> 87% (3526) | D20: =IFERROR((IF($C20="NA","NA",VLOOKUP($A$3,'G7-RELL'!$A$6:$AL$500,4,FALSE))),"NA") -> 17.87379467 | E20: =IFERROR((IF($C20="NA","NA",ROUND(VLOOKUP($A$3,'G7-RELL'!$A$6:$AL$500,6,FALSE),0)&"% ("&IF(VLOOKUP($A$3,'G7-RELL'!$A$6:$AL$500,5,FALSE)="",0,VLOOKUP($A$3,'G7-RELL'!$A$6:$AL$500,5,FALSE))&")")),"NA") -> 13% (451) | F20: =IFERROR((IF($C20="NA","NA",VLOOKUP($A$3,'G7-RELL'!$A$6:$AL$500,7,FALSE))),"NA") -> 3.298922292 | G20: =IFERROR((IF($C20="NA","NA",ROUND(VLOOKUP($A$3,'G7-RELL'!$A$6:$AL$500,9,FALSE),0)&"% ("&IF(VLOOKUP($A$3,'G7-RELL'!$A$6:$AL$500,8,FALSE)="",0,VLOOKUP($A$3,'G7-RELL'!$A$6:$AL$500,8,FALSE))&")")),"NA") -> 25% (884) | H20: =IFERROR((IF($C20="NA","NA",VLOOKUP($A$3,'G7-RELL'!$A$6:$AL$500,10,FALSE))),"NA") -> 8.623085649 | I20: =IFERROR((IF($C20="NA","NA",ROUND(VLOOKUP($A$3,'G7-RELL'!$A$6:$AL$500,12,FALSE),0)&"% ("&IF(VLOOKUP($A$3,'G7-RELL'!$A$6:$AL$500,11,FALSE)="",0,VLOOKUP($A$3,'G7-RELL'!$A$6:$AL$500,11,FALSE))&")")),"NA") -> 13% (472) | J20: =IFERROR((IF($C20="NA","NA",VLOOKUP($A$3,'G7-RELL'!$A$6:$AL$500,13,FALSE))),"NA") -> 3.092456041 | K20: =IFERROR((IF($C20="NA","NA",ROUND(VLOOKUP($A$3,'G7-RELL'!$A$6:$AL$500,15,FALSE),0)&"% ("&IF(VLOOKUP($A$3,'G7-RELL'!$A$6:$AL$500,14,FALSE)="",0,VLOOKUP($A$3,'G7-RELL'!$A$6:$AL$500,14,FALSE))&")")),"NA") -> 22% (776) | L20: =IFERROR((IF($C20="NA","NA",VLOOKUP($A$3,'G7-RELL'!$A$6:$AL$500,16,FALSE))),"NA") -> 2.859330686 | M20: =IFERROR((IF($C20="NA","NA",ROUND(VLOOKUP($A$3,'G7-RELL'!$A$6:$AL$500,18,FALSE),0)&"% ("&IF(VLOOKUP($A$3,'G7-RELL'!$A$6:$AL$500,17,FALSE)="",0,VLOOKUP($A$3,'G7-RELL'!$A$6:$AL$500,17,FALSE))&")")),"NA") -> 18% (643)
A21: SWD | B21: =IFERROR(VLOOKUP(TEXT($A$3,"0000"),MEM_SWD!$A$2:$O$500,11,FALSE),"NA") -> 2644 | C21: =IFERROR((IF(OR(B21=0,B21="",B21="NA"),"NA",((IF(VLOOKUP($A$3,'G7-RSWD'!$A$6:$AM$500,3,FALSE)>=B21,"100% ("&VLOOKUP($A$3,'G7-RSWD'!$A$6:$AM$500,3,FALSE)&")",(ROUND((VLOOKUP($A$3,'G7-RSWD'!$A$6:$AM$500,3,FALSE)/B21*100),0))&"% ("&IF(VLOOKUP($A$3,'G7-RSWD'!$A$6:$AM$500,3,FALSE)="",0,VLOOKUP($A$3,'G7-RSWD'!$A$6:$AM$500,3,FALSE))&")"))))),"0% (0)") -> 89% (2357) | D21: =IFERROR((IF($C21="NA","NA",VLOOKUP($A$3,'G7-RSWD'!$A$6:$AM$500,4,FALSE))),"NA") -> 18.19495121 | E21: =IFERROR((IF($C21="NA","NA",ROUND(VLOOKUP($A$3,'G7-RSWD'!$A$6:$AM$500,6,FALSE),0)&"% ("&IF(VLOOKUP($A$3,'G7-RSWD'!$A$6:$AM$500,5,FALSE)="",0,VLOOKUP($A$3,'G7-RSWD'!$A$6:$AM$500,5,FALSE))&")")),"NA") -> 13% (298) | F21: =IFERROR((IF($C21="NA","NA",VLOOKUP($A$3,'G7-RSWD'!$A$6:$AM$500,7,FALSE))),"NA") -> 3.405388205 | G21: =IFERROR((IF($C21="NA","NA",ROUND(VLOOKUP($A$3,'G7-RSWD'!$A$6:$AM$500,9,FALSE),0)&"% ("&IF(VLOOKUP($A$3,'G7-RSWD'!$A$6:$AM$500,8,FALSE)="",0,VLOOKUP($A$3,'G7-RSWD'!$A$6:$AM$500,8,FALSE))&")")),"NA") -> 26% (605) | H21: =IFERROR((IF($C21="NA","NA",VLOOKUP($A$3,'G7-RSWD'!$A$6:$AM$500,10,FALSE))),"NA") -> 8.831480696 | I21: =IFERROR((IF($C21="NA","NA",ROUND(VLOOKUP($A$3,'G7-RSWD'!$A$6:$AM$500,12,FALSE),0)&"% ("&IF(VLOOKUP($A$3,'G7-RSWD'!$A$6:$AM$500,11,FALSE)="",0,VLOOKUP($A$3,'G7-RSWD'!$A$6:$AM$500,11,FALSE))&")")),"NA") -> 14% (332) | J21: =IFERROR((IF($C21="NA","NA",VLOOKUP($A$3,'G7-RSWD'!$A$6:$AM$500,13,FALSE))),"NA") -> 3.072210437 | K21: =IFERROR((IF($C21="NA","NA",ROUND(VLOOKUP($A$3,'G7-RSWD'!$A$6:$AM$500,15,FALSE),0)&"% ("&IF(VLOOKUP($A$3,'G7-RSWD'!$A$6:$AM$500,14,FALSE)="",0,VLOOKUP($A$3,'G7-RSWD'!$A$6:$AM$500,14,FALSE))&")")),"NA") -> 20% (475) | L21: =IFERROR((IF($C21="NA","NA",VLOOKUP($A$3,'G7-RSWD'!$A$6:$AM$500,16,FALSE))),"NA") -> 2.893975392 | M21: =IFERROR((IF($C21="NA","NA",ROUND(VLOOKUP($A$3,'G7-RSWD'!$A$6:$AM$500,18,FALSE),0)&"% ("&IF(VLOOKUP($A$3,'G7-RSWD'!$A$6:$AM$500,17,FALSE)="",0,VLOOKUP($A$3,'G7-RSWD'!$A$6:$AM$500,17,FALSE))&")")),"NA") -> 17% (392)
A22: Math - Grade 7
A23: Level of Proficiency at 70% or above | B23: Total # of Students | C23: % of Students Tested | D23: ='G6-8 Matrix'!C13&" ["&'G6-8 Matrix'!C14&"]" -> Overall [42] | F23: ='G6-8 Matrix'!D13&" ["&'G6-8 Matrix'!D14&"]" -> Number: Base Ten [10] | H23: ='G6-8 Matrix'!E13&" ["&'G6-8 Matrix'!E14&"]" -> Ratios/Proportional Relationships [12] | J23: ='G6-8 Matrix'!F13&" ["&'G6-8 Matrix'!F14&"]" -> Geometry and Measurement [12] | L23: ='G6-8 Matrix'!G13&" ["&'G6-8 Matrix'!G14&"]" -> Statistics and Probability [8]
D24: Average Score | E24: % Proficient | F24: Average Score | G24: % Proficient | H24: Average Score | I24: % Proficient | J24: Average Score | K24: % Proficient | L24: Average Score | M24: % Proficient
A25: All students | B25: =IFERROR(VLOOKUP(TEXT($A$3,"0000"),Mem_All!$A$2:$O$500,11,FALSE),0)-IFERROR(VLOOKUP(TEXT($A$3,"0000"),'ALG Gr07'!$A$3:$Q$216,3,FALSE),0) -> 24251 | C25: =IFERROR((IF(OR(B25=0,B25="",B25="NA"),"NA",((IF(VLOOKUP($A$3,'G7-MALL'!$A$6:$AM$500,3,FALSE)>=B25,"100% ("&VLOOKUP($A$3,'G7-MALL'!$A$6:$AM$500,3,FALSE)&")",(ROUND((VLOOKUP($A$3,'G7-MALL'!$A$6:$AM$500,3,FALSE)/B25*100),0))&"% ("&IF(VLOOKUP($A$3,'G7-MALL'!$A$6:$AM$500,3,FALSE)="",0,VLOOKUP($A$3,'G7-MALL'!$A$6:$AM$500,3,FALSE))&")"))))),"0% (0)") -> 97% (23582) | D25: =IFERROR((IF($C25="NA","NA",VLOOKUP($A$3,'G7-MALL'!$A$6:$AM$500,4,FALSE))),"NA") -> 15.59983886 | E25: =IFERROR((IF($C25="NA","NA",ROUND(VLOOKUP($A$3,'G7-MALL'!$A$6:$AM$500,6,FALSE),0)&"% ("&IF(VLOOKUP($A$3,'G7-MALL'!$A$6:$AM$500,5,FALSE)="",0,VLOOKUP($A$3,'G7-MALL'!$A$6:$AM$500,5,FALSE))&")")),"NA") -> 3% (753) | F25: =IFERROR((IF($C25="NA","NA",VLOOKUP($A$3,'G7-MALL'!$A$6:$AM$500,10,FALSE))),"NA") -> 3.915931643 | G25: =IFERROR((IF($C25="NA","NA",ROUND(VLOOKUP($A$3,'G7-MALL'!$A$6:$AM$500,12,FALSE),0)&"% ("&IF(VLOOKUP($A$3,'G7-MALL'!$A$6:$AM$500,11,FALSE)="",0,VLOOKUP($A$3,'G7-MALL'!$A$6:$AM$500,11,FALSE))&")")),"NA") -> 15% (3465) | H25: =IFERROR((IF($C25="NA","NA",VLOOKUP($A$3,'G7-MALL'!$A$6:$AM$500,13,FALSE))),"NA") -> 4.337545586 | I25: =IFERROR((IF($C25="NA","NA",ROUND(VLOOKUP($A$3,'G7-MALL'!$A$6:$AM$500,15,FALSE),0)&"% ("&IF(VLOOKUP($A$3,'G7-MALL'!$A$6:$AM$500,14,FALSE)="",0,VLOOKUP($A$3,'G7-MALL'!$A$6:$AM$500,14,FALSE))&")")),"NA") -> 4% (1040) | J25: =IFERROR((IF($C25="NA","NA",VLOOKUP($A$3,'G7-MALL'!$A$6:$AM$500,7,FALSE))),"NA") -> 4.709918582 | K25: =IFERROR((IF($C25="NA","NA",ROUND(VLOOKUP($A$3,'G7-MALL'!$A$6:$AM$500,9,FALSE),0)&"% ("&IF(VLOOKUP($A$3,'G7-MALL'!$A$6:$AM$500,8,FALSE)="",0,VLOOKUP($A$3,'G7-MALL'!$A$6:$AM$500,8,FALSE))&")")),"NA") -> 5% (1168) | L25: =IFERROR((IF($C25="NA","NA",VLOOKUP($A$3,'G7-MALL'!$A$6:$AM$500,16,FALSE))),"NA") -> 2.640590281 | M25: =IFERROR((IF($C25="NA","NA",ROUND(VLOOKUP($A$3,'G7-MALL'!$A$6:$AM$500,18,FALSE),0)&"% ("&IF(VLOOKUP($A$3,'G7-MALL'!$A$6:$AM$500,17,FALSE)="",0,VLOOKUP($A$3,'G7-MALL'!$A$6:$AM$500,17,FALSE))&")")),"NA") -> 4% (1053)
A26: FCAT Level 1 | B26: =IFERROR(VLOOKUP(TEXT($A$3,"0000"),MEM_ML1!$A$2:$O$500,8,FALSE),0)-IFERROR(VLOOKUP(TEXT($A$3,"0000"),'ALG Gr07'!$A$3:$Q$216,4,FALSE),0) -> 6385 | C26: =IFERROR((IF(OR(B26=0,B26="",B26="NA"),"NA",((IF(VLOOKUP($A$3,'G7-ML1'!$A$6:$AM$500,3,FALSE)>=B26,"100% ("&VLOOKUP($A$3,'G7-ML1'!$A$6:$AM$500,3,FALSE)&")",(ROUND((VLOOKUP($A$3,'G7-ML1'!$A$6:$AM$500,3,FALSE)/B26*100),0))&"% ("&IF(VLOOKUP($A$3,'G7-ML1'!$A$6:$AM$500,3,FALSE)="",0,VLOOKUP($A$3,'G7-ML1'!$A$6:$AM$500,3,FALSE))&")"))))),"0% (0)") -> 93% (5968) | D26: =IFERROR((IF($C26="NA","NA",VLOOKUP($A$3,'G7-ML1'!$A$6:$AM$500,4,FALSE))),"NA") -> 10.40891421 | E26: =IFERROR((IF($C26="NA","NA",ROUND(VLOOKUP($A$3,'G7-ML1'!$A$6:$AM$500,6,FALSE),0)&"% ("&IF(VLOOKUP($A$3,'G7-ML1'!$A$6:$AM$500,5,FALSE)="",0,VLOOKUP($A$3,'G7-ML1'!$A$6:$AM$500,5,FALSE))&")")),"NA") -> 0% (0) | F26: =IFERROR((IF($C26="NA","NA",VLOOKUP($A$3,'G7-ML1'!$A$6:$AM$500,10,FALSE))),"NA") -> 2.290934987 | G26: =IFERROR((IF($C26="NA","NA",ROUND(VLOOKUP($A$3,'G7-ML1'!$A$6:$AM$500,12,FALSE),0)&"% ("&IF(VLOOKUP($A$3,'G7-ML1'!$A$6:$AM$500,11,FALSE)="",0,VLOOKUP($A$3,'G7-ML1'!$A$6:$AM$500,11,FALSE))&")")),"NA") -> 0% (20) | H26: =IFERROR((IF($C26="NA","NA",VLOOKUP($A$3,'G7-ML1'!$A$6:$AM$500,13,FALSE))),"NA") -> 2.902396113 | I26: =IFERROR((IF($C26="NA","NA",ROUND(VLOOKUP($A$3,'G7-ML1'!$A$6:$AM$500,15,FALSE),0)&"% ("&IF(VLOOKUP($A$3,'G7-ML1'!$A$6:$AM$500,14,FALSE)="",0,VLOOKUP($A$3,'G7-ML1'!$A$6:$AM$500,14,FALSE))&")")),"NA") -> 0% (11) | J26: =IFERROR((IF($C26="NA","NA",VLOOKUP($A$3,'G7-ML1'!$A$6:$AM$500,7,FALSE))),"NA") -> 3.376306971 | K26: =IFERROR((IF($C26="NA","NA",ROUND(VLOOKUP($A$3,'G7-ML1'!$A$6:$AM$500,9,FALSE),0)&"% ("&IF(VLOOKUP($A$3,'G7-ML1'!$A$6:$AM$500,8,FALSE)="",0,VLOOKUP($A$3,'G7-ML1'!$A$6:$AM$500,8,FALSE))&")")),"NA") -> 0% (5) | L26: =IFERROR((IF($C26="NA","NA",VLOOKUP($A$3,'G7-ML1'!$A$6:$AM$500,16,FALSE))),"NA") -> 1.836729223 | M26: =IFERROR((IF($C26="NA","NA",ROUND(VLOOKUP($A$3,'G7-ML1'!$A$6:$AM$500,18,FALSE),0)&"% ("&IF(VLOOKUP($A$3,'G7-ML1'!$A$6:$AM$500,17,FALSE)="",0,VLOOKUP($A$3,'G7-ML1'!$A$6:$AM$500,17,FALSE))&")")),"NA") -> 0% (17)
A27: FCAT Level 2 | B27: =IFERROR(VLOOKUP(TEXT($A$3,"0000"),MEM_ML2!$A$2:$O$500,8,FALSE),0)-IFERROR(VLOOKUP(TEXT($A$3,"0000"),'ALG Gr07'!$A$3:$Q$216,5,FALSE),0) -> 6255 | C27: =IFERROR((IF(OR(B27=0,B27="",B27="NA"),"NA",((IF(VLOOKUP($A$3,'G7-ML2'!$A$6:$AM$500,3,FALSE)>=B27,"100% ("&VLOOKUP($A$3,'G7-ML2'!$A$6:$AM$500,3,FALSE)&")",(ROUND((VLOOKUP($A$3,'G7-ML2'!$A$6:$AM$500,3,FALSE)/B27*100),0))&"% ("&IF(VLOOKUP($A$3,'G7-ML2'!$A$6:$AM$500,3,FALSE)="",0,VLOOKUP($A$3,'G7-ML2'!$A$6:$AM$500,3,FALSE))&")"))))),"0% (0)") -> 96% (6004) | D27: =IFERROR((IF($C27="NA","NA",VLOOKUP($A$3,'G7-ML2'!$A$6:$AM$500,4,FALSE))),"NA") -> 12.98214524 | E27: =IFERROR((IF($C27="NA","NA",ROUND(VLOOKUP($A$3,'G7-ML2'!$A$6:$AM$500,6,FALSE),0)&"% ("&IF(VLOOKUP($A$3,'G7-ML2'!$A$6:$AM$500,5,FALSE)="",0,VLOOKUP($A$3,'G7-ML2'!$A$6:$AM$500,5,FALSE))&")")),"NA") -> 0% (2) | F27: =IFERROR((IF($C27="NA","NA",VLOOKUP($A$3,'G7-ML2'!$A$6:$AM$500,10,FALSE))),"NA") -> 3.053947368 | G27: =IFERROR((IF($C27="NA","NA",ROUND(VLOOKUP($A$3,'G7-ML2'!$A$6:$AM$500,12,FALSE),0)&"% ("&IF(VLOOKUP($A$3,'G7-ML2'!$A$6:$AM$500,11,FALSE)="",0,VLOOKUP($A$3,'G7-ML2'!$A$6:$AM$500,11,FALSE))&")")),"NA") -> 2% (122) | H27: =IFERROR((IF($C27="NA","NA",VLOOKUP($A$3,'G7-ML2'!$A$6:$AM$500,13,FALSE))),"NA") -> 3.593171219 | I27: =IFERROR((IF($C27="NA","NA",ROUND(VLOOKUP($A$3,'G7-ML2'!$A$6:$AM$500,15,FALSE),0)&"% ("&IF(VLOOKUP($A$3,'G7-ML2'!$A$6:$AM$500,14,FALSE)="",0,VLOOKUP($A$3,'G7-ML2'!$A$6:$AM$500,14,FALSE))&")")),"NA") -> 1% (55) | J27: =IFERROR((IF($C27="NA","NA",VLOOKUP($A$3,'G7-ML2'!$A$6:$AM$500,7,FALSE))),"NA") -> 4.135876083 | K27: =IFERROR((IF($C27="NA","NA",ROUND(VLOOKUP($A$3,'G7-ML2'!$A$6:$AM$500,9,FALSE),0)&"% ("&IF(VLOOKUP($A$3,'G7-ML2'!$A$6:$AM$500,8,FALSE)="",0,VLOOKUP($A$3,'G7-ML2'!$A$6:$AM$500,8,FALSE))&")")),"NA") -> 1% (41) | L27: =IFERROR((IF($C27="NA","NA",VLOOKUP($A$3,'G7-ML2'!$A$6:$AM$500,16,FALSE))),"NA") -> 2.200066622 | M27: =IFERROR((IF($C27="NA","NA",ROUND(VLOOKUP($A$3,'G7-ML2'!$A$6:$AM$500,18,FALSE),0)&"% ("&IF(VLOOKUP($A$3,'G7-ML2'!$A$6:$AM$500,17,FALSE)="",0,VLOOKUP($A$3,'G7-ML2'!$A$6:$AM$500,17,FALSE))&")")),"NA") -> 1% (41)
A28: FCAT Level 3 | B28: =IFERROR(VLOOKUP(TEXT($A$3,"0000"),MEM_ML3!$A$2:$O$500,8,FALSE),0)-IFERROR(VLOOKUP(TEXT($A$3,"0000"),'ALG Gr07'!$A$3:$Q$216,6,FALSE),0) -> 5805 | C28: =IFERROR((IF(OR(B28=0,B28="",B28="NA"),"NA",((IF(VLOOKUP($A$3,'G7-ML3'!$A$6:$AM$500,3,FALSE)>=B28,"100% ("&VLOOKUP($A$3,'G7-ML3'!$A$6:$AM$500,3,FALSE)&")",(ROUND((VLOOKUP($A$3,'G7-ML3'!$A$6:$AM$500,3,FALSE)/B28*100),0))&"% ("&IF(VLOOKUP($A$3,'G7-ML3'!$A$6:$AM$500,3,FALSE)="",0,VLOOKUP($A$3,'G7-ML3'!$A$6:$AM$500,3,FALSE))&")"))))),"0% (0)") -> 100% (5779) | D28: =IFERROR((IF($C28="NA","NA",VLOOKUP($A$3,'G7-ML3'!$A$6:$AM$500,4,FALSE))),"NA") -> 16.91465651 | E28: =IFERROR((IF($C28="NA","NA",ROUND(VLOOKUP($A$3,'G7-ML3'!$A$6:$AM$500,6,FALSE),0)&"% ("&IF(VLOOKUP($A$3,'G7-ML3'!$A$6:$AM$500,5,FALSE)="",0,VLOOKUP($A$3,'G7-ML3'!$A$6:$AM$500,5,FALSE))&")")),"NA") -> 0% (14) | F28: =IFERROR((IF($C28="NA","NA",VLOOKUP($A$3,'G7-ML3'!$A$6:$AM$500,10,FALSE))),"NA") -> 4.315002596 | G28: =IFERROR((IF($C28="NA","NA",ROUND(VLOOKUP($A$3,'G7-ML3'!$A$6:$AM$500,12,FALSE),0)&"% ("&IF(VLOOKUP($A$3,'G7-ML3'!$A$6:$AM$500,11,FALSE)="",0,VLOOKUP($A$3,'G7-ML3'!$A$6:$AM$500,11,FALSE))&")")),"NA") -> 11% (656) | H28: =IFERROR((IF($C28="NA","NA",VLOOKUP($A$3,'G7-ML3'!$A$6:$AM$500,13,FALSE))),"NA") -> 4.736373075 | I28: =IFERROR((IF($C28="NA","NA",ROUND(VLOOKUP($A$3,'G7-ML3'!$A$6:$AM$500,15,FALSE),0)&"% ("&IF(VLOOKUP($A$3,'G7-ML3'!$A$6:$AM$500,14,FALSE)="",0,VLOOKUP($A$3,'G7-ML3'!$A$6:$AM$500,14,FALSE))&")")),"NA") -> 3% (155) | J28: =IFERROR((IF($C28="NA","NA",VLOOKUP($A$3,'G7-ML3'!$A$6:$AM$500,7,FALSE))),"NA") -> 5.05334833 | K28: =IFERROR((IF($C28="NA","NA",ROUND(VLOOKUP($A$3,'G7-ML3'!$A$6:$AM$500,9,FALSE),0)&"% ("&IF(VLOOKUP($A$3,'G7-ML3'!$A$6:$AM$500,8,FALSE)="",0,VLOOKUP($A$3,'G7-ML3'!$A$6:$AM$500,8,FALSE))&")")),"NA") -> 3% (156) | L28: =IFERROR((IF($C28="NA","NA",VLOOKUP($A$3,'G7-ML3'!$A$6:$AM$500,16,FALSE))),"NA") -> 2.818117321 | M28: =IFERROR((IF($C28="NA","NA",ROUND(VLOOKUP($A$3,'G7-ML3'!$A$6:$AM$500,18,FALSE),0)&"% ("&IF(VLOOKUP($A$3,'G7-ML3'!$A$6:$AM$500,17,FALSE)="",0,VLOOKUP($A$3,'G7-ML3'!$A$6:$AM$500,17,FALSE))&")")),"NA") -> 3% (146)
A29: FCAT Level 4 | B29: =IFERROR(VLOOKUP(TEXT($A$3,"0000"),MEM_ML4!$A$2:$O$500,8,FALSE),0)-IFERROR(VLOOKUP(TEXT($A$3,"0000"),'ALG Gr07'!$A$3:$Q$216,7,FALSE),0) -> 3322 | C29: =IFERROR((IF(OR(B29=0,B29="",B29="NA"),"NA",((IF(VLOOKUP($A$3,'G7-ML4'!$A$6:$AM$500,3,FALSE)>=B29,"100% ("&VLOOKUP($A$3,'G7-ML4'!$A$6:$AM$500,3,FALSE)&")",(ROUND((VLOOKUP($A$3,'G7-ML4'!$A$6:$AM$500,3,FALSE)/B29*100),0))&"% ("&IF(VLOOKUP($A$3,'G7-ML4'!$A$6:$AM$500,3,FALSE)="",0,VLOOKUP($A$3,'G7-ML4'!$A$6:$AM$500,3,FALSE))&")"))))),"0% (0)") -> 100% (3625) | D29: =IFERROR((IF($C29="NA","NA",VLOOKUP($A$3,'G7-ML4'!$A$6:$AM$500,4,FALSE))),"NA") -> 21.83233103 | E29: =IFERROR((IF($C29="NA","NA",ROUND(VLOOKUP($A$3,'G7-ML4'!$A$6:$AM$500,6,FALSE),0)&"% ("&IF(VLOOKUP($A$3,'G7-ML4'!$A$6:$AM$500,5,FALSE)="",0,VLOOKUP($A$3,'G7-ML4'!$A$6:$AM$500,5,FALSE))&")")),"NA") -> 5% (194) | F29: =IFERROR((IF($C29="NA","NA",VLOOKUP($A$3,'G7-ML4'!$A$6:$AM$500,10,FALSE))),"NA") -> 5.963668966 | G29: =IFERROR((IF($C29="NA","NA",ROUND(VLOOKUP($A$3,'G7-ML4'!$A$6:$AM$500,12,FALSE),0)&"% ("&IF(VLOOKUP($A$3,'G7-ML4'!$A$6:$AM$500,11,FALSE)="",0,VLOOKUP($A$3,'G7-ML4'!$A$6:$AM$500,11,FALSE))&")")),"NA") -> 40% (1447) | H29: =IFERROR((IF($C29="NA","NA",VLOOKUP($A$3,'G7-ML4'!$A$6:$AM$500,13,FALSE))),"NA") -> 6.056331034 | I29: =IFERROR((IF($C29="NA","NA",ROUND(VLOOKUP($A$3,'G7-ML4'!$A$6:$AM$500,15,FALSE),0)&"% ("&IF(VLOOKUP($A$3,'G7-ML4'!$A$6:$AM$500,14,FALSE)="",0,VLOOKUP($A$3,'G7-ML4'!$A$6:$AM$500,14,FALSE))&")")),"NA") -> 10% (348) | J29: =IFERROR((IF($C29="NA","NA",VLOOKUP($A$3,'G7-ML4'!$A$6:$AM$500,7,FALSE))),"NA") -> 6.190896552 | K29: =IFERROR((IF($C29="NA","NA",ROUND(VLOOKUP($A$3,'G7-ML4'!$A$6:$AM$500,9,FALSE),0)&"% ("&IF(VLOOKUP($A$3,'G7-ML4'!$A$6:$AM$500,8,FALSE)="",0,VLOOKUP($A$3,'G7-ML4'!$A$6:$AM$500,8,FALSE))&")")),"NA") -> 11% (391) | L29: =IFERROR((IF($C29="NA","NA",VLOOKUP($A$3,'G7-ML4'!$A$6:$AM$500,16,FALSE))),"NA") -> 3.631668966 | M29: =IFERROR((IF($C29="NA","NA",ROUND(VLOOKUP($A$3,'G7-ML4'!$A$6:$AM$500,18,FALSE),0)&"% ("&IF(VLOOKUP($A$3,'G7-ML4'!$A$6:$AM$500,17,FALSE)="",0,VLOOKUP($A$3,'G7-ML4'!$A$6:$AM$500,17,FALSE))&")")),"NA") -> 10% (373)
A30: FCAT Level 5 | B30: =IFERROR(VLOOKUP(TEXT($A$3,"0000"),MEM_ML5!$A$2:$O$500,8,FALSE),0)-IFERROR(VLOOKUP(TEXT($A$3,"0000"),'ALG Gr07'!$A$3:$Q$216,8,FALSE),0) -> 1146 | C30: =IFERROR((IF(OR(B30=0,B30="",B30="NA"),"NA",((IF(VLOOKUP($A$3,'G7-ML5'!$A$6:$AM$500,3,FALSE)>=B30,"100% ("&VLOOKUP($A$3,'G7-ML5'!$A$6:$AM$500,3,FALSE)&")",(ROUND((VLOOKUP($A$3,'G7-ML5'!$A$6:$AM$500,3,FALSE)/B30*100),0))&"% ("&IF(VLOOKUP($A$3,'G7-ML5'!$A$6:$AM$500,3,FALSE)="",0,VLOOKUP($A$3,'G7-ML5'!$A$6:$AM$500,3,FALSE))&")"))))),"0% (0)") -> 100% (1525) | D30: =IFERROR((IF($C30="NA","NA",VLOOKUP($A$3,'G7-ML5'!$A$6:$AM$500,4,FALSE))),"NA") -> 27.48393443 | E30: =IFERROR((IF($C30="NA","NA",ROUND(VLOOKUP($A$3,'G7-ML5'!$A$6:$AM$500,6,FALSE),0)&"% ("&IF(VLOOKUP($A$3,'G7-ML5'!$A$6:$AM$500,5,FALSE)="",0,VLOOKUP($A$3,'G7-ML5'!$A$6:$AM$500,5,FALSE))&")")),"NA") -> 35% (533) | F30: =IFERROR((IF($C30="NA","NA",VLOOKUP($A$3,'G7-ML5'!$A$6:$AM$500,10,FALSE))),"NA") -> 7.613704918 | G30: =IFERROR((IF($C30="NA","NA",ROUND(VLOOKUP($A$3,'G7-ML5'!$A$6:$AM$500,12,FALSE),0)&"% ("&IF(VLOOKUP($A$3,'G7-ML5'!$A$6:$AM$500,11,FALSE)="",0,VLOOKUP($A$3,'G7-ML5'!$A$6:$AM$500,11,FALSE))&")")),"NA") -> 76% (1154) | H30: =IFERROR((IF($C30="NA","NA",VLOOKUP($A$3,'G7-ML5'!$A$6:$AM$500,13,FALSE))),"NA") -> 7.46904918 | I30: =IFERROR((IF($C30="NA","NA",ROUND(VLOOKUP($A$3,'G7-ML5'!$A$6:$AM$500,15,FALSE),0)&"% ("&IF(VLOOKUP($A$3,'G7-ML5'!$A$6:$AM$500,14,FALSE)="",0,VLOOKUP($A$3,'G7-ML5'!$A$6:$AM$500,14,FALSE))&")")),"NA") -> 29% (447) | J30: =IFERROR((IF($C30="NA","NA",VLOOKUP($A$3,'G7-ML5'!$A$6:$AM$500,7,FALSE))),"NA") -> 7.713770492 | K30: =IFERROR((IF($C30="NA","NA",ROUND(VLOOKUP($A$3,'G7-ML5'!$A$6:$AM$500,9,FALSE),0)&"% ("&IF(VLOOKUP($A$3,'G7-ML5'!$A$6:$AM$500,8,FALSE)="",0,VLOOKUP($A$3,'G7-ML5'!$A$6:$AM$500,8,FALSE))&")")),"NA") -> 36% (555) | L30: =IFERROR((IF($C30="NA","NA",VLOOKUP($A$3,'G7-ML5'!$A$6:$AM$500,16,FALSE))),"NA") -> 4.695081967 | M30: =IFERROR((IF($C30="NA","NA",ROUND(VLOOKUP($A$3,'G7-ML5'!$A$6:$AM$500,18,FALSE),0)&"% ("&IF(VLOOKUP($A$3,'G7-ML5'!$A$6:$AM$500,17,FALSE)="",0,VLOOKUP($A$3,'G7-ML5'!$A$6:$AM$500,17,FALSE))&")")),"NA") -> 30% (454)
A31: White | B31: =IFERROR(VLOOKUP(TEXT($A$3,"0000"),MEM_W!$A$2:$O$500,11,FALSE),0)-IFERROR(VLOOKUP(TEXT($A$3,"0000"),'ALG Gr07'!$A$3:$Q$216,10,FALSE),0) -> 1714 | C31: =IFERROR((IF(OR(B31=0,B31="",B31="NA"),"NA",((IF(VLOOKUP($A$3,'G7-MW'!$A$6:$AM$500,3,FALSE)>=B31,"100% ("&VLOOKUP($A$3,'G7-MW'!$A$6:$AM$500,3,FALSE)&")",(ROUND((VLOOKUP($A$3,'G7-MW'!$A$6:$AM$500,3,FALSE)/B31*100),0))&"% ("&IF(VLOOKUP($A$3,'G7-MW'!$A$6:$AM$500,3,FALSE)="",0,VLOOKUP($A$3,'G7-MW'!$A$6:$AM$500,3,FALSE))&")"))))),"0% (0)") -> 100% (1740) | D31: =IFERROR((IF($C31="NA","NA",VLOOKUP($A$3,'G7-MW'!$A$6:$AM$500,4,FALSE))),"NA") -> 18.83804598 | E31: =IFERROR((IF($C31="NA","NA",ROUND(VLOOKUP($A$3,'G7-MW'!$A$6:$AM$500,6,FALSE),0)&"% ("&IF(VLOOKUP($A$3,'G7-MW'!$A$6:$AM$500,5,FALSE)="",0,VLOOKUP($A$3,'G7-MW'!$A$6:$AM$500,5,FALSE))&")")),"NA") -> 8% (142) | F31: =IFERROR((IF($C31="NA","NA",VLOOKUP($A$3,'G7-MW'!$A$6:$AM$500,10,FALSE))),"NA") -> 4.886954023 | G31: =IFERROR((IF($C31="NA","NA",ROUND(VLOOKUP($A$3,'G7-MW'!$A$6:$AM$500,12,FALSE),0)&"% ("&IF(VLOOKUP($A$3,'G7-MW'!$A$6:$AM$500,11,FALSE)="",0,VLOOKUP($A$3,'G7-MW'!$A$6:$AM$500,11,FALSE))&")")),"NA") -> 27% (464) | H31: =IFERROR((IF($C31="NA","NA",VLOOKUP($A$3,'G7-MW'!$A$6:$AM$500,13,FALSE))),"NA") -> 5.250114943 | I31: =IFERROR((IF($C31="NA","NA",ROUND(VLOOKUP($A$3,'G7-MW'!$A$6:$AM$500,15,FALSE),0)&"% ("&IF(VLOOKUP($A$3,'G7-MW'!$A$6:$AM$500,14,FALSE)="",0,VLOOKUP($A$3,'G7-MW'!$A$6:$AM$500,14,FALSE))&")")),"NA") -> 9% (151) | J31: =IFERROR((IF($C31="NA","NA",VLOOKUP($A$3,'G7-MW'!$A$6:$AM$500,7,FALSE))),"NA") -> 5.498563218 | K31: =IFERROR((IF($C31="NA","NA",ROUND(VLOOKUP($A$3,'G7-MW'!$A$6:$AM$500,9,FALSE),0)&"% ("&IF(VLOOKUP($A$3,'G7-MW'!$A$6:$AM$500,8,FALSE)="",0,VLOOKUP($A$3,'G7-MW'!$A$6:$AM$500,8,FALSE))&")")),"NA") -> 10% (171) | L31: =IFERROR((IF($C31="NA","NA",VLOOKUP($A$3,'G7-MW'!$A$6:$AM$500,16,FALSE))),"NA") -> 3.19591954 | M31: =IFERROR((IF($C31="NA","NA",ROUND(VLOOKUP($A$3,'G7-MW'!$A$6:$AM$500,18,FALSE),0)&"% ("&IF(VLOOKUP($A$3,'G7-MW'!$A$6:$AM$500,17,FALSE)="",0,VLOOKUP($A$3,'G7-MW'!$A$6:$AM$500,17,FALSE))&")")),"NA") -> 10% (167)
A32: Black | B32: =IFERROR(VLOOKUP(TEXT($A$3,"0000"),MEM_B!$A$2:$O$500,11,FALSE),0)-IFERROR(VLOOKUP(TEXT($A$3,"0000"),'ALG Gr07'!$A$3:$Q$216,11,FALSE),0) -> 5844 | C32: =IFERROR((IF(OR(B32=0,B32="",B32="NA"),"NA",((IF(VLOOKUP($A$3,'G7-MB'!$A$6:$AM$500,3,FALSE)>=B32,"100% ("&VLOOKUP($A$3,'G7-MB'!$A$6:$AM$500,3,FALSE)&")",(ROUND((VLOOKUP($A$3,'G7-MB'!$A$6:$AM$500,3,FALSE)/B32*100),0))&"% ("&IF(VLOOKUP($A$3,'G7-MB'!$A$6:$AM$500,3,FALSE)="",0,VLOOKUP($A$3,'G7-MB'!$A$6:$AM$500,3,FALSE))&")"))))),"0% (0)") -> 93% (5457) | D32: =IFERROR((IF($C32="NA","NA",VLOOKUP($A$3,'G7-MB'!$A$6:$AM$500,4,FALSE))),"NA") -> 13.46637347 | E32: =IFERROR((IF($C32="NA","NA",ROUND(VLOOKUP($A$3,'G7-MB'!$A$6:$AM$500,6,FALSE),0)&"% ("&IF(VLOOKUP($A$3,'G7-MB'!$A$6:$AM$500,5,FALSE)="",0,VLOOKUP($A$3,'G7-MB'!$A$6:$AM$500,5,FALSE))&")")),"NA") -> 1% (37) | F32: =IFERROR((IF($C32="NA","NA",VLOOKUP($A$3,'G7-MB'!$A$6:$AM$500,10,FALSE))),"NA") -> 3.458090526 | G32: =IFERROR((IF($C32="NA","NA",ROUND(VLOOKUP($A$3,'G7-MB'!$A$6:$AM$500,12,FALSE),0)&"% ("&IF(VLOOKUP($A$3,'G7-MB'!$A$6:$AM$500,11,FALSE)="",0,VLOOKUP($A$3,'G7-MB'!$A$6:$AM$500,11,FALSE))&")")),"NA") -> 9% (494) | H32: =IFERROR((IF($C32="NA","NA",VLOOKUP($A$3,'G7-MB'!$A$6:$AM$500,13,FALSE))),"NA") -> 3.536906725 | I32: =IFERROR((IF($C32="NA","NA",ROUND(VLOOKUP($A$3,'G7-MB'!$A$6:$AM$500,15,FALSE),0)&"% ("&IF(VLOOKUP($A$3,'G7-MB'!$A$6:$AM$500,14,FALSE)="",0,VLOOKUP($A$3,'G7-MB'!$A$6:$AM$500,14,FALSE))&")")),"NA") -> 1% (65) | J32: =IFERROR((IF($C32="NA","NA",VLOOKUP($A$3,'G7-MB'!$A$6:$AM$500,7,FALSE))),"NA") -> 4.210463625 | K32: =IFERROR((IF($C32="NA","NA",ROUND(VLOOKUP($A$3,'G7-MB'!$A$6:$AM$500,9,FALSE),0)&"% ("&IF(VLOOKUP($A$3,'G7-MB'!$A$6:$AM$500,8,FALSE)="",0,VLOOKUP($A$3,'G7-MB'!$A$6:$AM$500,8,FALSE))&")")),"NA") -> 2% (102) | L32: =IFERROR((IF($C32="NA","NA",VLOOKUP($A$3,'G7-MB'!$A$6:$AM$500,16,FALSE))),"NA") -> 2.266190214 | M32: =IFERROR((IF($C32="NA","NA",ROUND(VLOOKUP($A$3,'G7-MB'!$A$6:$AM$500,18,FALSE),0)&"% ("&IF(VLOOKUP($A$3,'G7-MB'!$A$6:$AM$500,17,FALSE)="",0,VLOOKUP($A$3,'G7-MB'!$A$6:$AM$500,17,FALSE))&")")),"NA") -> 2% (92)
A33: Hispanic | B33: =IFERROR(VLOOKUP(TEXT($A$3,"0000"),MEM_H!$A$2:$O$500,11,FALSE),0)-IFERROR(VLOOKUP(TEXT($A$3,"0000"),'ALG Gr07'!$A$3:$Q$216,12,FALSE),0) -> 16369 | C33: =IFERROR((IF(OR(B33=0,B33="",B33="NA"),"NA",((IF(VLOOKUP($A$3,'G7-MH'!$A$6:$AM$500,3,FALSE)>=B33,"100% ("&VLOOKUP($A$3,'G7-MH'!$A$6:$AM$500,3,FALSE)&")",(ROUND((VLOOKUP($A$3,'G7-MH'!$A$6:$AM$500,3,FALSE)/B33*100),0))&"% ("&IF(VLOOKUP($A$3,'G7-MH'!$A$6:$AM$500,3,FALSE)="",0,VLOOKUP($A$3,'G7-MH'!$A$6:$AM$500,3,FALSE))&")"))))),"0% (0)") -> 98% (16023) | D33: =IFERROR((IF($C33="NA","NA",VLOOKUP($A$3,'G7-MH'!$A$6:$AM$500,4,FALSE))),"NA") -> 15.87887412 | E33: =IFERROR((IF($C33="NA","NA",ROUND(VLOOKUP($A$3,'G7-MH'!$A$6:$AM$500,6,FALSE),0)&"% ("&IF(VLOOKUP($A$3,'G7-MH'!$A$6:$AM$500,5,FALSE)="",0,VLOOKUP($A$3,'G7-MH'!$A$6:$AM$500,5,FALSE))&")")),"NA") -> 3% (520) | F33: =IFERROR((IF($C33="NA","NA",VLOOKUP($A$3,'G7-MH'!$A$6:$AM$500,10,FALSE))),"NA") -> 3.94192723 | G33: =IFERROR((IF($C33="NA","NA",ROUND(VLOOKUP($A$3,'G7-MH'!$A$6:$AM$500,12,FALSE),0)&"% ("&IF(VLOOKUP($A$3,'G7-MH'!$A$6:$AM$500,11,FALSE)="",0,VLOOKUP($A$3,'G7-MH'!$A$6:$AM$500,11,FALSE))&")")),"NA") -> 15% (2372) | H33: =IFERROR((IF($C33="NA","NA",VLOOKUP($A$3,'G7-MH'!$A$6:$AM$500,13,FALSE))),"NA") -> 4.490126693 | I33: =IFERROR((IF($C33="NA","NA",ROUND(VLOOKUP($A$3,'G7-MH'!$A$6:$AM$500,15,FALSE),0)&"% ("&IF(VLOOKUP($A$3,'G7-MH'!$A$6:$AM$500,14,FALSE)="",0,VLOOKUP($A$3,'G7-MH'!$A$6:$AM$500,14,FALSE))&")")),"NA") -> 5% (779) | J33: =IFERROR((IF($C33="NA","NA",VLOOKUP($A$3,'G7-MH'!$A$6:$AM$500,7,FALSE))),"NA") -> 4.763614804 | K33: =IFERROR((IF($C33="NA","NA",ROUND(VLOOKUP($A$3,'G7-MH'!$A$6:$AM$500,9,FALSE),0)&"% ("&IF(VLOOKUP($A$3,'G7-MH'!$A$6:$AM$500,8,FALSE)="",0,VLOOKUP($A$3,'G7-MH'!$A$6:$AM$500,8,FALSE))&")")),"NA") -> 5% (839) | L33: =IFERROR((IF($C33="NA","NA",VLOOKUP($A$3,'G7-MH'!$A$6:$AM$500,16,FALSE))),"NA") -> 2.690856893 | M33: =IFERROR((IF($C33="NA","NA",ROUND(VLOOKUP($A$3,'G7-MH'!$A$6:$AM$500,18,FALSE),0)&"% ("&IF(VLOOKUP($A$3,'G7-MH'!$A$6:$AM$500,17,FALSE)="",0,VLOOKUP($A$3,'G7-MH'!$A$6:$AM$500,17,FALSE))&")")),"NA") -> 5% (740)
A34: Asian | B34: =IFERROR(VLOOKUP(TEXT($A$3,"0000"),MEM_A!$A$2:$O$500,11,FALSE),0)-IFERROR(VLOOKUP(TEXT($A$3,"0000"),'ALG Gr07'!$A$3:$Q$216,13,FALSE),0) -> 215 | C34: =IFERROR((IF(OR(B34=0,B34="",B34="NA"),"NA",((IF(VLOOKUP($A$3,'G7-MA'!$A$6:$AM$500,3,FALSE)>=B34,"100% ("&VLOOKUP($A$3,'G7-MA'!$A$6:$AM$500,3,FALSE)&")",(ROUND((VLOOKUP($A$3,'G7-MA'!$A$6:$AM$500,3,FALSE)/B34*100),0))&"% ("&IF(VLOOKUP($A$3,'G7-MA'!$A$6:$AM$500,3,FALSE)="",0,VLOOKUP($A$3,'G7-MA'!$A$6:$AM$500,3,FALSE))&")"))))),"0% (0)") -> 100% (249) | D34: =IFERROR((IF($C34="NA","NA",VLOOKUP($A$3,'G7-MA'!$A$6:$AM$500,4,FALSE))),"NA") -> 21.23574297 | E34: =IFERROR((IF($C34="NA","NA",ROUND(VLOOKUP($A$3,'G7-MA'!$A$6:$AM$500,6,FALSE),0)&"% ("&IF(VLOOKUP($A$3,'G7-MA'!$A$6:$AM$500,5,FALSE)="",0,VLOOKUP($A$3,'G7-MA'!$A$6:$AM$500,5,FALSE))&")")),"NA") -> 19% (48) | F34: =IFERROR((IF($C34="NA","NA",VLOOKUP($A$3,'G7-MA'!$A$6:$AM$500,10,FALSE))),"NA") -> 5.796385542 | G34: =IFERROR((IF($C34="NA","NA",ROUND(VLOOKUP($A$3,'G7-MA'!$A$6:$AM$500,12,FALSE),0)&"% ("&IF(VLOOKUP($A$3,'G7-MA'!$A$6:$AM$500,11,FALSE)="",0,VLOOKUP($A$3,'G7-MA'!$A$6:$AM$500,11,FALSE))&")")),"NA") -> 45% (113) | H34: =IFERROR((IF($C34="NA","NA",VLOOKUP($A$3,'G7-MA'!$A$6:$AM$500,13,FALSE))),"NA") -> 5.618473896 | I34: =IFERROR((IF($C34="NA","NA",ROUND(VLOOKUP($A$3,'G7-MA'!$A$6:$AM$500,15,FALSE),0)&"% ("&IF(VLOOKUP($A$3,'G7-MA'!$A$6:$AM$500,14,FALSE)="",0,VLOOKUP($A$3,'G7-MA'!$A$6:$AM$500,14,FALSE))&")")),"NA") -> 14% (35) | J34: =IFERROR((IF($C34="NA","NA",VLOOKUP($A$3,'G7-MA'!$A$6:$AM$500,7,FALSE))),"NA") -> 6.262650602 | K34: =IFERROR((IF($C34="NA","NA",ROUND(VLOOKUP($A$3,'G7-MA'!$A$6:$AM$500,9,FALSE),0)&"% ("&IF(VLOOKUP($A$3,'G7-MA'!$A$6:$AM$500,8,FALSE)="",0,VLOOKUP($A$3,'G7-MA'!$A$6:$AM$500,8,FALSE))&")")),"NA") -> 19% (48) | L34: =IFERROR((IF($C34="NA","NA",VLOOKUP($A$3,'G7-MA'!$A$6:$AM$500,16,FALSE))),"NA") -> 3.548192771 | M34: =IFERROR((IF($C34="NA","NA",ROUND(VLOOKUP($A$3,'G7-MA'!$A$6:$AM$500,18,FALSE),0)&"% ("&IF(VLOOKUP($A$3,'G7-MA'!$A$6:$AM$500,17,FALSE)="",0,VLOOKUP($A$3,'G7-MA'!$A$6:$AM$500,17,FALSE))&")")),"NA") -> 19% (47)
A35: Am. Indian | B35: =IFERROR(VLOOKUP(TEXT($A$3,"0000"),MEM_I!$A$2:$O$500,11,FALSE),0)-IFERROR(VLOOKUP(TEXT($A$3,"0000"),'ALG Gr07'!$A$3:$Q$216,14,FALSE),0) -> 19 | C35: =IFERROR((IF(OR(B35=0,B35="",B35="NA"),"NA",((IF(VLOOKUP($A$3,'G7-MI'!$A$6:$AM$500,3,FALSE)>=B35,"100% ("&VLOOKUP($A$3,'G7-MI'!$A$6:$AM$500,3,FALSE)&")",(ROUND((VLOOKUP($A$3,'G7-MI'!$A$6:$AM$500,3,FALSE)/B35*100),0))&"% ("&IF(VLOOKUP($A$3,'G7-MI'!$A$6:$AM$500,3,FALSE)="",0,VLOOKUP($A$3,'G7-MI'!$A$6:$AM$500,3,FALSE))&")"))))),"0% (0)") -> 100% (20) | D35: =IFERROR((IF($C35="NA","NA",VLOOKUP($A$3,'G7-MI'!$A$6:$AM$500,4,FALSE))),"NA") -> 16.8 | E35: =IFERROR((IF($C35="NA","NA",ROUND(VLOOKUP($A$3,'G7-MI'!$A$6:$AM$500,6,FALSE),0)&"% ("&IF(VLOOKUP($A$3,'G7-MI'!$A$6:$AM$500,5,FALSE)="",0,VLOOKUP($A$3,'G7-MI'!$A$6:$AM$500,5,FALSE))&")")),"NA") -> 10% (2) | F35: =IFERROR((IF($C35="NA","NA",VLOOKUP($A$3,'G7-MI'!$A$6:$AM$500,10,FALSE))),"NA") -> 3.9 | G35: =IFERROR((IF($C35="NA","NA",ROUND(VLOOKUP($A$3,'G7-MI'!$A$6:$AM$500,12,FALSE),0)&"% ("&IF(VLOOKUP($A$3,'G7-MI'!$A$6:$AM$500,11,FALSE)="",0,VLOOKUP($A$3,'G7-MI'!$A$6:$AM$500,11,FALSE))&")")),"NA") -> 15% (3) | H35: =IFERROR((IF($C35="NA","NA",VLOOKUP($A$3,'G7-MI'!$A$6:$AM$500,13,FALSE))),"NA") -> 4.5 | I35: =IFERROR((IF($C35="NA","NA",ROUND(VLOOKUP($A$3,'G7-MI'!$A$6:$AM$500,15,FALSE),0)&"% ("&IF(VLOOKUP($A$3,'G7-MI'!$A$6:$AM$500,14,FALSE)="",0,VLOOKUP($A$3,'G7-MI'!$A$6:$AM$500,14,FALSE))&")")),"NA") -> 10% (2) | J35: =IFERROR((IF($C35="NA","NA",VLOOKUP($A$3,'G7-MI'!$A$6:$AM$500,7,FALSE))),"NA") -> 5.65 | K35: =IFERROR((IF($C35="NA","NA",ROUND(VLOOKUP($A$3,'G7-MI'!$A$6:$AM$500,9,FALSE),0)&"% ("&IF(VLOOKUP($A$3,'G7-MI'!$A$6:$AM$500,8,FALSE)="",0,VLOOKUP($A$3,'G7-MI'!$A$6:$AM$500,8,FALSE))&")")),"NA") -> 10% (2) | L35: =IFERROR((IF($C35="NA","NA",VLOOKUP($A$3,'G7-MI'!$A$6:$AM$500,16,FALSE))),"NA") -> 2.75 | M35: =IFERROR((IF($C35="NA","NA",ROUND(VLOOKUP($A$3,'G7-MI'!$A$6:$AM$500,18,FALSE),0)&"% ("&IF(VLOOKUP($A$3,'G7-MI'!$A$6:$AM$500,17,FALSE)="",0,VLOOKUP($A$3,'G7-MI'!$A$6:$AM$500,17,FALSE))&")")),"NA") -> 5% (1)
A36: ED | B36: =IFERROR(VLOOKUP(TEXT($A$3,"0000"),MEM_ED!$A$2:$O$500,11,FALSE),0)-IFERROR(VLOOKUP(TEXT($A$3,"0000"),'ALG Gr07'!$A$3:$Q$216,15,FALSE),0) -> 19592 | C36: =IFERROR((IF(OR(B36=0,B36="",B36="NA"),"NA",((IF(VLOOKUP($A$3,'G7-MED'!$A$6:$AM$500,3,FALSE)>=B36,"100% ("&VLOOKUP($A$3,'G7-MED'!$A$6:$AM$500,3,FALSE)&")",(ROUND((VLOOKUP($A$3,'G7-MED'!$A$6:$AM$500,3,FALSE)/B36*100),0))&"% ("&IF(VLOOKUP($A$3,'G7-MED'!$A$6:$AM$500,3,FALSE)="",0,VLOOKUP($A$3,'G7-MED'!$A$6:$AM$500,3,FALSE))&")"))))),"0% (0)") -> 97% (18941) | D36: =IFERROR((IF($C36="NA","NA",VLOOKUP($A$3,'G7-MED'!$A$6:$AM$500,4,FALSE))),"NA") -> 14.78106225 | E36: =IFERROR((IF($C36="NA","NA",ROUND(VLOOKUP($A$3,'G7-MED'!$A$6:$AM$500,6,FALSE),0)&"% ("&IF(VLOOKUP($A$3,'G7-MED'!$A$6:$AM$500,5,FALSE)="",0,VLOOKUP($A$3,'G7-MED'!$A$6:$AM$500,5,FALSE))&")")),"NA") -> 2% (361) | F36: =IFERROR((IF($C36="NA","NA",VLOOKUP($A$3,'G7-MED'!$A$6:$AM$500,10,FALSE))),"NA") -> 3.674489203 | G36: =IFERROR((IF($C36="NA","NA",ROUND(VLOOKUP($A$3,'G7-MED'!$A$6:$AM$500,12,FALSE),0)&"% ("&IF(VLOOKUP($A$3,'G7-MED'!$A$6:$AM$500,11,FALSE)="",0,VLOOKUP($A$3,'G7-MED'!$A$6:$AM$500,11,FALSE))&")")),"NA") -> 12% (2208) | H36: =IFERROR((IF($C36="NA","NA",VLOOKUP($A$3,'G7-MED'!$A$6:$AM$500,13,FALSE))),"NA") -> 4.119724407 | I36: =IFERROR((IF($C36="NA","NA",ROUND(VLOOKUP($A$3,'G7-MED'!$A$6:$AM$500,15,FALSE),0)&"% ("&IF(VLOOKUP($A$3,'G7-MED'!$A$6:$AM$500,14,FALSE)="",0,VLOOKUP($A$3,'G7-MED'!$A$6:$AM$500,14,FALSE))&")")),"NA") -> 3% (609) | J36: =IFERROR((IF($C36="NA","NA",VLOOKUP($A$3,'G7-MED'!$A$6:$AM$500,7,FALSE))),"NA") -> 4.485296447 | K36: =IFERROR((IF($C36="NA","NA",ROUND(VLOOKUP($A$3,'G7-MED'!$A$6:$AM$500,9,FALSE),0)&"% ("&IF(VLOOKUP($A$3,'G7-MED'!$A$6:$AM$500,8,FALSE)="",0,VLOOKUP($A$3,'G7-MED'!$A$6:$AM$500,8,FALSE))&")")),"NA") -> 3% (646) | L36: =IFERROR((IF($C36="NA","NA",VLOOKUP($A$3,'G7-MED'!$A$6:$AM$500,16,FALSE))),"NA") -> 2.486695528 | M36: =IFERROR((IF($C36="NA","NA",ROUND(VLOOKUP($A$3,'G7-MED'!$A$6:$AM$500,18,FALSE),0)&"% ("&IF(VLOOKUP($A$3,'G7-MED'!$A$6:$AM$500,17,FALSE)="",0,VLOOKUP($A$3,'G7-MED'!$A$6:$AM$500,17,FALSE))&")")),"NA") -> 3% (583)
A37: ELL | B37: =IFERROR(VLOOKUP(TEXT($A$3,"0000"),MEM_ELL!$A$2:$O$500,11,FALSE),0)-IFERROR(VLOOKUP(TEXT($A$3,"0000"),'ALG Gr07'!$A$3:$Q$216,16,FALSE),0) -> 3997 | C37: =IFERROR((IF(OR(B37=0,B37="",B37="NA"),"NA",((IF(VLOOKUP($A$3,'G7-MELL'!$A$6:$AM$500,3,FALSE)>=B37,"100% ("&VLOOKUP($A$3,'G7-MELL'!$A$6:$AM$500,3,FALSE)&")",(ROUND((VLOOKUP($A$3,'G7-MELL'!$A$6:$AM$500,3,FALSE)/B37*100),0))&"% ("&IF(VLOOKUP($A$3,'G7-MELL'!$A$6:$AM$500,3,FALSE)="",0,VLOOKUP($A$3,'G7-MELL'!$A$6:$AM$500,3,FALSE))&")"))))),"0% (0)") -> 90% (3608) | D37: =IFERROR((IF($C37="NA","NA",VLOOKUP($A$3,'G7-MELL'!$A$6:$AM$500,4,FALSE))),"NA") -> 12.67960089 | E37: =IFERROR((IF($C37="NA","NA",ROUND(VLOOKUP($A$3,'G7-MELL'!$A$6:$AM$500,6,FALSE),0)&"% ("&IF(VLOOKUP($A$3,'G7-MELL'!$A$6:$AM$500,5,FALSE)="",0,VLOOKUP($A$3,'G7-MELL'!$A$6:$AM$500,5,FALSE))&")")),"NA") -> 0% (16) | F37: =IFERROR((IF($C37="NA","NA",VLOOKUP($A$3,'G7-MELL'!$A$6:$AM$500,10,FALSE))),"NA") -> 3.103381375 | G37: =IFERROR((IF($C37="NA","NA",ROUND(VLOOKUP($A$3,'G7-MELL'!$A$6:$AM$500,12,FALSE),0)&"% ("&IF(VLOOKUP($A$3,'G7-MELL'!$A$6:$AM$500,11,FALSE)="",0,VLOOKUP($A$3,'G7-MELL'!$A$6:$AM$500,11,FALSE))&")")),"NA") -> 6% (203) | H37: =IFERROR((IF($C37="NA","NA",VLOOKUP($A$3,'G7-MELL'!$A$6:$AM$500,13,FALSE))),"NA") -> 3.649944568 | I37: =IFERROR((IF($C37="NA","NA",ROUND(VLOOKUP($A$3,'G7-MELL'!$A$6:$AM$500,15,FALSE),0)&"% ("&IF(VLOOKUP($A$3,'G7-MELL'!$A$6:$AM$500,14,FALSE)="",0,VLOOKUP($A$3,'G7-MELL'!$A$6:$AM$500,14,FALSE))&")")),"NA") -> 2% (70) | J37: =IFERROR((IF($C37="NA","NA",VLOOKUP($A$3,'G7-MELL'!$A$6:$AM$500,7,FALSE))),"NA") -> 3.923780488 | K37: =IFERROR((IF($C37="NA","NA",ROUND(VLOOKUP($A$3,'G7-MELL'!$A$6:$AM$500,9,FALSE),0)&"% ("&IF(VLOOKUP($A$3,'G7-MELL'!$A$6:$AM$500,8,FALSE)="",0,VLOOKUP($A$3,'G7-MELL'!$A$6:$AM$500,8,FALSE))&")")),"NA") -> 1% (40) | L37: =IFERROR((IF($C37="NA","NA",VLOOKUP($A$3,'G7-MELL'!$A$6:$AM$500,16,FALSE))),"NA") -> 2.002494457 | M37: =IFERROR((IF($C37="NA","NA",ROUND(VLOOKUP($A$3,'G7-MELL'!$A$6:$AM$500,18,FALSE),0)&"% ("&IF(VLOOKUP($A$3,'G7-MELL'!$A$6:$AM$500,17,FALSE)="",0,VLOOKUP($A$3,'G7-MELL'!$A$6:$AM$500,17,FALSE))&")")),"NA") -> 1% (34)
A38: SWD | B38: =IFERROR(VLOOKUP(TEXT($A$3,"0000"),MEM_SWD!$A$2:$O$500,11,FALSE),0)-IFERROR(VLOOKUP(TEXT($A$3,"0000"),'ALG Gr07'!$A$3:$Q$216,17,FALSE),0) -> 2602 | C38: =IFERROR((IF(OR(B38=0,B38="",B38="NA"),"NA",((IF(VLOOKUP($A$3,'G7-MSWD'!$A$6:$AM$500,3,FALSE)>=B38,"100% ("&VLOOKUP($A$3,'G7-MSWD'!$A$6:$AM$500,3,FALSE)&")",(ROUND((VLOOKUP($A$3,'G7-MSWD'!$A$6:$AM$500,3,FALSE)/B38*100),0))&"% ("&IF(VLOOKUP($A$3,'G7-MSWD'!$A$6:$AM$500,3,FALSE)="",0,VLOOKUP($A$3,'G7-MSWD'!$A$6:$AM$500,3,FALSE))&")"))))),"0% (0)") -> 93% (2413) | D38: =IFERROR((IF($C38="NA","NA",VLOOKUP($A$3,'G7-MSWD'!$A$6:$AM$500,4,FALSE))),"NA") -> 11.9599254 | E38: =IFERROR((IF($C38="NA","NA",ROUND(VLOOKUP($A$3,'G7-MSWD'!$A$6:$AM$500,6,FALSE),0)&"% ("&IF(VLOOKUP($A$3,'G7-MSWD'!$A$6:$AM$500,5,FALSE)="",0,VLOOKUP($A$3,'G7-MSWD'!$A$6:$AM$500,5,FALSE))&")")),"NA") -> 0% (12) | F38: =IFERROR((IF($C38="NA","NA",VLOOKUP($A$3,'G7-MSWD'!$A$6:$AM$500,10,FALSE))),"NA") -> 2.76949855 | G38: =IFERROR((IF($C38="NA","NA",ROUND(VLOOKUP($A$3,'G7-MSWD'!$A$6:$AM$500,12,FALSE),0)&"% ("&IF(VLOOKUP($A$3,'G7-MSWD'!$A$6:$AM$500,11,FALSE)="",0,VLOOKUP($A$3,'G7-MSWD'!$A$6:$AM$500,11,FALSE))&")")),"NA") -> 4% (106) | H38: =IFERROR((IF($C38="NA","NA",VLOOKUP($A$3,'G7-MSWD'!$A$6:$AM$500,13,FALSE))),"NA") -> 3.404185661 | I38: =IFERROR((IF($C38="NA","NA",ROUND(VLOOKUP($A$3,'G7-MSWD'!$A$6:$AM$500,15,FALSE),0)&"% ("&IF(VLOOKUP($A$3,'G7-MSWD'!$A$6:$AM$500,14,FALSE)="",0,VLOOKUP($A$3,'G7-MSWD'!$A$6:$AM$500,14,FALSE))&")")),"NA") -> 1% (27) | J38: =IFERROR((IF($C38="NA","NA",VLOOKUP($A$3,'G7-MSWD'!$A$6:$AM$500,7,FALSE))),"NA") -> 3.738499793 | K38: =IFERROR((IF($C38="NA","NA",ROUND(VLOOKUP($A$3,'G7-MSWD'!$A$6:$AM$500,9,FALSE),0)&"% ("&IF(VLOOKUP($A$3,'G7-MSWD'!$A$6:$AM$500,8,FALSE)="",0,VLOOKUP($A$3,'G7-MSWD'!$A$6:$AM$500,8,FALSE))&")")),"NA") -> 1% (32) | L38: =IFERROR((IF($C38="NA","NA",VLOOKUP($A$3,'G7-MSWD'!$A$6:$AM$500,16,FALSE))),"NA") -> 2.058309159 | M38: =IFERROR((IF($C38="NA","NA",ROUND(VLOOKUP($A$3,'G7-MSWD'!$A$6:$AM$500,18,FALSE),0)&"% ("&IF(VLOOKUP($A$3,'G7-MSWD'!$A$6:$AM$500,17,FALSE)="",0,VLOOKUP($A$3,'G7-MSWD'!$A$6:$AM$500,17,FALSE))&")")),"NA") -> 1% (25)
A39: Civics EOC
A40: Level of Proficiency at 70% or above | B40: Total # of Students | C40: % of Students Tested | D40: ='G6-8 Matrix'!C22&" ["&'G6-8 Matrix'!C23&"]" -> Overall [40] | F40: ='G6-8 Matrix'!D22&" ["&'G6-8 Matrix'!D23&"]" -> Government Policies and Political Processes [8] | H40: ='G6-8 Matrix'!E22&" ["&'G6-8 Matrix'!E23&"]" -> Organization and Function of Government [13] | J40: ='G6-8 Matrix'!F22&" ["&'G6-8 Matrix'!F23&"]" -> Origins and Purposes of Law and Government [11] | L40: ='G6-8 Matrix'!G22&" ["&'G6-8 Matrix'!G23&"]" -> Roles, Rights, and Responsibilities [8]
D41: Average Score | E41: % Proficient | F41: Average Score | G41: % Proficient | H41: Average Score | I41: % Proficient | J41: Average Score | K41: % Proficient | L41: Average Score | M41: % Proficient
A42: All students | B42: =IFERROR(VLOOKUP(TEXT($A$3,"0000"),Mem_All!$A$2:$O$500,12,FALSE),"NA") -> 27186 | C42: =IFERROR((IF(OR(B42=0,B42="",B42="NA"),"NA",((IF(VLOOKUP($A$3,'Civics EOC'!$A$6:$AM$500,3,FALSE)>=B42,"100% ("&VLOOKUP($A$3,'Civics EOC'!$A$6:$AM$500,3,FALSE)&")",(ROUND((VLOOKUP($A$3,'Civics EOC'!$A$6:$AM$500,3,FALSE)/B42*100),0))&"% ("&VLOOKUP($A$3,'Civics EOC'!$A$6:$AM$500,3,FALSE)&")"))))),"NA") -> 92% (24924) | D42: =IFERROR(IF($C42="NA","NA",VLOOKUP($A$3,'Civics EOC'!$A$14:$AM$500,4,FALSE)),"NA") -> 13.49836302 | E42: =IFERROR((IF($C42="NA","NA",ROUND(VLOOKUP($A$3,'Civics EOC'!$A$6:$AM$500,9,FALSE),0)&"% ("&IF(VLOOKUP($A$3,'Civics EOC'!$A$6:$AM$500,7,FALSE)="",0,VLOOKUP($A$3,'Civics EOC'!$A$6:$AM$500,7,FALSE))&")")),"NA") -> 0% (42) | F42: =IFERROR((IF($C42="NA","NA",VLOOKUP($A$3,'Civics EOC'!$A$14:$AM$500,10,FALSE))),"NA") -> 3.298363095 | G42: =IFERROR((IF($C42="NA","NA",ROUND(VLOOKUP($A$3,'Civics EOC'!$A$14:$AM$500,15,FALSE)*100,0)&"% ("&VLOOKUP($A$3,'Civics EOC'!$A$14:$AM$500,13,FALSE)&")")),"NA") -> 7% (1776) | H42: =IFERROR((IF($D42="NA","NA",VLOOKUP($A$3,'Civics EOC'!$A$14:$AM$500,16,FALSE))),"NA") -> 3.599999905 | I42: =IFERROR((IF($D42="NA","NA",ROUND(VLOOKUP($A$3,'Civics EOC'!$A$14:$AM$500,21,FALSE)*100,0)&"% ("&VLOOKUP($A$3,'Civics EOC'!$A$14:$AM$500,19,FALSE)&")")),"NA") -> 0% (20) | J42: =IFERROR((IF($C42="NA","NA",VLOOKUP($A$3,'Civics EOC'!$A$14:$AM$500,22,FALSE))),"NA") -> 3.700000048 | K42: =IFERROR((IF($C42="NA","NA",ROUND(VLOOKUP($A$3,'Civics EOC'!$A$14:$AM$500,27,FALSE)*100,0)&"% ("&VLOOKUP($A$3,'Civics EOC'!$A$14:$AM$500,25,FALSE)&")")),"NA") -> 2% (528) | L42: =IFERROR((IF($C42="NA","NA",VLOOKUP($A$3,'Civics EOC'!$A$14:$AM$500,28,FALSE))),"NA") -> 2.850818513 | M42: =IFERROR((IF($C42="NA","NA",ROUND(VLOOKUP($A$3,'Civics EOC'!$A$14:$AM$500,33,FALSE)*100,0)&"% ("&VLOOKUP($A$3,'Civics EOC'!$A$14:$AM$500,31,FALSE)&")")),"NA") -> 2% (488)

Sheet Grade 8 Report
A2: Click here to return to the school and sheet selection interface
A3: ='Select School'!B3 -> 9999
A4: =TEXT(A3,"0000")&"-"&VLOOKUP(A3,SchList!$A$2:$B$504,2,FALSE) -> 9999-District
A5: Reading - Grade 8
A6: Level of Proficiency at 70% or above | B6: Total # of Students | C6: % of Students Tested | D6: ='G6-8 Matrix'!C2&"["&'G6-8 Matrix'!C7&"]" -> Overall[33] | F6: ='G6-8 Matrix'!D2&"["&'G6-8 Matrix'!D7&"]" -> Vocabulary[6] | H6: ='G6-8 Matrix'!E2&"["&'G6-8 Matrix'!E7&"]" -> Reading Application[17] | J6: ='G6-8 Matrix'!F2&"["&'G6-8 Matrix'!F7&"]" -> Literary Analysis Fiction/Nonfiction[6] | L6: ='G6-8 Matrix'!G2&"["&'G6-8 Matrix'!G7&"]" -> Informational Text/ Research Process[4]
D7: Average Score | E7: % Proficient | F7: Average Score | G7: % Proficient | H7: Average Score | I7: % Proficient | J7: Average Score | K7: % Proficient | L7: Average Score | M7: % Proficient
A8: All students | B8: =IFERROR(VLOOKUP(TEXT($A$3,"0000"),Mem_All!$A$2:$O$500,12,FALSE),"NA") -> 27186 | C8: =IFERROR((IF(OR(B8=0,B8="",B8="NA"),"NA",((IF(VLOOKUP($A$3,'G8-RALL'!$A$6:$AM$500,3,FALSE)>=B8,"100% ("&VLOOKUP($A$3,'G8-RALL'!$A$6:$AM$500,3,FALSE)&")",(ROUND((VLOOKUP($A$3,'G8-RALL'!$A$6:$AM$500,3,FALSE)/B8*100),0))&"% ("&IF(VLOOKUP($A$3,'G8-RALL'!$A$6:$AM$500,3,FALSE)="",0,VLOOKUP($A$3,'G8-RALL'!$A$6:$AM$500,3,FALSE))&")"))))),"NA") -> 93% (25213) | D8: =IFERROR((IF($C8="NA","NA",VLOOKUP($A$3,'G8-RALL'!$A$6:$AM$500,4,FALSE))),"NA") -> 18.40171737 | E8: =IFERROR((IF($C8="NA","NA",ROUND(VLOOKUP($A$3,'G8-RALL'!$A$6:$AM$500,6,FALSE),0)&"% ("&IF(VLOOKUP($A$3,'G8-RALL'!$A$6:$AM$500,5,FALSE)="",0,VLOOKUP($A$3,'G8-RALL'!$A$6:$AM$500,5,FALSE))&")")),"NA") -> 24% (6071) | F8: =IFERROR((IF($C8="NA","NA",VLOOKUP($A$3,'G8-RALL'!$A$6:$AM$500,7,FALSE))),"NA") -> 3.791579741 | G8: =IFERROR((IF($C8="NA","NA",ROUND(VLOOKUP($A$3,'G8-RALL'!$A$6:$AM$500,9,FALSE),0)&"% ("&IF(VLOOKUP($A$3,'G8-RALL'!$A$6:$AM$500,8,FALSE)="",0,VLOOKUP($A$3,'G8-RALL'!$A$6:$AM$500,8,FALSE))&")")),"NA") -> 34% (8673) | H8: =IFERROR((IF($C8="NA","NA",VLOOKUP($A$3,'G8-RALL'!$A$6:$AM$500,10,FALSE))),"NA") -> 9.511069686 | I8: =IFERROR((IF($C8="NA","NA",ROUND(VLOOKUP($A$3,'G8-RALL'!$A$6:$AM$500,12,FALSE),0)&"% ("&IF(VLOOKUP($A$3,'G8-RALL'!$A$6:$AM$500,11,FALSE)="",0,VLOOKUP($A$3,'G8-RALL'!$A$6:$AM$500,11,FALSE))&")")),"NA") -> 32% (8118) | J8: =IFERROR((IF($C8="NA","NA",VLOOKUP($A$3,'G8-RALL'!$A$6:$AM$500,13,FALSE))),"NA") -> 3.019656526 | K8: =IFERROR((IF($C8="NA","NA",ROUND(VLOOKUP($A$3,'G8-RALL'!$A$6:$AM$500,15,FALSE),0)&"% ("&IF(VLOOKUP($A$3,'G8-RALL'!$A$6:$AM$500,14,FALSE)="",0,VLOOKUP($A$3,'G8-RALL'!$A$6:$AM$500,14,FALSE))&")")),"NA") -> 17% (4369) | L8: =IFERROR((IF($C8="NA","NA",VLOOKUP($A$3,'G8-RALL'!$A$6:$AM$500,16,FALSE))),"NA") -> 2.081735613 | M8: =IFERROR((IF($C8="NA","NA",ROUND(VLOOKUP($A$3,'G8-RALL'!$A$6:$AM$500,18,FALSE),0)&"% ("&IF(VLOOKUP($A$3,'G8-RALL'!$A$6:$AM$500,17,FALSE)="",0,VLOOKUP($A$3,'G8-RALL'!$A$6:$AM$500,17,FALSE))&")")),"NA") -> 39% (9775)
A9: FCAT Level 1 | B9: =IFERROR(VLOOKUP(TEXT($A$3,"0000"),MEM_RL1!$A$2:$O$500,9,FALSE),"NA") -> 5258 | C9: =IFERROR((IF(OR(B9=0,B9="",B9="NA"),"NA",((IF(VLOOKUP($A$3,'G8-RL1'!$A$6:$AM$500,3,FALSE)>=B9,"100% ("&VLOOKUP($A$3,'G8-RL1'!$A$6:$AM$500,3,FALSE)&")",(ROUND((VLOOKUP($A$3,'G8-RL1'!$A$6:$AM$500,3,FALSE)/B9*100),0))&"% ("&IF(VLOOKUP($A$3,'G8-RL1'!$A$6:$AM$500,3,FALSE)="",0,VLOOKUP($A$3,'G8-RL1'!$A$6:$AM$500,3,FALSE))&")"))))),"NA") -> 94% (4919) | D9: =IFERROR((IF($C9="NA","NA",VLOOKUP($A$3,'G8-RL1'!$A$6:$AM$500,4,FALSE))),"NA") -> 11.87143728 | E9: =IFERROR((IF($C9="NA","NA",ROUND(VLOOKUP($A$3,'G8-RL1'!$A$6:$AM$500,6,FALSE),0)&"% ("&IF(VLOOKUP($A$3,'G8-RL1'!$A$6:$AM$500,5,FALSE)="",0,VLOOKUP($A$3,'G8-RL1'!$A$6:$AM$500,5,FALSE))&")")),"NA") -> 0% (11) | F9: =IFERROR((IF($C9="NA","NA",VLOOKUP($A$3,'G8-RL1'!$A$6:$AM$500,7,FALSE))),"NA") -> 2.654055702 | G9: =IFERROR((IF($C9="NA","NA",ROUND(VLOOKUP($A$3,'G8-RL1'!$A$6:$AM$500,9,FALSE),0)&"% ("&IF(VLOOKUP($A$3,'G8-RL1'!$A$6:$AM$500,8,FALSE)="",0,VLOOKUP($A$3,'G8-RL1'!$A$6:$AM$500,8,FALSE))&")")),"NA") -> 7% (359) | H9: =IFERROR((IF($C9="NA","NA",VLOOKUP($A$3,'G8-RL1'!$A$6:$AM$500,10,FALSE))),"NA") -> 6.010042692 | I9: =IFERROR((IF($C9="NA","NA",ROUND(VLOOKUP($A$3,'G8-RL1'!$A$6:$AM$500,12,FALSE),0)&"% ("&IF(VLOOKUP($A$3,'G8-RL1'!$A$6:$AM$500,11,FALSE)="",0,VLOOKUP($A$3,'G8-RL1'!$A$6:$AM$500,11,FALSE))&")")),"NA") -> 1% (56) | J9: =IFERROR((IF($C9="NA","NA",VLOOKUP($A$3,'G8-RL1'!$A$6:$AM$500,13,FALSE))),"NA") -> 1.909005896 | K9: =IFERROR((IF($C9="NA","NA",ROUND(VLOOKUP($A$3,'G8-RL1'!$A$6:$AM$500,15,FALSE),0)&"% ("&IF(VLOOKUP($A$3,'G8-RL1'!$A$6:$AM$500,14,FALSE)="",0,VLOOKUP($A$3,'G8-RL1'!$A$6:$AM$500,14,FALSE))&")")),"NA") -> 2% (103) | L9: =IFERROR((IF($C9="NA","NA",VLOOKUP($A$3,'G8-RL1'!$A$6:$AM$500,16,FALSE))),"NA") -> 1.298556617 | M9: =IFERROR((IF($C9="NA","NA",ROUND(VLOOKUP($A$3,'G8-RL1'!$A$6:$AM$500,18,FALSE),0)&"% ("&IF(VLOOKUP($A$3,'G8-RL1'!$A$6:$AM$500,17,FALSE)="",0,VLOOKUP($A$3,'G8-RL1'!$A$6:$AM$500,17,FALSE))&")")),"NA") -> 11% (551)
A10: FCAT Level 2 | B10: =IFERROR(VLOOKUP(TEXT($A$3,"0000"),MEM_RL2!$A$2:$O$500,9,FALSE),"NA") -> 6484 | C10: =IFERROR((IF(OR(B10=0,B10="",B10="NA"),"NA",((IF(VLOOKUP($A$3,'G8-RL2'!$A$6:$AM$500,3,FALSE)>=B10,"100% ("&VLOOKUP($A$3,'G8-RL2'!$A$6:$AM$500,3,FALSE)&")",(ROUND((VLOOKUP($A$3,'G8-RL2'!$A$6:$AM$500,3,FALSE)/B10*100),0))&"% ("&IF(VLOOKUP($A$3,'G8-RL2'!$A$6:$AM$500,3,FALSE)="",0,VLOOKUP($A$3,'G8-RL2'!$A$6:$AM$500,3,FALSE))&")"))))),"NA") -> 94% (6127) | D10: =IFERROR((IF($C10="NA","NA",VLOOKUP($A$3,'G8-RL2'!$A$6:$AM$500,4,FALSE))),"NA") -> 15.91521136 | E10: =IFERROR((IF($C10="NA","NA",ROUND(VLOOKUP($A$3,'G8-RL2'!$A$6:$AM$500,6,FALSE),0)&"% ("&IF(VLOOKUP($A$3,'G8-RL2'!$A$6:$AM$500,5,FALSE)="",0,VLOOKUP($A$3,'G8-RL2'!$A$6:$AM$500,5,FALSE))&")")),"NA") -> 4% (221) | F10: =IFERROR((IF($C10="NA","NA",VLOOKUP($A$3,'G8-RL2'!$A$6:$AM$500,7,FALSE))),"NA") -> 3.448327077 | G10: =IFERROR((IF($C10="NA","NA",ROUND(VLOOKUP($A$3,'G8-RL2'!$A$6:$AM$500,9,FALSE),0)&"% ("&IF(VLOOKUP($A$3,'G8-RL2'!$A$6:$AM$500,8,FALSE)="",0,VLOOKUP($A$3,'G8-RL2'!$A$6:$AM$500,8,FALSE))&")")),"NA") -> 21% (1263) | H10: =IFERROR((IF($C10="NA","NA",VLOOKUP($A$3,'G8-RL2'!$A$6:$AM$500,10,FALSE))),"NA") -> 8.127925575 | I10: =IFERROR((IF($C10="NA","NA",ROUND(VLOOKUP($A$3,'G8-RL2'!$A$6:$AM$500,12,FALSE),0)&"% ("&IF(VLOOKUP($A$3,'G8-RL2'!$A$6:$AM$500,11,FALSE)="",0,VLOOKUP($A$3,'G8-RL2'!$A$6:$AM$500,11,FALSE))&")")),"NA") -> 10% (601) | J10: =IFERROR((IF($C10="NA","NA",VLOOKUP($A$3,'G8-RL2'!$A$6:$AM$500,13,FALSE))),"NA") -> 2.637783581 | K10: =IFERROR((IF($C10="NA","NA",ROUND(VLOOKUP($A$3,'G8-RL2'!$A$6:$AM$500,15,FALSE),0)&"% ("&IF(VLOOKUP($A$3,'G8-RL2'!$A$6:$AM$500,14,FALSE)="",0,VLOOKUP($A$3,'G8-RL2'!$A$6:$AM$500,14,FALSE))&")")),"NA") -> 8% (473) | L10: =IFERROR((IF($C10="NA","NA",VLOOKUP($A$3,'G8-RL2'!$A$6:$AM$500,16,FALSE))),"NA") -> 1.699347152 | M10: =IFERROR((IF($C10="NA","NA",ROUND(VLOOKUP($A$3,'G8-RL2'!$A$6:$AM$500,18,FALSE),0)&"% ("&IF(VLOOKUP($A$3,'G8-RL2'!$A$6:$AM$500,17,FALSE)="",0,VLOOKUP($A$3,'G8-RL2'!$A$6:$AM$500,17,FALSE))&")")),"NA") -> 24% (1440)
A11: FCAT Level 3 | B11: =IFERROR(VLOOKUP(TEXT($A$3,"0000"),MEM_RL3!$A$2:$O$500,9,FALSE),"NA") -> 7385 | C11: =IFERROR((IF(OR(B11=0,B11="",B11="NA"),"NA",((IF(VLOOKUP($A$3,'G8-RL3'!$A$6:$AM$500,3,FALSE)>=B11,"100% ("&VLOOKUP($A$3,'G8-RL3'!$A$6:$AM$500,3,FALSE)&")",(ROUND((VLOOKUP($A$3,'G8-RL3'!$A$6:$AM$500,3,FALSE)/B11*100),0))&"% ("&IF(VLOOKUP($A$3,'G8-RL3'!$A$6:$AM$500,3,FALSE)="",0,VLOOKUP($A$3,'G8-RL3'!$A$6:$AM$500,3,FALSE))&")"))))),"NA") -> 95% (7006) | D11: =IFERROR((IF($C11="NA","NA",VLOOKUP($A$3,'G8-RL3'!$A$6:$AM$500,4,FALSE))),"NA") -> 19.79964316 | E11: =IFERROR((IF($C11="NA","NA",ROUND(VLOOKUP($A$3,'G8-RL3'!$A$6:$AM$500,6,FALSE),0)&"% ("&IF(VLOOKUP($A$3,'G8-RL3'!$A$6:$AM$500,5,FALSE)="",0,VLOOKUP($A$3,'G8-RL3'!$A$6:$AM$500,5,FALSE))&")")),"NA") -> 21% (1438) | F11: =IFERROR((IF($C11="NA","NA",VLOOKUP($A$3,'G8-RL3'!$A$6:$AM$500,7,FALSE))),"NA") -> 4.070453897 | G11: =IFERROR((IF($C11="NA","NA",ROUND(VLOOKUP($A$3,'G8-RL3'!$A$6:$AM$500,9,FALSE),0)&"% ("&IF(VLOOKUP($A$3,'G8-RL3'!$A$6:$AM$500,8,FALSE)="",0,VLOOKUP($A$3,'G8-RL3'!$A$6:$AM$500,8,FALSE))&")")),"NA") -> 39% (2724) | H11: =IFERROR((IF($C11="NA","NA",VLOOKUP($A$3,'G8-RL3'!$A$6:$AM$500,10,FALSE))),"NA") -> 10.24474736 | I11: =IFERROR((IF($C11="NA","NA",ROUND(VLOOKUP($A$3,'G8-RL3'!$A$6:$AM$500,12,FALSE),0)&"% ("&IF(VLOOKUP($A$3,'G8-RL3'!$A$6:$AM$500,11,FALSE)="",0,VLOOKUP($A$3,'G8-RL3'!$A$6:$AM$500,11,FALSE))&")")),"NA") -> 35% (2444) | J11: =IFERROR((IF($C11="NA","NA",VLOOKUP($A$3,'G8-RL3'!$A$6:$AM$500,13,FALSE))),"NA") -> 3.264901513 | K11: =IFERROR((IF($C11="NA","NA",ROUND(VLOOKUP($A$3,'G8-RL3'!$A$6:$AM$500,15,FALSE),0)&"% ("&IF(VLOOKUP($A$3,'G8-RL3'!$A$6:$AM$500,14,FALSE)="",0,VLOOKUP($A$3,'G8-RL3'!$A$6:$AM$500,14,FALSE))&")")),"NA") -> 18% (1251) | L11: =IFERROR((IF($C11="NA","NA",VLOOKUP($A$3,'G8-RL3'!$A$6:$AM$500,16,FALSE))),"NA") -> 2.216785612 | M11: =IFERROR((IF($C11="NA","NA",ROUND(VLOOKUP($A$3,'G8-RL3'!$A$6:$AM$500,18,FALSE),0)&"% ("&IF(VLOOKUP($A$3,'G8-RL3'!$A$6:$AM$500,17,FALSE)="",0,VLOOKUP($A$3,'G8-RL3'!$A$6:$AM$500,17,FALSE))&")")),"NA") -> 43% (3001)
A12: FCAT Level 4 | B12: =IFERROR(VLOOKUP(TEXT($A$3,"0000"),MEM_RL4!$A$2:$O$500,9,FALSE),"NA") -> 4464 | C12: =IFERROR((IF(OR(B12=0,B12="",B12="NA"),"NA",((IF(VLOOKUP($A$3,'G8-RL4'!$A$6:$AM$500,3,FALSE)>=B12,"100% ("&VLOOKUP($A$3,'G8-RL4'!$A$6:$AM$500,3,FALSE)&")",(ROUND((VLOOKUP($A$3,'G8-RL4'!$A$6:$AM$500,3,FALSE)/B12*100),0))&"% ("&IF(VLOOKUP($A$3,'G8-RL4'!$A$6:$AM$500,3,FALSE)="",0,VLOOKUP($A$3,'G8-RL4'!$A$6:$AM$500,3,FALSE))&")"))))),"NA") -> 97% (4313) | D12: =IFERROR((IF($C12="NA","NA",VLOOKUP($A$3,'G8-RL4'!$A$6:$AM$500,4,FALSE))),"NA") -> 23.62817065 | E12: =IFERROR((IF($C12="NA","NA",ROUND(VLOOKUP($A$3,'G8-RL4'!$A$6:$AM$500,6,FALSE),0)&"% ("&IF(VLOOKUP($A$3,'G8-RL4'!$A$6:$AM$500,5,FALSE)="",0,VLOOKUP($A$3,'G8-RL4'!$A$6:$AM$500,5,FALSE))&")")),"NA") -> 57% (2466) | F12: =IFERROR((IF($C12="NA","NA",VLOOKUP($A$3,'G8-RL4'!$A$6:$AM$500,7,FALSE))),"NA") -> 4.619823789 | G12: =IFERROR((IF($C12="NA","NA",ROUND(VLOOKUP($A$3,'G8-RL4'!$A$6:$AM$500,9,FALSE),0)&"% ("&IF(VLOOKUP($A$3,'G8-RL4'!$A$6:$AM$500,8,FALSE)="",0,VLOOKUP($A$3,'G8-RL4'!$A$6:$AM$500,8,FALSE))&")")),"NA") -> 59% (2547) | H12: =IFERROR((IF($C12="NA","NA",VLOOKUP($A$3,'G8-RL4'!$A$6:$AM$500,10,FALSE))),"NA") -> 12.3693253 | I12: =IFERROR((IF($C12="NA","NA",ROUND(VLOOKUP($A$3,'G8-RL4'!$A$6:$AM$500,12,FALSE),0)&"% ("&IF(VLOOKUP($A$3,'G8-RL4'!$A$6:$AM$500,11,FALSE)="",0,VLOOKUP($A$3,'G8-RL4'!$A$6:$AM$500,11,FALSE))&")")),"NA") -> 68% (2947) | J12: =IFERROR((IF($C12="NA","NA",VLOOKUP($A$3,'G8-RL4'!$A$6:$AM$500,13,FALSE))),"NA") -> 3.87027591 | K12: =IFERROR((IF($C12="NA","NA",ROUND(VLOOKUP($A$3,'G8-RL4'!$A$6:$AM$500,15,FALSE),0)&"% ("&IF(VLOOKUP($A$3,'G8-RL4'!$A$6:$AM$500,14,FALSE)="",0,VLOOKUP($A$3,'G8-RL4'!$A$6:$AM$500,14,FALSE))&")")),"NA") -> 32% (1396) | L12: =IFERROR((IF($C12="NA","NA",VLOOKUP($A$3,'G8-RL4'!$A$6:$AM$500,16,FALSE))),"NA") -> 2.768931138 | M12: =IFERROR((IF($C12="NA","NA",ROUND(VLOOKUP($A$3,'G8-RL4'!$A$6:$AM$500,18,FALSE),0)&"% ("&IF(VLOOKUP($A$3,'G8-RL4'!$A$6:$AM$500,17,FALSE)="",0,VLOOKUP($A$3,'G8-RL4'!$A$6:$AM$500,17,FALSE))&")")),"NA") -> 65% (2821)
A13: FCAT Level 5 | B13: =IFERROR(VLOOKUP(TEXT($A$3,"0000"),MEM_RL5!$A$2:$O$500,8,FALSE),"NA") -> 2288 | C13: =IFERROR((IF(OR(B13=0,B13="",B13="NA"),"NA",((IF(VLOOKUP($A$3,'G8-RL5'!$A$6:$AM$500,3,FALSE)>=B13,"100% ("&VLOOKUP($A$3,'G8-RL5'!$A$6:$AM$500,3,FALSE)&")",(ROUND((VLOOKUP($A$3,'G8-RL5'!$A$6:$AM$500,3,FALSE)/B13*100),0))&"% ("&IF(VLOOKUP($A$3,'G8-RL5'!$A$6:$AM$500,3,FALSE)="",0,VLOOKUP($A$3,'G8-RL5'!$A$6:$AM$500,3,FALSE))&")"))))),"NA") -> 97% (2210) | D13: =IFERROR((IF($C13="NA","NA",VLOOKUP($A$3,'G8-RL5'!$A$6:$AM$500,4,FALSE))),"NA") -> 26.41579186 | E13: =IFERROR((IF($C13="NA","NA",ROUND(VLOOKUP($A$3,'G8-RL5'!$A$6:$AM$500,6,FALSE),0)&"% ("&IF(VLOOKUP($A$3,'G8-RL5'!$A$6:$AM$500,5,FALSE)="",0,VLOOKUP($A$3,'G8-RL5'!$A$6:$AM$500,5,FALSE))&")")),"NA") -> 84% (1859) | F13: =IFERROR((IF($C13="NA","NA",VLOOKUP($A$3,'G8-RL5'!$A$6:$AM$500,7,FALSE))),"NA") -> 5.016334842 | G13: =IFERROR((IF($C13="NA","NA",ROUND(VLOOKUP($A$3,'G8-RL5'!$A$6:$AM$500,9,FALSE),0)&"% ("&IF(VLOOKUP($A$3,'G8-RL5'!$A$6:$AM$500,8,FALSE)="",0,VLOOKUP($A$3,'G8-RL5'!$A$6:$AM$500,8,FALSE))&")")),"NA") -> 75% (1664) | H13: =IFERROR((IF($C13="NA","NA",VLOOKUP($A$3,'G8-RL5'!$A$6:$AM$500,10,FALSE))),"NA") -> 13.88040724 | I13: =IFERROR((IF($C13="NA","NA",ROUND(VLOOKUP($A$3,'G8-RL5'!$A$6:$AM$500,12,FALSE),0)&"% ("&IF(VLOOKUP($A$3,'G8-RL5'!$A$6:$AM$500,11,FALSE)="",0,VLOOKUP($A$3,'G8-RL5'!$A$6:$AM$500,11,FALSE))&")")),"NA") -> 89% (1967) | J13: =IFERROR((IF($C13="NA","NA",VLOOKUP($A$3,'G8-RL5'!$A$6:$AM$500,13,FALSE))),"NA") -> 4.351176471 | K13: =IFERROR((IF($C13="NA","NA",ROUND(VLOOKUP($A$3,'G8-RL5'!$A$6:$AM$500,15,FALSE),0)&"% ("&IF(VLOOKUP($A$3,'G8-RL5'!$A$6:$AM$500,14,FALSE)="",0,VLOOKUP($A$3,'G8-RL5'!$A$6:$AM$500,14,FALSE))&")")),"NA") -> 49% (1089) | L13: =IFERROR((IF($C13="NA","NA",VLOOKUP($A$3,'G8-RL5'!$A$6:$AM$500,16,FALSE))),"NA") -> 3.172579186 | M13: =IFERROR((IF($C13="NA","NA",ROUND(VLOOKUP($A$3,'G8-RL5'!$A$6:$AM$500,18,FALSE),0)&"% ("&IF(VLOOKUP($A$3,'G8-RL5'!$A$6:$AM$500,17,FALSE)="",0,VLOOKUP($A$3,'G8-RL5'!$A$6:$AM$500,17,FALSE))&")")),"NA") -> 82% (1815)
A14: White | B14: =IFERROR(VLOOKUP(TEXT($A$3,"0000"),MEM_W!$A$2:$O$500,12,FALSE),"NA") -> 2285 | C14: =IFERROR((IF(OR(B14=0,B14="",B14="NA"),"NA",((IF(VLOOKUP($A$3,'G8-RW'!$A$6:$AM$500,3,FALSE)>=B14,"100% ("&VLOOKUP($A$3,'G8-RW'!$A$6:$AM$500,3,FALSE)&")",(ROUND((VLOOKUP($A$3,'G8-RW'!$A$6:$AM$500,3,FALSE)/B14*100),0))&"% ("&IF(VLOOKUP($A$3,'G8-RW'!$A$6:$AM$500,3,FALSE)="",0,VLOOKUP($A$3,'G8-RW'!$A$6:$AM$500,3,FALSE))&")"))))),"NA") -> 91% (2084) | D14: =IFERROR((IF($C14="NA","NA",VLOOKUP($A$3,'G8-RW'!$A$6:$AM$500,4,FALSE))),"NA") -> 21.55772553 | E14: =IFERROR((IF($C14="NA","NA",ROUND(VLOOKUP($A$3,'G8-RW'!$A$6:$AM$500,6,FALSE),0)&"% ("&IF(VLOOKUP($A$3,'G8-RW'!$A$6:$AM$500,5,FALSE)="",0,VLOOKUP($A$3,'G8-RW'!$A$6:$AM$500,5,FALSE))&")")),"NA") -> 43% (900) | F14: =IFERROR((IF($C14="NA","NA",VLOOKUP($A$3,'G8-RW'!$A$6:$AM$500,7,FALSE))),"NA") -> 4.356429942 | G14: =IFERROR((IF($C14="NA","NA",ROUND(VLOOKUP($A$3,'G8-RW'!$A$6:$AM$500,9,FALSE),0)&"% ("&IF(VLOOKUP($A$3,'G8-RW'!$A$6:$AM$500,8,FALSE)="",0,VLOOKUP($A$3,'G8-RW'!$A$6:$AM$500,8,FALSE))&")")),"NA") -> 52% (1080) | H14: =IFERROR((IF($C14="NA","NA",VLOOKUP($A$3,'G8-RW'!$A$6:$AM$500,10,FALSE))),"NA") -> 11.2202975 | I14: =IFERROR((IF($C14="NA","NA",ROUND(VLOOKUP($A$3,'G8-RW'!$A$6:$AM$500,12,FALSE),0)&"% ("&IF(VLOOKUP($A$3,'G8-RW'!$A$6:$AM$500,11,FALSE)="",0,VLOOKUP($A$3,'G8-RW'!$A$6:$AM$500,11,FALSE))&")")),"NA") -> 53% (1109) | J14: =IFERROR((IF($C14="NA","NA",VLOOKUP($A$3,'G8-RW'!$A$6:$AM$500,13,FALSE))),"NA") -> 3.536180422 | K14: =IFERROR((IF($C14="NA","NA",ROUND(VLOOKUP($A$3,'G8-RW'!$A$6:$AM$500,15,FALSE),0)&"% ("&IF(VLOOKUP($A$3,'G8-RW'!$A$6:$AM$500,14,FALSE)="",0,VLOOKUP($A$3,'G8-RW'!$A$6:$AM$500,14,FALSE))&")")),"NA") -> 28% (574) | L14: =IFERROR((IF($C14="NA","NA",VLOOKUP($A$3,'G8-RW'!$A$6:$AM$500,16,FALSE))),"NA") -> 2.466602687 | M14: =IFERROR((IF($C14="NA","NA",ROUND(VLOOKUP($A$3,'G8-RW'!$A$6:$AM$500,18,FALSE),0)&"% ("&IF(VLOOKUP($A$3,'G8-RW'!$A$6:$AM$500,17,FALSE)="",0,VLOOKUP($A$3,'G8-RW'!$A$6:$AM$500,17,FALSE))&")")),"NA") -> 54% (1118)
A15: Black | B15: =IFERROR(VLOOKUP(TEXT($A$3,"0000"),MEM_B!$A$2:$O$500,12,FALSE),"NA") -> 6251 | C15: =IFERROR((IF(OR(B15=0,B15="",B15="NA"),"NA",((IF(VLOOKUP($A$3,'G8-RB'!$A$6:$AM$500,3,FALSE)>=B15,"100% ("&VLOOKUP($A$3,'G8-RB'!$A$6:$AM$500,3,FALSE)&")",(ROUND((VLOOKUP($A$3,'G8-RB'!$A$6:$AM$500,3,FALSE)/B15*100),0))&"% ("&IF(VLOOKUP($A$3,'G8-RB'!$A$6:$AM$500,3,FALSE)="",0,VLOOKUP($A$3,'G8-RB'!$A$6:$AM$500,3,FALSE))&")"))))),"NA") -> 92% (5737) | D15: =IFERROR((IF($C15="NA","NA",VLOOKUP($A$3,'G8-RB'!$A$6:$AM$500,4,FALSE))),"NA") -> 16.66144326 | E15: =IFERROR((IF($C15="NA","NA",ROUND(VLOOKUP($A$3,'G8-RB'!$A$6:$AM$500,6,FALSE),0)&"% ("&IF(VLOOKUP($A$3,'G8-RB'!$A$6:$AM$500,5,FALSE)="",0,VLOOKUP($A$3,'G8-RB'!$A$6:$AM$500,5,FALSE))&")")),"NA") -> 13% (750) | F15: =IFERROR((IF($C15="NA","NA",VLOOKUP($A$3,'G8-RB'!$A$6:$AM$500,7,FALSE))),"NA") -> 3.544884086 | G15: =IFERROR((IF($C15="NA","NA",ROUND(VLOOKUP($A$3,'G8-RB'!$A$6:$AM$500,9,FALSE),0)&"% ("&IF(VLOOKUP($A$3,'G8-RB'!$A$6:$AM$500,8,FALSE)="",0,VLOOKUP($A$3,'G8-RB'!$A$6:$AM$500,8,FALSE))&")")),"NA") -> 26% (1490) | H15: =IFERROR((IF($C15="NA","NA",VLOOKUP($A$3,'G8-RB'!$A$6:$AM$500,10,FALSE))),"NA") -> 8.524333275 | I15: =IFERROR((IF($C15="NA","NA",ROUND(VLOOKUP($A$3,'G8-RB'!$A$6:$AM$500,12,FALSE),0)&"% ("&IF(VLOOKUP($A$3,'G8-RB'!$A$6:$AM$500,11,FALSE)="",0,VLOOKUP($A$3,'G8-RB'!$A$6:$AM$500,11,FALSE))&")")),"NA") -> 20% (1121) | J15: =IFERROR((IF($C15="NA","NA",VLOOKUP($A$3,'G8-RB'!$A$6:$AM$500,13,FALSE))),"NA") -> 2.70463657 | K15: =IFERROR((IF($C15="NA","NA",ROUND(VLOOKUP($A$3,'G8-RB'!$A$6:$AM$500,15,FALSE),0)&"% ("&IF(VLOOKUP($A$3,'G8-RB'!$A$6:$AM$500,14,FALSE)="",0,VLOOKUP($A$3,'G8-RB'!$A$6:$AM$500,14,FALSE))&")")),"NA") -> 12% (668) | L15: =IFERROR((IF($C15="NA","NA",VLOOKUP($A$3,'G8-RB'!$A$6:$AM$500,16,FALSE))),"NA") -> 1.879013422 | M15: =IFERROR((IF($C15="NA","NA",ROUND(VLOOKUP($A$3,'G8-RB'!$A$6:$AM$500,18,FALSE),0)&"% ("&IF(VLOOKUP($A$3,'G8-RB'!$A$6:$AM$500,17,FALSE)="",0,VLOOKUP($A$3,'G8-RB'!$A$6:$AM$500,17,FALSE))&")")),"NA") -> 31% (1784)
A16: Hispanic | B16: =IFERROR(VLOOKUP(TEXT($A$3,"0000"),MEM_H!$A$2:$O$500,12,FALSE),"NA") -> 18258 | C16: =IFERROR((IF(OR(B16=0,B16="",B16="NA"),"NA",((IF(VLOOKUP($A$3,'G8-RH'!$A$6:$AM$500,3,FALSE)>=B16,"100% ("&VLOOKUP($A$3,'G8-RH'!$A$6:$AM$500,3,FALSE)&")",(ROUND((VLOOKUP($A$3,'G8-RH'!$A$6:$AM$500,3,FALSE)/B16*100),0))&"% ("&IF(VLOOKUP($A$3,'G8-RH'!$A$6:$AM$500,3,FALSE)="",0,VLOOKUP($A$3,'G8-RH'!$A$6:$AM$500,3,FALSE))&")"))))),"NA") -> 93% (17019) | D16: =IFERROR((IF($C16="NA","NA",VLOOKUP($A$3,'G8-RH'!$A$6:$AM$500,4,FALSE))),"NA") -> 18.51624067 | E16: =IFERROR((IF($C16="NA","NA",ROUND(VLOOKUP($A$3,'G8-RH'!$A$6:$AM$500,6,FALSE),0)&"% ("&IF(VLOOKUP($A$3,'G8-RH'!$A$6:$AM$500,5,FALSE)="",0,VLOOKUP($A$3,'G8-RH'!$A$6:$AM$500,5,FALSE))&")")),"NA") -> 25% (4236) | F16: =IFERROR((IF($C16="NA","NA",VLOOKUP($A$3,'G8-RH'!$A$6:$AM$500,7,FALSE))),"NA") -> 3.796004466 | G16: =IFERROR((IF($C16="NA","NA",ROUND(VLOOKUP($A$3,'G8-RH'!$A$6:$AM$500,9,FALSE),0)&"% ("&IF(VLOOKUP($A$3,'G8-RH'!$A$6:$AM$500,8,FALSE)="",0,VLOOKUP($A$3,'G8-RH'!$A$6:$AM$500,8,FALSE))&")")),"NA") -> 35% (5906) | H16: =IFERROR((IF($C16="NA","NA",VLOOKUP($A$3,'G8-RH'!$A$6:$AM$500,10,FALSE))),"NA") -> 9.593119455 | I16: =IFERROR((IF($C16="NA","NA",ROUND(VLOOKUP($A$3,'G8-RH'!$A$6:$AM$500,12,FALSE),0)&"% ("&IF(VLOOKUP($A$3,'G8-RH'!$A$6:$AM$500,11,FALSE)="",0,VLOOKUP($A$3,'G8-RH'!$A$6:$AM$500,11,FALSE))&")")),"NA") -> 33% (5661) | J16: =IFERROR((IF($C16="NA","NA",VLOOKUP($A$3,'G8-RH'!$A$6:$AM$500,13,FALSE))),"NA") -> 3.052682296 | K16: =IFERROR((IF($C16="NA","NA",ROUND(VLOOKUP($A$3,'G8-RH'!$A$6:$AM$500,15,FALSE),0)&"% ("&IF(VLOOKUP($A$3,'G8-RH'!$A$6:$AM$500,14,FALSE)="",0,VLOOKUP($A$3,'G8-RH'!$A$6:$AM$500,14,FALSE))&")")),"NA") -> 18% (3017) | L16: =IFERROR((IF($C16="NA","NA",VLOOKUP($A$3,'G8-RH'!$A$6:$AM$500,16,FALSE))),"NA") -> 2.087678477 | M16: =IFERROR((IF($C16="NA","NA",ROUND(VLOOKUP($A$3,'G8-RH'!$A$6:$AM$500,18,FALSE),0)&"% ("&IF(VLOOKUP($A$3,'G8-RH'!$A$6:$AM$500,17,FALSE)="",0,VLOOKUP($A$3,'G8-RH'!$A$6:$AM$500,17,FALSE))&")")),"NA") -> 39% (6663)
A17: Asian | B17: =IFERROR(VLOOKUP(TEXT($A$3,"0000"),MEM_A!$A$2:$O$500,12,FALSE),"NA") -> 300 | C17: =IFERROR((IF(OR(B17=0,B17="",B17="NA"),"NA",((IF(VLOOKUP($A$3,'G8-RA'!$A$6:$AM$500,3,FALSE)>=B17,"100% ("&VLOOKUP($A$3,'G8-RA'!$A$6:$AM$500,3,FALSE)&")",(ROUND((VLOOKUP($A$3,'G8-RA'!$A$6:$AM$500,3,FALSE)/B17*100),0))&"% ("&IF(VLOOKUP($A$3,'G8-RA'!$A$6:$AM$500,3,FALSE)="",0,VLOOKUP($A$3,'G8-RA'!$A$6:$AM$500,3,FALSE))&")"))))),"NA") -> 94% (281) | D17: =IFERROR((IF($C17="NA","NA",VLOOKUP($A$3,'G8-RA'!$A$6:$AM$500,4,FALSE))),"NA") -> 22.5658363 | E17: =IFERROR((IF($C17="NA","NA",ROUND(VLOOKUP($A$3,'G8-RA'!$A$6:$AM$500,6,FALSE),0)&"% ("&IF(VLOOKUP($A$3,'G8-RA'!$A$6:$AM$500,5,FALSE)="",0,VLOOKUP($A$3,'G8-RA'!$A$6:$AM$500,5,FALSE))&")")),"NA") -> 52% (145) | F17: =IFERROR((IF($C17="NA","NA",VLOOKUP($A$3,'G8-RA'!$A$6:$AM$500,7,FALSE))),"NA") -> 4.425266904 | G17: =IFERROR((IF($C17="NA","NA",ROUND(VLOOKUP($A$3,'G8-RA'!$A$6:$AM$500,9,FALSE),0)&"% ("&IF(VLOOKUP($A$3,'G8-RA'!$A$6:$AM$500,8,FALSE)="",0,VLOOKUP($A$3,'G8-RA'!$A$6:$AM$500,8,FALSE))&")")),"NA") -> 53% (150) | H17: =IFERROR((IF($C17="NA","NA",VLOOKUP($A$3,'G8-RA'!$A$6:$AM$500,10,FALSE))),"NA") -> 11.89074733 | I17: =IFERROR((IF($C17="NA","NA",ROUND(VLOOKUP($A$3,'G8-RA'!$A$6:$AM$500,12,FALSE),0)&"% ("&IF(VLOOKUP($A$3,'G8-RA'!$A$6:$AM$500,11,FALSE)="",0,VLOOKUP($A$3,'G8-RA'!$A$6:$AM$500,11,FALSE))&")")),"NA") -> 64% (181) | J17: =IFERROR((IF($C17="NA","NA",VLOOKUP($A$3,'G8-RA'!$A$6:$AM$500,13,FALSE))),"NA") -> 3.589679715 | K17: =IFERROR((IF($C17="NA","NA",ROUND(VLOOKUP($A$3,'G8-RA'!$A$6:$AM$500,15,FALSE),0)&"% ("&IF(VLOOKUP($A$3,'G8-RA'!$A$6:$AM$500,14,FALSE)="",0,VLOOKUP($A$3,'G8-RA'!$A$6:$AM$500,14,FALSE))&")")),"NA") -> 28% (79) | L17: =IFERROR((IF($C17="NA","NA",VLOOKUP($A$3,'G8-RA'!$A$6:$AM$500,16,FALSE))),"NA") -> 2.654092527 | M17: =IFERROR((IF($C17="NA","NA",ROUND(VLOOKUP($A$3,'G8-RA'!$A$6:$AM$500,18,FALSE),0)&"% ("&IF(VLOOKUP($A$3,'G8-RA'!$A$6:$AM$500,17,FALSE)="",0,VLOOKUP($A$3,'G8-RA'!$A$6:$AM$500,17,FALSE))&")")),"NA") -> 59% (165)
A18: Am. Indian | B18: =IFERROR(VLOOKUP(TEXT($A$3,"0000"),MEM_I!$A$2:$O$500,12,FALSE),"NA") -> 22 | C18: =IFERROR((IF(OR(B18=0,B18="",B18="NA"),"NA",((IF(VLOOKUP($A$3,'G8-RI'!$A$6:$AM$500,3,FALSE)>=B18,"100% ("&VLOOKUP($A$3,'G8-RI'!$A$6:$AM$500,3,FALSE)&")",(ROUND((VLOOKUP($A$3,'G8-RI'!$A$6:$AM$500,3,FALSE)/B18*100),0))&"% ("&IF(VLOOKUP($A$3,'G8-RI'!$A$6:$AM$500,3,FALSE)="",0,VLOOKUP($A$3,'G8-RI'!$A$6:$AM$500,3,FALSE))&")"))))),"NA") -> 86% (19) | D18: =IFERROR((IF($C18="NA","NA",VLOOKUP($A$3,'G8-RI'!$A$6:$AM$500,4,FALSE))),"NA") -> 20.52631579 | E18: =IFERROR((IF($C18="NA","NA",ROUND(VLOOKUP($A$3,'G8-RI'!$A$6:$AM$500,6,FALSE),0)&"% ("&IF(VLOOKUP($A$3,'G8-RI'!$A$6:$AM$500,5,FALSE)="",0,VLOOKUP($A$3,'G8-RI'!$A$6:$AM$500,5,FALSE))&")")),"NA") -> 42% (8) | F18: =IFERROR((IF($C18="NA","NA",VLOOKUP($A$3,'G8-RI'!$A$6:$AM$500,7,FALSE))),"NA") -> 4.157894737 | G18: =IFERROR((IF($C18="NA","NA",ROUND(VLOOKUP($A$3,'G8-RI'!$A$6:$AM$500,9,FALSE),0)&"% ("&IF(VLOOKUP($A$3,'G8-RI'!$A$6:$AM$500,8,FALSE)="",0,VLOOKUP($A$3,'G8-RI'!$A$6:$AM$500,8,FALSE))&")")),"NA") -> 58% (11) | H18: =IFERROR((IF($C18="NA","NA",VLOOKUP($A$3,'G8-RI'!$A$6:$AM$500,10,FALSE))),"NA") -> 10.31578947 | I18: =IFERROR((IF($C18="NA","NA",ROUND(VLOOKUP($A$3,'G8-RI'!$A$6:$AM$500,12,FALSE),0)&"% ("&IF(VLOOKUP($A$3,'G8-RI'!$A$6:$AM$500,11,FALSE)="",0,VLOOKUP($A$3,'G8-RI'!$A$6:$AM$500,11,FALSE))&")")),"NA") -> 42% (8) | J18: =IFERROR((IF($C18="NA","NA",VLOOKUP($A$3,'G8-RI'!$A$6:$AM$500,13,FALSE))),"NA") -> 3.842105263 | K18: =IFERROR((IF($C18="NA","NA",ROUND(VLOOKUP($A$3,'G8-RI'!$A$6:$AM$500,15,FALSE),0)&"% ("&IF(VLOOKUP($A$3,'G8-RI'!$A$6:$AM$500,14,FALSE)="",0,VLOOKUP($A$3,'G8-RI'!$A$6:$AM$500,14,FALSE))&")")),"NA") -> 37% (7) | L18: =IFERROR((IF($C18="NA","NA",VLOOKUP($A$3,'G8-RI'!$A$6:$AM$500,16,FALSE))),"NA") -> 2.210526316 | M18: =IFERROR((IF($C18="NA","NA",ROUND(VLOOKUP($A$3,'G8-RI'!$A$6:$AM$500,18,FALSE),0)&"% ("&IF(VLOOKUP($A$3,'G8-RI'!$A$6:$AM$500,17,FALSE)="",0,VLOOKUP($A$3,'G8-RI'!$A$6:$AM$500,17,FALSE))&")")),"NA") -> 42% (8)
A19: ED | B19: =IFERROR(VLOOKUP(TEXT($A$3,"0000"),MEM_ED!$A$2:$O$500,12,FALSE),"NA") -> 21162 | C19: =IFERROR((IF(OR(B19=0,B19="",B19="NA"),"NA",((IF(VLOOKUP($A$3,'G8-RED'!$A$6:$AM$500,3,FALSE)>=B19,"100% ("&VLOOKUP($A$3,'G8-RED'!$A$6:$AM$500,3,FALSE)&")",(ROUND((VLOOKUP($A$3,'G8-RED'!$A$6:$AM$500,3,FALSE)/B19*100),0))&"% ("&IF(VLOOKUP($A$3,'G8-RED'!$A$6:$AM$500,3,FALSE)="",0,VLOOKUP($A$3,'G8-RED'!$A$6:$AM$500,3,FALSE))&")"))))),"NA") -> 94% (19873) | D19: =IFERROR((IF($C19="NA","NA",VLOOKUP($A$3,'G8-RED'!$A$6:$AM$500,4,FALSE))),"NA") -> 17.56805213 | E19: =IFERROR((IF($C19="NA","NA",ROUND(VLOOKUP($A$3,'G8-RED'!$A$6:$AM$500,6,FALSE),0)&"% ("&IF(VLOOKUP($A$3,'G8-RED'!$A$6:$AM$500,5,FALSE)="",0,VLOOKUP($A$3,'G8-RED'!$A$6:$AM$500,5,FALSE))&")")),"NA") -> 19% (3809) | F19: =IFERROR((IF($C19="NA","NA",VLOOKUP($A$3,'G8-RED'!$A$6:$AM$500,7,FALSE))),"NA") -> 3.648825039 | G19: =IFERROR((IF($C19="NA","NA",ROUND(VLOOKUP($A$3,'G8-RED'!$A$6:$AM$500,9,FALSE),0)&"% ("&IF(VLOOKUP($A$3,'G8-RED'!$A$6:$AM$500,8,FALSE)="",0,VLOOKUP($A$3,'G8-RED'!$A$6:$AM$500,8,FALSE))&")")),"NA") -> 30% (5995) | H19: =IFERROR((IF($C19="NA","NA",VLOOKUP($A$3,'G8-RED'!$A$6:$AM$500,10,FALSE))),"NA") -> 9.050601318 | I19: =IFERROR((IF($C19="NA","NA",ROUND(VLOOKUP($A$3,'G8-RED'!$A$6:$AM$500,12,FALSE),0)&"% ("&IF(VLOOKUP($A$3,'G8-RED'!$A$6:$AM$500,11,FALSE)="",0,VLOOKUP($A$3,'G8-RED'!$A$6:$AM$500,11,FALSE))&")")),"NA") -> 27% (5319) | J19: =IFERROR((IF($C19="NA","NA",VLOOKUP($A$3,'G8-RED'!$A$6:$AM$500,13,FALSE))),"NA") -> 2.893528909 | K19: =IFERROR((IF($C19="NA","NA",ROUND(VLOOKUP($A$3,'G8-RED'!$A$6:$AM$500,15,FALSE),0)&"% ("&IF(VLOOKUP($A$3,'G8-RED'!$A$6:$AM$500,14,FALSE)="",0,VLOOKUP($A$3,'G8-RED'!$A$6:$AM$500,14,FALSE))&")")),"NA") -> 15% (2935) | L19: =IFERROR((IF($C19="NA","NA",VLOOKUP($A$3,'G8-RED'!$A$6:$AM$500,16,FALSE))),"NA") -> 1.976571227 | M19: =IFERROR((IF($C19="NA","NA",ROUND(VLOOKUP($A$3,'G8-RED'!$A$6:$AM$500,18,FALSE),0)&"% ("&IF(VLOOKUP($A$3,'G8-RED'!$A$6:$AM$500,17,FALSE)="",0,VLOOKUP($A$3,'G8-RED'!$A$6:$AM$500,17,FALSE))&")")),"NA") -> 35% (6957)
A20: ELL | B20: =IFERROR(VLOOKUP(TEXT($A$3,"0000"),MEM_ELL!$A$2:$O$500,12,FALSE),"NA") -> 3595 | C20: =IFERROR((IF(OR(B20=0,B20="",B20="NA"),"NA",((IF(VLOOKUP($A$3,'G8-RELL'!$A$6:$AM$500,3,FALSE)>=B20,"100% ("&VLOOKUP($A$3,'G8-RELL'!$A$6:$AM$500,3,FALSE)&")",(ROUND((VLOOKUP($A$3,'G8-RELL'!$A$6:$AM$500,3,FALSE)/B20*100),0))&"% ("&IF(VLOOKUP($A$3,'G8-RELL'!$A$6:$AM$500,3,FALSE)="",0,VLOOKUP($A$3,'G8-RELL'!$A$6:$AM$500,3,FALSE))&")"))))),"NA") -> 88% (3162) | D20: =IFERROR((IF($C20="NA","NA",VLOOKUP($A$3,'G8-RELL'!$A$6:$AM$500,4,FALSE))),"NA") -> 13.43232132 | E20: =IFERROR((IF($C20="NA","NA",ROUND(VLOOKUP($A$3,'G8-RELL'!$A$6:$AM$500,6,FALSE),0)&"% ("&IF(VLOOKUP($A$3,'G8-RELL'!$A$6:$AM$500,5,FALSE)="",0,VLOOKUP($A$3,'G8-RELL'!$A$6:$AM$500,5,FALSE))&")")),"NA") -> 5% (147) | F20: =IFERROR((IF($C20="NA","NA",VLOOKUP($A$3,'G8-RELL'!$A$6:$AM$500,7,FALSE))),"NA") -> 2.844086022 | G20: =IFERROR((IF($C20="NA","NA",ROUND(VLOOKUP($A$3,'G8-RELL'!$A$6:$AM$500,9,FALSE),0)&"% ("&IF(VLOOKUP($A$3,'G8-RELL'!$A$6:$AM$500,8,FALSE)="",0,VLOOKUP($A$3,'G8-RELL'!$A$6:$AM$500,8,FALSE))&")")),"NA") -> 13% (415) | H20: =IFERROR((IF($C20="NA","NA",VLOOKUP($A$3,'G8-RELL'!$A$6:$AM$500,10,FALSE))),"NA") -> 6.877292853 | I20: =IFERROR((IF($C20="NA","NA",ROUND(VLOOKUP($A$3,'G8-RELL'!$A$6:$AM$500,12,FALSE),0)&"% ("&IF(VLOOKUP($A$3,'G8-RELL'!$A$6:$AM$500,11,FALSE)="",0,VLOOKUP($A$3,'G8-RELL'!$A$6:$AM$500,11,FALSE))&")")),"NA") -> 7% (237) | J20: =IFERROR((IF($C20="NA","NA",VLOOKUP($A$3,'G8-RELL'!$A$6:$AM$500,13,FALSE))),"NA") -> 2.226755218 | K20: =IFERROR((IF($C20="NA","NA",ROUND(VLOOKUP($A$3,'G8-RELL'!$A$6:$AM$500,15,FALSE),0)&"% ("&IF(VLOOKUP($A$3,'G8-RELL'!$A$6:$AM$500,14,FALSE)="",0,VLOOKUP($A$3,'G8-RELL'!$A$6:$AM$500,14,FALSE))&")")),"NA") -> 6% (188) | L20: =IFERROR((IF($C20="NA","NA",VLOOKUP($A$3,'G8-RELL'!$A$6:$AM$500,16,FALSE))),"NA") -> 1.484187223 | M20: =IFERROR((IF($C20="NA","NA",ROUND(VLOOKUP($A$3,'G8-RELL'!$A$6:$AM$500,18,FALSE),0)&"% ("&IF(VLOOKUP($A$3,'G8-RELL'!$A$6:$AM$500,17,FALSE)="",0,VLOOKUP($A$3,'G8-RELL'!$A$6:$AM$500,17,FALSE))&")")),"NA") -> 19% (588)
A21: SWD | B21: =IFERROR(VLOOKUP(TEXT($A$3,"0000"),MEM_SWD!$A$2:$O$500,12,FALSE),"NA") -> 2698 | C21: =IFERROR((IF(OR(B21=0,B21="",B21="NA"),"NA",((IF(VLOOKUP($A$3,'G8-RSWD'!$A$6:$AM$500,3,FALSE)>=B21,"100% ("&VLOOKUP($A$3,'G8-RSWD'!$A$6:$AM$500,3,FALSE)&")",(ROUND((VLOOKUP($A$3,'G8-RSWD'!$A$6:$AM$500,3,FALSE)/B21*100),0))&"% ("&IF(VLOOKUP($A$3,'G8-RSWD'!$A$6:$AM$500,3,FALSE)="",0,VLOOKUP($A$3,'G8-RSWD'!$A$6:$AM$500,3,FALSE))&")"))))),"NA") -> 92% (2470) | D21: =IFERROR((IF($C21="NA","NA",VLOOKUP($A$3,'G8-RSWD'!$A$6:$AM$500,4,FALSE))),"NA") -> 13.73368421 | E21: =IFERROR((IF($C21="NA","NA",ROUND(VLOOKUP($A$3,'G8-RSWD'!$A$6:$AM$500,6,FALSE),0)&"% ("&IF(VLOOKUP($A$3,'G8-RSWD'!$A$6:$AM$500,5,FALSE)="",0,VLOOKUP($A$3,'G8-RSWD'!$A$6:$AM$500,5,FALSE))&")")),"NA") -> 6% (143) | F21: =IFERROR((IF($C21="NA","NA",VLOOKUP($A$3,'G8-RSWD'!$A$6:$AM$500,7,FALSE))),"NA") -> 3.021336032 | G21: =IFERROR((IF($C21="NA","NA",ROUND(VLOOKUP($A$3,'G8-RSWD'!$A$6:$AM$500,9,FALSE),0)&"% ("&IF(VLOOKUP($A$3,'G8-RSWD'!$A$6:$AM$500,8,FALSE)="",0,VLOOKUP($A$3,'G8-RSWD'!$A$6:$AM$500,8,FALSE))&")")),"NA") -> 15% (369) | H21: =IFERROR((IF($C21="NA","NA",VLOOKUP($A$3,'G8-RSWD'!$A$6:$AM$500,10,FALSE))),"NA") -> 7.014412955 | I21: =IFERROR((IF($C21="NA","NA",ROUND(VLOOKUP($A$3,'G8-RSWD'!$A$6:$AM$500,12,FALSE),0)&"% ("&IF(VLOOKUP($A$3,'G8-RSWD'!$A$6:$AM$500,11,FALSE)="",0,VLOOKUP($A$3,'G8-RSWD'!$A$6:$AM$500,11,FALSE))&")")),"NA") -> 10% (238) | J21: =IFERROR((IF($C21="NA","NA",VLOOKUP($A$3,'G8-RSWD'!$A$6:$AM$500,13,FALSE))),"NA") -> 2.212105263 | K21: =IFERROR((IF($C21="NA","NA",ROUND(VLOOKUP($A$3,'G8-RSWD'!$A$6:$AM$500,15,FALSE),0)&"% ("&IF(VLOOKUP($A$3,'G8-RSWD'!$A$6:$AM$500,14,FALSE)="",0,VLOOKUP($A$3,'G8-RSWD'!$A$6:$AM$500,14,FALSE))&")")),"NA") -> 6% (145) | L21: =IFERROR((IF($C21="NA","NA",VLOOKUP($A$3,'G8-RSWD'!$A$6:$AM$500,16,FALSE))),"NA") -> 1.485101215 | M21: =IFERROR((IF($C21="NA","NA",ROUND(VLOOKUP($A$3,'G8-RSWD'!$A$6:$AM$500,18,FALSE),0)&"% ("&IF(VLOOKUP($A$3,'G8-RSWD'!$A$6:$AM$500,17,FALSE)="",0,VLOOKUP($A$3,'G8-RSWD'!$A$6:$AM$500,17,FALSE))&")")),"NA") -> 18% (439)
A22: Math - Grade 8
A23: Level of Proficiency at 70% or above | B23: Total # of Students | C23: % of Students Tested | D23: ='G6-8 Matrix'!C16&" ["&'G6-8 Matrix'!C17&"]" -> Overall [34] | F23: ='G6-8 Matrix'!D16&" ["&'G6-8 Matrix'!D17&"]" -> Number: Operations, Problems, and Stat. [10] | H23: ='G6-8 Matrix'!E16&" ["&'G6-8 Matrix'!E17&"]" -> Expressions, Equations, and Functions [14] | J23: ='G6-8 Matrix'!F16&" ["&'G6-8 Matrix'!F17&"]" -> Geometry and Measurement [10]
D24: Average Score | E24: % Proficient | F24: Average Score | G24: % Proficient | H24: Average Score | I24: % Proficient | J24: Average Score | K24: % Proficient
A25: All students | B25: =IFERROR(VLOOKUP(TEXT($A$3,"0000"),Mem_All!$A$2:$O$500,12,FALSE),0)-IFERROR(VLOOKUP(TEXT($A$3,"0000"),'ALG Gr08'!$A$3:$Q$216,3,FALSE),0)-IFERROR(VLOOKUP(TEXT($A$3,"0000"),'Geo G08'!$A$3:$Q$216,3,FALSE),0) -> 16873 | C25: =IFERROR((IF(OR(B25=0,B25="",B25="NA"),"NA",((IF(VLOOKUP($A$3,'G8-MALL'!$A$6:$AG$500,3,FALSE)>=B25,"100% ("&VLOOKUP($A$3,'G8-MALL'!$A$6:$AG$500,3,FALSE)&")",(ROUND((VLOOKUP($A$3,'G8-MALL'!$A$6:$AG$500,3,FALSE)/B25*100),0))&"% ("&IF(VLOOKUP($A$3,'G8-MALL'!$A$6:$AG$500,3,FALSE)="",0,VLOOKUP($A$3,'G8-MALL'!$A$6:$AG$500,3,FALSE))&")"))))),"NA") -> 100% (18498) | D25: =IFERROR((IF($C25="NA","NA",VLOOKUP($A$3,'G8-MALL'!$A$6:$AG$500,4,FALSE))),"NA") -> 13.97908423 | E25: =IFERROR((IF($C25="NA","NA",ROUND(VLOOKUP($A$3,'G8-MALL'!$A$6:$AG$500,6,FALSE),0)&"% ("&IF(VLOOKUP($A$3,'G8-MALL'!$A$6:$AG$500,5,FALSE)="",0,VLOOKUP($A$3,'G8-MALL'!$A$6:$AG$500,5,FALSE))&")")),"NA") -> 6% (1076) | F25: =IFERROR((IF($C25="NA","NA",VLOOKUP($A$3,'G8-MALL'!$A$6:$AG$500,13,FALSE))),"NA") -> 4.963796086 | G25: =IFERROR((IF($C25="NA","NA",ROUND(VLOOKUP($A$3,'G8-MALL'!$A$6:$AG$500,15,FALSE),0)&"% ("&IF(VLOOKUP($A$3,'G8-MALL'!$A$6:$AG$500,14,FALSE)="",0,VLOOKUP($A$3,'G8-MALL'!$A$6:$AG$500,14,FALSE))&")")),"NA") -> 26% (4739) | H25: =IFERROR((IF($C25="NA","NA",VLOOKUP($A$3,'G8-MALL'!$A$6:$AG$500,7,FALSE))),"NA") -> 5.394950805 | I25: =IFERROR((IF($C25="NA","NA",ROUND(VLOOKUP($A$3,'G8-MALL'!$A$6:$AG$500,9,FALSE),0)&"% ("&IF(VLOOKUP($A$3,'G8-MALL'!$A$6:$AG$500,8,FALSE)="",0,VLOOKUP($A$3,'G8-MALL'!$A$6:$AG$500,8,FALSE))&")")),"NA") -> 8% (1472) | J25: =IFERROR((IF($C25="NA","NA",VLOOKUP($A$3,'G8-MALL'!$A$6:$AG$500,10,FALSE))),"NA") -> 3.629181533 | K25: =IFERROR((IF($C25="NA","NA",ROUND(VLOOKUP($A$3,'G8-MALL'!$A$6:$AG$500,12,FALSE),0)&"% ("&IF(VLOOKUP($A$3,'G8-MALL'!$A$6:$AG$500,11,FALSE)="",0,VLOOKUP($A$3,'G8-MALL'!$A$6:$AG$500,11,FALSE))&")")),"NA") -> 4% (800)
A26: FCAT Level 1 | B26: =IFERROR(VLOOKUP(TEXT($A$3,"0000"),MEM_ML1!$A$2:$O$500,9,FALSE),0)-IFERROR(VLOOKUP(TEXT($A$3,"0000"),'ALG Gr08'!$A$3:$Q$216,4,FALSE),0)-IFERROR(VLOOKUP(TEXT($A$3,"0000"),'Geo G08'!$A$3:$Q$216,4,FALSE),0) -> 5948 | C26: =IFERROR((IF(OR(B26=0,B26="",B26="NA"),"NA",((IF(VLOOKUP($A$3,'G8-ML1'!$A$6:$AG$500,3,FALSE)>=B26,"100% ("&VLOOKUP($A$3,'G8-ML1'!$A$6:$AG$500,3,FALSE)&")",(ROUND((VLOOKUP($A$3,'G8-ML1'!$A$6:$AG$500,3,FALSE)/B26*100),0))&"% ("&IF(VLOOKUP($A$3,'G8-ML1'!$A$6:$AG$500,3,FALSE)="",0,VLOOKUP($A$3,'G8-ML1'!$A$6:$AG$500,3,FALSE))&")"))))),"NA") -> 93% (5518) | D26: =IFERROR((IF($C26="NA","NA",VLOOKUP($A$3,'G8-ML1'!$A$6:$AG$500,4,FALSE))),"NA") -> 10.26471548 | E26: =IFERROR((IF($C26="NA","NA",ROUND(VLOOKUP($A$3,'G8-ML1'!$A$6:$AG$500,6,FALSE),0)&"% ("&IF(VLOOKUP($A$3,'G8-ML1'!$A$6:$AG$500,5,FALSE)="",0,VLOOKUP($A$3,'G8-ML1'!$A$6:$AG$500,5,FALSE))&")")),"NA") -> 0% (1) | F26: =IFERROR((IF($C26="NA","NA",VLOOKUP($A$3,'G8-ML1'!$A$6:$AG$500,13,FALSE))),"NA") -> 3.560891627 | G26: =IFERROR((IF($C26="NA","NA",ROUND(VLOOKUP($A$3,'G8-ML1'!$A$6:$AG$500,15,FALSE),0)&"% ("&IF(VLOOKUP($A$3,'G8-ML1'!$A$6:$AG$500,14,FALSE)="",0,VLOOKUP($A$3,'G8-ML1'!$A$6:$AG$500,14,FALSE))&")")),"NA") -> 5% (264) | H26: =IFERROR((IF($C26="NA","NA",VLOOKUP($A$3,'G8-ML1'!$A$6:$AG$500,7,FALSE))),"NA") -> 3.847734686 | I26: =IFERROR((IF($C26="NA","NA",ROUND(VLOOKUP($A$3,'G8-ML1'!$A$6:$AG$500,9,FALSE),0)&"% ("&IF(VLOOKUP($A$3,'G8-ML1'!$A$6:$AG$500,8,FALSE)="",0,VLOOKUP($A$3,'G8-ML1'!$A$6:$AG$500,8,FALSE))&")")),"NA") -> 0% (7) | J26: =IFERROR((IF($C26="NA","NA",VLOOKUP($A$3,'G8-ML1'!$A$6:$AG$500,10,FALSE))),"NA") -> 2.853479522 | K26: =IFERROR((IF($C26="NA","NA",ROUND(VLOOKUP($A$3,'G8-ML1'!$A$6:$AG$500,12,FALSE),0)&"% ("&IF(VLOOKUP($A$3,'G8-ML1'!$A$6:$AG$500,11,FALSE)="",0,VLOOKUP($A$3,'G8-ML1'!$A$6:$AG$500,11,FALSE))&")")),"NA") -> 1% (35)
A27: FCAT Level 2 | B27: =IFERROR(VLOOKUP(TEXT($A$3,"0000"),MEM_ML2!$A$2:$O$500,9,FALSE),0)-IFERROR(VLOOKUP(TEXT($A$3,"0000"),'ALG Gr08'!$A$3:$Q$216,5,FALSE),0)-IFERROR(VLOOKUP(TEXT($A$3,"0000"),'Geo G08'!$A$3:$Q$216,5,FALSE),0) -> 5840 | C27: =IFERROR((IF(OR(B27=0,B27="",B27="NA"),"NA",((IF(VLOOKUP($A$3,'G8-ML2'!$A$6:$AG$500,3,FALSE)>=B27,"100% ("&VLOOKUP($A$3,'G8-ML2'!$A$6:$AG$500,3,FALSE)&")",(ROUND((VLOOKUP($A$3,'G8-ML2'!$A$6:$AG$500,3,FALSE)/B27*100),0))&"% ("&IF(VLOOKUP($A$3,'G8-ML2'!$A$6:$AG$500,3,FALSE)="",0,VLOOKUP($A$3,'G8-ML2'!$A$6:$AG$500,3,FALSE))&")"))))),"NA") -> 96% (5582) | D27: =IFERROR((IF($C27="NA","NA",VLOOKUP($A$3,'G8-ML2'!$A$6:$AG$500,4,FALSE))),"NA") -> 12.72585095 | E27: =IFERROR((IF($C27="NA","NA",ROUND(VLOOKUP($A$3,'G8-ML2'!$A$6:$AG$500,6,FALSE),0)&"% ("&IF(VLOOKUP($A$3,'G8-ML2'!$A$6:$AG$500,5,FALSE)="",0,VLOOKUP($A$3,'G8-ML2'!$A$6:$AG$500,5,FALSE))&")")),"NA") -> 0% (7) | F27: =IFERROR((IF($C27="NA","NA",VLOOKUP($A$3,'G8-ML2'!$A$6:$AG$500,13,FALSE))),"NA") -> 4.611322107 | G27: =IFERROR((IF($C27="NA","NA",ROUND(VLOOKUP($A$3,'G8-ML2'!$A$6:$AG$500,15,FALSE),0)&"% ("&IF(VLOOKUP($A$3,'G8-ML2'!$A$6:$AG$500,14,FALSE)="",0,VLOOKUP($A$3,'G8-ML2'!$A$6:$AG$500,14,FALSE))&")")),"NA") -> 15% (835) | H27: =IFERROR((IF($C27="NA","NA",VLOOKUP($A$3,'G8-ML2'!$A$6:$AG$500,7,FALSE))),"NA") -> 4.733178072 | I27: =IFERROR((IF($C27="NA","NA",ROUND(VLOOKUP($A$3,'G8-ML2'!$A$6:$AG$500,9,FALSE),0)&"% ("&IF(VLOOKUP($A$3,'G8-ML2'!$A$6:$AG$500,8,FALSE)="",0,VLOOKUP($A$3,'G8-ML2'!$A$6:$AG$500,8,FALSE))&")")),"NA") -> 1% (46) | J27: =IFERROR((IF($C27="NA","NA",VLOOKUP($A$3,'G8-ML2'!$A$6:$AG$500,10,FALSE))),"NA") -> 3.383715514 | K27: =IFERROR((IF($C27="NA","NA",ROUND(VLOOKUP($A$3,'G8-ML2'!$A$6:$AG$500,12,FALSE),0)&"% ("&IF(VLOOKUP($A$3,'G8-ML2'!$A$6:$AG$500,11,FALSE)="",0,VLOOKUP($A$3,'G8-ML2'!$A$6:$AG$500,11,FALSE))&")")),"NA") -> 2% (87)
A28: FCAT Level 3 | B28: =IFERROR(VLOOKUP(TEXT($A$3,"0000"),MEM_ML3!$A$2:$O$500,9,FALSE),0)-IFERROR(VLOOKUP(TEXT($A$3,"0000"),'ALG Gr08'!$A$3:$Q$216,6,FALSE),0)-IFERROR(VLOOKUP(TEXT($A$3,"0000"),'Geo G08'!$A$3:$Q$216,6,FALSE),0) -> 3118 | C28: =IFERROR((IF(OR(B28=0,B28="",B28="NA"),"NA",((IF(VLOOKUP($A$3,'G8-ML3'!$A$6:$AG$501,3,FALSE)>=B28,"100% ("&VLOOKUP($A$3,'G8-ML3'!$A$6:$AG$501,3,FALSE)&")",(ROUND((VLOOKUP($A$3,'G8-ML3'!$A$6:$AG$501,3,FALSE)/B28*100),0))&"% ("&IF(VLOOKUP($A$3,'G8-ML3'!$A$6:$AG$501,3,FALSE)="",0,VLOOKUP($A$3,'G8-ML3'!$A$6:$AG$501,3,FALSE))&")"))))),"NA") -> 100% (4147) | D28: =IFERROR((IF($C28="NA","NA",VLOOKUP($A$3,'G8-ML3'!$A$6:$AG$500,4,FALSE))),"NA") -> 16.00735471 | E28: =IFERROR((IF($C28="NA","NA",ROUND(VLOOKUP($A$3,'G8-ML3'!$A$6:$AG$500,6,FALSE),0)&"% ("&IF(VLOOKUP($A$3,'G8-ML3'!$A$6:$AG$500,5,FALSE)="",0,VLOOKUP($A$3,'G8-ML3'!$A$6:$AG$500,5,FALSE))&")")),"NA") -> 2% (94) | F28: =IFERROR((IF($C28="NA","NA",VLOOKUP($A$3,'G8-ML3'!$A$6:$AG$500,13,FALSE))),"NA") -> 5.788208343 | G28: =IFERROR((IF($C28="NA","NA",ROUND(VLOOKUP($A$3,'G8-ML3'!$A$6:$AG$500,15,FALSE),0)&"% ("&IF(VLOOKUP($A$3,'G8-ML3'!$A$6:$AG$500,14,FALSE)="",0,VLOOKUP($A$3,'G8-ML3'!$A$6:$AG$500,14,FALSE))&")")),"NA") -> 38% (1571) | H28: =IFERROR((IF($C28="NA","NA",VLOOKUP($A$3,'G8-ML3'!$A$6:$AG$500,7,FALSE))),"NA") -> 6.157197974 | I28: =IFERROR((IF($C28="NA","NA",ROUND(VLOOKUP($A$3,'G8-ML3'!$A$6:$AG$500,9,FALSE),0)&"% ("&IF(VLOOKUP($A$3,'G8-ML3'!$A$6:$AG$500,8,FALSE)="",0,VLOOKUP($A$3,'G8-ML3'!$A$6:$AG$500,8,FALSE))&")")),"NA") -> 6% (242) | J28: =IFERROR((IF($C28="NA","NA",VLOOKUP($A$3,'G8-ML3'!$A$6:$AG$500,10,FALSE))),"NA") -> 4.055582349 | K28: =IFERROR((IF($C28="NA","NA",ROUND(VLOOKUP($A$3,'G8-ML3'!$A$6:$AG$500,12,FALSE),0)&"% ("&IF(VLOOKUP($A$3,'G8-ML3'!$A$6:$AG$500,11,FALSE)="",0,VLOOKUP($A$3,'G8-ML3'!$A$6:$AG$500,11,FALSE))&")")),"NA") -> 4% (176)
A29: FCAT Level 4 | B29: =IFERROR(VLOOKUP(TEXT($A$3,"0000"),MEM_ML4!$A$2:$O$500,9,FALSE),0)-IFERROR(VLOOKUP(TEXT($A$3,"0000"),'ALG Gr08'!$A$3:$Q$216,7,FALSE),0)-IFERROR(VLOOKUP(TEXT($A$3,"0000"),'Geo G08'!$A$3:$Q$216,7,FALSE),0) -> 804 | C29: =IFERROR((IF(OR(B29=0,B29="",B29="NA"),"NA",((IF(VLOOKUP($A$3,'G8-ML4'!$A$6:$AG$500,3,FALSE)>=B29,"100% ("&VLOOKUP($A$3,'G8-ML4'!$A$6:$AG$500,3,FALSE)&")",(ROUND((VLOOKUP($A$3,'G8-ML4'!$A$6:$AG$500,3,FALSE)/B29*100),0))&"% ("&IF(VLOOKUP($A$3,'G8-ML4'!$A$6:$AG$500,3,FALSE)="",0,VLOOKUP($A$3,'G8-ML4'!$A$6:$AG$500,3,FALSE))&")"))))),"NA") -> 100% (1903) | D29: =IFERROR((IF($C29="NA","NA",VLOOKUP($A$3,'G8-ML4'!$A$6:$AG$500,4,FALSE))),"NA") -> 20.27393589 | E29: =IFERROR((IF($C29="NA","NA",ROUND(VLOOKUP($A$3,'G8-ML4'!$A$6:$AG$500,6,FALSE),0)&"% ("&IF(VLOOKUP($A$3,'G8-ML4'!$A$6:$AG$500,5,FALSE)="",0,VLOOKUP($A$3,'G8-ML4'!$A$6:$AG$500,5,FALSE))&")")),"NA") -> 23% (446) | F29: =IFERROR((IF($C29="NA","NA",VLOOKUP($A$3,'G8-ML4'!$A$6:$AG$500,13,FALSE))),"NA") -> 7.127062533 | G29: =IFERROR((IF($C29="NA","NA",ROUND(VLOOKUP($A$3,'G8-ML4'!$A$6:$AG$500,15,FALSE),0)&"% ("&IF(VLOOKUP($A$3,'G8-ML4'!$A$6:$AG$500,14,FALSE)="",0,VLOOKUP($A$3,'G8-ML4'!$A$6:$AG$500,14,FALSE))&")")),"NA") -> 68% (1291) | H29: =IFERROR((IF($C29="NA","NA",VLOOKUP($A$3,'G8-ML4'!$A$6:$AG$500,7,FALSE))),"NA") -> 8.297004729 | I29: =IFERROR((IF($C29="NA","NA",ROUND(VLOOKUP($A$3,'G8-ML4'!$A$6:$AG$500,9,FALSE),0)&"% ("&IF(VLOOKUP($A$3,'G8-ML4'!$A$6:$AG$500,8,FALSE)="",0,VLOOKUP($A$3,'G8-ML4'!$A$6:$AG$500,8,FALSE))&")")),"NA") -> 31% (596) | J29: =IFERROR((IF($C29="NA","NA",VLOOKUP($A$3,'G8-ML4'!$A$6:$AG$500,10,FALSE))),"NA") -> 4.870677877 | K29: =IFERROR((IF($C29="NA","NA",ROUND(VLOOKUP($A$3,'G8-ML4'!$A$6:$AG$500,12,FALSE),0)&"% ("&IF(VLOOKUP($A$3,'G8-ML4'!$A$6:$AG$500,11,FALSE)="",0,VLOOKUP($A$3,'G8-ML4'!$A$6:$AG$500,11,FALSE))&")")),"NA") -> 12% (229)
A30: FCAT Level 5 | B30: =IFERROR(VLOOKUP(TEXT($A$3,"0000"),MEM_ML5!$A$2:$O$500,9,FALSE),0)-IFERROR(VLOOKUP(TEXT($A$3,"0000"),'ALG Gr08'!$A$3:$Q$216,8,FALSE),0)-IFERROR(VLOOKUP(TEXT($A$3,"0000"),'Geo G08'!$A$3:$Q$216,8,FALSE),0) -> 50 | C30: =IFERROR((IF(OR(B30=0,B30="",B30="NA"),"NA",((IF(VLOOKUP($A$3,'G8-ML5'!$A$6:$AG$481,3,FALSE)>=B30,"100% ("&VLOOKUP($A$3,'G8-ML5'!$A$6:$AG$481,3,FALSE)&")",(ROUND((VLOOKUP($A$3,'G8-ML5'!$A$6:$AG$481,3,FALSE)/B30*100),0))&"% ("&IF(VLOOKUP($A$3,'G8-ML5'!$A$6:$AG$481,3,FALSE)="",0,VLOOKUP($A$3,'G8-ML5'!$A$6:$AG$481,3,FALSE))&")"))))),"NA") -> 100% (790) | D30: =IFERROR((IF($C30="NA","NA",VLOOKUP($A$3,'G8-ML5'!$A$6:$AG$481,4,FALSE))),"NA") -> 24.47455696 | E30: =IFERROR((IF($C30="NA","NA",ROUND(VLOOKUP($A$3,'G8-ML5'!$A$6:$AG$481,6,FALSE),0)&"% ("&IF(VLOOKUP($A$3,'G8-ML5'!$A$6:$AG$481,5,FALSE)="",0,VLOOKUP($A$3,'G8-ML5'!$A$6:$AG$481,5,FALSE))&")")),"NA") -> 64% (507) | F30: =IFERROR((IF($C30="NA","NA",VLOOKUP($A$3,'G8-ML5'!$A$6:$AG$481,13,FALSE))),"NA") -> 8.209746835 | G30: =IFERROR((IF($C30="NA","NA",ROUND(VLOOKUP($A$3,'G8-ML5'!$A$6:$AG$481,15,FALSE),0)&"% ("&IF(VLOOKUP($A$3,'G8-ML5'!$A$6:$AG$481,14,FALSE)="",0,VLOOKUP($A$3,'G8-ML5'!$A$6:$AG$481,14,FALSE))&")")),"NA") -> 88% (693) | H30: =IFERROR((IF($C30="NA","NA",VLOOKUP($A$3,'G8-ML5'!$A$6:$AG$481,7,FALSE))),"NA") -> 10.46924051 | I30: =IFERROR((IF($C30="NA","NA",ROUND(VLOOKUP($A$3,'G8-ML5'!$A$6:$AG$481,9,FALSE),0)&"% ("&IF(VLOOKUP($A$3,'G8-ML5'!$A$6:$AG$481,8,FALSE)="",0,VLOOKUP($A$3,'G8-ML5'!$A$6:$AG$481,8,FALSE))&")")),"NA") -> 71% (558) | J30: =IFERROR((IF($C30="NA","NA",VLOOKUP($A$3,'G8-ML5'!$A$6:$AG$481,10,FALSE))),"NA") -> 5.784810127 | K30: =IFERROR((IF($C30="NA","NA",ROUND(VLOOKUP($A$3,'G8-ML5'!$A$6:$AG$481,12,FALSE),0)&"% ("&IF(VLOOKUP($A$3,'G8-ML5'!$A$6:$AG$481,11,FALSE)="",0,VLOOKUP($A$3,'G8-ML5'!$A$6:$AG$481,11,FALSE))&")")),"NA") -> 31% (242)
A31: White | B31: =IFERROR(VLOOKUP(TEXT($A$3,"0000"),MEM_W!$A$2:$O$500,12,FALSE),0)-IFERROR(VLOOKUP(TEXT($A$3,"0000"),'ALG Gr08'!$A$3:$Q$216,10,FALSE),0)-IFERROR(VLOOKUP(TEXT($A$3,"0000"),'Geo G08'!$A$3:$Q$216,10,FALSE),0) -> 966 | C31: =IFERROR((IF(OR(B31=0,B31="",B31="NA"),"NA",((IF(VLOOKUP($A$3,'G8-MW'!$A$6:$AG$500,3,FALSE)>=B31,"100% ("&VLOOKUP($A$3,'G8-MW'!$A$6:$AG$500,3,FALSE)&")",(ROUND((VLOOKUP($A$3,'G8-MW'!$A$6:$AG$500,3,FALSE)/B31*100),0))&"% ("&IF(VLOOKUP($A$3,'G8-MW'!$A$6:$AG$500,3,FALSE)="",0,VLOOKUP($A$3,'G8-MW'!$A$6:$AG$500,3,FALSE))&")"))))),"NA") -> 100% (1317) | D31: =IFERROR((IF($C31="NA","NA",VLOOKUP($A$3,'G8-MW'!$A$6:$AG$500,4,FALSE))),"NA") -> 16.91442673 | E31: =IFERROR((IF($C31="NA","NA",ROUND(VLOOKUP($A$3,'G8-MW'!$A$6:$AG$500,6,FALSE),0)&"% ("&IF(VLOOKUP($A$3,'G8-MW'!$A$6:$AG$500,5,FALSE)="",0,VLOOKUP($A$3,'G8-MW'!$A$6:$AG$500,5,FALSE))&")")),"NA") -> 16% (217) | F31: =IFERROR((IF($C31="NA","NA",VLOOKUP($A$3,'G8-MW'!$A$6:$AG$500,13,FALSE))),"NA") -> 5.924677297 | G31: =IFERROR((IF($C31="NA","NA",ROUND(VLOOKUP($A$3,'G8-MW'!$A$6:$AG$500,15,FALSE),0)&"% ("&IF(VLOOKUP($A$3,'G8-MW'!$A$6:$AG$500,14,FALSE)="",0,VLOOKUP($A$3,'G8-MW'!$A$6:$AG$500,14,FALSE))&")")),"NA") -> 42% (555) | H31: =IFERROR((IF($C31="NA","NA",VLOOKUP($A$3,'G8-MW'!$A$6:$AG$500,7,FALSE))),"NA") -> 6.791116173 | I31: =IFERROR((IF($C31="NA","NA",ROUND(VLOOKUP($A$3,'G8-MW'!$A$6:$AG$500,9,FALSE),0)&"% ("&IF(VLOOKUP($A$3,'G8-MW'!$A$6:$AG$500,8,FALSE)="",0,VLOOKUP($A$3,'G8-MW'!$A$6:$AG$500,8,FALSE))&")")),"NA") -> 21% (274) | J31: =IFERROR((IF($C31="NA","NA",VLOOKUP($A$3,'G8-MW'!$A$6:$AG$500,10,FALSE))),"NA") -> 4.214730448 | K31: =IFERROR((IF($C31="NA","NA",ROUND(VLOOKUP($A$3,'G8-MW'!$A$6:$AG$500,12,FALSE),0)&"% ("&IF(VLOOKUP($A$3,'G8-MW'!$A$6:$AG$500,11,FALSE)="",0,VLOOKUP($A$3,'G8-MW'!$A$6:$AG$500,11,FALSE))&")")),"NA") -> 8% (110)
A32: Black | B32: =IFERROR(VLOOKUP(TEXT($A$3,"0000"),MEM_B!$A$2:$O$500,12,FALSE),0)-IFERROR(VLOOKUP(TEXT($A$3,"0000"),'ALG Gr08'!$A$3:$Q$216,11,FALSE),0)-IFERROR(VLOOKUP(TEXT($A$3,"0000"),'Geo G08'!$A$3:$Q$216,11,FALSE),0) -> 4531 | C32: =IFERROR((IF(OR(B32=0,B32="",B32="NA"),"NA",((IF(VLOOKUP($A$3,'G8-MB'!$A$6:$AG$500,3,FALSE)>=B32,"100% ("&VLOOKUP($A$3,'G8-MB'!$A$6:$AG$500,3,FALSE)&")",(ROUND((VLOOKUP($A$3,'G8-MB'!$A$6:$AG$500,3,FALSE)/B32*100),0))&"% ("&IF(VLOOKUP($A$3,'G8-MB'!$A$6:$AG$500,3,FALSE)="",0,VLOOKUP($A$3,'G8-MB'!$A$6:$AG$500,3,FALSE))&")"))))),"NA") -> 100% (4593) | D32: =IFERROR((IF($C32="NA","NA",VLOOKUP($A$3,'G8-MB'!$A$6:$AG$500,4,FALSE))),"NA") -> 12.8678206 | E32: =IFERROR((IF($C32="NA","NA",ROUND(VLOOKUP($A$3,'G8-MB'!$A$6:$AG$500,6,FALSE),0)&"% ("&IF(VLOOKUP($A$3,'G8-MB'!$A$6:$AG$500,5,FALSE)="",0,VLOOKUP($A$3,'G8-MB'!$A$6:$AG$500,5,FALSE))&")")),"NA") -> 2% (100) | F32: =IFERROR((IF($C32="NA","NA",VLOOKUP($A$3,'G8-MB'!$A$6:$AG$500,13,FALSE))),"NA") -> 4.700457218 | G32: =IFERROR((IF($C32="NA","NA",ROUND(VLOOKUP($A$3,'G8-MB'!$A$6:$AG$500,15,FALSE),0)&"% ("&IF(VLOOKUP($A$3,'G8-MB'!$A$6:$AG$500,14,FALSE)="",0,VLOOKUP($A$3,'G8-MB'!$A$6:$AG$500,14,FALSE))&")")),"NA") -> 21% (969) | H32: =IFERROR((IF($C32="NA","NA",VLOOKUP($A$3,'G8-MB'!$A$6:$AG$500,7,FALSE))),"NA") -> 4.8029828 | I32: =IFERROR((IF($C32="NA","NA",ROUND(VLOOKUP($A$3,'G8-MB'!$A$6:$AG$500,9,FALSE),0)&"% ("&IF(VLOOKUP($A$3,'G8-MB'!$A$6:$AG$500,8,FALSE)="",0,VLOOKUP($A$3,'G8-MB'!$A$6:$AG$500,8,FALSE))&")")),"NA") -> 4% (163) | J32: =IFERROR((IF($C32="NA","NA",VLOOKUP($A$3,'G8-MB'!$A$6:$AG$500,10,FALSE))),"NA") -> 3.371500109 | K32: =IFERROR((IF($C32="NA","NA",ROUND(VLOOKUP($A$3,'G8-MB'!$A$6:$AG$500,12,FALSE),0)&"% ("&IF(VLOOKUP($A$3,'G8-MB'!$A$6:$AG$500,11,FALSE)="",0,VLOOKUP($A$3,'G8-MB'!$A$6:$AG$500,11,FALSE))&")")),"NA") -> 2% (113)
A33: Hispanic | B33: =IFERROR(VLOOKUP(TEXT($A$3,"0000"),MEM_H!$A$2:$O$500,12,FALSE),0)-IFERROR(VLOOKUP(TEXT($A$3,"0000"),'ALG Gr08'!$A$3:$Q$216,12,FALSE),0)-IFERROR(VLOOKUP(TEXT($A$3,"0000"),'Geo G08'!$A$3:$Q$216,12,FALSE),0) -> 11237 | C33: =IFERROR((IF(OR(B33=0,B33="",B33="NA"),"NA",((IF(VLOOKUP($A$3,'G8-MH'!$A$6:$AG$500,3,FALSE)>=B33,"100% ("&VLOOKUP($A$3,'G8-MH'!$A$6:$AG$500,3,FALSE)&")",(ROUND((VLOOKUP($A$3,'G8-MH'!$A$6:$AG$500,3,FALSE)/B33*100),0))&"% ("&IF(VLOOKUP($A$3,'G8-MH'!$A$6:$AG$500,3,FALSE)="",0,VLOOKUP($A$3,'G8-MH'!$A$6:$AG$500,3,FALSE))&")"))))),"NA") -> 100% (12374) | D33: =IFERROR((IF($C33="NA","NA",VLOOKUP($A$3,'G8-MH'!$A$6:$AG$500,4,FALSE))),"NA") -> 13.99665428 | E33: =IFERROR((IF($C33="NA","NA",ROUND(VLOOKUP($A$3,'G8-MH'!$A$6:$AG$500,6,FALSE),0)&"% ("&IF(VLOOKUP($A$3,'G8-MH'!$A$6:$AG$500,5,FALSE)="",0,VLOOKUP($A$3,'G8-MH'!$A$6:$AG$500,5,FALSE))&")")),"NA") -> 6% (705) | F33: =IFERROR((IF($C33="NA","NA",VLOOKUP($A$3,'G8-MH'!$A$6:$AG$500,13,FALSE))),"NA") -> 4.931145951 | G33: =IFERROR((IF($C33="NA","NA",ROUND(VLOOKUP($A$3,'G8-MH'!$A$6:$AG$500,15,FALSE),0)&"% ("&IF(VLOOKUP($A$3,'G8-MH'!$A$6:$AG$500,14,FALSE)="",0,VLOOKUP($A$3,'G8-MH'!$A$6:$AG$500,14,FALSE))&")")),"NA") -> 25% (3104) | H33: =IFERROR((IF($C33="NA","NA",VLOOKUP($A$3,'G8-MH'!$A$6:$AG$500,7,FALSE))),"NA") -> 5.425327299 | I33: =IFERROR((IF($C33="NA","NA",ROUND(VLOOKUP($A$3,'G8-MH'!$A$6:$AG$500,9,FALSE),0)&"% ("&IF(VLOOKUP($A$3,'G8-MH'!$A$6:$AG$500,8,FALSE)="",0,VLOOKUP($A$3,'G8-MH'!$A$6:$AG$500,8,FALSE))&")")),"NA") -> 8% (975) | J33: =IFERROR((IF($C33="NA","NA",VLOOKUP($A$3,'G8-MH'!$A$6:$AG$500,10,FALSE))),"NA") -> 3.643324713 | K33: =IFERROR((IF($C33="NA","NA",ROUND(VLOOKUP($A$3,'G8-MH'!$A$6:$AG$500,12,FALSE),0)&"% ("&IF(VLOOKUP($A$3,'G8-MH'!$A$6:$AG$500,11,FALSE)="",0,VLOOKUP($A$3,'G8-MH'!$A$6:$AG$500,11,FALSE))&")")),"NA") -> 4% (544)
A34: Asian | B34: =IFERROR(VLOOKUP(TEXT($A$3,"0000"),MEM_A!$A$2:$O$500,12,FALSE),0)-IFERROR(VLOOKUP(TEXT($A$3,"0000"),'ALG Gr08'!$A$3:$Q$216,13,FALSE),0)-IFERROR(VLOOKUP(TEXT($A$3,"0000"),'Geo G08'!$A$3:$Q$216,13,FALSE),0) -> 101 | C34: =IFERROR((IF(OR(B34=0,B34="",B34="NA"),"NA",((IF(VLOOKUP($A$3,'G8-MA'!$A$6:$AG$500,3,FALSE)>=B34,"100% ("&VLOOKUP($A$3,'G8-MA'!$A$6:$AG$500,3,FALSE)&")",(ROUND((VLOOKUP($A$3,'G8-MA'!$A$6:$AG$500,3,FALSE)/B34*100),0))&"% ("&IF(VLOOKUP($A$3,'G8-MA'!$A$6:$AG$500,3,FALSE)="",0,VLOOKUP($A$3,'G8-MA'!$A$6:$AG$500,3,FALSE))&")"))))),"NA") -> 100% (156) | D34: =IFERROR((IF($C34="NA","NA",VLOOKUP($A$3,'G8-MA'!$A$6:$AG$500,4,FALSE))),"NA") -> 19.15641026 | E34: =IFERROR((IF($C34="NA","NA",ROUND(VLOOKUP($A$3,'G8-MA'!$A$6:$AG$500,6,FALSE),0)&"% ("&IF(VLOOKUP($A$3,'G8-MA'!$A$6:$AG$500,5,FALSE)="",0,VLOOKUP($A$3,'G8-MA'!$A$6:$AG$500,5,FALSE))&")")),"NA") -> 29% (45) | F34: =IFERROR((IF($C34="NA","NA",VLOOKUP($A$3,'G8-MA'!$A$6:$AG$500,13,FALSE))),"NA") -> 6.76025641 | G34: =IFERROR((IF($C34="NA","NA",ROUND(VLOOKUP($A$3,'G8-MA'!$A$6:$AG$500,15,FALSE),0)&"% ("&IF(VLOOKUP($A$3,'G8-MA'!$A$6:$AG$500,14,FALSE)="",0,VLOOKUP($A$3,'G8-MA'!$A$6:$AG$500,14,FALSE))&")")),"NA") -> 61% (95) | H34: =IFERROR((IF($C34="NA","NA",VLOOKUP($A$3,'G8-MA'!$A$6:$AG$500,7,FALSE))),"NA") -> 7.688461538 | I34: =IFERROR((IF($C34="NA","NA",ROUND(VLOOKUP($A$3,'G8-MA'!$A$6:$AG$500,9,FALSE),0)&"% ("&IF(VLOOKUP($A$3,'G8-MA'!$A$6:$AG$500,8,FALSE)="",0,VLOOKUP($A$3,'G8-MA'!$A$6:$AG$500,8,FALSE))&")")),"NA") -> 33% (51) | J34: =IFERROR((IF($C34="NA","NA",VLOOKUP($A$3,'G8-MA'!$A$6:$AG$500,10,FALSE))),"NA") -> 4.71474359 | K34: =IFERROR((IF($C34="NA","NA",ROUND(VLOOKUP($A$3,'G8-MA'!$A$6:$AG$500,12,FALSE),0)&"% ("&IF(VLOOKUP($A$3,'G8-MA'!$A$6:$AG$500,11,FALSE)="",0,VLOOKUP($A$3,'G8-MA'!$A$6:$AG$500,11,FALSE))&")")),"NA") -> 17% (26)
A35: Am. Indian | B35: =IFERROR(VLOOKUP(TEXT($A$3,"0000"),MEM_I!$A$2:$O$500,12,FALSE),0)-IFERROR(VLOOKUP(TEXT($A$3,"0000"),'ALG Gr08'!$A$3:$Q$216,14,FALSE),0)-IFERROR(VLOOKUP(TEXT($A$3,"0000"),'Geo G08'!$A$3:$Q$216,14,FALSE),0) -> 12 | C35: =IFERROR((IF(OR(B35=0,B35="",B35="NA"),"NA",((IF(VLOOKUP($A$3,'G8-MI'!$A$6:$AG$500,3,FALSE)>=B35,"100% ("&VLOOKUP($A$3,'G8-MI'!$A$6:$AG$500,3,FALSE)&")",(ROUND((VLOOKUP($A$3,'G8-MI'!$A$6:$AG$500,3,FALSE)/B35*100),0))&"% ("&IF(VLOOKUP($A$3,'G8-MI'!$A$6:$AG$500,3,FALSE)="",0,VLOOKUP($A$3,'G8-MI'!$A$6:$AG$500,3,FALSE))&")"))))),"NA") -> 100% (14) | D35: =IFERROR((IF($C35="NA","NA",VLOOKUP($A$3,'G8-MI'!$A$6:$AG$500,4,FALSE))),"NA") -> 15.35714286 | E35: =IFERROR((IF($C35="NA","NA",ROUND(VLOOKUP($A$3,'G8-MI'!$A$6:$AG$500,6,FALSE),0)&"% ("&IF(VLOOKUP($A$3,'G8-MI'!$A$6:$AG$500,5,FALSE)="",0,VLOOKUP($A$3,'G8-MI'!$A$6:$AG$500,5,FALSE))&")")),"NA") -> 14% (2) | F35: =IFERROR((IF($C35="NA","NA",VLOOKUP($A$3,'G8-MI'!$A$6:$AG$500,13,FALSE))),"NA") -> 5.357142857 | G35: =IFERROR((IF($C35="NA","NA",ROUND(VLOOKUP($A$3,'G8-MI'!$A$6:$AG$500,15,FALSE),0)&"% ("&IF(VLOOKUP($A$3,'G8-MI'!$A$6:$AG$500,14,FALSE)="",0,VLOOKUP($A$3,'G8-MI'!$A$6:$AG$500,14,FALSE))&")")),"NA") -> 36% (5) | H35: =IFERROR((IF($C35="NA","NA",VLOOKUP($A$3,'G8-MI'!$A$6:$AG$500,7,FALSE))),"NA") -> 5.571428571 | I35: =IFERROR((IF($C35="NA","NA",ROUND(VLOOKUP($A$3,'G8-MI'!$A$6:$AG$500,9,FALSE),0)&"% ("&IF(VLOOKUP($A$3,'G8-MI'!$A$6:$AG$500,8,FALSE)="",0,VLOOKUP($A$3,'G8-MI'!$A$6:$AG$500,8,FALSE))&")")),"NA") -> 7% (1) | J35: =IFERROR((IF($C35="NA","NA",VLOOKUP($A$3,'G8-MI'!$A$6:$AG$500,10,FALSE))),"NA") -> 4.428571429 | K35: =IFERROR((IF($C35="NA","NA",ROUND(VLOOKUP($A$3,'G8-MI'!$A$6:$AG$500,12,FALSE),0)&"% ("&IF(VLOOKUP($A$3,'G8-MI'!$A$6:$AG$500,11,FALSE)="",0,VLOOKUP($A$3,'G8-MI'!$A$6:$AG$500,11,FALSE))&")")),"NA") -> 14% (2)
A36: ED | B36: =IFERROR(VLOOKUP(TEXT($A$3,"0000"),MEM_ED!$A$2:$O$500,12,FALSE),0)-IFERROR(VLOOKUP(TEXT($A$3,"0000"),'ALG Gr08'!$A$3:$Q$216,15,FALSE),0)-IFERROR(VLOOKUP(TEXT($A$3,"0000"),'Geo G08'!$A$3:$Q$216,15,FALSE),0) -> 14191 | C36: =IFERROR((IF(OR(B36=0,B36="",B36="NA"),"NA",((IF(VLOOKUP($A$3,'G8-MED'!$A$6:$AG$500,3,FALSE)>=B36,"100% ("&VLOOKUP($A$3,'G8-MED'!$A$6:$AG$500,3,FALSE)&")",(ROUND((VLOOKUP($A$3,'G8-MED'!$A$6:$AG$500,3,FALSE)/B36*100),0))&"% ("&IF(VLOOKUP($A$3,'G8-MED'!$A$6:$AG$500,3,FALSE)="",0,VLOOKUP($A$3,'G8-MED'!$A$6:$AG$500,3,FALSE))&")"))))),"NA") -> 100% (15170) | D36: =IFERROR((IF($C36="NA","NA",VLOOKUP($A$3,'G8-MED'!$A$6:$AG$500,4,FALSE))),"NA") -> 13.41791694 | E36: =IFERROR((IF($C36="NA","NA",ROUND(VLOOKUP($A$3,'G8-MED'!$A$6:$AG$500,6,FALSE),0)&"% ("&IF(VLOOKUP($A$3,'G8-MED'!$A$6:$AG$500,5,FALSE)="",0,VLOOKUP($A$3,'G8-MED'!$A$6:$AG$500,5,FALSE))&")")),"NA") -> 4% (601) | F36: =IFERROR((IF($C36="NA","NA",VLOOKUP($A$3,'G8-MED'!$A$6:$AG$500,13,FALSE))),"NA") -> 4.774330916 | G36: =IFERROR((IF($C36="NA","NA",ROUND(VLOOKUP($A$3,'G8-MED'!$A$6:$AG$500,15,FALSE),0)&"% ("&IF(VLOOKUP($A$3,'G8-MED'!$A$6:$AG$500,14,FALSE)="",0,VLOOKUP($A$3,'G8-MED'!$A$6:$AG$500,14,FALSE))&")")),"NA") -> 22% (3402) | H36: =IFERROR((IF($C36="NA","NA",VLOOKUP($A$3,'G8-MED'!$A$6:$AG$500,7,FALSE))),"NA") -> 5.128444298 | I36: =IFERROR((IF($C36="NA","NA",ROUND(VLOOKUP($A$3,'G8-MED'!$A$6:$AG$500,9,FALSE),0)&"% ("&IF(VLOOKUP($A$3,'G8-MED'!$A$6:$AG$500,8,FALSE)="",0,VLOOKUP($A$3,'G8-MED'!$A$6:$AG$500,8,FALSE))&")")),"NA") -> 6% (875) | J36: =IFERROR((IF($C36="NA","NA",VLOOKUP($A$3,'G8-MED'!$A$6:$AG$500,10,FALSE))),"NA") -> 3.516961107 | K36: =IFERROR((IF($C36="NA","NA",ROUND(VLOOKUP($A$3,'G8-MED'!$A$6:$AG$500,12,FALSE),0)&"% ("&IF(VLOOKUP($A$3,'G8-MED'!$A$6:$AG$500,11,FALSE)="",0,VLOOKUP($A$3,'G8-MED'!$A$6:$AG$500,11,FALSE))&")")),"NA") -> 3% (514)
A37: ELL | B37: =IFERROR(VLOOKUP(TEXT($A$3,"0000"),MEM_ELL!$A$2:$O$500,12,FALSE),0)-IFERROR(VLOOKUP(TEXT($A$3,"0000"),'ALG Gr08'!$A$3:$Q$216,16,FALSE),0)-IFERROR(VLOOKUP(TEXT($A$3,"0000"),'Geo G08'!$A$3:$Q$216,16,FALSE),0) -> 3071 | C37: =IFERROR((IF(OR(B37=0,B37="",B37="NA"),"NA",((IF(VLOOKUP($A$3,'G8-MELL'!$A$6:$AG$500,3,FALSE)>=B37,"100% ("&VLOOKUP($A$3,'G8-MELL'!$A$6:$AG$500,3,FALSE)&")",(ROUND((VLOOKUP($A$3,'G8-MELL'!$A$6:$AG$500,3,FALSE)/B37*100),0))&"% ("&IF(VLOOKUP($A$3,'G8-MELL'!$A$6:$AG$500,3,FALSE)="",0,VLOOKUP($A$3,'G8-MELL'!$A$6:$AG$500,3,FALSE))&")"))))),"NA") -> 93% (2854) | D37: =IFERROR((IF($C37="NA","NA",VLOOKUP($A$3,'G8-MELL'!$A$6:$AG$500,4,FALSE))),"NA") -> 11.41065172 | E37: =IFERROR((IF($C37="NA","NA",ROUND(VLOOKUP($A$3,'G8-MELL'!$A$6:$AG$500,6,FALSE),0)&"% ("&IF(VLOOKUP($A$3,'G8-MELL'!$A$6:$AG$500,5,FALSE)="",0,VLOOKUP($A$3,'G8-MELL'!$A$6:$AG$500,5,FALSE))&")")),"NA") -> 1% (32) | F37: =IFERROR((IF($C37="NA","NA",VLOOKUP($A$3,'G8-MELL'!$A$6:$AG$500,13,FALSE))),"NA") -> 4.038192011 | G37: =IFERROR((IF($C37="NA","NA",ROUND(VLOOKUP($A$3,'G8-MELL'!$A$6:$AG$500,15,FALSE),0)&"% ("&IF(VLOOKUP($A$3,'G8-MELL'!$A$6:$AG$500,14,FALSE)="",0,VLOOKUP($A$3,'G8-MELL'!$A$6:$AG$500,14,FALSE))&")")),"NA") -> 10% (299) | H37: =IFERROR((IF($C37="NA","NA",VLOOKUP($A$3,'G8-MELL'!$A$6:$AG$500,7,FALSE))),"NA") -> 4.21899089 | I37: =IFERROR((IF($C37="NA","NA",ROUND(VLOOKUP($A$3,'G8-MELL'!$A$6:$AG$500,9,FALSE),0)&"% ("&IF(VLOOKUP($A$3,'G8-MELL'!$A$6:$AG$500,8,FALSE)="",0,VLOOKUP($A$3,'G8-MELL'!$A$6:$AG$500,8,FALSE))&")")),"NA") -> 2% (52) | J37: =IFERROR((IF($C37="NA","NA",VLOOKUP($A$3,'G8-MELL'!$A$6:$AG$500,10,FALSE))),"NA") -> 3.153468816 | K37: =IFERROR((IF($C37="NA","NA",ROUND(VLOOKUP($A$3,'G8-MELL'!$A$6:$AG$500,12,FALSE),0)&"% ("&IF(VLOOKUP($A$3,'G8-MELL'!$A$6:$AG$500,11,FALSE)="",0,VLOOKUP($A$3,'G8-MELL'!$A$6:$AG$500,11,FALSE))&")")),"NA") -> 2% (55)
A38: SWD | B38: =IFERROR(VLOOKUP(TEXT($A$3,"0000"),MEM_SWD!$A$2:$O$500,12,FALSE),0)-IFERROR(VLOOKUP(TEXT($A$3,"0000"),'ALG Gr08'!$A$3:$Q$216,17,FALSE),0)-IFERROR(VLOOKUP(TEXT($A$3,"0000"),'Geo G08'!$A$3:$Q$216,17,FALSE),0) -> 2403 | C38: =IFERROR((IF(OR(B38=0,B38="",B38="NA"),"NA",((IF(VLOOKUP($A$3,'G8-MSWD'!$A$6:$AG$500,3,FALSE)>=B38,"100% ("&VLOOKUP($A$3,'G8-MSWD'!$A$6:$AG$500,3,FALSE)&")",(ROUND((VLOOKUP($A$3,'G8-MSWD'!$A$6:$AG$500,3,FALSE)/B38*100),0))&"% ("&IF(VLOOKUP($A$3,'G8-MSWD'!$A$6:$AG$500,3,FALSE)="",0,VLOOKUP($A$3,'G8-MSWD'!$A$6:$AG$500,3,FALSE))&")"))))),"NA") -> 93% (2228) | D38: =IFERROR((IF($C38="NA","NA",VLOOKUP($A$3,'G8-MSWD'!$A$6:$AG$500,4,FALSE))),"NA") -> 11.20251346 | E38: =IFERROR((IF($C38="NA","NA",ROUND(VLOOKUP($A$3,'G8-MSWD'!$A$6:$AG$500,6,FALSE),0)&"% ("&IF(VLOOKUP($A$3,'G8-MSWD'!$A$6:$AG$500,5,FALSE)="",0,VLOOKUP($A$3,'G8-MSWD'!$A$6:$AG$500,5,FALSE))&")")),"NA") -> 1% (26) | F38: =IFERROR((IF($C38="NA","NA",VLOOKUP($A$3,'G8-MSWD'!$A$6:$AG$500,13,FALSE))),"NA") -> 3.833123878 | G38: =IFERROR((IF($C38="NA","NA",ROUND(VLOOKUP($A$3,'G8-MSWD'!$A$6:$AG$500,15,FALSE),0)&"% ("&IF(VLOOKUP($A$3,'G8-MSWD'!$A$6:$AG$500,14,FALSE)="",0,VLOOKUP($A$3,'G8-MSWD'!$A$6:$AG$500,14,FALSE))&")")),"NA") -> 10% (232) | H38: =IFERROR((IF($C38="NA","NA",VLOOKUP($A$3,'G8-MSWD'!$A$6:$AG$500,7,FALSE))),"NA") -> 4.268043088 | I38: =IFERROR((IF($C38="NA","NA",ROUND(VLOOKUP($A$3,'G8-MSWD'!$A$6:$AG$500,9,FALSE),0)&"% ("&IF(VLOOKUP($A$3,'G8-MSWD'!$A$6:$AG$500,8,FALSE)="",0,VLOOKUP($A$3,'G8-MSWD'!$A$6:$AG$500,8,FALSE))&")")),"NA") -> 2% (38) | J38: =IFERROR((IF($C38="NA","NA",VLOOKUP($A$3,'G8-MSWD'!$A$6:$AG$500,10,FALSE))),"NA") -> 3.11005386 | K38: =IFERROR((IF($C38="NA","NA",ROUND(VLOOKUP($A$3,'G8-MSWD'!$A$6:$AG$500,12,FALSE),0)&"% ("&IF(VLOOKUP($A$3,'G8-MSWD'!$A$6:$AG$500,11,FALSE)="",0,VLOOKUP($A$3,'G8-MSWD'!$A$6:$AG$500,11,FALSE))&")")),"NA") -> 2% (34)
A39: District Writing Pre-Test, Grade 8 | P39: Writing Grade 8
A40: Level of Proficiency at 3 or above | B40: Total # of Students | C40: % of Students Tested (Max. of the two prompts) | D40: Combined Prompts (Weighted Values) | H40: Expository | J40: Persuasive | P40: =H40 -> Expository | Q40: =J40 -> Persuasive
D41: Average Score | E41: % at 3.0 | F41: % at or above 4.0 | H41: Average Score | I41: % Proficient | J41: Average Score | K41: % Proficient | P41: Number Tested | Q41: Number Tested
A42: All students | B42: =IFERROR(VLOOKUP(TEXT($A$3,"0000"),Mem_All!$A$2:$O$500,12,FALSE),"NA") -> 27186 | C42: =IF(OR(B42=0,B42="",B42="NA"),"NA",IF(VLOOKUP($A$3,'G8-WALL'!$A$6:$Z$500,3,FALSE)>B42,"100% ("&VLOOKUP($A$3,'G8-WALL'!$A$6:$Z$500,3,FALSE)&")",ROUND(VLOOKUP($A$3,'G8-WALL'!$A$6:$Z$500,3,FALSE)/B42*100,0)&"%("&VLOOKUP($A$3,'G8-WALL'!$A$6:$Z$500,3,FALSE)&")")) -> 61%(16649) | D42: =IFERROR((IF($C42="NA","NA",VLOOKUP($A$3,'G8-WALL'!$A$6:$Z$500,4,FALSE))),"NA") -> 2.466833864 | E42: =IF($C42="NA","NA",ROUND(VLOOKUP($A$3,'G8-WALL'!$A$6:$Z$500,6,FALSE),0)&"% ("&VLOOKUP($A$3,'G8-WALL'!$A$6:$Z$500,5,FALSE)&")") -> 34% (5636) | F42: =IF($C42="NA","NA",ROUND(VLOOKUP($A$3,'G8-WALL'!$A$6:$Z$500,8,FALSE),0)&"% ("&VLOOKUP($A$3,'G8-WALL'!$A$6:$Z$500,7,FALSE)&")") -> 16% (2739) | H42: =IFERROR(IF(VLOOKUP($A$3,'G8-WALL'!$A$6:$Z$500,9,FALSE)="","Not Test",VLOOKUP($A$3,'G8-WALL'!$A$6:$Z$500,10,FALSE)),"NA") -> 2.599723222 | I42: =IFERROR(IF(VLOOKUP($A$3,'G8-WALL'!$A$6:$Z$500,3,FALSE)="","Not Test",VLOOKUP($A$3,'G8-WALL'!$A$6:$Z$500,16,FALSE)&"% ("&VLOOKUP($A$3,'G8-WALL'!$A$6:$Z$500,12,FALSE)&")"),"NA") -> 56% (8056) | J42: =IFERROR(IF(VLOOKUP($A$3,'G8-WALL'!$A$6:$Z$500,17,FALSE)="","Not Test",VLOOKUP($A$3,'G8-WALL'!$A$6:$Z$500,18,FALSE)),"NA") -> 2.351480569 | K42: =IFERROR(IF(VLOOKUP($A$3,'G8-WALL'!$A$6:$Z$500,17,FALSE)="","Not Test",VLOOKUP($A$3,'G8-WALL'!$A$6:$Z$500,24,FALSE)&"% ("&VLOOKUP($A$3,'G8-WALL'!$A$6:$Z$500,20,FALSE)&")"),"NA") -> 46% (7589) | P42: =IFERROR(IF(VLOOKUP($A$3,'G8-WALL'!$A$6:$Z$500,9,FALSE)="","0",VLOOKUP($A$3,'G8-WALL'!$A$6:$Z$500,9,FALSE)),"Not Test") -> 14452 | Q42: =IFERROR(IF(VLOOKUP($A$3,'G8-WALL'!$A$6:$Z$500,17,FALSE)="","0",VLOOKUP($A$3,'G8-WALL'!$A$6:$Z$500,17,FALSE)),"Not Test") -> 16649
A43: White | B43: =IFERROR(VLOOKUP(TEXT($A$3,"0000"),MEM_W!$A$2:$O$500,12,FALSE),"NA") -> 2285 | C43: =IF(OR(B43=0,B43="",B43="NA"),"NA",IF(VLOOKUP($A$3,'G8-WW'!$A$6:$Z$500,3,FALSE)>B43,"100% ("&VLOOKUP($A$3,'G8-WW'!$A$6:$Z$500,3,FALSE)&")",ROUND(VLOOKUP($A$3,'G8-WW'!$A$6:$Z$500,3,FALSE)/B43*100,0)&"%("&VLOOKUP($A$3,'G8-WW'!$A$6:$Z$500,3,FALSE)&")")) -> 64%(1460) | D43: =IFERROR((IF($C43="NA","NA",VLOOKUP($A$3,'G8-WW'!$A$6:$Z$500,4,FALSE))),"NA") -> 2.826430326 | E43: =IF($C43="NA","NA",ROUND(VLOOKUP($A$3,'G8-WW'!$A$6:$Z$500,6,FALSE),0)&"% ("&VLOOKUP($A$3,'G8-WW'!$A$6:$Z$500,5,FALSE)&")") -> 38% (552) | F43: =IF($C43="NA","NA",ROUND(VLOOKUP($A$3,'G8-WW'!$A$6:$Z$500,8,FALSE),0)&"% ("&VLOOKUP($A$3,'G8-WW'!$A$6:$Z$500,7,FALSE)&")") -> 26% (373) | H43: =IFERROR(IF(VLOOKUP($A$3,'G8-WW'!$A$6:$Z$500,9,FALSE)="","Not Test",VLOOKUP($A$3,'G8-WW'!$A$6:$Z$500,10,FALSE)),"NA") -> 2.976889849 | I43: =IFERROR(IF(VLOOKUP($A$3,'G8-WW'!$A$6:$Z$500,3,FALSE)="","Not Test",VLOOKUP($A$3,'G8-WW'!$A$6:$Z$500,16,FALSE)&"% ("&VLOOKUP($A$3,'G8-WW'!$A$6:$Z$500,12,FALSE)&")"),"NA") -> 69% (965) | J43: =IFERROR(IF(VLOOKUP($A$3,'G8-WW'!$A$6:$Z$500,17,FALSE)="","Not Test",VLOOKUP($A$3,'G8-WW'!$A$6:$Z$500,18,FALSE)),"NA") -> 2.683287671 | K43: =IFERROR(IF(VLOOKUP($A$3,'G8-WW'!$A$6:$Z$500,17,FALSE)="","Not Test",VLOOKUP($A$3,'G8-WW'!$A$6:$Z$500,24,FALSE)&"% ("&VLOOKUP($A$3,'G8-WW'!$A$6:$Z$500,20,FALSE)&")"),"NA") -> 58% (840) | P43: =IFERROR(IF(VLOOKUP($A$3,'G8-WW'!$A$6:$Z$500,9,FALSE)="","0",VLOOKUP($A$3,'G8-WW'!$A$6:$Z$500,9,FALSE)),"Not Test") -> 1389 | Q43: =IFERROR(IF(VLOOKUP($A$3,'G8-WW'!$A$6:$Z$500,17,FALSE)="","0",VLOOKUP($A$3,'G8-WW'!$A$6:$Z$500,17,FALSE)),"Not Test") -> 1460
A44: Black | B44: =IFERROR(VLOOKUP(TEXT($A$3,"0000"),MEM_B!$A$2:$O$500,12,FALSE),"NA") -> 6251 | C44: =IF(OR(B44=0,B44="",B44="NA"),"NA",IF(VLOOKUP($A$3,'G8-WB'!$A$6:$Z$500,3,FALSE)>B44,"100% ("&VLOOKUP($A$3,'G8-WB'!$A$6:$Z$500,3,FALSE)&")",ROUND(VLOOKUP($A$3,'G8-WB'!$A$6:$Z$500,3,FALSE)/B44*100,0)&"%("&VLOOKUP($A$3,'G8-WB'!$A$6:$Z$500,3,FALSE)&")")) -> 46%(2902) | D44: =IFERROR((IF($C44="NA","NA",VLOOKUP($A$3,'G8-WB'!$A$6:$Z$500,4,FALSE))),"NA") -> 2.267296957 | E44: =IF($C44="NA","NA",ROUND(VLOOKUP($A$3,'G8-WB'!$A$6:$Z$500,6,FALSE),0)&"% ("&VLOOKUP($A$3,'G8-WB'!$A$6:$Z$500,5,FALSE)&")") -> 30% (860) | F44: =IF($C44="NA","NA",ROUND(VLOOKUP($A$3,'G8-WB'!$A$6:$Z$500,8,FALSE),0)&"% ("&VLOOKUP($A$3,'G8-WB'!$A$6:$Z$500,7,FALSE)&")") -> 11% (333) | H44: =IFERROR(IF(VLOOKUP($A$3,'G8-WB'!$A$6:$Z$500,9,FALSE)="","Not Test",VLOOKUP($A$3,'G8-WB'!$A$6:$Z$500,10,FALSE)),"NA") -> 2.341003395 | I44: =IFERROR(IF(VLOOKUP($A$3,'G8-WB'!$A$6:$Z$500,3,FALSE)="","Not Test",VLOOKUP($A$3,'G8-WB'!$A$6:$Z$500,16,FALSE)&"% ("&VLOOKUP($A$3,'G8-WB'!$A$6:$Z$500,12,FALSE)&")"),"NA") -> 43% (1150) | J44: =IFERROR(IF(VLOOKUP($A$3,'G8-WB'!$A$6:$Z$500,17,FALSE)="","Not Test",VLOOKUP($A$3,'G8-WB'!$A$6:$Z$500,18,FALSE)),"NA") -> 2.199965541 | K44: =IFERROR(IF(VLOOKUP($A$3,'G8-WB'!$A$6:$Z$500,17,FALSE)="","Not Test",VLOOKUP($A$3,'G8-WB'!$A$6:$Z$500,24,FALSE)&"% ("&VLOOKUP($A$3,'G8-WB'!$A$6:$Z$500,20,FALSE)&")"),"NA") -> 39% (1133) | P44: =IFERROR(IF(VLOOKUP($A$3,'G8-WB'!$A$6:$Z$500,9,FALSE)="","0",VLOOKUP($A$3,'G8-WB'!$A$6:$Z$500,9,FALSE)),"Not Test") -> 2651 | Q44: =IFERROR(IF(VLOOKUP($A$3,'G8-WB'!$A$6:$Z$500,17,FALSE)="","0",VLOOKUP($A$3,'G8-WB'!$A$6:$Z$500,17,FALSE)),"Not Test") -> 2902
A45: Hispanic | B45: =IFERROR(VLOOKUP(TEXT($A$3,"0000"),MEM_H!$A$2:$O$500,12,FALSE),"NA") -> 18258 | C45: =IF(OR(B45=0,B45="",B45="NA"),"NA",IF(VLOOKUP($A$3,'G8-WH'!$A$6:$Z$500,3,FALSE)>B45,"100% ("&VLOOKUP($A$3,'G8-WH'!$A$6:$Z$500,3,FALSE)&")",ROUND(VLOOKUP($A$3,'G8-WH'!$A$6:$Z$500,3,FALSE)/B45*100,0)&"%("&VLOOKUP($A$3,'G8-WH'!$A$6:$Z$500,3,FALSE)&")")) -> 66%(12025) | D45: =IFERROR((IF($C45="NA","NA",VLOOKUP($A$3,'G8-WH'!$A$6:$Z$500,4,FALSE))),"NA") -> 2.46294896 | E45: =IF($C45="NA","NA",ROUND(VLOOKUP($A$3,'G8-WH'!$A$6:$Z$500,6,FALSE),0)&"% ("&VLOOKUP($A$3,'G8-WH'!$A$6:$Z$500,5,FALSE)&")") -> 34% (4136) | F45: =IF($C45="NA","NA",ROUND(VLOOKUP($A$3,'G8-WH'!$A$6:$Z$500,8,FALSE),0)&"% ("&VLOOKUP($A$3,'G8-WH'!$A$6:$Z$500,7,FALSE)&")") -> 16% (1941) | H45: =IFERROR(IF(VLOOKUP($A$3,'G8-WH'!$A$6:$Z$500,9,FALSE)="","Not Test",VLOOKUP($A$3,'G8-WH'!$A$6:$Z$500,10,FALSE)),"NA") -> 2.601275385 | I45: =IFERROR(IF(VLOOKUP($A$3,'G8-WH'!$A$6:$Z$500,3,FALSE)="","Not Test",VLOOKUP($A$3,'G8-WH'!$A$6:$Z$500,16,FALSE)&"% ("&VLOOKUP($A$3,'G8-WH'!$A$6:$Z$500,12,FALSE)&")"),"NA") -> 57% (5784) | J45: =IFERROR(IF(VLOOKUP($A$3,'G8-WH'!$A$6:$Z$500,17,FALSE)="","Not Test",VLOOKUP($A$3,'G8-WH'!$A$6:$Z$500,18,FALSE)),"NA") -> 2.345696466 | K45: =IFERROR(IF(VLOOKUP($A$3,'G8-WH'!$A$6:$Z$500,17,FALSE)="","Not Test",VLOOKUP($A$3,'G8-WH'!$A$6:$Z$500,24,FALSE)&"% ("&VLOOKUP($A$3,'G8-WH'!$A$6:$Z$500,20,FALSE)&")"),"NA") -> 45% (5445) | P45: =IFERROR(IF(VLOOKUP($A$3,'G8-WH'!$A$6:$Z$500,9,FALSE)="","0",VLOOKUP($A$3,'G8-WH'!$A$6:$Z$500,9,FALSE)),"Not Test") -> 10193 | Q45: =IFERROR(IF(VLOOKUP($A$3,'G8-WH'!$A$6:$Z$500,17,FALSE)="","0",VLOOKUP($A$3,'G8-WH'!$A$6:$Z$500,17,FALSE)),"Not Test") -> 12025
A46: Asian | B46: =IFERROR(VLOOKUP(TEXT($A$3,"0000"),MEM_A!$A$2:$O$500,12,FALSE),"NA") -> 300 | C46: =IF(OR(B46=0,B46="",B46="NA"),"NA",IF(VLOOKUP($A$3,'G8-WA'!$A$6:$Z$500,3,FALSE)>B46,"100% ("&VLOOKUP($A$3,'G8-WA'!$A$6:$Z$500,3,FALSE)&")",ROUND(VLOOKUP($A$3,'G8-WA'!$A$6:$Z$500,3,FALSE)/B46*100,0)&"%("&VLOOKUP($A$3,'G8-WA'!$A$6:$Z$500,3,FALSE)&")")) -> 66%(198) | D46: =IFERROR((IF($C46="NA","NA",VLOOKUP($A$3,'G8-WA'!$A$6:$Z$500,4,FALSE))),"NA") -> 3.065229111 | E46: =IF($C46="NA","NA",ROUND(VLOOKUP($A$3,'G8-WA'!$A$6:$Z$500,6,FALSE),0)&"% ("&VLOOKUP($A$3,'G8-WA'!$A$6:$Z$500,5,FALSE)&")") -> 37% (74) | F46: =IF($C46="NA","NA",ROUND(VLOOKUP($A$3,'G8-WA'!$A$6:$Z$500,8,FALSE),0)&"% ("&VLOOKUP($A$3,'G8-WA'!$A$6:$Z$500,7,FALSE)&")") -> 35% (69) | H46: =IFERROR(IF(VLOOKUP($A$3,'G8-WA'!$A$6:$Z$500,9,FALSE)="","Not Test",VLOOKUP($A$3,'G8-WA'!$A$6:$Z$500,10,FALSE)),"NA") -> 3.206358382 | I46: =IFERROR(IF(VLOOKUP($A$3,'G8-WA'!$A$6:$Z$500,3,FALSE)="","Not Test",VLOOKUP($A$3,'G8-WA'!$A$6:$Z$500,16,FALSE)&"% ("&VLOOKUP($A$3,'G8-WA'!$A$6:$Z$500,12,FALSE)&")"),"NA") -> 76% (131) | J46: =IFERROR(IF(VLOOKUP($A$3,'G8-WA'!$A$6:$Z$500,17,FALSE)="","Not Test",VLOOKUP($A$3,'G8-WA'!$A$6:$Z$500,18,FALSE)),"NA") -> 2.941919192 | K46: =IFERROR(IF(VLOOKUP($A$3,'G8-WA'!$A$6:$Z$500,17,FALSE)="","Not Test",VLOOKUP($A$3,'G8-WA'!$A$6:$Z$500,24,FALSE)&"% ("&VLOOKUP($A$3,'G8-WA'!$A$6:$Z$500,20,FALSE)&")"),"NA") -> 69% (137) | P46: =IFERROR(IF(VLOOKUP($A$3,'G8-WA'!$A$6:$Z$500,9,FALSE)="","0",VLOOKUP($A$3,'G8-WA'!$A$6:$Z$500,9,FALSE)),"Not Test") -> 173 | Q46: =IFERROR(IF(VLOOKUP($A$3,'G8-WA'!$A$6:$Z$500,17,FALSE)="","0",VLOOKUP($A$3,'G8-WA'!$A$6:$Z$500,17,FALSE)),"Not Test") -> 198
A47: Am. Indian | B47: =IFERROR(VLOOKUP(TEXT($A$3,"0000"),MEM_I!$A$2:$O$500,12,FALSE),"NA") -> 22 | C47: =IF(OR(B47=0,B47="",B47="NA"),"NA",IF(VLOOKUP($A$3,'G8-WI'!$A$6:$Z$500,3,FALSE)>B47,"100% ("&VLOOKUP($A$3,'G8-WI'!$A$6:$Z$500,3,FALSE)&")",ROUND(VLOOKUP($A$3,'G8-WI'!$A$6:$Z$500,3,FALSE)/B47*100,0)&"%("&VLOOKUP($A$3,'G8-WI'!$A$6:$Z$500,3,FALSE)&")")) -> 59%(13) | D47: =IFERROR((IF($C47="NA","NA",VLOOKUP($A$3,'G8-WI'!$A$6:$Z$500,4,FALSE))),"NA") -> 2.95 | E47: =IF($C47="NA","NA",ROUND(VLOOKUP($A$3,'G8-WI'!$A$6:$Z$500,6,FALSE),0)&"% ("&VLOOKUP($A$3,'G8-WI'!$A$6:$Z$500,5,FALSE)&")") -> 10% (1) | F47: =IF($C47="NA","NA",ROUND(VLOOKUP($A$3,'G8-WI'!$A$6:$Z$500,8,FALSE),0)&"% ("&VLOOKUP($A$3,'G8-WI'!$A$6:$Z$500,7,FALSE)&")") -> 50% (7) | H47: =IFERROR(IF(VLOOKUP($A$3,'G8-WI'!$A$6:$Z$500,9,FALSE)="","Not Test",VLOOKUP($A$3,'G8-WI'!$A$6:$Z$500,10,FALSE)),"NA") -> 3.428571429 | I47: =IFERROR(IF(VLOOKUP($A$3,'G8-WI'!$A$6:$Z$500,3,FALSE)="","Not Test",VLOOKUP($A$3,'G8-WI'!$A$6:$Z$500,16,FALSE)&"% ("&VLOOKUP($A$3,'G8-WI'!$A$6:$Z$500,12,FALSE)&")"),"NA") -> 71% (5) | J47: =IFERROR(IF(VLOOKUP($A$3,'G8-WI'!$A$6:$Z$500,17,FALSE)="","Not Test",VLOOKUP($A$3,'G8-WI'!$A$6:$Z$500,18,FALSE)),"NA") -> 2.692307692 | K47: =IFERROR(IF(VLOOKUP($A$3,'G8-WI'!$A$6:$Z$500,17,FALSE)="","Not Test",VLOOKUP($A$3,'G8-WI'!$A$6:$Z$500,24,FALSE)&"% ("&VLOOKUP($A$3,'G8-WI'!$A$6:$Z$500,20,FALSE)&")"),"NA") -> 54% (7) | P47: =IFERROR(IF(VLOOKUP($A$3,'G8-WI'!$A$6:$Z$500,9,FALSE)="","0",VLOOKUP($A$3,'G8-WI'!$A$6:$Z$500,9,FALSE)),"Not Test") -> 7 | Q47: =IFERROR(IF(VLOOKUP($A$3,'G8-WI'!$A$6:$Z$500,17,FALSE)="","0",VLOOKUP($A$3,'G8-WI'!$A$6:$Z$500,17,FALSE)),"Not Test") -> 13
A48: ED | B48: =IFERROR(VLOOKUP(TEXT($A$3,"0000"),MEM_ED!$A$2:$O$500,12,FALSE),"NA") -> 21162 | C48: =IF(OR(B48=0,B48="",B48="NA"),"NA",IF(VLOOKUP($A$3,'G8-WED'!$A$6:$Z$500,3,FALSE)>B48,"100% ("&VLOOKUP($A$3,'G8-WED'!$A$6:$Z$500,3,FALSE)&")",ROUND(VLOOKUP($A$3,'G8-WED'!$A$6:$Z$500,3,FALSE)/B48*100,0)&"%("&VLOOKUP($A$3,'G8-WED'!$A$6:$Z$500,3,FALSE)&")")) -> 61%(12854) | D48: =IFERROR((IF($C48="NA","NA",VLOOKUP($A$3,'G8-WED'!$A$6:$Z$500,4,FALSE))),"NA") -> 2.365825372 | E48: =IF($C48="NA","NA",ROUND(VLOOKUP($A$3,'G8-WED'!$A$6:$Z$500,6,FALSE),0)&"% ("&VLOOKUP($A$3,'G8-WED'!$A$6:$Z$500,5,FALSE)&")") -> 33% (4239) | F48: =IF($C48="NA","NA",ROUND(VLOOKUP($A$3,'G8-WED'!$A$6:$Z$500,8,FALSE),0)&"% ("&VLOOKUP($A$3,'G8-WED'!$A$6:$Z$500,7,FALSE)&")") -> 14% (1745) | H48: =IFERROR(IF(VLOOKUP($A$3,'G8-WED'!$A$6:$Z$500,9,FALSE)="","Not Test",VLOOKUP($A$3,'G8-WED'!$A$6:$Z$500,10,FALSE)),"NA") -> 2.489907349 | I48: =IFERROR(IF(VLOOKUP($A$3,'G8-WED'!$A$6:$Z$500,3,FALSE)="","Not Test",VLOOKUP($A$3,'G8-WED'!$A$6:$Z$500,16,FALSE)&"% ("&VLOOKUP($A$3,'G8-WED'!$A$6:$Z$500,12,FALSE)&")"),"NA") -> 52% (5757) | J48: =IFERROR(IF(VLOOKUP($A$3,'G8-WED'!$A$6:$Z$500,17,FALSE)="","Not Test",VLOOKUP($A$3,'G8-WED'!$A$6:$Z$500,18,FALSE)),"NA") -> 2.258510969 | K48: =IFERROR(IF(VLOOKUP($A$3,'G8-WED'!$A$6:$Z$500,17,FALSE)="","Not Test",VLOOKUP($A$3,'G8-WED'!$A$6:$Z$500,24,FALSE)&"% ("&VLOOKUP($A$3,'G8-WED'!$A$6:$Z$500,20,FALSE)&")"),"NA") -> 42% (5404) | P48: =IFERROR(IF(VLOOKUP($A$3,'G8-WED'!$A$6:$Z$500,9,FALSE)="","0",VLOOKUP($A$3,'G8-WED'!$A$6:$Z$500,9,FALSE)),"Not Test") -> 11117 | Q48: =IFERROR(IF(VLOOKUP($A$3,'G8-WED'!$A$6:$Z$500,17,FALSE)="","0",VLOOKUP($A$3,'G8-WED'!$A$6:$Z$500,17,FALSE)),"Not Test") -> 12854
A49: ELL | B49: =IFERROR(VLOOKUP(TEXT($A$3,"0000"),MEM_ELL!$A$2:$O$500,12,FALSE),"NA") -> 3595 | C49: =IF(OR(B49=0,B49="",B49="NA"),"NA",IF(VLOOKUP($A$3,'G8-WELL'!$A$6:$Z$500,3,FALSE)>B49,"100% ("&VLOOKUP($A$3,'G8-WELL'!$A$6:$Z$500,3,FALSE)&")",ROUND(VLOOKUP($A$3,'G8-WELL'!$A$6:$Z$500,3,FALSE)/B49*100,0)&"%("&VLOOKUP($A$3,'G8-WELL'!$A$6:$Z$500,3,FALSE)&")")) -> 58%(2082) | D49: =IFERROR((IF($C49="NA","NA",VLOOKUP($A$3,'G8-WELL'!$A$6:$Z$500,4,FALSE))),"NA") -> 1.016447368 | E49: =IF($C49="NA","NA",ROUND(VLOOKUP($A$3,'G8-WELL'!$A$6:$Z$500,6,FALSE),0)&"% ("&VLOOKUP($A$3,'G8-WELL'!$A$6:$Z$500,5,FALSE)&")") -> 15% (322) | F49: =IF($C49="NA","NA",ROUND(VLOOKUP($A$3,'G8-WELL'!$A$6:$Z$500,8,FALSE),0)&"% ("&VLOOKUP($A$3,'G8-WELL'!$A$6:$Z$500,7,FALSE)&")") -> 3% (71) | H49: =IFERROR(IF(VLOOKUP($A$3,'G8-WELL'!$A$6:$Z$500,9,FALSE)="","Not Test",VLOOKUP($A$3,'G8-WELL'!$A$6:$Z$500,10,FALSE)),"NA") -> 1.803208556 | I49: =IFERROR(IF(VLOOKUP($A$3,'G8-WELL'!$A$6:$Z$500,3,FALSE)="","Not Test",VLOOKUP($A$3,'G8-WELL'!$A$6:$Z$500,16,FALSE)&"% ("&VLOOKUP($A$3,'G8-WELL'!$A$6:$Z$500,12,FALSE)&")"),"NA") -> 22% (411) | J49: =IFERROR(IF(VLOOKUP($A$3,'G8-WELL'!$A$6:$Z$500,17,FALSE)="","Not Test",VLOOKUP($A$3,'G8-WELL'!$A$6:$Z$500,18,FALSE)),"NA") -> 0.3097982709 | K49: =IFERROR(IF(VLOOKUP($A$3,'G8-WELL'!$A$6:$Z$500,17,FALSE)="","Not Test",VLOOKUP($A$3,'G8-WELL'!$A$6:$Z$500,24,FALSE)&"% ("&VLOOKUP($A$3,'G8-WELL'!$A$6:$Z$500,20,FALSE)&")"),"NA") -> 16% (334) | P49: =IFERROR(IF(VLOOKUP($A$3,'G8-WELL'!$A$6:$Z$500,9,FALSE)="","0",VLOOKUP($A$3,'G8-WELL'!$A$6:$Z$500,9,FALSE)),"Not Test") -> 1870 | Q49: =IFERROR(IF(VLOOKUP($A$3,'G8-WELL'!$A$6:$Z$500,17,FALSE)="","0",VLOOKUP($A$3,'G8-WELL'!$A$6:$Z$500,17,FALSE)),"Not Test") -> 2082
A50: SWD | B50: =IFERROR(VLOOKUP(TEXT($A$3,"0000"),MEM_SWD!$A$2:$O$500,12,FALSE),"NA") -> 2698 | C50: =IF(OR(B50=0,B50="",B50="NA"),"NA",IF(VLOOKUP($A$3,'G8-WSWD'!$A$6:$Z$500,3,FALSE)>B50,"100% ("&VLOOKUP($A$3,'G8-WSWD'!$A$6:$Z$500,3,FALSE)&")",ROUND(VLOOKUP($A$3,'G8-WSWD'!$A$6:$Z$500,3,FALSE)/B50*100,0)&"%("&VLOOKUP($A$3,'G8-WSWD'!$A$6:$Z$500,3,FALSE)&")")) -> 58%(1573) | D50: =IFERROR((IF($C50="NA","NA",VLOOKUP($A$3,'G8-WSWD'!$A$6:$Z$500,4,FALSE))),"NA") -> 1.862615227 | E50: =IF($C50="NA","NA",ROUND(VLOOKUP($A$3,'G8-WSWD'!$A$6:$Z$500,6,FALSE),0)&"% ("&VLOOKUP($A$3,'G8-WSWD'!$A$6:$Z$500,5,FALSE)&")") -> 21% (337) | F50: =IF($C50="NA","NA",ROUND(VLOOKUP($A$3,'G8-WSWD'!$A$6:$Z$500,8,FALSE),0)&"% ("&VLOOKUP($A$3,'G8-WSWD'!$A$6:$Z$500,7,FALSE)&")") -> 5% (75) | H50: =IFERROR(IF(VLOOKUP($A$3,'G8-WSWD'!$A$6:$Z$500,9,FALSE)="","Not Test",VLOOKUP($A$3,'G8-WSWD'!$A$6:$Z$500,10,FALSE)),"NA") -> 1.976032448 | I50: =IFERROR(IF(VLOOKUP($A$3,'G8-WSWD'!$A$6:$Z$500,3,FALSE)="","Not Test",VLOOKUP($A$3,'G8-WSWD'!$A$6:$Z$500,16,FALSE)&"% ("&VLOOKUP($A$3,'G8-WSWD'!$A$6:$Z$500,12,FALSE)&")"),"NA") -> 31% (424) | J50: =IFERROR(IF(VLOOKUP($A$3,'G8-WSWD'!$A$6:$Z$500,17,FALSE)="","Not Test",VLOOKUP($A$3,'G8-WSWD'!$A$6:$Z$500,18,FALSE)),"NA") -> 1.764844247 | K50: =IFERROR(IF(VLOOKUP($A$3,'G8-WSWD'!$A$6:$Z$500,17,FALSE)="","Not Test",VLOOKUP($A$3,'G8-WSWD'!$A$6:$Z$500,24,FALSE)&"% ("&VLOOKUP($A$3,'G8-WSWD'!$A$6:$Z$500,20,FALSE)&")"),"NA") -> 22% (343) | P50: =IFERROR(IF(VLOOKUP($A$3,'G8-WSWD'!$A$6:$Z$500,9,FALSE)="","0",VLOOKUP($A$3,'G8-WSWD'!$A$6:$Z$500,9,FALSE)),"Not Test") -> 1356 | Q50: =IFERROR(IF(VLOOKUP($A$3,'G8-WSWD'!$A$6:$Z$500,17,FALSE)="","0",VLOOKUP($A$3,'G8-WSWD'!$A$6:$Z$500,17,FALSE)),"Not Test") -> 1573
A51: Science - Grade 8
A52: Level of Proficiency at 70% or above | B52: Total # of Students | C52: % of Students Tested | D52: ='G6-8 Matrix'!C19&" ["&'G6-8 Matrix'!C20&"]" -> Overall [73] | F52: ='G6-8 Matrix'!D19&" ["&'G6-8 Matrix'!D20&"]" -> Nature of Science [12] | H52: ='G6-8 Matrix'!E19&" ["&'G6-8 Matrix'!E20&"]" -> Earth & Space Science [22] | J52: ='G6-8 Matrix'!F19&" ["&'G6-8 Matrix'!F20&"]" -> Physical Science [20] | L52: ='G6-8 Matrix'!G19&" ["&'G6-8 Matrix'!G20&"]" -> Life Science [19]
D53: Average Score | E53: % Proficient | F53: Average Score | G53: % Proficient | H53: Average Score | I53: % Proficient | J53: Average Score | K53: % Proficient | L53: Average Score | M53: % Proficient
A54: All students | B54: =IFERROR(VLOOKUP(TEXT($A$3,"0000"),Mem_All!$A$2:$O$500,12,FALSE),"NA") -> 27186 | C54: =IFERROR((IF(OR(B54=0,B54="",B54="NA"),"NA",((IF(VLOOKUP($A$3,'G8-SALL'!$A$6:$AG$500,3,FALSE)>=B54,"100% ("&VLOOKUP($A$3,'G8-SALL'!$A$6:$AG$500,3,FALSE)&")",(ROUND((VLOOKUP($A$3,'G8-SALL'!$A$6:$AG$500,3,FALSE)/B54*100),0))&"% ("&VLOOKUP($A$3,'G8-SALL'!$A$6:$AG$500,3,FALSE)&")"))))),"NA") -> 89% (24106) | D54: =IFERROR((IF($C54="NA","NA",VLOOKUP($A$3,'G8-SALL'!$A$14:$AG$500,4,FALSE))),"NA") -> 29.29999924 | E54: =IFERROR((IF($C54="NA","NA",ROUND(VLOOKUP($A$3,'G8-SALL'!$A$14:$AG$500,9,FALSE)*100,0)&"% ("&IF(VLOOKUP($A$3,'G8-SALL'!$A$14:$AG$500,7,FALSE)="",0,VLOOKUP($A$3,'G8-SALL'!$A$14:$AG$500,7,FALSE))&")")),"NA") -> 5% (1196) | F54: =IFERROR((IF($C54="NA","NA",VLOOKUP($A$3,'G8-SALL'!$A$14:$AG$500,10,FALSE))),"NA") -> 4.699999809 | G54: =IFERROR((IF($C54="NA","NA",ROUND(VLOOKUP($A$3,'G8-SALL'!$A$14:$AG$500,15,FALSE)*100,0)&"% ("&VLOOKUP($A$3,'G8-SALL'!$A$14:$AG$500,13,FALSE)&")")),"NA") -> 7% (1780) | H54: =IFERROR((IF($C54="NA","NA",VLOOKUP($A$3,'G8-SALL'!$A$14:$AG$500,16,FALSE))),"NA") -> 9.100000381 | I54: =IFERROR((IF($C54="NA","NA",ROUND(VLOOKUP($A$3,'G8-SALL'!$A$14:$AG$500,21,FALSE)*100,0)&"% ("&VLOOKUP($A$3,'G8-SALL'!$A$14:$AG$500,19,FALSE)&")")),"NA") -> 8% (1933) | J54: =IFERROR((IF($C54="NA","NA",VLOOKUP($A$3,'G8-SALL'!$A$14:$AG$500,22,FALSE))),"NA") -> 8.100000381 | K54: =IFERROR((IF($C54="NA","NA",ROUND(VLOOKUP($A$3,'G8-SALL'!$A$14:$AG$500,27,FALSE)*100,0)&"% ("&VLOOKUP($A$3,'G8-SALL'!$A$14:$AG$500,25,FALSE)&")")),"NA") -> 10% (2440) | L54: =IFERROR((IF($C54="NA","NA",VLOOKUP($A$3,'G8-SALL'!$A$14:$AG$500,28,FALSE))),"NA") -> 7.5 | M54: =IFERROR((IF($C54="NA","NA",ROUND(VLOOKUP($A$3,'G8-SALL'!$A$14:$AG$500,33,FALSE)*100,0)&"% ("&VLOOKUP($A$3,'G8-SALL'!$A$14:$AG$500,31,FALSE)&")")),"NA") -> 4% (1025)

Sheet EOC Reports
A2: Click here to return to the school and sheet selection interface
A3: ='Select School'!B3 -> 9999
A4: =TEXT(A3,"0000")&"-"&VLOOKUP(A3,SchList!$A$2:$B$504,2,FALSE) -> 9999-District
A5: Algebra I | Q5: Algebra I
A6: Level of Proficiency at 70% or above | B6: Course Enrollment | C6: % and/or Number of Tested | D6: ='G9-10 Matrix'!C8&" ["&'G9-10 Matrix'!C9&"]" -> Overall [48] | F6: ='G9-10 Matrix'!D8&" ["&'G9-10 Matrix'!D9&"]" -> Functions, Linear Equations, and Inequalities [28] | H6: ='G9-10 Matrix'!E8&" ["&'G9-10 Matrix'!E9&"]" -> Polynomials [7] | J6: ='G9-10 Matrix'!F8&" ["&'G9-10 Matrix'!F9&"]" -> Rationals, Radicals, Quadratics, and Discrete Mathematics [13] | Q6: Number Tested
D7: Average Score | E7: % Proficient | F7: Average Score | G7: % Proficient | H7: Average Score | I7: % Proficient | J7: Average Score | K7: % Proficient
A8: All students | B8: =IFERROR(VLOOKUP(TEXT($A$3,"0000"),'Alg Enrollment'!$A$2:$Q$500,3,FALSE),0) -> 31983 | C8: =IFERROR((IF(OR(B8=0,B8="",B8="NA"),"NA",((IF(VLOOKUP($A$3,'ALG-ALL'!$A$6:$AM$500,3,FALSE)>=B8,"100% ("&VLOOKUP($A$3,'ALG-ALL'!$A$6:$AM$500,3,FALSE)&")",(ROUND((VLOOKUP($A$3,'ALG-ALL'!$A$6:$AM$500,3,FALSE)/B8*100),0))&"% ("&IF(VLOOKUP($A$3,'ALG-ALL'!$A$6:$AM$500,3,FALSE)="",0,VLOOKUP($A$3,'ALG-ALL'!$A$6:$AM$500,3,FALSE))&")"))))),"0% (0)") -> 92% (29390) | D8: =IFERROR((IF($C8="NA","NA",VLOOKUP($A$3,'ALG-ALL'!$A$6:$AM$500,4,FALSE))),"NA") -> 15.40400817 | E8: =IFERROR((IF($C8="NA","NA",ROUND(VLOOKUP($A$3,'ALG-ALL'!$A$6:$AM$500,6,FALSE),0)&"% ("&IF(VLOOKUP($A$3,'ALG-ALL'!$A$6:$AM$500,5,FALSE)="",0,VLOOKUP($A$3,'ALG-ALL'!$A$6:$AM$500,5,FALSE))&")")),"NA") -> 0% (88) | F8: =IFERROR((IF($C8="NA","NA",VLOOKUP($A$3,'ALG-ALL'!$A$6:$AM$500,7,FALSE))),"NA") -> 8.969479415 | G8: =IFERROR((IF($C8="NA","NA",ROUND(VLOOKUP($A$3,'ALG-ALL'!$A$6:$AM$500,9,FALSE),0)&"% ("&IF(VLOOKUP($A$3,'ALG-ALL'!$A$6:$AM$500,8,FALSE)="",0,VLOOKUP($A$3,'ALG-ALL'!$A$6:$AM$500,8,FALSE))&")")),"NA") -> 1% (167) | H8: =IFERROR((IF($C8="NA","NA",VLOOKUP($A$3,'ALG-ALL'!$A$6:$AM$500,10,FALSE))),"NA") -> 1.949962572 | I8: =IFERROR((IF($C8="NA","NA",ROUND(VLOOKUP($A$3,'ALG-ALL'!$A$6:$AM$500,12,FALSE),0)&"% ("&IF(VLOOKUP($A$3,'ALG-ALL'!$A$6:$AM$500,11,FALSE)="",0,VLOOKUP($A$3,'ALG-ALL'!$A$6:$AM$500,11,FALSE))&")")),"NA") -> 3% (795) | J8: =IFERROR((IF($C8="NA","NA",VLOOKUP($A$3,'ALG-ALL'!$A$6:$AM$500,13,FALSE))),"NA") -> 4.493429738 | K8: =IFERROR((IF($C8="NA","NA",ROUND(VLOOKUP($A$3,'ALG-ALL'!$A$6:$AM$500,15,FALSE),0)&"% ("&IF(VLOOKUP($A$3,'ALG-ALL'!$A$6:$AM$500,14,FALSE)="",0,VLOOKUP($A$3,'ALG-ALL'!$A$6:$AM$500,14,FALSE))&")")),"NA") -> 1% (319) | Q8: =IFERROR(VLOOKUP($A$3,'ALG-ALL'!$A$6:$AA$500,3,FALSE),"not tested") -> 29390
A9: FCAT Level 1 | B9: =IFERROR(VLOOKUP(TEXT($A$3,"0000"),'Alg Enrollment'!$A$2:$Q$500,4,FALSE),0) -> 5385 | C9: =IFERROR((IF(OR(B9=0,B9="",B9="NA"),"NA",((IF(VLOOKUP($A$3,'ALG-L1'!$A$6:$AM$500,3,FALSE)>=B9,"100% ("&VLOOKUP($A$3,'ALG-L1'!$A$6:$AM$500,3,FALSE)&")",(ROUND((VLOOKUP($A$3,'ALG-L1'!$A$6:$AM$500,3,FALSE)/B9*100),0))&"% ("&IF(VLOOKUP($A$3,'ALG-L1'!$A$6:$AM$500,3,FALSE)="",0,VLOOKUP($A$3,'ALG-L1'!$A$6:$AM$500,3,FALSE))&")"))))),"0% (0)") -> 100% (5497) | D9: =IFERROR((IF($C9="NA","NA",VLOOKUP($A$3,'ALG-L1'!$A$6:$AG$500,4,FALSE))),"NA") -> 12.38340913 | E9: =IFERROR((IF($C9="NA","NA",ROUND(VLOOKUP($A$3,'ALG-L1'!$A$6:$AG$500,6,FALSE),0)&"% ("&IF(VLOOKUP($A$3,'ALG-L1'!$A$6:$AG$500,5,FALSE)="",0,VLOOKUP($A$3,'ALG-L1'!$A$6:$AG$500,5,FALSE))&")")),"NA") -> 0% (4) | F9: =IFERROR((IF($C9="NA","NA",VLOOKUP($A$3,'ALG-L1'!$A$6:$AG$500,7,FALSE))),"NA") -> 7.000745861 | G9: =IFERROR((IF($C9="NA","NA",ROUND(VLOOKUP($A$3,'ALG-L1'!$A$6:$AG$500,9,FALSE),0)&"% ("&IF(VLOOKUP($A$3,'ALG-L1'!$A$6:$AG$500,8,FALSE)="",0,VLOOKUP($A$3,'ALG-L1'!$A$6:$AG$500,8,FALSE))&")")),"NA") -> 0% (3) | H9: =IFERROR((IF($C9="NA","NA",VLOOKUP($A$3,'ALG-L1'!$A$6:$AM$500,10,FALSE))),"NA") -> 1.894160451 | I9: =IFERROR((IF($C9="NA","NA",ROUND(VLOOKUP($A$3,'ALG-L1'!$A$6:$AM$500,12,FALSE),0)&"% ("&IF(VLOOKUP($A$3,'ALG-L1'!$A$6:$AM$500,11,FALSE)="",0,VLOOKUP($A$3,'ALG-L1'!$A$6:$AM$500,11,FALSE))&")")),"NA") -> 2% (100) | J9: =IFERROR((IF($C9="NA","NA",VLOOKUP($A$3,'ALG-L1'!$A$6:$AM$500,13,FALSE))),"NA") -> 3.477660542 | K9: =IFERROR((IF($C9="NA","NA",ROUND(VLOOKUP($A$3,'ALG-L1'!$A$6:$AM$500,15,FALSE),0)&"% ("&IF(VLOOKUP($A$3,'ALG-L1'!$A$6:$AM$500,14,FALSE)="",0,VLOOKUP($A$3,'ALG-L1'!$A$6:$AM$500,14,FALSE))&")")),"NA") -> 0% (7) | Q9: =IFERROR(VLOOKUP($A$3,'ALG-L1'!$A$6:$BX$500,3,FALSE),"not tested") -> 5497
A10: FCAT Level 2 | B10: =IFERROR(VLOOKUP(TEXT($A$3,"0000"),'Alg Enrollment'!$A$2:$Q$500,5,FALSE),0) -> 5393 | C10: =IFERROR((IF(OR(B10=0,B10="",B10="NA"),"NA",((IF(VLOOKUP($A$3,'ALG-L2'!$A$6:$AM$500,3,FALSE)>=B10,"100% ("&VLOOKUP($A$3,'ALG-L2'!$A$6:$AM$500,3,FALSE)&")",(ROUND((VLOOKUP($A$3,'ALG-L2'!$A$6:$AM$500,3,FALSE)/B10*100),0))&"% ("&IF(VLOOKUP($A$3,'ALG-L2'!$A$6:$AM$500,3,FALSE)="",0,VLOOKUP($A$3,'ALG-L2'!$A$6:$AM$500,3,FALSE))&")"))))),"0% (0)") -> 100% (5509) | D10: =IFERROR((IF($C10="NA","NA",VLOOKUP($A$3,'ALG-L2'!$A$6:$AG$500,4,FALSE))),"NA") -> 13.52721002 | E10: =IFERROR((IF($C10="NA","NA",ROUND(VLOOKUP($A$3,'ALG-L2'!$A$6:$AG$500,6,FALSE),0)&"% ("&IF(VLOOKUP($A$3,'ALG-L2'!$A$6:$AG$500,5,FALSE)="",0,VLOOKUP($A$3,'ALG-L2'!$A$6:$AG$500,5,FALSE))&")")),"NA") -> 0% (3) | F10: =IFERROR((IF($C10="NA","NA",VLOOKUP($A$3,'ALG-L2'!$A$6:$AG$500,7,FALSE))),"NA") -> 7.703630423 | G10: =IFERROR((IF($C10="NA","NA",ROUND(VLOOKUP($A$3,'ALG-L2'!$A$6:$AG$500,9,FALSE),0)&"% ("&IF(VLOOKUP($A$3,'ALG-L2'!$A$6:$AG$500,8,FALSE)="",0,VLOOKUP($A$3,'ALG-L2'!$A$6:$AG$500,8,FALSE))&")")),"NA") -> 0% (3) | H10: =IFERROR((IF($C10="NA","NA",VLOOKUP($A$3,'ALG-L2'!$A$6:$AM$500,10,FALSE))),"NA") -> 1.900381194 | I10: =IFERROR((IF($C10="NA","NA",ROUND(VLOOKUP($A$3,'ALG-L2'!$A$6:$AM$500,12,FALSE),0)&"% ("&IF(VLOOKUP($A$3,'ALG-L2'!$A$6:$AM$500,11,FALSE)="",0,VLOOKUP($A$3,'ALG-L2'!$A$6:$AM$500,11,FALSE))&")")),"NA") -> 2% (114) | J10: =IFERROR((IF($C10="NA","NA",VLOOKUP($A$3,'ALG-L2'!$A$6:$AM$500,13,FALSE))),"NA") -> 3.934289345 | K10: =IFERROR((IF($C10="NA","NA",ROUND(VLOOKUP($A$3,'ALG-L2'!$A$6:$AM$500,15,FALSE),0)&"% ("&IF(VLOOKUP($A$3,'ALG-L2'!$A$6:$AM$500,14,FALSE)="",0,VLOOKUP($A$3,'ALG-L2'!$A$6:$AM$500,14,FALSE))&")")),"NA") -> 0% (15) | Q10: =IFERROR(VLOOKUP($A$3,'ALG-L2'!$A$6:$BX$500,3,FALSE),"not tested") -> 5509
A11: FCAT Level 3 | B11: =IFERROR(VLOOKUP(TEXT($A$3,"0000"),'Alg Enrollment'!$A$2:$Q$500,6,FALSE),0) -> 9748 | C11: =IFERROR((IF(OR(B11=0,B11="",B11="NA"),"NA",((IF(VLOOKUP($A$3,'ALG-L3'!$A$6:$AM$500,3,FALSE)>=B11,"100% ("&VLOOKUP($A$3,'ALG-L3'!$A$6:$AM$500,3,FALSE)&")",(ROUND((VLOOKUP($A$3,'ALG-L3'!$A$6:$AM$500,3,FALSE)/B11*100),0))&"% ("&IF(VLOOKUP($A$3,'ALG-L3'!$A$6:$AM$500,3,FALSE)="",0,VLOOKUP($A$3,'ALG-L3'!$A$6:$AM$500,3,FALSE))&")"))))),"0% (0)") -> 98% (9544) | D11: =IFERROR((IF($C11="NA","NA",VLOOKUP($A$3,'ALG-L3'!$A$6:$AG$500,4,FALSE))),"NA") -> 15.39135583 | E11: =IFERROR((IF($C11="NA","NA",ROUND(VLOOKUP($A$3,'ALG-L3'!$A$6:$AG$500,6,FALSE),0)&"% ("&IF(VLOOKUP($A$3,'ALG-L3'!$A$6:$AG$500,5,FALSE)="",0,VLOOKUP($A$3,'ALG-L3'!$A$6:$AG$500,5,FALSE))&")")),"NA") -> 0% (7) | F11: =IFERROR((IF($C11="NA","NA",VLOOKUP($A$3,'ALG-L3'!$A$6:$AG$500,7,FALSE))),"NA") -> 8.916481559 | G11: =IFERROR((IF($C11="NA","NA",ROUND(VLOOKUP($A$3,'ALG-L3'!$A$6:$AG$500,9,FALSE),0)&"% ("&IF(VLOOKUP($A$3,'ALG-L3'!$A$6:$AG$500,8,FALSE)="",0,VLOOKUP($A$3,'ALG-L3'!$A$6:$AG$500,8,FALSE))&")")),"NA") -> 0% (7) | H11: =IFERROR((IF($C11="NA","NA",VLOOKUP($A$3,'ALG-L3'!$A$6:$AM$500,10,FALSE))),"NA") -> 1.919740151 | I11: =IFERROR((IF($C11="NA","NA",ROUND(VLOOKUP($A$3,'ALG-L3'!$A$6:$AM$500,12,FALSE),0)&"% ("&IF(VLOOKUP($A$3,'ALG-L3'!$A$6:$AM$500,11,FALSE)="",0,VLOOKUP($A$3,'ALG-L3'!$A$6:$AM$500,11,FALSE))&")")),"NA") -> 2% (234) | J11: =IFERROR((IF($C11="NA","NA",VLOOKUP($A$3,'ALG-L3'!$A$6:$AM$500,13,FALSE))),"NA") -> 4.560970243 | K11: =IFERROR((IF($C11="NA","NA",ROUND(VLOOKUP($A$3,'ALG-L3'!$A$6:$AM$500,15,FALSE),0)&"% ("&IF(VLOOKUP($A$3,'ALG-L3'!$A$6:$AM$500,14,FALSE)="",0,VLOOKUP($A$3,'ALG-L3'!$A$6:$AM$500,14,FALSE))&")")),"NA") -> 1% (74) | Q11: =IFERROR(VLOOKUP($A$3,'ALG-L3'!$A$6:$BX$500,3,FALSE),"not tested") -> 9544
A12: FCAT Level 4 | B12: =IFERROR(VLOOKUP(TEXT($A$3,"0000"),'Alg Enrollment'!$A$2:$Q$500,7,FALSE),0) -> 5529 | C12: =IFERROR((IF(OR(B12=0,B12="",B12="NA"),"NA",((IF(VLOOKUP($A$3,'ALG-L4'!$A$6:$AM$500,3,FALSE)>=B12,"100% ("&VLOOKUP($A$3,'ALG-L4'!$A$6:$AM$500,3,FALSE)&")",(ROUND((VLOOKUP($A$3,'ALG-L4'!$A$6:$AM$500,3,FALSE)/B12*100),0))&"% ("&IF(VLOOKUP($A$3,'ALG-L4'!$A$6:$AM$500,3,FALSE)="",0,VLOOKUP($A$3,'ALG-L4'!$A$6:$AM$500,3,FALSE))&")"))))),"0% (0)") -> 95% (5226) | D12: =IFERROR((IF($C12="NA","NA",VLOOKUP($A$3,'ALG-L4'!$A$6:$AG$500,4,FALSE))),"NA") -> 18.2115576 | E12: =IFERROR((IF($C12="NA","NA",ROUND(VLOOKUP($A$3,'ALG-L4'!$A$6:$AG$500,6,FALSE),0)&"% ("&IF(VLOOKUP($A$3,'ALG-L4'!$A$6:$AG$500,5,FALSE)="",0,VLOOKUP($A$3,'ALG-L4'!$A$6:$AG$500,5,FALSE))&")")),"NA") -> 0% (24) | F12: =IFERROR((IF($C12="NA","NA",VLOOKUP($A$3,'ALG-L4'!$A$6:$AG$500,7,FALSE))),"NA") -> 10.79642174 | G12: =IFERROR((IF($C12="NA","NA",ROUND(VLOOKUP($A$3,'ALG-L4'!$A$6:$AG$500,9,FALSE),0)&"% ("&IF(VLOOKUP($A$3,'ALG-L4'!$A$6:$AG$500,8,FALSE)="",0,VLOOKUP($A$3,'ALG-L4'!$A$6:$AG$500,8,FALSE))&")")),"NA") -> 1% (41) | H12: =IFERROR((IF($C12="NA","NA",VLOOKUP($A$3,'ALG-L4'!$A$6:$AM$500,10,FALSE))),"NA") -> 2.007252201 | I12: =IFERROR((IF($C12="NA","NA",ROUND(VLOOKUP($A$3,'ALG-L4'!$A$6:$AM$500,12,FALSE),0)&"% ("&IF(VLOOKUP($A$3,'ALG-L4'!$A$6:$AM$500,11,FALSE)="",0,VLOOKUP($A$3,'ALG-L4'!$A$6:$AM$500,11,FALSE))&")")),"NA") -> 3% (177) | J12: =IFERROR((IF($C12="NA","NA",VLOOKUP($A$3,'ALG-L4'!$A$6:$AM$500,13,FALSE))),"NA") -> 5.416628396 | K12: =IFERROR((IF($C12="NA","NA",ROUND(VLOOKUP($A$3,'ALG-L4'!$A$6:$AM$500,15,FALSE),0)&"% ("&IF(VLOOKUP($A$3,'ALG-L4'!$A$6:$AM$500,14,FALSE)="",0,VLOOKUP($A$3,'ALG-L4'!$A$6:$AM$500,14,FALSE))&")")),"NA") -> 2% (117) | Q12: =IFERROR(VLOOKUP($A$3,'ALG-L4'!$A$6:$BX$500,3,FALSE),"not tested") -> 5226
A13: FCAT Level 5 | B13: =IFERROR(VLOOKUP(TEXT($A$3,"0000"),'Alg Enrollment'!$A$2:$Q$500,8,FALSE),0) -> 2698 | C13: =IFERROR((IF(OR(B13=0,B13="",B13="NA"),"NA",((IF(VLOOKUP($A$3,'ALG-L5'!$A$6:$AM$500,3,FALSE)>=B13,"100% ("&VLOOKUP($A$3,'ALG-L5'!$A$6:$AM$500,3,FALSE)&")",(ROUND((VLOOKUP($A$3,'ALG-L5'!$A$6:$AM$500,3,FALSE)/B13*100),0))&"% ("&IF(VLOOKUP($A$3,'ALG-L5'!$A$6:$AM$500,3,FALSE)="",0,VLOOKUP($A$3,'ALG-L5'!$A$6:$AM$500,3,FALSE))&")"))))),"0% (0)") -> 95% (2556) | D13: =IFERROR((IF($C13="NA","NA",VLOOKUP($A$3,'ALG-L5'!$A$6:$AG$500,4,FALSE))),"NA") -> 20.9663928 | E13: =IFERROR((IF($C13="NA","NA",ROUND(VLOOKUP($A$3,'ALG-L5'!$A$6:$AG$500,6,FALSE),0)&"% ("&IF(VLOOKUP($A$3,'ALG-L5'!$A$6:$AG$500,5,FALSE)="",0,VLOOKUP($A$3,'ALG-L5'!$A$6:$AG$500,5,FALSE))&")")),"NA") -> 2% (46) | F13: =IFERROR((IF($C13="NA","NA",VLOOKUP($A$3,'ALG-L5'!$A$6:$AG$500,7,FALSE))),"NA") -> 12.79217527 | G13: =IFERROR((IF($C13="NA","NA",ROUND(VLOOKUP($A$3,'ALG-L5'!$A$6:$AG$500,9,FALSE),0)&"% ("&IF(VLOOKUP($A$3,'ALG-L5'!$A$6:$AG$500,8,FALSE)="",0,VLOOKUP($A$3,'ALG-L5'!$A$6:$AG$500,8,FALSE))&")")),"NA") -> 4% (106) | H13: =IFERROR((IF($C13="NA","NA",VLOOKUP($A$3,'ALG-L5'!$A$6:$AM$500,10,FALSE))),"NA") -> 2.107942097 | I13: =IFERROR((IF($C13="NA","NA",ROUND(VLOOKUP($A$3,'ALG-L5'!$A$6:$AM$500,12,FALSE),0)&"% ("&IF(VLOOKUP($A$3,'ALG-L5'!$A$6:$AM$500,11,FALSE)="",0,VLOOKUP($A$3,'ALG-L5'!$A$6:$AM$500,11,FALSE))&")")),"NA") -> 5% (125) | J13: =IFERROR((IF($C13="NA","NA",VLOOKUP($A$3,'ALG-L5'!$A$6:$AM$500,13,FALSE))),"NA") -> 6.073787167 | K13: =IFERROR((IF($C13="NA","NA",ROUND(VLOOKUP($A$3,'ALG-L5'!$A$6:$AM$500,15,FALSE),0)&"% ("&IF(VLOOKUP($A$3,'ALG-L5'!$A$6:$AM$500,14,FALSE)="",0,VLOOKUP($A$3,'ALG-L5'!$A$6:$AM$500,14,FALSE))&")")),"NA") -> 4% (100) | Q13: =IFERROR(VLOOKUP($A$3,'ALG-L5'!$A$6:$BX$500,3,FALSE),"not tested") -> 2556
A14: White | B14: =IFERROR(VLOOKUP(TEXT($A$3,"0000"),'Alg Enrollment'!$A$2:$Q$500,10,FALSE),0) -> 2747 | C14: =IFERROR((IF(OR(B14=0,B14="",B14="NA"),"NA",((IF(VLOOKUP($A$3,'ALG-W'!$A$6:$AG$500,3,FALSE)>=B14,"100% ("&VLOOKUP($A$3,'ALG-W'!$A$6:$AG$500,3,FALSE)&")",(ROUND((VLOOKUP($A$3,'ALG-W'!$A$6:$AG$500,3,FALSE)/B14*100),0))&"% ("&IF(VLOOKUP($A$3,'ALG-W'!$A$6:$AG$500,3,FALSE)="",0,VLOOKUP($A$3,'ALG-W'!$A$6:$AG$500,3,FALSE))&")"))))),"0% (0)") -> 90% (2473) | D14: =IFERROR((IF($C14="NA","NA",VLOOKUP($A$3,'ALG-W'!$A$6:$AG$500,4,FALSE))),"NA") -> 16.94937323 | E14: =IFERROR((IF($C14="NA","NA",ROUND(VLOOKUP($A$3,'ALG-W'!$A$6:$AG$500,6,FALSE),0)&"% ("&IF(VLOOKUP($A$3,'ALG-W'!$A$6:$AG$500,5,FALSE)="",0,VLOOKUP($A$3,'ALG-W'!$A$6:$AG$500,5,FALSE))&")")),"NA") -> 1% (18) | F14: =IFERROR((IF($C14="NA","NA",VLOOKUP($A$3,'ALG-W'!$A$6:$AG$500,7,FALSE))),"NA") -> 10.08904165 | G14: =IFERROR((IF($C14="NA","NA",ROUND(VLOOKUP($A$3,'ALG-W'!$A$6:$AG$500,9,FALSE),0)&"% ("&IF(VLOOKUP($A$3,'ALG-W'!$A$6:$AG$500,8,FALSE)="",0,VLOOKUP($A$3,'ALG-W'!$A$6:$AG$500,8,FALSE))&")")),"NA") -> 2% (39) | H14: =IFERROR((IF($C14="NA","NA",VLOOKUP($A$3,'ALG-W'!$A$6:$AM$500,10,FALSE))),"NA") -> 1.939264052 | I14: =IFERROR((IF($C14="NA","NA",ROUND(VLOOKUP($A$3,'ALG-W'!$A$6:$AM$500,12,FALSE),0)&"% ("&IF(VLOOKUP($A$3,'ALG-W'!$A$6:$AM$500,11,FALSE)="",0,VLOOKUP($A$3,'ALG-W'!$A$6:$AM$500,11,FALSE))&")")),"NA") -> 3% (77) | J14: =IFERROR((IF($C14="NA","NA",VLOOKUP($A$3,'ALG-W'!$A$6:$AM$500,13,FALSE))),"NA") -> 4.934249899 | K14: =IFERROR((IF($C14="NA","NA",ROUND(VLOOKUP($A$3,'ALG-W'!$A$6:$AM$500,15,FALSE),0)&"% ("&IF(VLOOKUP($A$3,'ALG-W'!$A$6:$AM$500,14,FALSE)="",0,VLOOKUP($A$3,'ALG-W'!$A$6:$AM$500,14,FALSE))&")")),"NA") -> 2% (43) | Q14: =IFERROR(VLOOKUP($A$3,'ALG-W'!$A$6:$BX$500,3,FALSE),"not tested") -> 2473
A15: Black | B15: =IFERROR(VLOOKUP(TEXT($A$3,"0000"),'Alg Enrollment'!$A$2:$Q$500,11,FALSE),0) -> 7469 | C15: =IFERROR((IF(OR(B15=0,B15="",B15="NA"),"NA",((IF(VLOOKUP($A$3,'ALG-B'!$A$6:$AG$500,3,FALSE)>=B15,"100% ("&VLOOKUP($A$3,'ALG-B'!$A$6:$AG$500,3,FALSE)&")",(ROUND((VLOOKUP($A$3,'ALG-B'!$A$6:$AG$500,3,FALSE)/B15*100),0))&"% ("&IF(VLOOKUP($A$3,'ALG-B'!$A$6:$AG$500,3,FALSE)="",0,VLOOKUP($A$3,'ALG-B'!$A$6:$AG$500,3,FALSE))&")"))))),"0% (0)") -> 91% (6797) | D15: =IFERROR((IF($C15="NA","NA",VLOOKUP($A$3,'ALG-B'!$A$6:$AG$500,4,FALSE))),"NA") -> 14.51032809 | E15: =IFERROR((IF($C15="NA","NA",ROUND(VLOOKUP($A$3,'ALG-B'!$A$6:$AG$500,6,FALSE),0)&"% ("&IF(VLOOKUP($A$3,'ALG-B'!$A$6:$AG$500,5,FALSE)="",0,VLOOKUP($A$3,'ALG-B'!$A$6:$AG$500,5,FALSE))&")")),"NA") -> 0% (14) | F15: =IFERROR((IF($C15="NA","NA",VLOOKUP($A$3,'ALG-B'!$A$6:$AG$500,7,FALSE))),"NA") -> 8.307488598 | G15: =IFERROR((IF($C15="NA","NA",ROUND(VLOOKUP($A$3,'ALG-B'!$A$6:$AG$500,9,FALSE),0)&"% ("&IF(VLOOKUP($A$3,'ALG-B'!$A$6:$AG$500,8,FALSE)="",0,VLOOKUP($A$3,'ALG-B'!$A$6:$AG$500,8,FALSE))&")")),"NA") -> 0% (16) | H15: =IFERROR((IF($C15="NA","NA",VLOOKUP($A$3,'ALG-B'!$A$6:$AM$500,10,FALSE))),"NA") -> 1.960923937 | I15: =IFERROR((IF($C15="NA","NA",ROUND(VLOOKUP($A$3,'ALG-B'!$A$6:$AM$500,12,FALSE),0)&"% ("&IF(VLOOKUP($A$3,'ALG-B'!$A$6:$AM$500,11,FALSE)="",0,VLOOKUP($A$3,'ALG-B'!$A$6:$AM$500,11,FALSE))&")")),"NA") -> 3% (171) | J15: =IFERROR((IF($C15="NA","NA",VLOOKUP($A$3,'ALG-B'!$A$6:$AM$500,13,FALSE))),"NA") -> 4.249977931 | K15: =IFERROR((IF($C15="NA","NA",ROUND(VLOOKUP($A$3,'ALG-B'!$A$6:$AM$500,15,FALSE),0)&"% ("&IF(VLOOKUP($A$3,'ALG-B'!$A$6:$AM$500,14,FALSE)="",0,VLOOKUP($A$3,'ALG-B'!$A$6:$AM$500,14,FALSE))&")")),"NA") -> 1% (62) | Q15: =IFERROR(VLOOKUP($A$3,'ALG-B'!$A$6:$BX$500,3,FALSE),"not tested") -> 6797
A16: Hispanic | B16: =IFERROR(VLOOKUP(TEXT($A$3,"0000"),'Alg Enrollment'!$A$2:$Q$500,12,FALSE),0) -> 21295 | C16: =IFERROR((IF(OR(B16=0,B16="",B16="NA"),"NA",((IF(VLOOKUP($A$3,'ALG-H'!$A$6:$AG$500,3,FALSE)>=B16,"100% ("&VLOOKUP($A$3,'ALG-H'!$A$6:$AG$500,3,FALSE)&")",(ROUND((VLOOKUP($A$3,'ALG-H'!$A$6:$AG$500,3,FALSE)/B16*100),0))&"% ("&IF(VLOOKUP($A$3,'ALG-H'!$A$6:$AG$500,3,FALSE)="",0,VLOOKUP($A$3,'ALG-H'!$A$6:$AG$500,3,FALSE))&")"))))),"0% (0)") -> 92% (19686) | D16: =IFERROR((IF($C16="NA","NA",VLOOKUP($A$3,'ALG-H'!$A$6:$AG$500,4,FALSE))),"NA") -> 15.43987605 | E16: =IFERROR((IF($C16="NA","NA",ROUND(VLOOKUP($A$3,'ALG-H'!$A$6:$AG$500,6,FALSE),0)&"% ("&IF(VLOOKUP($A$3,'ALG-H'!$A$6:$AG$500,5,FALSE)="",0,VLOOKUP($A$3,'ALG-H'!$A$6:$AG$500,5,FALSE))&")")),"NA") -> 0% (50) | F16: =IFERROR((IF($C16="NA","NA",VLOOKUP($A$3,'ALG-H'!$A$6:$AG$500,7,FALSE))),"NA") -> 8.996124149 | G16: =IFERROR((IF($C16="NA","NA",ROUND(VLOOKUP($A$3,'ALG-H'!$A$6:$AG$500,9,FALSE),0)&"% ("&IF(VLOOKUP($A$3,'ALG-H'!$A$6:$AG$500,8,FALSE)="",0,VLOOKUP($A$3,'ALG-H'!$A$6:$AG$500,8,FALSE))&")")),"NA") -> 1% (101) | H16: =IFERROR((IF($C16="NA","NA",VLOOKUP($A$3,'ALG-H'!$A$6:$AM$500,10,FALSE))),"NA") -> 1.935121406 | I16: =IFERROR((IF($C16="NA","NA",ROUND(VLOOKUP($A$3,'ALG-H'!$A$6:$AM$500,12,FALSE),0)&"% ("&IF(VLOOKUP($A$3,'ALG-H'!$A$6:$AM$500,11,FALSE)="",0,VLOOKUP($A$3,'ALG-H'!$A$6:$AM$500,11,FALSE))&")")),"NA") -> 3% (520) | J16: =IFERROR((IF($C16="NA","NA",VLOOKUP($A$3,'ALG-H'!$A$6:$AM$500,13,FALSE))),"NA") -> 4.506786549 | K16: =IFERROR((IF($C16="NA","NA",ROUND(VLOOKUP($A$3,'ALG-H'!$A$6:$AM$500,15,FALSE),0)&"% ("&IF(VLOOKUP($A$3,'ALG-H'!$A$6:$AM$500,14,FALSE)="",0,VLOOKUP($A$3,'ALG-H'!$A$6:$AM$500,14,FALSE))&")")),"NA") -> 1% (202) | Q16: =IFERROR(VLOOKUP($A$3,'ALG-H'!$A$6:$BX$500,3,FALSE),"not tested") -> 19686
A17: Asian | B17: =IFERROR(VLOOKUP(TEXT($A$3,"0000"),'Alg Enrollment'!$A$2:$Q$500,13,FALSE),0) -> 357 | C17: =IFERROR((IF(OR(B17=0,B17="",B17="NA"),"NA",((IF(VLOOKUP($A$3,'ALG-A'!$A$6:$AG$500,3,FALSE)>=B17,"100% ("&VLOOKUP($A$3,'ALG-A'!$A$6:$AG$500,3,FALSE)&")",(ROUND((VLOOKUP($A$3,'ALG-A'!$A$6:$AG$500,3,FALSE)/B17*100),0))&"% ("&IF(VLOOKUP($A$3,'ALG-A'!$A$6:$AG$500,3,FALSE)="",0,VLOOKUP($A$3,'ALG-A'!$A$6:$AG$500,3,FALSE))&")"))))),"0% (0)") -> 92% (330) | D17: =IFERROR((IF($C17="NA","NA",VLOOKUP($A$3,'ALG-A'!$A$6:$AG$500,4,FALSE))),"NA") -> 19.41363636 | E17: =IFERROR((IF($C17="NA","NA",ROUND(VLOOKUP($A$3,'ALG-A'!$A$6:$AG$500,6,FALSE),0)&"% ("&IF(VLOOKUP($A$3,'ALG-A'!$A$6:$AG$500,5,FALSE)="",0,VLOOKUP($A$3,'ALG-A'!$A$6:$AG$500,5,FALSE))&")")),"NA") -> 2% (6) | F17: =IFERROR((IF($C17="NA","NA",VLOOKUP($A$3,'ALG-A'!$A$6:$AG$500,7,FALSE))),"NA") -> 11.55181818 | G17: =IFERROR((IF($C17="NA","NA",ROUND(VLOOKUP($A$3,'ALG-A'!$A$6:$AG$500,9,FALSE),0)&"% ("&IF(VLOOKUP($A$3,'ALG-A'!$A$6:$AG$500,8,FALSE)="",0,VLOOKUP($A$3,'ALG-A'!$A$6:$AG$500,8,FALSE))&")")),"NA") -> 3% (11) | H17: =IFERROR((IF($C17="NA","NA",VLOOKUP($A$3,'ALG-A'!$A$6:$AM$500,10,FALSE))),"NA") -> 2.232424242 | I17: =IFERROR((IF($C17="NA","NA",ROUND(VLOOKUP($A$3,'ALG-A'!$A$6:$AM$500,12,FALSE),0)&"% ("&IF(VLOOKUP($A$3,'ALG-A'!$A$6:$AM$500,11,FALSE)="",0,VLOOKUP($A$3,'ALG-A'!$A$6:$AM$500,11,FALSE))&")")),"NA") -> 7% (23) | J17: =IFERROR((IF($C17="NA","NA",VLOOKUP($A$3,'ALG-A'!$A$6:$AM$500,13,FALSE))),"NA") -> 5.647575758 | K17: =IFERROR((IF($C17="NA","NA",ROUND(VLOOKUP($A$3,'ALG-A'!$A$6:$AM$500,15,FALSE),0)&"% ("&IF(VLOOKUP($A$3,'ALG-A'!$A$6:$AM$500,14,FALSE)="",0,VLOOKUP($A$3,'ALG-A'!$A$6:$AM$500,14,FALSE))&")")),"NA") -> 3% (9) | Q17: =IFERROR(VLOOKUP($A$3,'ALG-A'!$A$6:$BX$500,3,FALSE),"not tested") -> 330
A18: Am. Indian | B18: =IFERROR(VLOOKUP(TEXT($A$3,"0000"),'Alg Enrollment'!$A$2:$Q$500,14,FALSE),0) -> 29 | C18: =IFERROR((IF(OR(B18=0,B18="",B18="NA"),"NA",((IF(VLOOKUP($A$3,'ALG-I'!$A$6:$AG$500,3,FALSE)>=B18,"100% ("&VLOOKUP($A$3,'ALG-I'!$A$6:$AG$500,3,FALSE)&")",(ROUND((VLOOKUP($A$3,'ALG-I'!$A$6:$AG$500,3,FALSE)/B18*100),0))&"% ("&IF(VLOOKUP($A$3,'ALG-I'!$A$6:$AG$500,3,FALSE)="",0,VLOOKUP($A$3,'ALG-I'!$A$6:$AG$500,3,FALSE))&")"))))),"0% (0)") -> 86% (25) | D18: =IFERROR((IF($C18="NA","NA",VLOOKUP($A$3,'ALG-I'!$A$6:$AG$500,4,FALSE))),"NA") -> 15.44 | E18: =IFERROR((IF($C18="NA","NA",ROUND(VLOOKUP($A$3,'ALG-I'!$A$6:$AG$500,6,FALSE),0)&"% ("&IF(VLOOKUP($A$3,'ALG-I'!$A$6:$AG$500,5,FALSE)="",0,VLOOKUP($A$3,'ALG-I'!$A$6:$AG$500,5,FALSE))&")")),"NA") -> 0% (0) | F18: =IFERROR((IF($C18="NA","NA",VLOOKUP($A$3,'ALG-I'!$A$6:$AG$500,7,FALSE))),"NA") -> 8.996 | G18: =IFERROR((IF($C18="NA","NA",ROUND(VLOOKUP($A$3,'ALG-I'!$A$6:$AG$500,9,FALSE),0)&"% ("&IF(VLOOKUP($A$3,'ALG-I'!$A$6:$AG$500,8,FALSE)="",0,VLOOKUP($A$3,'ALG-I'!$A$6:$AG$500,8,FALSE))&")")),"NA") -> 0% (0) | H18: =IFERROR((IF($C18="NA","NA",VLOOKUP($A$3,'ALG-I'!$A$6:$AM$500,10,FALSE))),"NA") -> 2.12 | I18: =IFERROR((IF($C18="NA","NA",ROUND(VLOOKUP($A$3,'ALG-I'!$A$6:$AM$500,12,FALSE),0)&"% ("&IF(VLOOKUP($A$3,'ALG-I'!$A$6:$AM$500,11,FALSE)="",0,VLOOKUP($A$3,'ALG-I'!$A$6:$AM$500,11,FALSE))&")")),"NA") -> 8% (2) | J18: =IFERROR((IF($C18="NA","NA",VLOOKUP($A$3,'ALG-I'!$A$6:$AM$500,13,FALSE))),"NA") -> 4.324 | K18: =IFERROR((IF($C18="NA","NA",ROUND(VLOOKUP($A$3,'ALG-I'!$A$6:$AM$500,15,FALSE),0)&"% ("&IF(VLOOKUP($A$3,'ALG-I'!$A$6:$AM$500,14,FALSE)="",0,VLOOKUP($A$3,'ALG-I'!$A$6:$AM$500,14,FALSE))&")")),"NA") -> 0% (0) | Q18: =IFERROR(VLOOKUP($A$3,'ALG-I'!$A$6:$BX$500,3,FALSE),"not tested") -> 25
A19: ED | B19: =IFERROR(VLOOKUP(TEXT($A$3,"0000"),'Alg Enrollment'!$A$2:$Q$500,15,FALSE),0) -> 24744 | C19: =IFERROR((IF(OR(B19=0,B19="",B19="NA"),"NA",((IF(VLOOKUP($A$3,'ALG-ED'!$A$6:$AG$500,3,FALSE)>=B19,"100% ("&VLOOKUP($A$3,'ALG-ED'!$A$6:$AG$500,3,FALSE)&")",(ROUND((VLOOKUP($A$3,'ALG-ED'!$A$6:$AG$500,3,FALSE)/B19*100),0))&"% ("&IF(VLOOKUP($A$3,'ALG-ED'!$A$6:$AG$500,3,FALSE)="",0,VLOOKUP($A$3,'ALG-ED'!$A$6:$AG$500,3,FALSE))&")"))))),"0% (0)") -> 93% (22906) | D19: =IFERROR((IF($C19="NA","NA",VLOOKUP($A$3,'ALG-ED'!$A$6:$AG$500,4,FALSE))),"NA") -> 14.9903999 | E19: =IFERROR((IF($C19="NA","NA",ROUND(VLOOKUP($A$3,'ALG-ED'!$A$6:$AG$500,6,FALSE),0)&"% ("&IF(VLOOKUP($A$3,'ALG-ED'!$A$6:$AG$500,5,FALSE)="",0,VLOOKUP($A$3,'ALG-ED'!$A$6:$AG$500,5,FALSE))&")")),"NA") -> 0% (52) | F19: =IFERROR((IF($C19="NA","NA",VLOOKUP($A$3,'ALG-ED'!$A$6:$AG$500,7,FALSE))),"NA") -> 8.686042958 | G19: =IFERROR((IF($C19="NA","NA",ROUND(VLOOKUP($A$3,'ALG-ED'!$A$6:$AG$500,9,FALSE),0)&"% ("&IF(VLOOKUP($A$3,'ALG-ED'!$A$6:$AG$500,8,FALSE)="",0,VLOOKUP($A$3,'ALG-ED'!$A$6:$AG$500,8,FALSE))&")")),"NA") -> 0% (85) | H19: =IFERROR((IF($C19="NA","NA",VLOOKUP($A$3,'ALG-ED'!$A$6:$AM$500,10,FALSE))),"NA") -> 1.928407404 | I19: =IFERROR((IF($C19="NA","NA",ROUND(VLOOKUP($A$3,'ALG-ED'!$A$6:$AM$500,12,FALSE),0)&"% ("&IF(VLOOKUP($A$3,'ALG-ED'!$A$6:$AM$500,11,FALSE)="",0,VLOOKUP($A$3,'ALG-ED'!$A$6:$AM$500,11,FALSE))&")")),"NA") -> 2% (571) | J19: =IFERROR((IF($C19="NA","NA",VLOOKUP($A$3,'ALG-ED'!$A$6:$AM$500,13,FALSE))),"NA") -> 4.371208417 | K19: =IFERROR((IF($C19="NA","NA",ROUND(VLOOKUP($A$3,'ALG-ED'!$A$6:$AM$500,15,FALSE),0)&"% ("&IF(VLOOKUP($A$3,'ALG-ED'!$A$6:$AM$500,14,FALSE)="",0,VLOOKUP($A$3,'ALG-ED'!$A$6:$AM$500,14,FALSE))&")")),"NA") -> 1% (204) | Q19: =IFERROR(VLOOKUP($A$3,'ALG-ED'!$A$6:$BX$500,3,FALSE),"not tested") -> 22906
A20: ELL | B20: =IFERROR(VLOOKUP(TEXT($A$3,"0000"),'Alg Enrollment'!$A$2:$Q$500,16,FALSE),0) -> 4057 | C20: =IFERROR((IF(OR(B20=0,B20="",B20="NA"),"NA",((IF(VLOOKUP($A$3,'ALG-ELL'!$A$6:$AG$500,3,FALSE)>=B20,"100% ("&VLOOKUP($A$3,'ALG-ELL'!$A$6:$AG$500,3,FALSE)&")",(ROUND((VLOOKUP($A$3,'ALG-ELL'!$A$6:$AG$500,3,FALSE)/B20*100),0))&"% ("&IF(VLOOKUP($A$3,'ALG-ELL'!$A$6:$AG$500,3,FALSE)="",0,VLOOKUP($A$3,'ALG-ELL'!$A$6:$AG$500,3,FALSE))&")"))))),"0% (0)") -> 90% (3642) | D20: =IFERROR((IF($C20="NA","NA",VLOOKUP($A$3,'ALG-ELL'!$A$6:$AG$500,4,FALSE))),"NA") -> 13.74903899 | E20: =IFERROR((IF($C20="NA","NA",ROUND(VLOOKUP($A$3,'ALG-ELL'!$A$6:$AG$500,6,FALSE),0)&"% ("&IF(VLOOKUP($A$3,'ALG-ELL'!$A$6:$AG$500,5,FALSE)="",0,VLOOKUP($A$3,'ALG-ELL'!$A$6:$AG$500,5,FALSE))&")")),"NA") -> 0% (12) | F20: =IFERROR((IF($C20="NA","NA",VLOOKUP($A$3,'ALG-ELL'!$A$6:$AG$500,7,FALSE))),"NA") -> 7.881658429 | G20: =IFERROR((IF($C20="NA","NA",ROUND(VLOOKUP($A$3,'ALG-ELL'!$A$6:$AG$500,9,FALSE),0)&"% ("&IF(VLOOKUP($A$3,'ALG-ELL'!$A$6:$AG$500,8,FALSE)="",0,VLOOKUP($A$3,'ALG-ELL'!$A$6:$AG$500,8,FALSE))&")")),"NA") -> 0% (16) | H20: =IFERROR((IF($C20="NA","NA",VLOOKUP($A$3,'ALG-ELL'!$A$6:$AM$500,10,FALSE))),"NA") -> 1.991213619 | I20: =IFERROR((IF($C20="NA","NA",ROUND(VLOOKUP($A$3,'ALG-ELL'!$A$6:$AM$500,12,FALSE),0)&"% ("&IF(VLOOKUP($A$3,'ALG-ELL'!$A$6:$AM$500,11,FALSE)="",0,VLOOKUP($A$3,'ALG-ELL'!$A$6:$AM$500,11,FALSE))&")")),"NA") -> 3% (113) | J20: =IFERROR((IF($C20="NA","NA",VLOOKUP($A$3,'ALG-ELL'!$A$6:$AM$500,13,FALSE))),"NA") -> 3.876166941 | K20: =IFERROR((IF($C20="NA","NA",ROUND(VLOOKUP($A$3,'ALG-ELL'!$A$6:$AM$500,15,FALSE),0)&"% ("&IF(VLOOKUP($A$3,'ALG-ELL'!$A$6:$AM$500,14,FALSE)="",0,VLOOKUP($A$3,'ALG-ELL'!$A$6:$AM$500,14,FALSE))&")")),"NA") -> 1% (37) | Q20: =IFERROR(VLOOKUP($A$3,'ALG-ELL'!$A$6:$BX$500,3,FALSE),"not tested") -> 3642
A21: SWD | B21: =IFERROR(VLOOKUP(TEXT($A$3,"0000"),'Alg Enrollment'!$A$2:$Q$500,17,FALSE),0) -> 3039 | C21: =IFERROR((IF(OR(B21=0,B21="",B21="NA"),"NA",((IF(VLOOKUP($A$3,'ALG-SWD'!$A$6:$AG$500,3,FALSE)>=B21,"100% ("&VLOOKUP($A$3,'ALG-SWD'!$A$6:$AG$500,3,FALSE)&")",(ROUND((VLOOKUP($A$3,'ALG-SWD'!$A$6:$AG$500,3,FALSE)/B21*100),0))&"% ("&IF(VLOOKUP($A$3,'ALG-SWD'!$A$6:$AG$500,3,FALSE)="",0,VLOOKUP($A$3,'ALG-SWD'!$A$6:$AG$500,3,FALSE))&")"))))),"0% (0)") -> 87% (2636) | D21: =IFERROR((IF($C21="NA","NA",VLOOKUP($A$3,'ALG-SWD'!$A$6:$AG$500,4,FALSE))),"NA") -> 13.50106222 | E21: =IFERROR((IF($C21="NA","NA",ROUND(VLOOKUP($A$3,'ALG-SWD'!$A$6:$AG$500,6,FALSE),0)&"% ("&IF(VLOOKUP($A$3,'ALG-SWD'!$A$6:$AG$500,5,FALSE)="",0,VLOOKUP($A$3,'ALG-SWD'!$A$6:$AG$500,5,FALSE))&")")),"NA") -> 0% (7) | F21: =IFERROR((IF($C21="NA","NA",VLOOKUP($A$3,'ALG-SWD'!$A$6:$AG$500,7,FALSE))),"NA") -> 7.764339909 | G21: =IFERROR((IF($C21="NA","NA",ROUND(VLOOKUP($A$3,'ALG-SWD'!$A$6:$AG$500,9,FALSE),0)&"% ("&IF(VLOOKUP($A$3,'ALG-SWD'!$A$6:$AG$500,8,FALSE)="",0,VLOOKUP($A$3,'ALG-SWD'!$A$6:$AG$500,8,FALSE))&")")),"NA") -> 0% (10) | H21: =IFERROR((IF($C21="NA","NA",VLOOKUP($A$3,'ALG-SWD'!$A$6:$AM$500,10,FALSE))),"NA") -> 1.883611533 | I21: =IFERROR((IF($C21="NA","NA",ROUND(VLOOKUP($A$3,'ALG-SWD'!$A$6:$AM$500,12,FALSE),0)&"% ("&IF(VLOOKUP($A$3,'ALG-SWD'!$A$6:$AM$500,11,FALSE)="",0,VLOOKUP($A$3,'ALG-SWD'!$A$6:$AM$500,11,FALSE))&")")),"NA") -> 2% (54) | J21: =IFERROR((IF($C21="NA","NA",VLOOKUP($A$3,'ALG-SWD'!$A$6:$AM$500,13,FALSE))),"NA") -> 3.842185129 | K21: =IFERROR((IF($C21="NA","NA",ROUND(VLOOKUP($A$3,'ALG-SWD'!$A$6:$AM$500,15,FALSE),0)&"% ("&IF(VLOOKUP($A$3,'ALG-SWD'!$A$6:$AM$500,14,FALSE)="",0,VLOOKUP($A$3,'ALG-SWD'!$A$6:$AM$500,14,FALSE))&")")),"NA") -> 1% (18) | Q21: =IFERROR(VLOOKUP($A$3,'ALG-SWD'!$A$6:$BX$500,3,FALSE),"not tested") -> 2636
A22: Geometry | Q22: Geometry
A23: Level of Proficiency at 70% or above | B23: Course Enrollment | C23: % and/or Number of Tested | D23: ='G9-10 Matrix'!C12&" ["&'G9-10 Matrix'!C13&"]" -> Overall [38] | F23: ='G9-10 Matrix'!D12&" ["&'G9-10 Matrix'!D13&"]" -> Two-Dimensional Geometry [28] | H23: ='G9-10 Matrix'!E12&" ["&'G9-10 Matrix'!E13&"]" -> Three-Dimensional Geometry [6] | J23: ='G9-10 Matrix'!F12&" ["&'G9-10 Matrix'!F13&"]" -> Trigonometry and Discrete Mathematics [4] | Q23: Number Tested
D24: Average Score | E24: % Proficient | F24: Average Score | G24: % Proficient | H24: Average Score | I24: % Proficient | J24: Average Score | K24: % Proficient
A25: All students | B25: =IFERROR(VLOOKUP(TEXT($A$3,"0000"),'Geo Enrollment'!$A$3:$Q$500,3,FALSE),0) -> 28209 | C25: =IFERROR((IF(OR(B25=0,B25="",B25="NA"),"NA",((IF(VLOOKUP($A$3,'GEO-ALL'!$A$6:$AM$500,3,FALSE)>=B25,"100% ("&VLOOKUP($A$3,'GEO-ALL'!$A$6:$AM$500,3,FALSE)&")",(ROUND((VLOOKUP($A$3,'GEO-ALL'!$A$6:$AM$500,3,FALSE)/B25*100),0))&"% ("&IF(VLOOKUP($A$3,'GEO-ALL'!$A$6:$AM$500,3,FALSE)="",0,VLOOKUP($A$3,'GEO-ALL'!$A$6:$AM$500,3,FALSE))&")"))))),"0% (0)") -> 92% (25868) | D25: =IFERROR((IF($C25="NA","NA",VLOOKUP($A$3,'GEO-ALL'!$A$6:$AM$500,4,FALSE))),"NA") -> 11.75664914 | E25: =IFERROR((IF($C25="NA","NA",ROUND(VLOOKUP($A$3,'GEO-ALL'!$A$6:$AM$500,6,FALSE),0)&"% ("&IF(VLOOKUP($A$3,'GEO-ALL'!$A$6:$AM$500,5,FALSE)="",0,VLOOKUP($A$3,'GEO-ALL'!$A$6:$AM$500,5,FALSE))&")")),"NA") -> 0% (81) | F25: =IFERROR((IF($C25="NA","NA",VLOOKUP($A$3,'GEO-ALL'!$A$6:$AM$500,7,FALSE))),"NA") -> 8.539164218 | G25: =IFERROR((IF($C25="NA","NA",ROUND(VLOOKUP($A$3,'GEO-ALL'!$A$6:$AM$500,9,FALSE),0)&"% ("&IF(VLOOKUP($A$3,'GEO-ALL'!$A$6:$AM$500,8,FALSE)="",0,VLOOKUP($A$3,'GEO-ALL'!$A$6:$AM$500,8,FALSE))&")")),"NA") -> 0% (96) | H25: =IFERROR((IF($C25="NA","NA",VLOOKUP($A$3,'GEO-ALL'!$A$6:$AM$500,13,FALSE))),"NA") -> 2.076155868 | I25: =IFERROR((IF($C25="NA","NA",ROUND(VLOOKUP($A$3,'GEO-ALL'!$A$6:$AM$500,15,FALSE),0)&"% ("&IF(VLOOKUP($A$3,'GEO-ALL'!$A$6:$AM$500,14,FALSE)="",0,VLOOKUP($A$3,'GEO-ALL'!$A$6:$AM$500,14,FALSE))&")")),"NA") -> 3% (734) | J25: =IFERROR((IF($C25="NA","NA",VLOOKUP($A$3,'GEO-ALL'!$A$6:$AM$500,10,FALSE))),"NA") -> 1.154306479 | K25: =IFERROR((IF($C25="NA","NA",ROUND(VLOOKUP($A$3,'GEO-ALL'!$A$6:$AM$500,12,FALSE),0)&"% ("&IF(VLOOKUP($A$3,'GEO-ALL'!$A$6:$AM$500,11,FALSE)="",0,VLOOKUP($A$3,'GEO-ALL'!$A$6:$AM$500,11,FALSE))&")")),"NA") -> 7% (1753) | Q25: =IFERROR(VLOOKUP($A$3,'GEO-ALL'!$A$6:$BX$500,3,FALSE),"not tested") -> 25868
A26: FCAT Level 1 | B26: NA | C26: =IFERROR((IF(OR(B26=0,B26="",B26="NA"),"NA",((IF(VLOOKUP($A$3,'GEO-L1'!$A$6:$AM$500,3,FALSE)>=B26,"100% ("&VLOOKUP($A$3,'GEO-L1'!$A$6:$AM$500,3,FALSE)&")",(ROUND((VLOOKUP($A$3,'GEO-L1'!$A$6:$AM$500,3,FALSE)/B26*100),0))&"% ("&IF(VLOOKUP($A$3,'GEO-L1'!$A$6:$AM$500,3,FALSE)="",0,VLOOKUP($A$3,'GEO-L1'!$A$6:$AM$500,3,FALSE))&")"))))),"0% (0)") -> NA | D26: NA | E26: NA | F26: NA | G26: NA | H26: NA | I26: NA | J26: NA | K26: NA | Q26: =IFERROR(VLOOKUP($A$3,'GEO-L1'!$A$6:$BX$500,3,FALSE),"not tested") -> 2953
A27: FCAT Level 2 | B27: NA | C27: =IFERROR((IF(OR(B27=0,B27="",B27="NA"),"NA",((IF(VLOOKUP($A$3,'GEO-L2'!$A$6:$AM$500,3,FALSE)>=B27,"100% ("&VLOOKUP($A$3,'GEO-L2'!$A$6:$AM$500,3,FALSE)&")",(ROUND((VLOOKUP($A$3,'GEO-L2'!$A$6:$AM$500,3,FALSE)/B27*100),0))&"% ("&IF(VLOOKUP($A$3,'GEO-L2'!$A$6:$AM$500,3,FALSE)="",0,VLOOKUP($A$3,'GEO-L2'!$A$6:$AM$500,3,FALSE))&")"))))),"0% (0)") -> NA | D27: NA | E27: NA | F27: NA | G27: NA | H27: NA | I27: NA | J27: NA | K27: NA | Q27: =IFERROR(VLOOKUP($A$3,'GEO-L2'!$A$6:$BX$500,3,FALSE),"not tested") -> 4938
A28: FCAT Level 3 | B28: NA | C28: =IFERROR((IF(OR(B28=0,B28="",B28="NA"),"NA",((IF(VLOOKUP($A$3,'GEO-L3'!$A$6:$AM$500,3,FALSE)>=B28,"100% ("&VLOOKUP($A$3,'GEO-L3'!$A$6:$AM$500,3,FALSE)&")",(ROUND((VLOOKUP($A$3,'GEO-L3'!$A$6:$AM$500,3,FALSE)/B28*100),0))&"% ("&IF(VLOOKUP($A$3,'GEO-L3'!$A$6:$AM$500,3,FALSE)="",0,VLOOKUP($A$3,'GEO-L3'!$A$6:$AM$500,3,FALSE))&")"))))),"0% (0)") -> NA | D28: NA | E28: NA | F28: NA | G28: NA | H28: NA | I28: NA | J28: NA | K28: NA | Q28: =IFERROR(VLOOKUP($A$3,'GEO-L3'!$A$6:$BX$500,3,FALSE),"not tested") -> 9202
A29: FCAT Level 4 | B29: NA | C29: =IFERROR((IF(OR(B29=0,B29="",B29="NA"),"NA",((IF(VLOOKUP($A$3,'GEO-L4'!$A$6:$AM$500,3,FALSE)>=B29,"100% ("&VLOOKUP($A$3,'GEO-L4'!$A$6:$AM$500,3,FALSE)&")",(ROUND((VLOOKUP($A$3,'GEO-L4'!$A$6:$AM$500,3,FALSE)/B29*100),0))&"% ("&IF(VLOOKUP($A$3,'GEO-L4'!$A$6:$AM$500,3,FALSE)="",0,VLOOKUP($A$3,'GEO-L4'!$A$6:$AM$500,3,FALSE))&")"))))),"0% (0)") -> NA | D29: NA | E29: NA | F29: NA | G29: NA | H29: NA | I29: NA | J29: NA | K29: NA | Q29: =IFERROR(VLOOKUP($A$3,'GEO-L4'!$A$6:$BX$500,3,FALSE),"not tested") -> 4546
A30: FCAT Level 5 | B30: NA | C30: =IFERROR((IF(OR(B30=0,B30="",B30="NA"),"NA",((IF(VLOOKUP($A$3,'GEO-L5'!$A$6:$AM$500,3,FALSE)>=B30,"100% ("&VLOOKUP($A$3,'GEO-L5'!$A$6:$AM$500,3,FALSE)&")",(ROUND((VLOOKUP($A$3,'GEO-L5'!$A$6:$AM$500,3,FALSE)/B30*100),0))&"% ("&IF(VLOOKUP($A$3,'GEO-L5'!$A$6:$AM$500,3,FALSE)="",0,VLOOKUP($A$3,'GEO-L5'!$A$6:$AM$500,3,FALSE))&")"))))),"0% (0)") -> NA | D30: NA | E30: NA | F30: NA | G30: NA | H30: NA | I30: NA | J30: NA | K30: NA | Q30: =IFERROR(VLOOKUP($A$3,'GEO-L5'!$A$6:$BX$500,3,FALSE),"not tested") -> 2241
A31: White | B31: =IFERROR(VLOOKUP(TEXT($A$3,"0000"),'Geo Enrollment'!$A$3:$Q$500,10,FALSE),0) -> 2447 | C31: =IFERROR((IF(OR(B31=0,B31="",B31="NA"),"NA",((IF(VLOOKUP($A$3,'GEO-W'!$A$6:$AG$500,3,FALSE)>=B31,"100% ("&VLOOKUP($A$3,'GEO-W'!$A$6:$AG$500,3,FALSE)&")",(ROUND((VLOOKUP($A$3,'GEO-W'!$A$6:$AG$500,3,FALSE)/B31*100),0))&"% ("&IF(VLOOKUP($A$3,'GEO-W'!$A$6:$AG$500,3,FALSE)="",0,VLOOKUP($A$3,'GEO-W'!$A$6:$AG$500,3,FALSE))&")"))))),"0% (0)") -> 92% (2247) | D31: =IFERROR((IF($C31="NA","NA",VLOOKUP($A$3,'GEO-W'!$A$6:$AM$500,4,FALSE))),"NA") -> 13.03186471 | E31: =IFERROR((IF($C31="NA","NA",ROUND(VLOOKUP($A$3,'GEO-W'!$A$6:$AG$500,6,FALSE),0)&"% ("&IF(VLOOKUP($A$3,'GEO-W'!$A$6:$AG$500,5,FALSE)="",0,VLOOKUP($A$3,'GEO-W'!$A$6:$AG$500,5,FALSE))&")")),"NA") -> 1% (16) | F31: =IFERROR((IF($C31="NA","NA",VLOOKUP($A$3,'GEO-W'!$A$6:$AG$500,7,FALSE))),"NA") -> 9.383845127 | G31: =IFERROR((IF($C31="NA","NA",ROUND(VLOOKUP($A$3,'GEO-W'!$A$6:$AG$500,9,FALSE),0)&"% ("&IF(VLOOKUP($A$3,'GEO-W'!$A$6:$AG$500,8,FALSE)="",0,VLOOKUP($A$3,'GEO-W'!$A$6:$AG$500,8,FALSE))&")")),"NA") -> 1% (18) | H31: =IFERROR((IF($C31="NA","NA",VLOOKUP($A$3,'GEO-W'!$A$6:$AM$500,13,FALSE))),"NA") -> 2.343969737 | I31: =IFERROR((IF($C31="NA","NA",ROUND(VLOOKUP($A$3,'GEO-W'!$A$6:$AM$500,15,FALSE),0)&"% ("&IF(VLOOKUP($A$3,'GEO-W'!$A$6:$AM$500,14,FALSE)="",0,VLOOKUP($A$3,'GEO-W'!$A$6:$AM$500,14,FALSE))&")")),"NA") -> 6% (126) | J31: =IFERROR((IF($C31="NA","NA",VLOOKUP($A$3,'GEO-W'!$A$6:$AM$500,10,FALSE))),"NA") -> 1.300178015 | K31: =IFERROR((IF($C31="NA","NA",ROUND(VLOOKUP($A$3,'GEO-W'!$A$6:$AM$500,12,FALSE),0)&"% ("&IF(VLOOKUP($A$3,'GEO-W'!$A$6:$AM$500,11,FALSE)="",0,VLOOKUP($A$3,'GEO-W'!$A$6:$AM$500,11,FALSE))&")")),"NA") -> 9% (194) | Q31: =IFERROR(VLOOKUP($A$3,'GEO-W'!$A$6:$BX$500,3,FALSE),"not tested") -> 2247
A32: Black | B32: =IFERROR(VLOOKUP(TEXT($A$3,"0000"),'Geo Enrollment'!$A$3:$Q$500,11,FALSE),0) -> 6617 | C32: =IFERROR((IF(OR(B32=0,B32="",B32="NA"),"NA",((IF(VLOOKUP($A$3,'GEO-B'!$A$6:$AG$500,3,FALSE)>=B32,"100% ("&VLOOKUP($A$3,'GEO-B'!$A$6:$AG$500,3,FALSE)&")",(ROUND((VLOOKUP($A$3,'GEO-B'!$A$6:$AG$500,3,FALSE)/B32*100),0))&"% ("&IF(VLOOKUP($A$3,'GEO-B'!$A$6:$AG$500,3,FALSE)="",0,VLOOKUP($A$3,'GEO-B'!$A$6:$AG$500,3,FALSE))&")"))))),"0% (0)") -> 88% (5847) | D32: =IFERROR((IF($C32="NA","NA",VLOOKUP($A$3,'GEO-B'!$A$6:$AM$500,4,FALSE))),"NA") -> 10.85310416 | E32: =IFERROR((IF($C32="NA","NA",ROUND(VLOOKUP($A$3,'GEO-B'!$A$6:$AG$500,6,FALSE),0)&"% ("&IF(VLOOKUP($A$3,'GEO-B'!$A$6:$AG$500,5,FALSE)="",0,VLOOKUP($A$3,'GEO-B'!$A$6:$AG$500,5,FALSE))&")")),"NA") -> 0% (4) | F32: =IFERROR((IF($C32="NA","NA",VLOOKUP($A$3,'GEO-B'!$A$6:$AG$500,7,FALSE))),"NA") -> 7.911373354 | G32: =IFERROR((IF($C32="NA","NA",ROUND(VLOOKUP($A$3,'GEO-B'!$A$6:$AG$500,9,FALSE),0)&"% ("&IF(VLOOKUP($A$3,'GEO-B'!$A$6:$AG$500,8,FALSE)="",0,VLOOKUP($A$3,'GEO-B'!$A$6:$AG$500,8,FALSE))&")")),"NA") -> 0% (4) | H32: =IFERROR((IF($C32="NA","NA",VLOOKUP($A$3,'GEO-B'!$A$6:$AM$500,13,FALSE))),"NA") -> 1.890576364 | I32: =IFERROR((IF($C32="NA","NA",ROUND(VLOOKUP($A$3,'GEO-B'!$A$6:$AM$500,15,FALSE),0)&"% ("&IF(VLOOKUP($A$3,'GEO-B'!$A$6:$AM$500,14,FALSE)="",0,VLOOKUP($A$3,'GEO-B'!$A$6:$AM$500,14,FALSE))&")")),"NA") -> 1% (84) | J32: =IFERROR((IF($C32="NA","NA",VLOOKUP($A$3,'GEO-B'!$A$6:$AM$500,10,FALSE))),"NA") -> 1.050145374 | K32: =IFERROR((IF($C32="NA","NA",ROUND(VLOOKUP($A$3,'GEO-B'!$A$6:$AM$500,12,FALSE),0)&"% ("&IF(VLOOKUP($A$3,'GEO-B'!$A$6:$AM$500,11,FALSE)="",0,VLOOKUP($A$3,'GEO-B'!$A$6:$AM$500,11,FALSE))&")")),"NA") -> 5% (294) | Q32: =IFERROR(VLOOKUP($A$3,'GEO-B'!$A$6:$BX$500,3,FALSE),"not tested") -> 5847
A33: Hispanic | B33: =IFERROR(VLOOKUP(TEXT($A$3,"0000"),'Geo Enrollment'!$A$3:$Q$500,12,FALSE),0) -> 18718 | C33: =IFERROR((IF(OR(B33=0,B33="",B33="NA"),"NA",((IF(VLOOKUP($A$3,'GEO-H'!$A$6:$AG$500,3,FALSE)>=B33,"100% ("&VLOOKUP($A$3,'GEO-H'!$A$6:$AG$500,3,FALSE)&")",(ROUND((VLOOKUP($A$3,'GEO-H'!$A$6:$AG$500,3,FALSE)/B33*100),0))&"% ("&IF(VLOOKUP($A$3,'GEO-H'!$A$6:$AG$500,3,FALSE)="",0,VLOOKUP($A$3,'GEO-H'!$A$6:$AG$500,3,FALSE))&")"))))),"0% (0)") -> 93% (17376) | D33: =IFERROR((IF($C33="NA","NA",VLOOKUP($A$3,'GEO-H'!$A$6:$AM$500,4,FALSE))),"NA") -> 11.85077118 | E33: =IFERROR((IF($C33="NA","NA",ROUND(VLOOKUP($A$3,'GEO-H'!$A$6:$AG$500,6,FALSE),0)&"% ("&IF(VLOOKUP($A$3,'GEO-H'!$A$6:$AG$500,5,FALSE)="",0,VLOOKUP($A$3,'GEO-H'!$A$6:$AG$500,5,FALSE))&")")),"NA") -> 0% (55) | F33: =IFERROR((IF($C33="NA","NA",VLOOKUP($A$3,'GEO-H'!$A$6:$AG$500,7,FALSE))),"NA") -> 8.603349448 | G33: =IFERROR((IF($C33="NA","NA",ROUND(VLOOKUP($A$3,'GEO-H'!$A$6:$AG$500,9,FALSE),0)&"% ("&IF(VLOOKUP($A$3,'GEO-H'!$A$6:$AG$500,8,FALSE)="",0,VLOOKUP($A$3,'GEO-H'!$A$6:$AG$500,8,FALSE))&")")),"NA") -> 0% (66) | H33: =IFERROR((IF($C33="NA","NA",VLOOKUP($A$3,'GEO-H'!$A$6:$AM$500,13,FALSE))),"NA") -> 2.085784991 | I33: =IFERROR((IF($C33="NA","NA",ROUND(VLOOKUP($A$3,'GEO-H'!$A$6:$AM$500,15,FALSE),0)&"% ("&IF(VLOOKUP($A$3,'GEO-H'!$A$6:$AM$500,14,FALSE)="",0,VLOOKUP($A$3,'GEO-H'!$A$6:$AM$500,14,FALSE))&")")),"NA") -> 3% (495) | J33: =IFERROR((IF($C33="NA","NA",VLOOKUP($A$3,'GEO-H'!$A$6:$AM$500,10,FALSE))),"NA") -> 1.170908149 | K33: =IFERROR((IF($C33="NA","NA",ROUND(VLOOKUP($A$3,'GEO-H'!$A$6:$AM$500,12,FALSE),0)&"% ("&IF(VLOOKUP($A$3,'GEO-H'!$A$6:$AM$500,11,FALSE)="",0,VLOOKUP($A$3,'GEO-H'!$A$6:$AM$500,11,FALSE))&")")),"NA") -> 7% (1231) | Q33: =IFERROR(VLOOKUP($A$3,'GEO-H'!$A$6:$BX$500,3,FALSE),"not tested") -> 17376
A34: Asian | B34: =IFERROR(VLOOKUP(TEXT($A$3,"0000"),'Geo Enrollment'!$A$3:$Q$500,13,FALSE),0) -> 316 | C34: =IFERROR((IF(OR(B34=0,B34="",B34="NA"),"NA",((IF(VLOOKUP($A$3,'GEO-A'!$A$6:$AG$500,3,FALSE)>=B34,"100% ("&VLOOKUP($A$3,'GEO-A'!$A$6:$AG$500,3,FALSE)&")",(ROUND((VLOOKUP($A$3,'GEO-A'!$A$6:$AG$500,3,FALSE)/B34*100),0))&"% ("&IF(VLOOKUP($A$3,'GEO-A'!$A$6:$AG$500,3,FALSE)="",0,VLOOKUP($A$3,'GEO-A'!$A$6:$AG$500,3,FALSE))&")"))))),"0% (0)") -> 95% (300) | D34: =IFERROR((IF($C34="NA","NA",VLOOKUP($A$3,'GEO-A'!$A$6:$AM$500,4,FALSE))),"NA") -> 14.04966667 | E34: =IFERROR((IF($C34="NA","NA",ROUND(VLOOKUP($A$3,'GEO-A'!$A$6:$AG$500,6,FALSE),0)&"% ("&IF(VLOOKUP($A$3,'GEO-A'!$A$6:$AG$500,5,FALSE)="",0,VLOOKUP($A$3,'GEO-A'!$A$6:$AG$500,5,FALSE))&")")),"NA") -> 1% (4) | F34: =IFERROR((IF($C34="NA","NA",VLOOKUP($A$3,'GEO-A'!$A$6:$AG$500,7,FALSE))),"NA") -> 10.23266667 | G34: =IFERROR((IF($C34="NA","NA",ROUND(VLOOKUP($A$3,'GEO-A'!$A$6:$AG$500,9,FALSE),0)&"% ("&IF(VLOOKUP($A$3,'GEO-A'!$A$6:$AG$500,8,FALSE)="",0,VLOOKUP($A$3,'GEO-A'!$A$6:$AG$500,8,FALSE))&")")),"NA") -> 2% (6) | H34: =IFERROR((IF($C34="NA","NA",VLOOKUP($A$3,'GEO-A'!$A$6:$AM$500,13,FALSE))),"NA") -> 2.53 | I34: =IFERROR((IF($C34="NA","NA",ROUND(VLOOKUP($A$3,'GEO-A'!$A$6:$AM$500,15,FALSE),0)&"% ("&IF(VLOOKUP($A$3,'GEO-A'!$A$6:$AM$500,14,FALSE)="",0,VLOOKUP($A$3,'GEO-A'!$A$6:$AM$500,14,FALSE))&")")),"NA") -> 7% (21) | J34: =IFERROR((IF($C34="NA","NA",VLOOKUP($A$3,'GEO-A'!$A$6:$AM$500,10,FALSE))),"NA") -> 1.304666667 | K34: =IFERROR((IF($C34="NA","NA",ROUND(VLOOKUP($A$3,'GEO-A'!$A$6:$AM$500,12,FALSE),0)&"% ("&IF(VLOOKUP($A$3,'GEO-A'!$A$6:$AM$500,11,FALSE)="",0,VLOOKUP($A$3,'GEO-A'!$A$6:$AM$500,11,FALSE))&")")),"NA") -> 9% (26) | Q34: =IFERROR(VLOOKUP($A$3,'GEO-A'!$A$6:$BX$500,3,FALSE),"not tested") -> 300
A35: Am. Indian | B35: =IFERROR(VLOOKUP(TEXT($A$3,"0000"),'Geo Enrollment'!$A$3:$Q$500,14,FALSE),0) -> 32 | C35: =IFERROR((IF(OR(B35=0,B35="",B35="NA"),"NA",((IF(VLOOKUP($A$3,'GEO-I'!$A$6:$AG$500,3,FALSE)>=B35,"100% ("&VLOOKUP($A$3,'GEO-I'!$A$6:$AG$500,3,FALSE)&")",(ROUND((VLOOKUP($A$3,'GEO-I'!$A$6:$AG$500,3,FALSE)/B35*100),0))&"% ("&IF(VLOOKUP($A$3,'GEO-I'!$A$6:$AG$500,3,FALSE)="",0,VLOOKUP($A$3,'GEO-I'!$A$6:$AG$500,3,FALSE))&")"))))),"0% (0)") -> 91% (29) | D35: =IFERROR((IF($C35="NA","NA",VLOOKUP($A$3,'GEO-I'!$A$6:$AM$500,4,FALSE))),"NA") -> 12.44482759 | E35: =IFERROR((IF($C35="NA","NA",ROUND(VLOOKUP($A$3,'GEO-I'!$A$6:$AG$500,6,FALSE),0)&"% ("&IF(VLOOKUP($A$3,'GEO-I'!$A$6:$AG$500,5,FALSE)="",0,VLOOKUP($A$3,'GEO-I'!$A$6:$AG$500,5,FALSE))&")")),"NA") -> 0% (0) | F35: =IFERROR((IF($C35="NA","NA",VLOOKUP($A$3,'GEO-I'!$A$6:$AG$500,7,FALSE))),"NA") -> 9.165517241 | G35: =IFERROR((IF($C35="NA","NA",ROUND(VLOOKUP($A$3,'GEO-I'!$A$6:$AG$500,9,FALSE),0)&"% ("&IF(VLOOKUP($A$3,'GEO-I'!$A$6:$AG$500,8,FALSE)="",0,VLOOKUP($A$3,'GEO-I'!$A$6:$AG$500,8,FALSE))&")")),"NA") -> 0% (0) | H35: =IFERROR((IF($C35="NA","NA",VLOOKUP($A$3,'GEO-I'!$A$6:$AM$500,13,FALSE))),"NA") -> 2.313793103 | I35: =IFERROR((IF($C35="NA","NA",ROUND(VLOOKUP($A$3,'GEO-I'!$A$6:$AM$500,15,FALSE),0)&"% ("&IF(VLOOKUP($A$3,'GEO-I'!$A$6:$AM$500,14,FALSE)="",0,VLOOKUP($A$3,'GEO-I'!$A$6:$AM$500,14,FALSE))&")")),"NA") -> 7% (2) | J35: =IFERROR((IF($C35="NA","NA",VLOOKUP($A$3,'GEO-I'!$A$6:$AM$500,10,FALSE))),"NA") -> 0.9655172414 | K35: =IFERROR((IF($C35="NA","NA",ROUND(VLOOKUP($A$3,'GEO-I'!$A$6:$AM$500,12,FALSE),0)&"% ("&IF(VLOOKUP($A$3,'GEO-I'!$A$6:$AM$500,11,FALSE)="",0,VLOOKUP($A$3,'GEO-I'!$A$6:$AM$500,11,FALSE))&")")),"NA") -> 3% (1) | Q35: =IFERROR(VLOOKUP($A$3,'GEO-I'!$A$6:$BX$500,3,FALSE),"not tested") -> 29
A36: ED | B36: =IFERROR(VLOOKUP(TEXT($A$3,"0000"),'Geo Enrollment'!$A$3:$Q$500,15,FALSE),0) -> 21248 | C36: =IFERROR((IF(OR(B36=0,B36="",B36="NA"),"NA",((IF(VLOOKUP($A$3,'GEO-ED'!$A$6:$AG$500,3,FALSE)>=B36,"100% ("&VLOOKUP($A$3,'GEO-ED'!$A$6:$AG$500,3,FALSE)&")",(ROUND((VLOOKUP($A$3,'GEO-ED'!$A$6:$AG$500,3,FALSE)/B36*100),0))&"% ("&IF(VLOOKUP($A$3,'GEO-ED'!$A$6:$AG$500,3,FALSE)="",0,VLOOKUP($A$3,'GEO-ED'!$A$6:$AG$500,3,FALSE))&")"))))),"0% (0)") -> 92% (19526) | D36: =IFERROR((IF($C36="NA","NA",VLOOKUP($A$3,'GEO-ED'!$A$6:$AM$500,4,FALSE))),"NA") -> 11.45635051 | E36: =IFERROR((IF($C36="NA","NA",ROUND(VLOOKUP($A$3,'GEO-ED'!$A$6:$AG$500,6,FALSE),0)&"% ("&IF(VLOOKUP($A$3,'GEO-ED'!$A$6:$AG$500,5,FALSE)="",0,VLOOKUP($A$3,'GEO-ED'!$A$6:$AG$500,5,FALSE))&")")),"NA") -> 0% (48) | F36: =IFERROR((IF($C36="NA","NA",VLOOKUP($A$3,'GEO-ED'!$A$6:$AG$500,7,FALSE))),"NA") -> 8.324362389 | G36: =IFERROR((IF($C36="NA","NA",ROUND(VLOOKUP($A$3,'GEO-ED'!$A$6:$AG$500,9,FALSE),0)&"% ("&IF(VLOOKUP($A$3,'GEO-ED'!$A$6:$AG$500,8,FALSE)="",0,VLOOKUP($A$3,'GEO-ED'!$A$6:$AG$500,8,FALSE))&")")),"NA") -> 0% (53) | H36: =IFERROR((IF($C36="NA","NA",VLOOKUP($A$3,'GEO-ED'!$A$6:$AM$500,13,FALSE))),"NA") -> 2.017668749 | I36: =IFERROR((IF($C36="NA","NA",ROUND(VLOOKUP($A$3,'GEO-ED'!$A$6:$AM$500,15,FALSE),0)&"% ("&IF(VLOOKUP($A$3,'GEO-ED'!$A$6:$AM$500,14,FALSE)="",0,VLOOKUP($A$3,'GEO-ED'!$A$6:$AM$500,14,FALSE))&")")),"NA") -> 2% (445) | J36: =IFERROR((IF($C36="NA","NA",VLOOKUP($A$3,'GEO-ED'!$A$6:$AM$500,10,FALSE))),"NA") -> 1.121479054 | K36: =IFERROR((IF($C36="NA","NA",ROUND(VLOOKUP($A$3,'GEO-ED'!$A$6:$AM$500,12,FALSE),0)&"% ("&IF(VLOOKUP($A$3,'GEO-ED'!$A$6:$AM$500,11,FALSE)="",0,VLOOKUP($A$3,'GEO-ED'!$A$6:$AM$500,11,FALSE))&")")),"NA") -> 6% (1214) | Q36: =IFERROR(VLOOKUP($A$3,'GEO-ED'!$A$6:$BX$500,3,FALSE),"not tested") -> 19526
A37: ELL | B37: =IFERROR(VLOOKUP(TEXT($A$3,"0000"),'Geo Enrollment'!$A$3:$Q$500,16,FALSE),0) -> 3521 | C37: =IFERROR((IF(OR(B37=0,B37="",B37="NA"),"NA",((IF(VLOOKUP($A$3,'GEO-ELL'!$A$6:$AG$500,3,FALSE)>=B37,"100% ("&VLOOKUP($A$3,'GEO-ELL'!$A$6:$AG$500,3,FALSE)&")",(ROUND((VLOOKUP($A$3,'GEO-ELL'!$A$6:$AG$500,3,FALSE)/B37*100),0))&"% ("&IF(VLOOKUP($A$3,'GEO-ELL'!$A$6:$AG$500,3,FALSE)="",0,VLOOKUP($A$3,'GEO-ELL'!$A$6:$AG$500,3,FALSE))&")"))))),"0% (0)") -> 91% (3196) | D37: =IFERROR((IF($C37="NA","NA",VLOOKUP($A$3,'GEO-ELL'!$A$6:$AM$500,4,FALSE))),"NA") -> 10.21745932 | E37: =IFERROR((IF($C37="NA","NA",ROUND(VLOOKUP($A$3,'GEO-ELL'!$A$6:$AG$500,6,FALSE),0)&"% ("&IF(VLOOKUP($A$3,'GEO-ELL'!$A$6:$AG$500,5,FALSE)="",0,VLOOKUP($A$3,'GEO-ELL'!$A$6:$AG$500,5,FALSE))&")")),"NA") -> 0% (4) | F37: =IFERROR((IF($C37="NA","NA",VLOOKUP($A$3,'GEO-ELL'!$A$6:$AG$500,7,FALSE))),"NA") -> 7.569148936 | G37: =IFERROR((IF($C37="NA","NA",ROUND(VLOOKUP($A$3,'GEO-ELL'!$A$6:$AG$500,9,FALSE),0)&"% ("&IF(VLOOKUP($A$3,'GEO-ELL'!$A$6:$AG$500,8,FALSE)="",0,VLOOKUP($A$3,'GEO-ELL'!$A$6:$AG$500,8,FALSE))&")")),"NA") -> 0% (5) | H37: =IFERROR((IF($C37="NA","NA",VLOOKUP($A$3,'GEO-ELL'!$A$6:$AM$500,13,FALSE))),"NA") -> 1.655506884 | I37: =IFERROR((IF($C37="NA","NA",ROUND(VLOOKUP($A$3,'GEO-ELL'!$A$6:$AM$500,15,FALSE),0)&"% ("&IF(VLOOKUP($A$3,'GEO-ELL'!$A$6:$AM$500,14,FALSE)="",0,VLOOKUP($A$3,'GEO-ELL'!$A$6:$AM$500,14,FALSE))&")")),"NA") -> 1% (26) | J37: =IFERROR((IF($C37="NA","NA",VLOOKUP($A$3,'GEO-ELL'!$A$6:$AM$500,10,FALSE))),"NA") -> 0.9928035044 | K37: =IFERROR((IF($C37="NA","NA",ROUND(VLOOKUP($A$3,'GEO-ELL'!$A$6:$AM$500,12,FALSE),0)&"% ("&IF(VLOOKUP($A$3,'GEO-ELL'!$A$6:$AM$500,11,FALSE)="",0,VLOOKUP($A$3,'GEO-ELL'!$A$6:$AM$500,11,FALSE))&")")),"NA") -> 5% (162) | Q37: =IFERROR(VLOOKUP($A$3,'GEO-ELL'!$A$6:$BX$500,3,FALSE),"not tested") -> 3196
A38: SWD | B38: =IFERROR(VLOOKUP(TEXT($A$3,"0000"),'Geo Enrollment'!$A$3:$Q$500,17,FALSE),0) -> 2708 | C38: =IFERROR((IF(OR(B38=0,B38="",B38="NA"),"NA",((IF(VLOOKUP($A$3,'GEO-SWD'!$A$6:$AG$500,3,FALSE)>=B38,"100% ("&VLOOKUP($A$3,'GEO-SWD'!$A$6:$AG$500,3,FALSE)&")",(ROUND((VLOOKUP($A$3,'GEO-SWD'!$A$6:$AG$500,3,FALSE)/B38*100),0))&"% ("&IF(VLOOKUP($A$3,'GEO-SWD'!$A$6:$AG$500,3,FALSE)="",0,VLOOKUP($A$3,'GEO-SWD'!$A$6:$AG$500,3,FALSE))&")"))))),"0% (0)") -> 87% (2366) | D38: =IFERROR((IF($C38="NA","NA",VLOOKUP($A$3,'GEO-SWD'!$A$6:$AM$500,4,FALSE))),"NA") -> 10.61715976 | E38: =IFERROR((IF($C38="NA","NA",ROUND(VLOOKUP($A$3,'GEO-SWD'!$A$6:$AG$500,6,FALSE),0)&"% ("&IF(VLOOKUP($A$3,'GEO-SWD'!$A$6:$AG$500,5,FALSE)="",0,VLOOKUP($A$3,'GEO-SWD'!$A$6:$AG$500,5,FALSE))&")")),"NA") -> 0% (3) | F38: =IFERROR((IF($C38="NA","NA",VLOOKUP($A$3,'GEO-SWD'!$A$6:$AG$500,7,FALSE))),"NA") -> 7.737954353 | G38: =IFERROR((IF($C38="NA","NA",ROUND(VLOOKUP($A$3,'GEO-SWD'!$A$6:$AG$500,9,FALSE),0)&"% ("&IF(VLOOKUP($A$3,'GEO-SWD'!$A$6:$AG$500,8,FALSE)="",0,VLOOKUP($A$3,'GEO-SWD'!$A$6:$AG$500,8,FALSE))&")")),"NA") -> 0% (3) | H38: =IFERROR((IF($C38="NA","NA",VLOOKUP($A$3,'GEO-SWD'!$A$6:$AM$500,13,FALSE))),"NA") -> 1.857311919 | I38: =IFERROR((IF($C38="NA","NA",ROUND(VLOOKUP($A$3,'GEO-SWD'!$A$6:$AM$500,15,FALSE),0)&"% ("&IF(VLOOKUP($A$3,'GEO-SWD'!$A$6:$AM$500,14,FALSE)="",0,VLOOKUP($A$3,'GEO-SWD'!$A$6:$AM$500,14,FALSE))&")")),"NA") -> 1% (32) | J38: =IFERROR((IF($C38="NA","NA",VLOOKUP($A$3,'GEO-SWD'!$A$6:$AM$500,10,FALSE))),"NA") -> 1.037362637 | K38: =IFERROR((IF($C38="NA","NA",ROUND(VLOOKUP($A$3,'GEO-SWD'!$A$6:$AM$500,12,FALSE),0)&"% ("&IF(VLOOKUP($A$3,'GEO-SWD'!$A$6:$AM$500,11,FALSE)="",0,VLOOKUP($A$3,'GEO-SWD'!$A$6:$AM$500,11,FALSE))&")")),"NA") -> 5% (125) | Q38: =IFERROR(VLOOKUP($A$3,'GEO-SWD'!$A$6:$BX$500,3,FALSE),"not tested") -> 2366
A39: Biology | Q39: Biology
A40: Level of Proficiency at 70% or above | B40: Course Enrollment | C40: % of Students Tested | D40: ='G9-10 Matrix'!C15&" ["&'G9-10 Matrix'!C16&"]" -> Overall [67] | F40: ='G9-10 Matrix'!D15&" ["&'G9-10 Matrix'!D16&"]" -> Molecular and Cellular Biology [19] | H40: ='G9-10 Matrix'!E15&" ["&'G9-10 Matrix'!E16&"]" -> Classification, Heredity, and Evolution [25] | J40: ='G9-10 Matrix'!F15&" ["&'G9-10 Matrix'!F16&"]" -> Organisms, Populations, and Ecosystems [23] | Q40: Number Tested
D41: Average Score | E41: % Proficient | F41: Average Score | G41: % Proficient | H41: Average Score | I41: % Proficient | J41: Average Score | K41: % Proficient
A42: All students | B42: =IFERROR(VLOOKUP(TEXT($A$3,"0000"),'Bio Enrollment'!$A$2:$C$497,3,FALSE),0) -> 27385 | C42: =IFERROR((IF(OR(B42=0,B42="",B42="NA"),"NA",((IF(VLOOKUP($A$3,'Bio-ALL'!$A$14:$AG$500,3,FALSE)>=B42,"100% ("&VLOOKUP($A$3,'Bio-ALL'!$A$14:$AG$500,3,FALSE)&")",(ROUND((VLOOKUP($A$3,'Bio-ALL'!$A$14:$AG$500,3,FALSE)/B42*100),0))&"% ("&VLOOKUP($A$3,'Bio-ALL'!$A$14:$AG$500,3,FALSE)&")"))))),"NA") -> 92% (25141) | D42: =IFERROR((IF($C42="NA","NA",VLOOKUP($A$3,'Bio-ALL'!$A$14:$AG$500,4,FALSE))),"NA") -> 23.15067477 | E42: =IFERROR((IF($C42="NA","NA",ROUND(VLOOKUP($A$3,'Bio-ALL'!$A$14:$AG$500,9,FALSE)*100,0)&"% ("&IF(VLOOKUP($A$3,'Bio-ALL'!$A$14:$AG$500,7,FALSE)="",0,VLOOKUP($A$3,'Bio-ALL'!$A$14:$AG$500,7,FALSE))&")")),"NA") -> 1% (159) | F42: =IFERROR((IF($C42="NA","NA",VLOOKUP($A$3,'Bio-ALL'!$A$14:$AG$500,16,FALSE))),"NA") -> 6.2506742 | G42: =IFERROR((IF($C42="NA","NA",ROUND(VLOOKUP($A$3,'Bio-ALL'!$A$14:$AG$500,21,FALSE)*100,0)&"% ("&IF(VLOOKUP($A$3,'Bio-ALL'!$A$14:$AG$500,19,FALSE)="",0,VLOOKUP($A$3,'Bio-ALL'!$A$14:$AG$500,19,FALSE))&")")),"NA") -> 1% (256) | H42: =IFERROR((IF($C42="NA","NA",VLOOKUP($A$3,'Bio-ALL'!$A$14:$AG$500,10,FALSE))),"NA") -> 8.300000191 | I42: =IFERROR((IF($C42="NA","NA",ROUND(VLOOKUP($A$3,'Bio-ALL'!$A$14:$AG$500,15,FALSE)*100,0)&"% ("&IF(VLOOKUP($A$3,'Bio-ALL'!$A$14:$AG$500,13,FALSE)="",0,VLOOKUP($A$3,'Bio-ALL'!$A$14:$AG$500,13,FALSE))&")")),"NA") -> 1% (208) | J42: =IFERROR((IF($C42="NA","NA",VLOOKUP($A$3,'Bio-ALL'!$A$14:$AG$500,22,FALSE))),"NA") -> 8.600000381 | K42: =IFERROR((IF($C42="NA","NA",ROUND(VLOOKUP($A$3,'Bio-ALL'!$A$14:$AG$500,27,FALSE)*100,0)&"% ("&IF(VLOOKUP($A$3,'Bio-ALL'!$A$14:$AG$500,25,FALSE)="",0,VLOOKUP($A$3,'Bio-ALL'!$A$14:$AG$500,25,FALSE))&")")),"NA") -> 1% (376) | Q42: =IFERROR(VLOOKUP($A$3,'Bio-ALL'!$A$14:$BR$500,3,FALSE),"not tested") -> 25141
A43: US History | Q43: US History
A44: Level of Proficiency at 70% or above | B44: Course Enrollment | C44: % of Students Tested | D44: ='G9-10 Matrix'!C18&" ["&'G9-10 Matrix'!C19&"]" -> Overall [39] | F44: ='G9-10 Matrix'!D18&" ["&'G9-10 Matrix'!D19&"]" -> Late Nineteenth and Early Century, 1860-1910 [9] | H44: ='G9-10 Matrix'!E18&" ["&'G9-10 Matrix'!E19&"]" -> Global Military, Political, & Eco. Challenges [19] | J44: ='G9-10 Matrix'!F18&" ["&'G9-10 Matrix'!F19&"]" -> The U.S. & Defense of the International Peace [11] | Q44: Number Tested
D45: Average Score | E45: % Proficient | F45: Average Score | G45: % Proficient | H45: Average Score | I45: % Proficient | J45: Average Score | K45: % Proficient
A46: All students | B46: =IFERROR(VLOOKUP(TEXT($A$3,"0000"),'USH Enrollment'!$A$2:$C$497,3,FALSE),0) -> 20752 | C46: =IFERROR((IF(OR(B46=0,B46="",B46="NA"),"NA",((IF(VLOOKUP($A$3,'USH-ALL'!$A$14:$AG$500,3,FALSE)>=B46,"100% ("&VLOOKUP($A$3,'USH-ALL'!$A$14:$AG$500,3,FALSE)&")",(ROUND((VLOOKUP($A$3,'USH-ALL'!$A$14:$AG$500,3,FALSE)/B46*100),0))&"% ("&VLOOKUP($A$3,'USH-ALL'!$A$14:$AG$500,3,FALSE)&")"))))),"NA") -> 92% (19032) | D46: =IFERROR((IF($C46="NA","NA",VLOOKUP($A$3,'USH-ALL'!$A$14:$AG$500,4,FALSE))),"NA") -> 17.75152898 | E46: =IFERROR((IF($C46="NA","NA",ROUND(VLOOKUP($A$3,'USH-ALL'!$A$14:$AG$500,9,FALSE)*100,0)&"% ("&IF(VLOOKUP($A$3,'USH-ALL'!$A$14:$AG$500,7,FALSE)="",0,VLOOKUP($A$3,'USH-ALL'!$A$14:$AG$500,7,FALSE))&")")),"NA") -> 0% (21) | F46: =IFERROR((IF($C46="NA","NA",VLOOKUP($A$3,'USH-ALL'!$A$14:$AG$500,10,FALSE))),"NA") -> 3.14847097 | G46: =IFERROR((IF($C46="NA","NA",ROUND(VLOOKUP($A$3,'USH-ALL'!$A$14:$AG$500,15,FALSE)*100,0)&"% ("&IF(VLOOKUP($A$3,'USH-ALL'!$A$14:$AG$500,13,FALSE)="",0,VLOOKUP($A$3,'USH-ALL'!$A$14:$AG$500,13,FALSE))&")")),"NA") -> 3% (556) | H46: =IFERROR((IF($C46="NA","NA",VLOOKUP($A$3,'USH-ALL'!$A$14:$AG$500,16,FALSE))),"NA") -> 5.74847099 | I46: =IFERROR((IF($C46="NA","NA",ROUND(VLOOKUP($A$3,'USH-ALL'!$A$14:$AG$500,21,FALSE)*100,0)&"% ("&IF(VLOOKUP($A$3,'USH-ALL'!$A$14:$AG$500,19,FALSE)="",0,VLOOKUP($A$3,'USH-ALL'!$A$14:$AG$500,19,FALSE))&")")),"NA") -> 0% (66) | J46: =IFERROR((IF($C46="NA","NA",VLOOKUP($A$3,'USH-ALL'!$A$14:$AG$500,22,FALSE))),"NA") -> 8.8061162 | K46: =IFERROR((IF($C46="NA","NA",ROUND(VLOOKUP($A$3,'USH-ALL'!$A$14:$AG$500,27,FALSE)*100,0)&"% ("&IF(VLOOKUP($A$3,'USH-ALL'!$A$14:$AG$500,25,FALSE)="",0,VLOOKUP($A$3,'USH-ALL'!$A$14:$AG$500,25,FALSE))&")")),"NA") -> 0% (19) | Q46: =IFERROR(VLOOKUP($A$3,'USH-ALL'!$A$14:$BR$500,3,FALSE),"not tested") -> 19032

Sheet G6-8 Matrix (hidden)
A2: Grade | B2: Reading | C2: Overall | D2: Vocabulary | E2: Reading Application | F2: Literary Analysis Fiction/Nonfiction | G2: Informational Text/ Research Process
A3: 6 | B3: N of Items | C3: =SUM(D3:G3) -> 33 | D3: 5 | E3: 14 | F3: 7 | G3: 7
A4: 6 | B4: 51% Cut | C4: =ROUND(0.505*C3,2) -> 16.67 | D4: =ROUND(0.505*D3,2) -> 2.53 | E4: 7.07 | F4: 3.54 | G4: 3.54
A5: 7 | B5: N of Items | C5: =SUM(D5:G5) -> 39 | D5: 7 | E5: 19 | F5: 6 | G5: 7
A6: 7 | B6: 51% Cut | C6: =ROUND(0.505*C5,2) -> 19.7 | D6: =ROUND(0.505*D5,2) -> 3.54 | E6: =ROUND(0.505*E5,2) -> 9.6 | F6: =ROUND(0.505*F5,2) -> 3.03 | G6: =ROUND(0.505*G5,2) -> 3.54
A7: 8 | B7: N of Items | C7: =SUM(D7:G7) -> 33 | D7: 6 | E7: 17 | F7: 6 | G7: 4
A8: 8 | B8: 51% Cut | C8: =ROUND(0.505*C7,2) -> 16.67 | D8: =ROUND(0.505*D7,2) -> 3.03 | E8: =ROUND(0.505*E7,2) -> 8.59 | F8: =ROUND(0.505*F7,2) -> 3.03 | G8: =ROUND(0.505*G7,2) -> 2.02
A10: 6 | B10: Math | C10: Overall | D10: Fractions, Ratios/ Proportional Relationships, and Statistics | E10: Expressions and Equations | F10: Geometry and Measurement
A11: 6 | B11: N of Items | C11: =SUM(D11:F11) -> 35 | D11: 20 | E11: 8 | F11: 7
A12: 6 | B12: 51% Cut | C12: =ROUND(0.505*C11,2) -> 17.68 | D12: =ROUND(0.505*D11,2) -> 10.1 | E12: 4.04 | F12: 3.54
A13: 7 | B13: Math | C13: Overall | D13: Number: Base Ten | E13: Ratios/Proportional Relationships | F13: Geometry and Measurement | G13: Statistics and Probability
A14: 7 | B14: N of Items | C14: =SUM(D14:G14) -> 42 | D14: 10 | E14: 12 | F14: 12 | G14: 8
A15: 7 | B15: 51% Cut | C15: =ROUND(0.505*C14,2) -> 21.21 | D15: =ROUND(0.505*D14,2) -> 5.05 | E15: 6.06 | F15: 6.06 | G15: 4.04
A16: 8 | B16: Math | C16: Overall | D16: Number: Operations, Problems, and Stat. | E16: Expressions, Equations, and Functions | F16: Geometry and Measurement
A17: 8 | B17: N of Items | C17: =SUM(D17:F17) -> 34 | D17: 10 | E17: 14 | F17: 10
A18: 8 | B18: 51% Cut | C18: =ROUND(0.505*C17,2) -> 17.17 | D18: =ROUND(0.505*D17,2) -> 5.05 | E18: =ROUND(0.505*E17,2) -> 7.07 | F18: =ROUND(0.505*F17,2) -> 5.05
A19: 8 | B19: Science | C19: Overall | D19: Nature of Science | E19: Earth & Space Science | F19: Physical Science | G19: Life Science
A20: 8 | B20: N of Items | C20: =SUM(D20:G20) -> 73 | D20: 12 | E20: 22 | F20: 20 | G20: 19
A21: 8 | B21: 51% Cut | C21: =ROUND(0.505*C20,2) -> 36.87 | D21: =ROUND(0.505*D20,2) -> 6.06 | E21: =ROUND(0.505*E20,2) -> 11.11 | F21: =ROUND(0.505*F20,2) -> 10.1 | G21: =ROUND(0.505*G20,2) -> 9.6
A22: 8 | B22: Civics EOC | C22: Overall | D22: Government Policies and Political Processes | E22: Organization and Function of Government | F22: Origins and Purposes of Law and Government | G22: Roles, Rights, and Responsibilities
A23: 8 | B23: N of Items | C23: =SUM(D23:G23) -> 40 | D23: 8 | E23: 13 | F23: 11 | G23: 8
A24: 8 | B24: 51% Cut | C24: =ROUND(0.505*C23,2) -> 20.2 | D24: =ROUND(0.505*D23,2) -> 4.04 | E24: =ROUND(0.505*E23,2) -> 6.57 | F24: =ROUND(0.505*F23,2) -> 5.56 | G24: =ROUND(0.505*G23,2) -> 4.04

Sheet Geo G08 (hidden)
A1: 1 | B1: 2 | C1: 3 | D1: 4 | E1: 5 | F1: 6 | G1: 7 | H1: 8 | I1: 9 | J1: 10 | K1: 11 | L1: 12 | M1: 13 | N1: 14 | O1: 15 | P1: 16 | Q1: 17
A2: 08 | B2: SchName | C2: Total | D2: ML1 | E2: ML2 | F2: ML3 | G2: ML4 | H2: ML5 | I2: ML0 | J2: W | K2: B | L2: H | M2: A | N2: I | O2: ED | P2: ELL | Q2: SWD
A3: 0071 | B3: EUGENIA B. THOMAS K-8 CENTER | C3: 23 | D3: 0 | E3: 0 | F3: 1 | G3: 11 | H3: 11 | I3: 0 | J3: 2 | K3: 0 | L3: 21 | M3: 0 | N3: 0 | O3: 8 | P3: 0 | Q3: 0
A4: 0073 | B4: MANDARIN LAKES K-8 CENTER | C4: 1 | D4: 0 | E4: 0 | F4: 0 | G4: 1 | H4: 0 | I4: 0 | J4: 0 | K4: 1 | L4: 0 | M4: 0 | N4: 0 | O4: 1 | P4: 0 | Q4: 0
A5: 0092 | B5: NORMAN S. EDELCUP/SUNNY ISLES | C5: 11 | D5: 0 | E5: 0 | F5: 0 | G5: 0 | H5: 11 | I5: 0 | J5: 6 | K5: 0 | L5: 3 | M5: 2 | N5: 0 | O5: 3 | P5: 0 | Q5: 0
A6: 0122 | B6: DR ROLANDO ESPINOSA K-8 | C6: 12 | D6: 0 | E6: 0 | F6: 0 | G6: 3 | H6: 8 | I6: 1 | J6: 2 | K6: 0 | L6: 10 | M6: 0 | N6: 0 | O6: 2 | P6: 0 | Q6: 0
A7: 0231 | B7: AVENTURA WATERWAYS K-8 CENTER | C7: 20 | D7: 0 | E7: 0 | F7: 1 | G7: 3 | H7: 16 | I7: 0 | J7: 8 | K7: 2 | L7: 7 | M7: 3 | N7: 0 | O7: 4 | P7: 2 | Q7: 0
A8: 0241 | B8: RUTH K BROAD/BAY HARBOR K-8 | C8: 7 | D8: 0 | E8: 0 | F8: 0 | G8: 4 | H8: 3 | I8: 0 | J8: 3 | K8: 0 | L8: 4 | M8: 0 | N8: 0 | O8: 2 | P8: 0 | Q8: 0
A9: 0332 | B9: SOMERSET ACADEMY(SILVER PALMS) | C9: 2 | D9: 0 | E9: 0 | F9: 0 | G9: 1 | H9: 0 | I9: 1 | J9: 1 | K9: 0 | L9: 1 | M9: 0 | N9: 0 | O9: 1 | P9: 0 | Q9: 0
A10: 0950 | B10: AVENTURA CITY OF EXCELLENCE | C10: 17 | D10: 0 | E10: 0 | F10: 0 | G10: 2 | H10: 14 | I10: 1 | J10: 8 | K10: 0 | L10: 8 | M10: 1 | N10: 0 | O10: 1 | P10: 0 | Q10: 0
A11: 0961 | B11: CORAL GABLES PREPARATORY ACAD | C11: 13 | D11: 0 | E11: 1 | F11: 1 | G11: 7 | H11: 4 | I11: 0 | J11: 1 | K11: 0 | L11: 11 | M11: 1 | N11: 0 | O11: 7 | P11: 0 | Q11: 1
A12: 1020 | B12: YOUTH CO-OP CHARTER SCHOOL | C12: 20 | D12: 0 | E12: 1 | F12: 7 | G12: 9 | H12: 3 | I12: 0 | J12: 1 | K12: 1 | L12: 18 | M12: 0 | N12: 0 | O12: 13 | P12: 0 | Q12: 0
A13: 1331 | B13: DEVON AIRE K-8 CENTER | C13: 15 | D13: 0 | E13: 0 | F13: 1 | G13: 1 | H13: 13 | I13: 0 | J13: 3 | K13: 0 | L13: 11 | M13: 1 | N13: 0 | O13: 6 | P13: 0 | Q13: 0
A14: 1721 | B14: EVERGLADES K-8 CENTER | C14: 35 | D14: 0 | E14: 0 | F14: 6 | G14: 14 | H14: 15 | I14: 0 | J14: 1 | K14: 0 | L14: 33 | M14: 1 | N14: 0 | O14: 19 | P14: 0 | Q14: 1
A15: 2741 | B15: KEY BISCAYNE K-8 CENTER | C15: 4 | D15: 0 | E15: 0 | F15: 1 | G15: 1 | H15: 2 | I15: 0 | J15: 1 | K15: 0 | L15: 3 | M15: 0 | N15: 0 | O15: 1 | P15: 0 | Q15: 0
A16: 3029 | B16: DORAL ACADEMY OF TECHNOLOGY | C16: 38 | D16: 0 | E16: 0 | F16: 3 | G16: 17 | H16: 18 | I16: 0 | J16: 4 | K16: 0 | L16: 31 | M16: 3 | N16: 0 | O16: 11 | P16: 0 | Q16: 0
A17: 3101 | B17: FRANK C. MARTIN K-8 CENTER | C17: 40 | D17: 0 | E17: 0 | F17: 7 | G17: 19 | H17: 14 | I17: 0 | J17: 8 | K17: 14 | L17: 13 | M17: 4 | N17: 1 | O17: 12 | P17: 0 | Q17: 1
A18: 3191 | B18: ADA MERRITT K-8 CENTER | C18: 20 | D18: 0 | E18: 0 | F18: 0 | G18: 8 | H18: 12 | I18: 0 | J18: 9 | K18: 1 | L18: 9 | M18: 0 | N18: 0 | O18: 6 | P18: 0 | Q18: 0
A19: 3281 | B19: MIAMI LAKES K-8 CENTER | C19: 34 | D19: 0 | E19: 0 | F19: 0 | G19: 17 | H19: 17 | I19: 0 | J19: 2 | K19: 0 | L19: 31 | M19: 1 | N19: 0 | O19: 12 | P19: 0 | Q19: 0
A20: 3421 | B20: M.A. MILAM K-8 CENTER | C20: 12 | D20: 0 | E20: 0 | F20: 0 | G20: 4 | H20: 8 | I20: 0 | J20: 0 | K20: 0 | L20: 12 | M20: 0 | N20: 0 | O20: 9 | P20: 0 | Q20: 0
A21: 5003 | B21: SOUTH DADE MIDDLE SCHOOL | C21: 9 | D21: 0 | E21: 0 | F21: 2 | G21: 4 | H21: 3 | I21: 0 | J21: 2 | K21: 0 | L21: 7 | M21: 0 | N21: 0 | O21: 8 | P21: 0 | Q21: 0
A22: 5005 | B22: DAVID LAWRENCE JR K-8 CENTER | C22: 14 | D22: 0 | E22: 0 | F22: 0 | G22: 0 | H22: 14 | I22: 0 | J22: 6 | K22: 2 | L22: 5 | M22: 1 | N22: 0 | O22: 5 | P22: 0 | Q22: 0
A23: 5006 | B23: EVERGLADES PREPARATORY ACADEMY | C23: 17 | D23: 1 | E23: 3 | F23: 5 | G23: 5 | H23: 3 | I23: 0 | J23: 1 | K23: 0 | L23: 16 | M23: 0 | N23: 0 | O23: 14 | P23: 1 | Q23: 1
A24: 5961 | B24: WINSTON PARK K-8 CENTER | C24: 12 | D24: 0 | E24: 0 | F24: 2 | G24: 7 | H24: 3 | I24: 0 | J24: 0 | K24: 0 | L24: 12 | M24: 0 | N24: 0 | O24: 6 | P24: 0 | Q24: 1
A25: 6001 | B25: HERBERT A. AMMONS MIDDLE | C25: 97 | D25: 0 | E25: 0 | F25: 8 | G25: 41 | H25: 46 | I25: 2 | J25: 19 | K25: 12 | L25: 55 | M25: 8 | N25: 0 | O25: 40 | P25: 1 | Q25: 0
A26: 6006 | B26: ARCHIMEDEAN CONSERVATORY | C26: 79 | D26: 1 | E26: 5 | F26: 18 | G26: 19 | H26: 34 | I26: 2 | J26: 15 | K26: 1 | L26: 62 | M26: 1 | N26: 0 | O26: 41 | P26: 0 | Q26: 3
A27: 6010 | B27: FLORIDA INTERNATIONAL ACADEMY | C27: 16 | D27: 0 | E27: 0 | F27: 3 | G27: 11 | H27: 2 | I27: 0 | J27: 0 | K27: 15 | L27: 1 | M27: 0 | N27: 0 | O27: 16 | P27: 0 | Q27: 0
A28: 6012 | B28: MATER ACADEMY CHARTER MIDDLE | C28: 46 | D28: 0 | E28: 0 | F28: 0 | G28: 10 | H28: 36 | I28: 0 | J28: 1 | K28: 0 | L28: 44 | M28: 1 | N28: 0 | O28: 36 | P28: 0 | Q28: 1
A29: 6021 | B29: ARVIDA MIDDLE SCHOOL | C29: 41 | D29: 0 | E29: 0 | F29: 0 | G29: 11 | H29: 29 | I29: 1 | J29: 10 | K29: 2 | L29: 25 | M29: 4 | N29: 0 | O29: 18 | P29: 0 | Q29: 0
A30: 6022 | B30: PINECREST ACADEMY CHARTER MIDD | C30: 21 | D30: 0 | E30: 0 | F30: 2 | G30: 11 | H30: 8 | I30: 0 | J30: 2 | K30: 0 | L30: 19 | M30: 0 | N30: 0 | O30: 11 | P30: 0 | Q30: 0
A31: 6030 | B31: DORAL ACADEMY CHARTER MIDDLE | C31: 29 | D31: 0 | E31: 0 | F31: 5 | G31: 13 | H31: 11 | I31: 0 | J31: 3 | K31: 0 | L31: 26 | M31: 0 | N31: 0 | O31: 17 | P31: 0 | Q31: 0
A32: 6033 | B32: MATER ACADEMY LAKES MIDDLE | C32: 8 | D32: 0 | E32: 1 | F32: 2 | G32: 2 | H32: 3 | I32: 0 | J32: 0 | K32: 0 | L32: 8 | M32: 0 | N32: 0 | O32: 6 | P32: 0 | Q32: 0
A33: 6040 | B33: DOCTORS CHARTER/MIAMI SHORES | C33: 0 | D33: 0 | E33: 0 | F33: 0 | G33: 0 | H33: 0 | I33: 0 | J33: 0 | K33: 0 | L33: 0 | M33: 0 | N33: 0 | O33: 0 | P33: 0 | Q33: 0
A34: 6045 | B34: INTL. STUDIES CHARTER MIDDLE | C34: 1 | D34: 0 | E34: 0 | F34: 0 | G34: 0 | H34: 1 | I34: 0 | J34: 0 | K34: 0 | L34: 1 | M34: 0 | N34: 0 | O34: 0 | P34: 0 | Q34: 0
A35: 6052 | B35: ZELDA GLAZER MIDDLE SCHOOL | C35: 113 | D35: 0 | E35: 0 | F35: 27 | G35: 50 | H35: 35 | I35: 1 | J35: 4 | K35: 1 | L35: 105 | M35: 3 | N35: 0 | O35: 62 | P35: 1 | Q35: 1
A36: 6060 | B36: ASPIRA SOUTH YOUTH LEADERSHIP | C36: 23 | D36: 0 | E36: 1 | F36: 9 | G36: 11 | H36: 2 | I36: 0 | J36: 0 | K36: 0 | L36: 23 | M36: 0 | N36: 0 | O36: 19 | P36: 0 | Q36: 0
A37: 6071 | B37: GEORGE WASHINGTON CARVER | C37: 36 | D37: 0 | E37: 0 | F37: 3 | G37: 4 | H37: 29 | I37: 0 | J37: 17 | K37: 2 | L37: 15 | M37: 2 | N37: 0 | O37: 5 | P37: 0 | Q37: 0
A38: 6081 | B38: CENTENNIAL MIDDLE | C38: 2 | D38: 0 | E38: 0 | F38: 1 | G38: 1 | H38: 0 | I38: 0 | J38: 1 | K38: 0 | L38: 1 | M38: 0 | N38: 0 | O38: 2 | P38: 0 | Q38: 0
A39: 6111 | B39: CUTLER RIDGE MIDDLE | C39: 17 | D39: 1 | E39: 0 | F39: 8 | G39: 5 | H39: 3 | I39: 0 | J39: 3 | K39: 6 | L39: 8 | M39: 0 | N39: 0 | O39: 14 | P39: 0 | Q39: 1
A40: 6151 | B40: DORAL MIDDLE SCHOOL | C40: 29 | D40: 0 | E40: 0 | F40: 7 | G40: 10 | H40: 12 | I40: 0 | J40: 5 | K40: 2 | L40: 21 | M40: 1 | N40: 0 | O40: 15 | P40: 0 | Q40: 2
A41: 6161 | B41: LAWTON CHILES MIDDLE SCHOOL | C41: 2 | D41: 0 | E41: 0 | F41: 1 | G41: 1 | H41: 0 | I41: 0 | J41: 0 | K41: 0 | L41: 2 | M41: 0 | N41: 0 | O41: 2 | P41: 0 | Q41: 0
A42: 6211 | B42: GLADES MIDDLE | C42: 43 | D42: 0 | E42: 0 | F42: 5 | G42: 20 | H42: 18 | I42: 0 | J42: 6 | K42: 0 | L42: 34 | M42: 1 | N42: 0 | O42: 23 | P42: 0 | Q42: 2
A43: 6231 | B43: HIALEAH MIDDLE | C43: 30 | D43: 1 | E43: 2 | F43: 7 | G43: 18 | H43: 2 | I43: 0 | J43: 1 | K43: 1 | L43: 28 | M43: 0 | N43: 0 | O43: 25 | P43: 0 | Q43: 0
A44: 6241 | B44: HIGHLAND OAKS MIDDLE | C44: 44 | D44: 0 | E44: 1 | F44: 7 | G44: 18 | H44: 18 | I44: 0 | J44: 25 | K44: 5 | L44: 11 | M44: 2 | N44: 0 | O44: 20 | P44: 0 | Q44: 0
A45: 6251 | B45: HOMESTEAD MIDDLE | C45: 1 | D45: 0 | E45: 0 | F45: 0 | G45: 1 | H45: 0 | I45: 0 | J45: 0 | K45: 0 | L45: 1 | M45: 0 | N45: 0 | O45: 1 | P45: 0 | Q45: 0
A46: 6301 | B46: JOHN F. KENNEDY MIDDLE | C46: 54 | D46: 0 | E46: 0 | F46: 5 | G46: 22 | H46: 27 | I46: 0 | J46: 1 | K46: 36 | L46: 15 | M46: 1 | N46: 1 | O46: 50 | P46: 0 | Q46: 0
A47: 6411 | B47: HORACE MANN MIDDLE | C47: 21 | D47: 0 | E47: 1 | F47: 9 | G47: 10 | H47: 1 | I47: 0 | J47: 2 | K47: 17 | L47: 2 | M47: 0 | N47: 0 | O47: 20 | P47: 0 | Q47: 1
A48: 6431 | B48: MAYS MIDDLE | C48: 2 | D48: 0 | E48: 0 | F48: 1 | G48: 1 | H48: 0 | I48: 0 | J48: 0 | K48: 2 | L48: 0 | M48: 0 | N48: 0 | O48: 0 | P48: 0 | Q48: 0
A49: 6441 | B49: HOWARD D. MCMILLAN MIDDLE | C49: 49 | D49: 0 | E49: 0 | F49: 6 | G49: 29 | H49: 14 | I49: 0 | J49: 1 | K49: 0 | L49: 45 | M49: 3 | N49: 0 | O49: 38 | P49: 2 | Q49: 2
A50: 6501 | B50: MIAMI LAKES MIDDLE | C50: 31 | D50: 0 | E50: 0 | F50: 3 | G50: 8 | H50: 20 | I50: 0 | J50: 0 | K50: 4 | L50: 25 | M50: 1 | N50: 0 | O50: 19 | P50: 0 | Q50: 0
A51: 6521 | B51: MIAMI SPRINGS MIDDLE | C51: 25 | D51: 0 | E51: 0 | F51: 3 | G51: 10 | H51: 12 | I51: 0 | J51: 3 | K51: 1 | L51: 20 | M51: 0 | N51: 0 | O51: 15 | P51: 0 | Q51: 0
A52: 6541 | B52: NAUTILUS MIDDLE | C52: 50 | D52: 0 | E52: 0 | F52: 6 | G52: 16 | H52: 27 | I52: 1 | J52: 32 | K52: 1 | L52: 16 | M52: 1 | N52: 0 | O52: 12 | P52: 0 | Q52: 0
A53: 6591 | B53: NORTH DADE MIDDLE | C53: 9 | D53: 0 | E53: 1 | F53: 3 | G53: 2 | H53: 3 | I53: 0 | J53: 0 | K53: 8 | L53: 1 | M53: 0 | N53: 0 | O53: 7 | P53: 0 | Q53: 0
A54: 6611 | B54: COUNTRY CLUB MIDDLE SCHOOL | C54: 20 | D54: 0 | E54: 0 | F54: 3 | G54: 7 | H54: 9 | I54: 1 | J54: 1 | K54: 2 | L54: 16 | M54: 1 | N54: 0 | O54: 15 | P54: 0 | Q54: 0
A55: 6701 | B55: PALMETTO MIDDLE | C55: 19 | D55: 0 | E55: 0 | F55: 1 | G55: 4 | H55: 14 | I55: 0 | J55: 7 | K55: 0 | L55: 7 | M55: 4 | N55: 0 | O55: 1 | P55: 0 | Q55: 0
A56: 6741 | B56: PONCE DE LEON MIDDLE | C56: 20 | D56: 0 | E56: 0 | F56: 1 | G56: 6 | H56: 11 | I56: 2 | J56: 7 | K56: 1 | L56: 10 | M56: 2 | N56: 0 | O56: 8 | P56: 0 | Q56: 0
A57: 6751 | B57: HIALEAH GARDENS MIDDLE SCHOOL | C57: 220 | D57: 1 | E57: 14 | F57: 68 | G57: 84 | H57: 53 | I57: 0 | J57: 6 | K57: 2 | L57: 209 | M57: 3 | N57: 0 | O57: 186 | P57: 2 | Q57: 1
A58: 6761 | B58: REDLAND MIDDLE | C58: 26 | D58: 0 | E58: 1 | F58: 17 | G58: 6 | H58: 2 | I58: 0 | J58: 7 | K58: 4 | L58: 15 | M58: 0 | N58: 0 | O58: 20 | P58: 0 | Q58: 2
A59: 6771 | B59: JORGE MAS CANOSA MIDDLE | C59: 55 | D59: 0 | E59: 1 | F59: 7 | G59: 23 | H59: 23 | I59: 1 | J59: 9 | K59: 2 | L59: 41 | M59: 2 | N59: 0 | O59: 38 | P59: 0 | Q59: 1
A60: 6781 | B60: RICHMOND HEIGHTS MIDDLE | C60: 8 | D60: 0 | E60: 0 | F60: 0 | G60: 3 | H60: 5 | I60: 0 | J60: 0 | K60: 3 | L60: 5 | M60: 0 | N60: 0 | O60: 6 | P60: 0 | Q60: 1
A61: 6801 | B61: RIVIERA MIDDLE | C61: 21 | D61: 0 | E61: 0 | F61: 3 | G61: 12 | H61: 6 | I61: 0 | J61: 3 | K61: 0 | L61: 16 | M61: 2 | N61: 0 | O61: 14 | P61: 0 | Q61: 1
A62: 6821 | B62: ROCKWAY MIDDLE | C62: 21 | D62: 0 | E62: 0 | F62: 0 | G62: 5 | H62: 16 | I62: 0 | J62: 1 | K62: 0 | L62: 20 | M62: 0 | N62: 0 | O62: 9 | P62: 0 | Q62: 0
A63: 6841 | B63: SHENANDOAH MIDDLE | C63: 46 | D63: 0 | E63: 0 | F63: 4 | G63: 31 | H63: 11 | I63: 0 | J63: 2 | K63: 1 | L63: 43 | M63: 0 | N63: 0 | O63: 35 | P63: 1 | Q63: 0
A64: 6861 | B64: SOUTHWOOD MIDDLE | C64: 31 | D64: 0 | E64: 0 | F64: 0 | G64: 4 | H64: 26 | I64: 1 | J64: 10 | K64: 0 | L64: 14 | M64: 7 | N64: 0 | O64: 2 | P64: 0 | Q64: 1
A65: 6901 | B65: W. R. THOMAS MIDDLE | C65: 54 | D65: 0 | E65: 0 | F65: 13 | G65: 26 | H65: 15 | I65: 0 | J65: 2 | K65: 0 | L65: 51 | M65: 0 | N65: 1 | O65: 39 | P65: 1 | Q65: 0
A66: 6921 | B66: LAMAR LOUISE CURRY MIDDLE SCH | C66: 21 | D66: 0 | E66: 0 | F66: 0 | G66: 3 | H66: 18 | I66: 0 | J66: 3 | K66: 1 | L66: 15 | M66: 1 | N66: 1 | O66: 8 | P66: 0 | Q66: 0
A67: 7001 | B67: MIAMI-DADE ONLINE ACADEMY | C67: 5 | D67: 0 | E67: 0 | F67: 0 | G67: 3 | H67: 2 | I67: 0 | J67: 3 | K67: 1 | L67: 1 | M67: 0 | N67: 0 | O67: 4 | P67: 0 | Q67: 0
A68: 7007 | B68: INTL. STUDIES CHARTER SENIOR | C68: 0 | D68: 0 | E68: 0 | F68: 0 | G68: 0 | H68: 0 | I68: 0 | J68: 0 | K68: 0 | L68: 0 | M68: 0 | N68: 0 | O68: 0 | P68: 0 | Q68: 0
A69: 7009 | B69: DORAL PERFORMING ARTS ACADEMY | C69: 0 | D69: 0 | E69: 0 | F69: 0 | G69: 0 | H69: 0 | I69: 0 | J69: 0 | K69: 0 | L69: 0 | M69: 0 | N69: 0 | O69: 0 | P69: 0 | Q69: 0
A70: 7011 | B70: AMERICAN SENIOR | C70: 0 | D70: 0 | E70: 0 | F70: 0 | G70: 0 | H70: 0 | I70: 0 | J70: 0 | K70: 0 | L70: 0 | M70: 0 | N70: 0 | O70: 0 | P70: 0 | Q70: 0
A71: 7014 | B71: MATER PERFORMING ARTS ACADEMY | C71: 0 | D71: 0 | E71: 0 | F71: 0 | G71: 0 | H71: 0 | I71: 0 | J71: 0 | K71: 0 | L71: 0 | M71: 0 | N71: 0 | O71: 0 | P71: 0 | Q71: 0
A72: 7015 | B72: STELLAR LEADERSHIP ACADEMY | C72: 0 | D72: 0 | E72: 0 | F72: 0 | G72: 0 | H72: 0 | I72: 0 | J72: 0 | K72: 0 | L72: 0 | M72: 0 | N72: 0 | O72: 0 | P72: 0 | Q72: 0
A73: 7016 | B73: SPORTS LEADERSHIP OF MIAMI CHS | C73: 0 | D73: 0 | E73: 0 | F73: 0 | G73: 0 | H73: 0 | I73: 0 | J73: 0 | K73: 0 | L73: 0 | M73: 0 | N73: 0 | O73: 0 | P73: 0 | Q73: 0
A74: 7018 | B74: MATER ACADEMY LAKES HIGH SCH | C74: 0 | D74: 0 | E74: 0 | F74: 0 | G74: 0 | H74: 0 | I74: 0 | J74: 0 | K74: 0 | L74: 0 | M74: 0 | N74: 0 | O74: 0 | P74: 0 | Q74: 0
A75: 7020 | B75: DORAL ACADEMY HIGH SCHOOL | C75: 0 | D75: 0 | E75: 0 | F75: 0 | G75: 0 | H75: 0 | I75: 0 | J75: 0 | K75: 0 | L75: 0 | M75: 0 | N75: 0 | O75: 0 | P75: 0 | Q75: 0
A76: 7022 | B76: ACADEMY OF ARTS AND MINDS | C76: 0 | D76: 0 | E76: 0 | F76: 0 | G76: 0 | H76: 0 | I76: 0 | J76: 0 | K76: 0 | L76: 0 | M76: 0 | N76: 0 | O76: 0 | P76: 0 | Q76: 0
A77: 7024 | B77: MATER ACADEMY HIGH-INTL STUDIE | C77: 0 | D77: 0 | E77: 0 | F77: 0 | G77: 0 | H77: 0 | I77: 0 | J77: 0 | K77: 0 | L77: 0 | M77: 0 | N77: 0 | O77: 0 | P77: 0 | Q77: 0
A78: 7029 | B78: TERRA ENVIRONMENTAL RESEARCH | C78: 0 | D78: 0 | E78: 0 | F78: 0 | G78: 0 | H78: 0 | I78: 0 | J78: 0 | K78: 0 | L78: 0 | M78: 0 | N78: 0 | O78: 0 | P78: 0 | Q78: 0
A79: 7030 | B79: INTEGRATED ACADEMICS (SIATECH) | C79: 0 | D79: 0 | E79: 0 | F79: 0 | G79: 0 | H79: 0 | I79: 0 | J79: 0 | K79: 0 | L79: 0 | M79: 0 | N79: 0 | O79: 0 | P79: 0 | Q79: 0
A80: 7032 | B80: PALM GLADES PREP HIGH SCHOOL | C80: 0 | D80: 0 | E80: 0 | F80: 0 | G80: 0 | H80: 0 | I80: 0 | J80: 0 | K80: 0 | L80: 0 | M80: 0 | N80: 0 | O80: 0 | P80: 0 | Q80: 0
A81: 7033 | B81: LAW ENFORCEMENT OFFICERS HS | C81: 0 | D81: 0 | E81: 0 | F81: 0 | G81: 0 | H81: 0 | I81: 0 | J81: 0 | K81: 0 | L81: 0 | M81: 0 | N81: 0 | O81: 0 | P81: 0 | Q81: 0
A82: 7034 | B82: SOMERSET ACAD HIGH SOUTH-HMSTD | C82: 0 | D82: 0 | E82: 0 | F82: 0 | G82: 0 | H82: 0 | I82: 0 | J82: 0 | K82: 0 | L82: 0 | M82: 0 | N82: 0 | O82: 0 | P82: 0 | Q82: 0
A83: 7036 | B83: LAWRENCE ACADEMY SENIOR | C83: 0 | D83: 0 | E83: 0 | F83: 0 | G83: 0 | H83: 0 | I83: 0 | J83: 0 | K83: 0 | L83: 0 | M83: 0 | N83: 0 | O83: 0 | P83: 0 | Q83: 0
A84: 7037 | B84: MATER ACADEMY EAST HIGH SCHOOL | C84: 0 | D84: 0 | E84: 0 | F84: 0 | G84: 0 | H84: 0 | I84: 0 | J84: 0 | K84: 0 | L84: 0 | M84: 0 | N84: 0 | O84: 0 | P84: 0 | Q84: 0
A85: 7042 | B85: SOMERSET ACADEMY CHARTER HIGH | C85: 0 | D85: 0 | E85: 0 | F85: 0 | G85: 0 | H85: 0 | I85: 0 | J85: 0 | K85: 0 | L85: 0 | M85: 0 | N85: 0 | O85: 0 | P85: 0 | Q85: 0
A86: 7048 | B86: ALONZO & TRACY MOURNING SH | C86: 0 | D86: 0 | E86: 0 | F86: 0 | G86: 0 | H86: 0 | I86: 0 | J86: 0 | K86: 0 | L86: 0 | M86: 0 | N86: 0 | O86: 0 | P86: 0 | Q86: 0
A87: 7049 | B87: WESTLAND HIALEAH SENIOR HIGH | C87: 0 | D87: 0 | E87: 0 | F87: 0 | G87: 0 | H87: 0 | I87: 0 | J87: 0 | K87: 0 | L87: 0 | M87: 0 | N87: 0 | O87: 0 | P87: 0 | Q87: 0
A88: 7050 | B88: KEYS GATE CHARTER HIGH SCHL | C88: 0 | D88: 0 | E88: 0 | F88: 0 | G88: 0 | H88: 0 | I88: 0 | J88: 0 | K88: 0 | L88: 0 | M88: 0 | N88: 0 | O88: 0 | P88: 0 | Q88: 0
A89: 7051 | B89: G. HOLMES BRADDOCK SENIOR HIGH | C89: 0 | D89: 0 | E89: 0 | F89: 0 | G89: 0 | H89: 0 | I89: 0 | J89: 0 | K89: 0 | L89: 0 | M89: 0 | N89: 0 | O89: 0 | P89: 0 | Q89: 0
A90: 7053 | B90: PINECREST ACADEMY CHARTER HIGH | C90: 0 | D90: 0 | E90: 0 | F90: 0 | G90: 0 | H90: 0 | I90: 0 | J90: 0 | K90: 0 | L90: 0 | M90: 0 | N90: 0 | O90: 0 | P90: 0 | Q90: 0
A91: 7054 | B91: EXCELSIOR CHARTER HIGH SCHOOL | C91: 0 | D91: 0 | E91: 0 | F91: 0 | G91: 0 | H91: 0 | I91: 0 | J91: 0 | K91: 0 | L91: 0 | M91: 0 | N91: 0 | O91: 0 | P91: 0 | Q91: 0
A92: 7055 | B92: YOUNG WOMEN'S PREPARATORY ACAD | C92: 2 | D92: 0 | E92: 0 | F92: 0 | G92: 1 | H92: 0 | I92: 1 | J92: 0 | K92: 1 | L92: 1 | M92: 0 | N92: 0 | O92: 1 | P92: 0 | Q92: 0
A93: 7056 | B93: YOUNG MENS PREPARATORY ACADEMY | C93: 0 | D93: 0 | E93: 0 | F93: 0 | G93: 0 | H93: 0 | I93: 0 | J93: 0 | K93: 0 | L93: 0 | M93: 0 | N93: 0 | O93: 0 | P93: 0 | Q93: 0
A94: 7058 | B94: MIAMI COMMUNITY CH HIGH SCHOOL | C94: 0 | D94: 0 | E94: 0 | F94: 0 | G94: 0 | H94: 0 | I94: 0 | J94: 0 | K94: 0 | L94: 0 | M94: 0 | N94: 0 | O94: 0 | P94: 0 | Q94: 0
A95: 7059 | B95: MIAMI ARTS CHARTER | C95: 6 | D95: 0 | E95: 0 | F95: 0 | G95: 1 | H95: 5 | I95: 0 | J95: 4 | K95: 0 | L95: 2 | M95: 0 | N95: 0 | O95: 0 | P95: 0 | Q95: 0
A96: 7060 | B96: EVERGLADES PREP ACADEMY HIGH | C96: 0 | D96: 0 | E96: 0 | F96: 0 | G96: 0 | H96: 0 | I96: 0 | J96: 0 | K96: 0 | L96: 0 | M96: 0 | N96: 0 | O96: 0 | P96: 0 | Q96: 0
A97: 7062 | B97: MAVERICKS HIGH OF NORTH M-DADE | C97: 0 | D97: 0 | E97: 0 | F97: 0 | G97: 0 | H97: 0 | I97: 0 | J97: 0 | K97: 0 | L97: 0 | M97: 0 | N97: 0 | O97: 0 | P97: 0 | Q97: 0
A98: 7065 | B98: MAVERICKS HIGH OF SOUTH M-DADE | C98: 0 | D98: 0 | E98: 0 | F98: 0 | G98: 0 | H98: 0 | I98: 0 | J98: 0 | K98: 0 | L98: 0 | M98: 0 | N98: 0 | O98: 0 | P98: 0 | Q98: 0
A99: 7067 | B99: GREEN SPRINGS HIGH SCHOOL | C99: 0 | D99: 0 | E99: 0 | F99: 0 | G99: 0 | H99: 0 | I99: 0 | J99: 0 | K99: 0 | L99: 0 | M99: 0 | N99: 0 | O99: 0 | P99: 0 | Q99: 0
A100: 7068 | B100: NORTH GARDENS HIGH SCHOOL | C100: 0 | D100: 0 | E100: 0 | F100: 0 | G100: 0 | H100: 0 | I100: 0 | J100: 0 | K100: 0 | L100: 0 | M100: 0 | N100: 0 | O100: 0 | P100: 0 | Q100: 0
A101: 7069 | B101: NORTH PARK HIGH SCHOOL | C101: 0 | D101: 0 | E101: 0 | F101: 0 | G101: 0 | H101: 0 | I101: 0 | J101: 0 | K101: 0 | L101: 0 | M101: 0 | N101: 0 | O101: 0 | P101: 0 | Q101: 0
A102: 7070 | B102: YOUTH CO-OP PREP HIGH SCHOOL | C102: 0 | D102: 0 | E102: 0 | F102: 0 | G102: 0 | H102: 0 | I102: 0 | J102: 0 | K102: 0 | L102: 0 | M102: 0 | N102: 0 | O102: 0 | P102: 0 | Q102: 0
A103: 7071 | B103: CORAL GABLES SENIOR HIGH | C103: 0 | D103: 0 | E103: 0 | F103: 0 | G103: 0 | H103: 0 | I103: 0 | J103: 0 | K103: 0 | L103: 0 | M103: 0 | N103: 0 | O103: 0 | P103: 0 | Q103: 0
A104: 7080 | B104: CHARTER HS OF THE AMERICAS | C104: 0 | D104: 0 | E104: 0 | F104: 0 | G104: 0 | H104: 0 | I104: 0 | J104: 0 | K104: 0 | L104: 0 | M104: 0 | N104: 0 | O104: 0 | P104: 0 | Q104: 0
A105: 7081 | B105: DESIGN & ARCHITECTURE SENIOR | C105: 0 | D105: 0 | E105: 0 | F105: 0 | G105: 0 | H105: 0 | I105: 0 | J105: 0 | K105: 0 | L105: 0 | M105: 0 | N105: 0 | O105: 0 | P105: 0 | Q105: 0
A106: 7101 | B106: CORAL REEF SENIOR HIGH | C106: 0 | D106: 0 | E106: 0 | F106: 0 | G106: 0 | H106: 0 | I106: 0 | J106: 0 | K106: 0 | L106: 0 | M106: 0 | N106: 0 | O106: 0 | P106: 0 | Q106: 0
A107: 7111 | B107: HIALEAH SENIOR | C107: 0 | D107: 0 | E107: 0 | F107: 0 | G107: 0 | H107: 0 | I107: 0 | J107: 0 | K107: 0 | L107: 0 | M107: 0 | N107: 0 | O107: 0 | P107: 0 | Q107: 0
A108: 7121 | B108: JOHN A FERGUSON SENIOR HIGH | C108: 0 | D108: 0 | E108: 0 | F108: 0 | G108: 0 | H108: 0 | I108: 0 | J108: 0 | K108: 0 | L108: 0 | M108: 0 | N108: 0 | O108: 0 | P108: 0 | Q108: 0
A109: 7131 | B109: HIALEAH-MIAMI LAKES SENIOR | C109: 0 | D109: 0 | E109: 0 | F109: 0 | G109: 0 | H109: 0 | I109: 0 | J109: 0 | K109: 0 | L109: 0 | M109: 0 | N109: 0 | O109: 0 | P109: 0 | Q109: 0
A110: 7141 | B110: DR MICHAEL M KROP SENIOR HIGH | C110: 0 | D110: 0 | E110: 0 | F110: 0 | G110: 0 | H110: 0 | I110: 0 | J110: 0 | K110: 0 | L110: 0 | M110: 0 | N110: 0 | O110: 0 | P110: 0 | Q110: 0
A111: 7151 | B111: HOMESTEAD SENIOR HIGH | C111: 0 | D111: 0 | E111: 0 | F111: 0 | G111: 0 | H111: 0 | I111: 0 | J111: 0 | K111: 0 | L111: 0 | M111: 0 | N111: 0 | O111: 0 | P111: 0 | Q111: 0
A112: 7160 | B112: MATER ACADEMY CHARTER HIGH | C112: 0 | D112: 0 | E112: 0 | F112: 0 | G112: 0 | H112: 0 | I112: 0 | J112: 0 | K112: 0 | L112: 0 | M112: 0 | N112: 0 | O112: 0 | P112: 0 | Q112: 0
A113: 7161 | B113: MAST @ VIRGINIA KEY | C113: 27 | D113: 0 | E113: 0 | F113: 1 | G113: 9 | H113: 16 | I113: 1 | J113: 8 | K113: 10 | L113: 8 | M113: 1 | N113: 0 | O113: 8 | P113: 0 | Q113: 0
A114: 7171 | B114: MED ACAD SCIENCE & TECHNOLOGY | C114: 0 | D114: 0 | E114: 0 | F114: 0 | G114: 0 | H114: 0 | I114: 0 | J114: 0 | K114: 0 | L114: 0 | M114: 0 | N114: 0 | O114: 0 | P114: 0 | Q114: 0
A115: 7191 | B115: HIALEAH GARDENS SENIOR | C115: 0 | D115: 0 | E115: 0 | F115: 0 | G115: 0 | H115: 0 | I115: 0 | J115: 0 | K115: 0 | L115: 0 | M115: 0 | N115: 0 | O115: 0 | P115: 0 | Q115: 0
A116: 7201 | B116: MIAMI BEACH SENIOR HIGH | C116: 0 | D116: 0 | E116: 0 | F116: 0 | G116: 0 | H116: 0 | I116: 0 | J116: 0 | K116: 0 | L116: 0 | M116: 0 | N116: 0 | O116: 0 | P116: 0 | Q116: 0
A117: 7231 | B117: MIAMI CAROL CITY SENIOR HIGH | C117: 0 | D117: 0 | E117: 0 | F117: 0 | G117: 0 | H117: 0 | I117: 0 | J117: 0 | K117: 0 | L117: 0 | M117: 0 | N117: 0 | O117: 0 | P117: 0 | Q117: 0
A118: 7241 | B118: RONALD W REAGAN/DORAL SENIOR | C118: 0 | D118: 0 | E118: 0 | F118: 0 | G118: 0 | H118: 0 | I118: 0 | J118: 0 | K118: 0 | L118: 0 | M118: 0 | N118: 0 | O118: 0 | P118: 0 | Q118: 0
A119: 7251 | B119: MIAMI CENTRAL SENIOR HIGH | C119: 0 | D119: 0 | E119: 0 | F119: 0 | G119: 0 | H119: 0 | I119: 0 | J119: 0 | K119: 0 | L119: 0 | M119: 0 | N119: 0 | O119: 0 | P119: 0 | Q119: 0
A120: 7262 | B120: CITY OF HIALEAH EDUCATION ACAD | C120: 0 | D120: 0 | E120: 0 | F120: 0 | G120: 0 | H120: 0 | I120: 0 | J120: 0 | K120: 0 | L120: 0 | M120: 0 | N120: 0 | O120: 0 | P120: 0 | Q120: 0
A121: 7265 | B121: ARCHIMEDEAN UPPER CONSERV CHAR | C121: 0 | D121: 0 | E121: 0 | F121: 0 | G121: 0 | H121: 0 | I121: 0 | J121: 0 | K121: 0 | L121: 0 | M121: 0 | N121: 0 | O121: 0 | P121: 0 | Q121: 0
A122: 7271 | B122: MIAMI CORAL PARK SENIOR HIGH | C122: 0 | D122: 0 | E122: 0 | F122: 0 | G122: 0 | H122: 0 | I122: 0 | J122: 0 | K122: 0 | L122: 0 | M122: 0 | N122: 0 | O122: 0 | P122: 0 | Q122: 0
A123: 7291 | B123: JOSE MARTI MAST 6-12 ACADEMY | C123: 0 | D123: 0 | E123: 0 | F123: 0 | G123: 0 | H123: 0 | I123: 0 | J123: 0 | K123: 0 | L123: 0 | M123: 0 | N123: 0 | O123: 0 | P123: 0 | Q123: 0
A124: 7301 | B124: MIAMI EDISON SENIOR HIGH | C124: 0 | D124: 0 | E124: 0 | F124: 0 | G124: 0 | H124: 0 | I124: 0 | J124: 0 | K124: 0 | L124: 0 | M124: 0 | N124: 0 | O124: 0 | P124: 0 | Q124: 0
A125: 7341 | B125: MIAMI JACKSON SENIOR HIGH | C125: 0 | D125: 0 | E125: 0 | F125: 0 | G125: 0 | H125: 0 | I125: 0 | J125: 0 | K125: 0 | L125: 0 | M125: 0 | N125: 0 | O125: 0 | P125: 0 | Q125: 0
A126: 7351 | B126: ARTHUR AND POLLY MAYS CONSERVA | C126: 0 | D126: 0 | E126: 0 | F126: 0 | G126: 0 | H126: 0 | I126: 0 | J126: 0 | K126: 0 | L126: 0 | M126: 0 | N126: 0 | O126: 0 | P126: 0 | Q126: 0
A127: 7361 | B127: MIAMI KILLIAN SENIOR HIGH | C127: 0 | D127: 0 | E127: 0 | F127: 0 | G127: 0 | H127: 0 | I127: 0 | J127: 0 | K127: 0 | L127: 0 | M127: 0 | N127: 0 | O127: 0 | P127: 0 | Q127: 0
A128: 7371 | B128: ROBERT MORGAN EDUCATIONAL CTR | C128: 0 | D128: 0 | E128: 0 | F128: 0 | G128: 0 | H128: 0 | I128: 0 | J128: 0 | K128: 0 | L128: 0 | M128: 0 | N128: 0 | O128: 0 | P128: 0 | Q128: 0
A129: 7381 | B129: MIAMI NORLAND SENIOR HIGH | C129: 0 | D129: 0 | E129: 0 | F129: 0 | G129: 0 | H129: 0 | I129: 0 | J129: 0 | K129: 0 | L129: 0 | M129: 0 | N129: 0 | O129: 0 | P129: 0 | Q129: 0
A130: 7391 | B130: MIAMI LAKES EDUCATIONAL CENTER | C130: 0 | D130: 0 | E130: 0 | F130: 0 | G130: 0 | H130: 0 | I130: 0 | J130: 0 | K130: 0 | L130: 0 | M130: 0 | N130: 0 | O130: 0 | P130: 0 | Q130: 0
A131: 7411 | B131: MIAMI NORTHWESTERN SENIOR HIGH | C131: 0 | D131: 0 | E131: 0 | F131: 0 | G131: 0 | H131: 0 | I131: 0 | J131: 0 | K131: 0 | L131: 0 | M131: 0 | N131: 0 | O131: 0 | P131: 0 | Q131: 0
A132: 7431 | B132: MIAMI PALMETTO SENIOR HIGH | C132: 0 | D132: 0 | E132: 0 | F132: 0 | G132: 0 | H132: 0 | I132: 0 | J132: 0 | K132: 0 | L132: 0 | M132: 0 | N132: 0 | O132: 0 | P132: 0 | Q132: 0
A133: 7461 | B133: MIAMI SENIOR HIGH | C133: 0 | D133: 0 | E133: 0 | F133: 0 | G133: 0 | H133: 0 | I133: 0 | J133: 0 | K133: 0 | L133: 0 | M133: 0 | N133: 0 | O133: 0 | P133: 0 | Q133: 0
A134: 7511 | B134: MIAMI SPRINGS SENIOR HIGH | C134: 0 | D134: 0 | E134: 0 | F134: 0 | G134: 0 | H134: 0 | I134: 0 | J134: 0 | K134: 0 | L134: 0 | M134: 0 | N134: 0 | O134: 0 | P134: 0 | Q134: 0
A135: 7531 | B135: MIAMI SUNSET SENIOR HIGH | C135: 0 | D135: 0 | E135: 0 | F135: 0 | G135: 0 | H135: 0 | I135: 0 | J135: 0 | K135: 0 | L135: 0 | M135: 0 | N135: 0 | O135: 0 | P135: 0 | Q135: 0
A136: 7541 | B136: NORTH MIAMI BEACH SENIOR HIGH | C136: 0 | D136: 0 | E136: 0 | F136: 0 | G136: 0 | H136: 0 | I136: 0 | J136: 0 | K136: 0 | L136: 0 | M136: 0 | N136: 0 | O136: 0 | P136: 0 | Q136: 0
A137: 7571 | B137: INTL STUDIES PREP ACADEMY | C137: 0 | D137: 0 | E137: 0 | F137: 0 | G137: 0 | H137: 0 | I137: 0 | J137: 0 | K137: 0 | L137: 0 | M137: 0 | N137: 0 | O137: 0 | P137: 0 | Q137: 0
A138: 7581 | B138: IPREPARATORY ACADEMY | C138: 0 | D138: 0 | E138: 0 | F138: 0 | G138: 0 | H138: 0 | I138: 0 | J138: 0 | K138: 0 | L138: 0 | M138: 0 | N138: 0 | O138: 0 | P138: 0 | Q138: 0
A139: 7591 | B139: NORTH MIAMI SENIOR HIGH | C139: 0 | D139: 0 | E139: 0 | F139: 0 | G139: 0 | H139: 0 | I139: 0 | J139: 0 | K139: 0 | L139: 0 | M139: 0 | N139: 0 | O139: 0 | P139: 0 | Q139: 0
A140: 7601 | B140: WILLIAM H. TURNER TECHNICAL | C140: 0 | D140: 0 | E140: 0 | F140: 0 | G140: 0 | H140: 0 | I140: 0 | J140: 0 | K140: 0 | L140: 0 | M140: 0 | N140: 0 | O140: 0 | P140: 0 | Q140: 0
A141: 7631 | B141: MIAMI MACARTHUR SOUTH | C141: 0 | D141: 0 | E141: 0 | F141: 0 | G141: 0 | H141: 0 | I141: 0 | J141: 0 | K141: 0 | L141: 0 | M141: 0 | N141: 0 | O141: 0 | P141: 0 | Q141: 0
A142: 7701 | B142: SOUTH DADE SENIOR HIGH | C142: 0 | D142: 0 | E142: 0 | F142: 0 | G142: 0 | H142: 0 | I142: 0 | J142: 0 | K142: 0 | L142: 0 | M142: 0 | N142: 0 | O142: 0 | P142: 0 | Q142: 0
A143: 7721 | B143: SOUTH MIAMI SENIOR HIGH | C143: 0 | D143: 0 | E143: 0 | F143: 0 | G143: 0 | H143: 0 | I143: 0 | J143: 0 | K143: 0 | L143: 0 | M143: 0 | N143: 0 | O143: 0 | P143: 0 | Q143: 0
A144: 7731 | B144: MIAMI SOUTHRIDGE SENIOR HIGH | C144: 0 | D144: 0 | E144: 0 | F144: 0 | G144: 0 | H144: 0 | I144: 0 | J144: 0 | K144: 0 | L144: 0 | M144: 0 | N144: 0 | O144: 0 | P144: 0 | Q144: 0
A145: 7741 | B145: SOUTHWEST MIAMI SENIOR HIGH | C145: 0 | D145: 0 | E145: 0 | F145: 0 | G145: 0 | H145: 0 | I145: 0 | J145: 0 | K145: 0 | L145: 0 | M145: 0 | N145: 0 | O145: 0 | P145: 0 | Q145: 0
A146: 7751 | B146: BARBARA GOLEMAN SENIOR HIGH | C146: 0 | D146: 0 | E146: 0 | F146: 0 | G146: 0 | H146: 0 | I146: 0 | J146: 0 | K146: 0 | L146: 0 | M146: 0 | N146: 0 | O146: 0 | P146: 0 | Q146: 0
A147: 7781 | B147: FELIX VARELA SENIOR HIGH | C147: 0 | D147: 0 | E147: 0 | F147: 0 | G147: 0 | H147: 0 | I147: 0 | J147: 0 | K147: 0 | L147: 0 | M147: 0 | N147: 0 | O147: 0 | P147: 0 | Q147: 0
A148: 7791 | B148: BOOKER T. WASHINGTON SR. HIGH | C148: 0 | D148: 0 | E148: 0 | F148: 0 | G148: 0 | H148: 0 | I148: 0 | J148: 0 | K148: 0 | L148: 0 | M148: 0 | N148: 0 | O148: 0 | P148: 0 | Q148: 0
A149: 7901 | B149: NEW WORLD SCHOOL OF THE ARTS | C149: 0 | D149: 0 | E149: 0 | F149: 0 | G149: 0 | H149: 0 | I149: 0 | J149: 0 | K149: 0 | L149: 0 | M149: 0 | N149: 0 | O149: 0 | P149: 0 | Q149: 0
A150: 8014 | B150: ALTERNATIVE OUTREACH-EXT. YR | C150: 0 | D150: 0 | E150: 0 | F150: 0 | G150: 0 | H150: 0 | I150: 0 | J150: 0 | K150: 0 | L150: 0 | M150: 0 | N150: 0 | O150: 0 | P150: 0 | Q150: 0
A151: 8017 | B151: ALTERNATIVE OUTREACH PROGRAM | C151: 1 | D151: 0 | E151: 0 | F151: 0 | G151: 0 | H151: 0 | I151: 1 | J151: 0 | K151: 1 | L151: 0 | M151: 0 | N151: 0 | O151: 1 | P151: 0 | Q151: 0
A152: 8019 | B152: ACADEMY FOR COMMUNITY ED | C152: 0 | D152: 0 | E152: 0 | F152: 0 | G152: 0 | H152: 0 | I152: 0 | J152: 0 | K152: 0 | L152: 0 | M152: 0 | N152: 0 | O152: 0 | P152: 0 | Q152: 0
A153: 8101 | B153: JAN MANN OPPORTUNITY SCHOOL | C153: 0 | D153: 0 | E153: 0 | F153: 0 | G153: 0 | H153: 0 | I153: 0 | J153: 0 | K153: 0 | L153: 0 | M153: 0 | N153: 0 | O153: 0 | P153: 0 | Q153: 0
A154: 8121 | B154: COPE CENTER NORTH | C154: 0 | D154: 0 | E154: 0 | F154: 0 | G154: 0 | H154: 0 | I154: 0 | J154: 0 | K154: 0 | L154: 0 | M154: 0 | N154: 0 | O154: 0 | P154: 0 | Q154: 0
A155: 8131 | B155: DOROTHY M WALLACE COPE CENTER | C155: 0 | D155: 0 | E155: 0 | F155: 0 | G155: 0 | H155: 0 | I155: 0 | J155: 0 | K155: 0 | L155: 0 | M155: 0 | N155: 0 | O155: 0 | P155: 0 | Q155: 0
A156: 8141 | B156: JUVENILE JUSTICE CENTER | C156: 0 | D156: 0 | E156: 0 | F156: 0 | G156: 0 | H156: 0 | I156: 0 | J156: 0 | K156: 0 | L156: 0 | M156: 0 | N156: 0 | O156: 0 | P156: 0 | Q156: 0
A157: 8151 | B157: ROBERT RENICK EDUCATION CTR | C157: 0 | D157: 0 | E157: 0 | F157: 0 | G157: 0 | H157: 0 | I157: 0 | J157: 0 | K157: 0 | L157: 0 | M157: 0 | N157: 0 | O157: 0 | P157: 0 | Q157: 0
A158: 8181 | B158: RUTH OWENS KRUSE' EDUC CENTER | C158: 0 | D158: 0 | E158: 0 | F158: 0 | G158: 0 | H158: 0 | I158: 0 | J158: 0 | K158: 0 | L158: 0 | M158: 0 | N158: 0 | O158: 0 | P158: 0 | Q158: 0
A159: 9732 | B159: MERRICK EDUCATIONAL CENTER | C159: 0 | D159: 0 | E159: 0 | F159: 0 | G159: 0 | H159: 0 | I159: 0 | J159: 0 | K159: 0 | L159: 0 | M159: 0 | N159: 0 | O159: 0 | P159: 0 | Q159: 0
A160: 9999 | B160: District | C160: 1898 | D160: 5 | E160: 33 | F160: 304 | G160: 721 | H160: 817 | I160: 18 | J160: 293 | K160: 166 | L160: 1354 | M160: 70 | N160: 4 | O160: 1080 | P160: 11 | Q160: 25
A161: Grand Total | B161: 0 | C161: 0 | D161: 0 | E161: 0 | F161: 0 | G161: 0 | H161: 0 | I161: 0 | J161: 0 | K161: 0 | L161: 0 | M161: 0 | N161: 0 | O161: 0 | P161: 0 | Q161: 0
A162: 0 | B162: 0 | C162: 0 | D162: 0 | E162: 0 | F162: 0 | G162: 0 | H162: 0 | I162: 0 | J162: 0 | K162: 0 | L162: 0 | M162: 0 | N162: 0 | O162: 0 | P162: 0 | Q162: 0
A163: 0 | B163: 0 | C163: 0 | D163: 0 | E163: 0 | F163: 0 | G163: 0 | H163: 0 | I163: 0 | J163: 0 | K163: 0 | L163: 0 | M163: 0 | N163: 0 | O163: 0 | P163: 0 | Q163: 0
A164: 0 | B164: 0 | C164: 0 | D164: 0 | E164: 0 | F164: 0 | G164: 0 | H164: 0 | I164: 0 | J164: 0 | K164: 0 | L164: 0 | M164: 0 | N164: 0 | O164: 0 | P164: 0 | Q164: 0
A165: 0 | B165: 0 | C165: 0 | D165: 0 | E165: 0 | F165: 0 | G165: 0 | H165: 0 | I165: 0 | J165: 0 | K165: 0 | L165: 0 | M165: 0 | N165: 0 | O165: 0 | P165: 0 | Q165: 0
A166: 0 | B166: 0 | C166: 0 | D166: 0 | E166: 0 | F166: 0 | G166: 0 | H166: 0 | I166: 0 | J166: 0 | K166: 0 | L166: 0 | M166: 0 | N166: 0 | O166: 0 | P166: 0 | Q166: 0
A167: 0 | B167: 0 | C167: 0 | D167: 0 | E167: 0 | F167: 0 | G167: 0 | H167: 0 | I167: 0 | J167: 0 | K167: 0 | L167: 0 | M167: 0 | N167: 0 | O167: 0 | P167: 0 | Q167: 0
A168: 0 | B168: 0 | C168: 0 | D168: 0 | E168: 0 | F168: 0 | G168: 0 | H168: 0 | I168: 0 | J168: 0 | K168: 0 | L168: 0 | M168: 0 | N168: 0 | O168: 0 | P168: 0 | Q168: 0
A169: 0 | B169: 0 | C169: 0 | D169: 0 | E169: 0 | F169: 0 | G169: 0 | H169: 0 | I169: 0 | J169: 0 | K169: 0 | L169: 0 | M169: 0 | N169: 0 | O169: 0 | P169: 0 | Q169: 0
A170: 0 | B170: 0 | C170: 0 | D170: 0 | E170: 0 | F170: 0 | G170: 0 | H170: 0 | I170: 0 | J170: 0 | K170: 0 | L170: 0 | M170: 0 | N170: 0 | O170: 0 | P170: 0 | Q170: 0
A171: 0 | B171: 0 | C171: 0 | D171: 0 | E171: 0 | F171: 0 | G171: 0 | H171: 0 | I171: 0 | J171: 0 | K171: 0 | L171: 0 | M171: 0 | N171: 0 | O171: 0 | P171: 0 | Q171: 0
A172: 0 | B172: 0 | C172: 0 | D172: 0 | E172: 0 | F172: 0 | G172: 0 | H172: 0 | I172: 0 | J172: 0 | K172: 0 | L172: 0 | M172: 0 | N172: 0 | O172: 0 | P172: 0 | Q172: 0
A173: 0 | B173: 0 | C173: 0 | D173: 0 | E173: 0 | F173: 0 | G173: 0 | H173: 0 | I173: 0 | J173: 0 | K173: 0 | L173: 0 | M173: 0 | N173: 0 | O173: 0 | P173: 0 | Q173: 0
A174: 0 | B174: 0 | C174: 0 | D174: 0 | E174: 0 | F174: 0 | G174: 0 | H174: 0 | I174: 0 | J174: 0 | K174: 0 | L174: 0 | M174: 0 | N174: 0 | O174: 0 | P174: 0 | Q174: 0
A175: 0 | B175: 0 | C175: 0 | D175: 0 | E175: 0 | F175: 0 | G175: 0 | H175: 0 | I175: 0 | J175: 0 | K175: 0 | L175: 0 | M175: 0 | N175: 0 | O175: 0 | P175: 0 | Q175: 0
A176: 0 | B176: 0 | C176: 0 | D176: 0 | E176: 0 | F176: 0 | G176: 0 | H176: 0 | I176: 0 | J176: 0 | K176: 0 | L176: 0 | M176: 0 | N176: 0 | O176: 0 | P176: 0 | Q176: 0
A177: 0 | B177: 0 | C177: 0 | D177: 0 | E177: 0 | F177: 0 | G177: 0 | H177: 0 | I177: 0 | J177: 0 | K177: 0 | L177: 0 | M177: 0 | N177: 0 | O177: 0 | P177: 0 | Q177: 0
A178: 0 | B178: 0 | C178: 0 | D178: 0 | E178: 0 | F178: 0 | G178: 0 | H178: 0 | I178: 0 | J178: 0 | K178: 0 | L178: 0 | M178: 0 | N178: 0 | O178: 0 | P178: 0 | Q178: 0
A179: 0 | B179: 0 | C179: 0 | D179: 0 | E179: 0 | F179: 0 | G179: 0 | H179: 0 | I179: 0 | J179: 0 | K179: 0 | L179: 0 | M179: 0 | N179: 0 | O179: 0 | P179: 0 | Q179: 0
A180: 0 | B180: 0 | C180: 0 | D180: 0 | E180: 0 | F180: 0 | G180: 0 | H180: 0 | I180: 0 | J180: 0 | K180: 0 | L180: 0 | M180: 0 | N180: 0 | O180: 0 | P180: 0 | Q180: 0
A181: 0 | B181: 0 | C181: 0 | D181: 0 | E181: 0 | F181: 0 | G181: 0 | H181: 0 | I181: 0 | J181: 0 | K181: 0 | L181: 0 | M181: 0 | N181: 0 | O181: 0 | P181: 0 | Q181: 0
A182: 0 | B182: 0 | C182: 0 | D182: 0 | E182: 0 | F182: 0 | G182: 0 | H182: 0 | I182: 0 | J182: 0 | K182: 0 | L182: 0 | M182: 0 | N182: 0 | O182: 0 | P182: 0 | Q182: 0
A183: 0 | B183: 0 | C183: 0 | D183: 0 | E183: 0 | F183: 0 | G183: 0 | H183: 0 | I183: 0 | J183: 0 | K183: 0 | L183: 0 | M183: 0 | N183: 0 | O183: 0 | P183: 0 | Q183: 0
A184: 0 | B184: 0 | C184: 0 | D184: 0 | E184: 0 | F184: 0 | G184: 0 | H184: 0 | I184: 0 | J184: 0 | K184: 0 | L184: 0 | M184: 0 | N184: 0 | O184: 0 | P184: 0 | Q184: 0
A185: 0 | B185: 0 | C185: 0 | D185: 0 | E185: 0 | F185: 0 | G185: 0 | H185: 0 | I185: 0 | J185: 0 | K185: 0 | L185: 0 | M185: 0 | N185: 0 | O185: 0 | P185: 0 | Q185: 0
A186: 0 | B186: 0 | C186: 0 | D186: 0 | E186: 0 | F186: 0 | G186: 0 | H186: 0 | I186: 0 | J186: 0 | K186: 0 | L186: 0 | M186: 0 | N186: 0 | O186: 0 | P186: 0 | Q186: 0
A187: 0 | B187: 0 | C187: 0 | D187: 0 | E187: 0 | F187: 0 | G187: 0 | H187: 0 | I187: 0 | J187: 0 | K187: 0 | L187: 0 | M187: 0 | N187: 0 | O187: 0 | P187: 0 | Q187: 0
A188: 0 | B188: 0 | C188: 0 | D188: 0 | E188: 0 | F188: 0 | G188: 0 | H188: 0 | I188: 0 | J188: 0 | K188: 0 | L188: 0 | M188: 0 | N188: 0 | O188: 0 | P188: 0 | Q188: 0
A189: 0 | B189: 0 | C189: 0 | D189: 0 | E189: 0 | F189: 0 | G189: 0 | H189: 0 | I189: 0 | J189: 0 | K189: 0 | L189: 0 | M189: 0 | N189: 0 | O189: 0 | P189: 0 | Q189: 0
A190: 0 | B190: 0 | C190: 0 | D190: 0 | E190: 0 | F190: 0 | G190: 0 | H190: 0 | I190: 0 | J190: 0 | K190: 0 | L190: 0 | M190: 0 | N190: 0 | O190: 0 | P190: 0 | Q190: 0
A191: 0 | B191: 0 | C191: 0 | D191: 0 | E191: 0 | F191: 0 | G191: 0 | H191: 0 | I191: 0 | J191: 0 | K191: 0 | L191: 0 | M191: 0 | N191: 0 | O191: 0 | P191: 0 | Q191: 0
A192: 0 | B192: 0 | C192: 0 | D192: 0 | E192: 0 | F192: 0 | G192: 0 | H192: 0 | I192: 0 | J192: 0 | K192: 0 | L192: 0 | M192: 0 | N192: 0 | O192: 0 | P192: 0 | Q192: 0
A193: 0 | B193: 0 | C193: 0 | D193: 0 | E193: 0 | F193: 0 | G193: 0 | H193: 0 | I193: 0 | J193: 0 | K193: 0 | L193: 0 | M193: 0 | N193: 0 | O193: 0 | P193: 0 | Q193: 0
A194: 0 | B194: 0 | C194: 0 | D194: 0 | E194: 0 | F194: 0 | G194: 0 | H194: 0 | I194: 0 | J194: 0 | K194: 0 | L194: 0 | M194: 0 | N194: 0 | O194: 0 | P194: 0 | Q194: 0
A195: 0 | B195: 0 | C195: 0 | D195: 0 | E195: 0 | F195: 0 | G195: 0 | H195: 0 | I195: 0 | J195: 0 | K195: 0 | L195: 0 | M195: 0 | N195: 0 | O195: 0 | P195: 0 | Q195: 0
A196: 0 | B196: 0 | C196: 0 | D196: 0 | E196: 0 | F196: 0 | G196: 0 | H196: 0 | I196: 0 | J196: 0 | K196: 0 | L196: 0 | M196: 0 | N196: 0 | O196: 0 | P196: 0 | Q196: 0
A197: 0 | B197: 0 | C197: 0 | D197: 0 | E197: 0 | F197: 0 | G197: 0 | H197: 0 | I197: 0 | J197: 0 | K197: 0 | L197: 0 | M197: 0 | N197: 0 | O197: 0 | P197: 0 | Q197: 0
A198: 0 | B198: 0 | C198: 0 | D198: 0 | E198: 0 | F198: 0 | G198: 0 | H198: 0 | I198: 0 | J198: 0 | K198: 0 | L198: 0 | M198: 0 | N198: 0 | O198: 0 | P198: 0 | Q198: 0
A199: 0 | B199: 0 | C199: 0 | D199: 0 | E199: 0 | F199: 0 | G199: 0 | H199: 0 | I199: 0 | J199: 0 | K199: 0 | L199: 0 | M199: 0 | N199: 0 | O199: 0 | P199: 0 | Q199: 0
A200: 0 | B200: 0 | C200: 0 | D200: 0 | E200: 0 | F200: 0 | G200: 0 | H200: 0 | I200: 0 | J200: 0 | K200: 0 | L200: 0 | M200: 0 | N200: 0 | O200: 0 | P200: 0 | Q200: 0
... 16 more rows

Sheet ALG Gr06 (hidden)
A1: 1 | B1: 2 | C1: 3 | D1: 4 | E1: 5 | F1: 6 | G1: 7 | H1: 8 | I1: 9 | J1: 10 | K1: 11 | L1: 12 | M1: 13 | N1: 14 | O1: 15 | P1: 16 | Q1: 17
A2: 06 | B2: SchName | C2: Total | D2: ML1 | E2: ML2 | F2: ML3 | G2: ML4 | H2: ML5 | I2: ML0 | J2: W | K2: B | L2: H | M2: A | N2: I | O2: ED | P2: ELL | Q2: SWD
A3: 0070 | B3: CORAL REEF MONTESSORI ACAD CH | C3: 0 | D3: 0 | E3: 0 | F3: 0 | G3: 0 | H3: 0 | I3: 0 | J3: 0 | K3: 0 | L3: 0 | M3: 0 | N3: 0 | O3: 0 | P3: 0 | Q3: 0
A4: 0071 | B4: EUGENIA B. THOMAS K-8 CENTER | C4: 0 | D4: 0 | E4: 0 | F4: 0 | G4: 0 | H4: 0 | I4: 0 | J4: 0 | K4: 0 | L4: 0 | M4: 0 | N4: 0 | O4: 0 | P4: 0 | Q4: 0
A5: 0073 | B5: MANDARIN LAKES K-8 CENTER | C5: 0 | D5: 0 | E5: 0 | F5: 0 | G5: 0 | H5: 0 | I5: 0 | J5: 0 | K5: 0 | L5: 0 | M5: 0 | N5: 0 | O5: 0 | P5: 0 | Q5: 0
A6: 0091 | B6: BOB GRAHAM EDUCATION CTR | C6: 0 | D6: 0 | E6: 0 | F6: 0 | G6: 0 | H6: 0 | I6: 0 | J6: 0 | K6: 0 | L6: 0 | M6: 0 | N6: 0 | O6: 0 | P6: 0 | Q6: 0
A7: 0092 | B7: NORMAN S. EDELCUP/SUNNY ISLES | C7: 0 | D7: 0 | E7: 0 | F7: 0 | G7: 0 | H7: 0 | I7: 0 | J7: 0 | K7: 0 | L7: 0 | M7: 0 | N7: 0 | O7: 0 | P7: 0 | Q7: 0
A8: 0122 | B8: DR ROLANDO ESPINOSA K-8 | C8: 0 | D8: 0 | E8: 0 | F8: 0 | G8: 0 | H8: 0 | I8: 0 | J8: 0 | K8: 0 | L8: 0 | M8: 0 | N8: 0 | O8: 0 | P8: 0 | Q8: 0
A9: 0231 | B9: AVENTURA WATERWAYS K-8 CENTER | C9: 0 | D9: 0 | E9: 0 | F9: 0 | G9: 0 | H9: 0 | I9: 0 | J9: 0 | K9: 0 | L9: 0 | M9: 0 | N9: 0 | O9: 0 | P9: 0 | Q9: 0
A10: 0241 | B10: RUTH K BROAD/BAY HARBOR K-8 | C10: 0 | D10: 0 | E10: 0 | F10: 0 | G10: 0 | H10: 0 | I10: 0 | J10: 0 | K10: 0 | L10: 0 | M10: 0 | N10: 0 | O10: 0 | P10: 0 | Q10: 0
A11: 0332 | B11: SOMERSET ACADEMY(SILVER PALMS) | C11: 0 | D11: 0 | E11: 0 | F11: 0 | G11: 0 | H11: 0 | I11: 0 | J11: 0 | K11: 0 | L11: 0 | M11: 0 | N11: 0 | O11: 0 | P11: 0 | Q11: 0
A12: 0451 | B12: BOWMAN ASHE/DOOLIN K-8 ACAD | C12: 0 | D12: 0 | E12: 0 | F12: 0 | G12: 0 | H12: 0 | I12: 0 | J12: 0 | K12: 0 | L12: 0 | M12: 0 | N12: 0 | O12: 0 | P12: 0 | Q12: 0
A13: 0761 | B13: FIENBERG/FISHER K-8 CENTER | C13: 0 | D13: 0 | E13: 0 | F13: 0 | G13: 0 | H13: 0 | I13: 0 | J13: 0 | K13: 0 | L13: 0 | M13: 0 | N13: 0 | O13: 0 | P13: 0 | Q13: 0
A14: 0950 | B14: AVENTURA CITY OF EXCELLENCE | C14: 0 | D14: 0 | E14: 0 | F14: 0 | G14: 0 | H14: 0 | I14: 0 | J14: 0 | K14: 0 | L14: 0 | M14: 0 | N14: 0 | O14: 0 | P14: 0 | Q14: 0
A15: 0961 | B15: CORAL GABLES PREPARATORY ACAD | C15: 0 | D15: 0 | E15: 0 | F15: 0 | G15: 0 | H15: 0 | I15: 0 | J15: 0 | K15: 0 | L15: 0 | M15: 0 | N15: 0 | O15: 0 | P15: 0 | Q15: 0
A16: 1020 | B16: YOUTH CO-OP CHARTER SCHOOL | C16: 0 | D16: 0 | E16: 0 | F16: 0 | G16: 0 | H16: 0 | I16: 0 | J16: 0 | K16: 0 | L16: 0 | M16: 0 | N16: 0 | O16: 0 | P16: 0 | Q16: 0
A17: 1121 | B17: CORAL WAY K-8 CENTER | C17: 0 | D17: 0 | E17: 0 | F17: 0 | G17: 0 | H17: 0 | I17: 0 | J17: 0 | K17: 0 | L17: 0 | M17: 0 | N17: 0 | O17: 0 | P17: 0 | Q17: 0
A18: 1331 | B18: DEVON AIRE K-8 CENTER | C18: 0 | D18: 0 | E18: 0 | F18: 0 | G18: 0 | H18: 0 | I18: 0 | J18: 0 | K18: 0 | L18: 0 | M18: 0 | N18: 0 | O18: 0 | P18: 0 | Q18: 0
A19: 1681 | B19: LILLIE C. EVANS K-8 CENTER | C19: 1 | D19: 0 | E19: 0 | F19: 0 | G19: 1 | H19: 0 | I19: 0 | J19: 0 | K19: 1 | L19: 0 | M19: 0 | N19: 0 | O19: 1 | P19: 0 | Q19: 0
A20: 1721 | B20: EVERGLADES K-8 CENTER | C20: 0 | D20: 0 | E20: 0 | F20: 0 | G20: 0 | H20: 0 | I20: 0 | J20: 0 | K20: 0 | L20: 0 | M20: 0 | N20: 0 | O20: 0 | P20: 0 | Q20: 0
A21: 2701 | B21: KENWOOD K-8 CENTER | C21: 0 | D21: 0 | E21: 0 | F21: 0 | G21: 0 | H21: 0 | I21: 0 | J21: 0 | K21: 0 | L21: 0 | M21: 0 | N21: 0 | O21: 0 | P21: 0 | Q21: 0
A22: 2741 | B22: KEY BISCAYNE K-8 CENTER | C22: 0 | D22: 0 | E22: 0 | F22: 0 | G22: 0 | H22: 0 | I22: 0 | J22: 0 | K22: 0 | L22: 0 | M22: 0 | N22: 0 | O22: 0 | P22: 0 | Q22: 0
A23: 2881 | B23: LEEWOOD K-8 CENTER | C23: 0 | D23: 0 | E23: 0 | F23: 0 | G23: 0 | H23: 0 | I23: 0 | J23: 0 | K23: 0 | L23: 0 | M23: 0 | N23: 0 | O23: 0 | P23: 0 | Q23: 0
A24: 2901 | B24: LEISURE CITY K-8 CENTER | C24: 0 | D24: 0 | E24: 0 | F24: 0 | G24: 0 | H24: 0 | I24: 0 | J24: 0 | K24: 0 | L24: 0 | M24: 0 | N24: 0 | O24: 0 | P24: 0 | Q24: 0
A25: 2911 | B25: LINDA LENTIN K-8 CENTER | C25: 0 | D25: 0 | E25: 0 | F25: 0 | G25: 0 | H25: 0 | I25: 0 | J25: 0 | K25: 0 | L25: 0 | M25: 0 | N25: 0 | O25: 0 | P25: 0 | Q25: 0
A26: 3029 | B26: DORAL ACADEMY OF TECHNOLOGY | C26: 0 | D26: 0 | E26: 0 | F26: 0 | G26: 0 | H26: 0 | I26: 0 | J26: 0 | K26: 0 | L26: 0 | M26: 0 | N26: 0 | O26: 0 | P26: 0 | Q26: 0
A27: 3032 | B27: PALM GLADES PREPATORY ACADEMY | C27: 0 | D27: 0 | E27: 0 | F27: 0 | G27: 0 | H27: 0 | I27: 0 | J27: 0 | K27: 0 | L27: 0 | M27: 0 | N27: 0 | O27: 0 | P27: 0 | Q27: 0
A28: 3101 | B28: FRANK C. MARTIN K-8 CENTER | C28: 0 | D28: 0 | E28: 0 | F28: 0 | G28: 0 | H28: 0 | I28: 0 | J28: 0 | K28: 0 | L28: 0 | M28: 0 | N28: 0 | O28: 0 | P28: 0 | Q28: 0
A29: 3191 | B29: ADA MERRITT K-8 CENTER | C29: 0 | D29: 0 | E29: 0 | F29: 0 | G29: 0 | H29: 0 | I29: 0 | J29: 0 | K29: 0 | L29: 0 | M29: 0 | N29: 0 | O29: 0 | P29: 0 | Q29: 0
A30: 3281 | B30: MIAMI LAKES K-8 CENTER | C30: 0 | D30: 0 | E30: 0 | F30: 0 | G30: 0 | H30: 0 | I30: 0 | J30: 0 | K30: 0 | L30: 0 | M30: 0 | N30: 0 | O30: 0 | P30: 0 | Q30: 0
A31: 3421 | B31: M.A. MILAM K-8 CENTER | C31: 0 | D31: 0 | E31: 0 | F31: 0 | G31: 0 | H31: 0 | I31: 0 | J31: 0 | K31: 0 | L31: 0 | M31: 0 | N31: 0 | O31: 0 | P31: 0 | Q31: 0
A32: 3610 | B32: KEYS GATE CHARTER SCHOOL | C32: 0 | D32: 0 | E32: 0 | F32: 0 | G32: 0 | H32: 0 | I32: 0 | J32: 0 | K32: 0 | L32: 0 | M32: 0 | N32: 0 | O32: 0 | P32: 0 | Q32: 0
A33: 3621 | B33: COCONUT PALM K-8 ACADEMY | C33: 0 | D33: 0 | E33: 0 | F33: 0 | G33: 0 | H33: 0 | I33: 0 | J33: 0 | K33: 0 | L33: 0 | M33: 0 | N33: 0 | O33: 0 | P33: 0 | Q33: 0
A34: 4691 | B34: JANE ROBERTS K-8 CENTER | C34: 0 | D34: 0 | E34: 0 | F34: 0 | G34: 0 | H34: 0 | I34: 0 | J34: 0 | K34: 0 | L34: 0 | M34: 0 | N34: 0 | O34: 0 | P34: 0 | Q34: 0
A35: 5003 | B35: SOUTH DADE MIDDLE SCHOOL | C35: 0 | D35: 0 | E35: 0 | F35: 0 | G35: 0 | H35: 0 | I35: 0 | J35: 0 | K35: 0 | L35: 0 | M35: 0 | N35: 0 | O35: 0 | P35: 0 | Q35: 0
A36: 5005 | B36: DAVID LAWRENCE JR K-8 CENTER | C36: 0 | D36: 0 | E36: 0 | F36: 0 | G36: 0 | H36: 0 | I36: 0 | J36: 0 | K36: 0 | L36: 0 | M36: 0 | N36: 0 | O36: 0 | P36: 0 | Q36: 0
A37: 5006 | B37: EVERGLADES PREPARATORY ACADEMY | C37: 0 | D37: 0 | E37: 0 | F37: 0 | G37: 0 | H37: 0 | I37: 0 | J37: 0 | K37: 0 | L37: 0 | M37: 0 | N37: 0 | O37: 0 | P37: 0 | Q37: 0
A38: 5010 | B38: OXFORD ACADEMY OF MIAMI | C38: 0 | D38: 0 | E38: 0 | F38: 0 | G38: 0 | H38: 0 | I38: 0 | J38: 0 | K38: 0 | L38: 0 | M38: 0 | N38: 0 | O38: 0 | P38: 0 | Q38: 0
A39: 5025 | B39: LINCOLN-MARTI CS LITTLE HAVANA | C39: 0 | D39: 0 | E39: 0 | F39: 0 | G39: 0 | H39: 0 | I39: 0 | J39: 0 | K39: 0 | L39: 0 | M39: 0 | N39: 0 | O39: 0 | P39: 0 | Q39: 0
A40: 5029 | B40: EXCELSIOR LANGUAGE ACADEMY K-8 | C40: 0 | D40: 0 | E40: 0 | F40: 0 | G40: 0 | H40: 0 | I40: 0 | J40: 0 | K40: 0 | L40: 0 | M40: 0 | N40: 0 | O40: 0 | P40: 0 | Q40: 0
A41: 5047 | B41: MATER ACADEMY (MIAMI BEACH) | C41: 0 | D41: 0 | E41: 0 | F41: 0 | G41: 0 | H41: 0 | I41: 0 | J41: 0 | K41: 0 | L41: 0 | M41: 0 | N41: 0 | O41: 0 | P41: 0 | Q41: 0
A42: 5101 | B42: JOHN I. SMITH K-8 CENTER | C42: 0 | D42: 0 | E42: 0 | F42: 0 | G42: 0 | H42: 0 | I42: 0 | J42: 0 | K42: 0 | L42: 0 | M42: 0 | N42: 0 | O42: 0 | P42: 0 | Q42: 0
A43: 5141 | B43: HUBERT O. SIBLEY K-8 CENTER | C43: 0 | D43: 0 | E43: 0 | F43: 0 | G43: 0 | H43: 0 | I43: 0 | J43: 0 | K43: 0 | L43: 0 | M43: 0 | N43: 0 | O43: 0 | P43: 0 | Q43: 0
A44: 5241 | B44: SOUTH MIAMI K-8 CENTER | C44: 0 | D44: 0 | E44: 0 | F44: 0 | G44: 0 | H44: 0 | I44: 0 | J44: 0 | K44: 0 | L44: 0 | M44: 0 | N44: 0 | O44: 0 | P44: 0 | Q44: 0
A45: 5671 | B45: VINELAND K-8 CENTER | C45: 0 | D45: 0 | E45: 0 | F45: 0 | G45: 0 | H45: 0 | I45: 0 | J45: 0 | K45: 0 | L45: 0 | M45: 0 | N45: 0 | O45: 0 | P45: 0 | Q45: 0
A46: 5961 | B46: WINSTON PARK K-8 CENTER | C46: 0 | D46: 0 | E46: 0 | F46: 0 | G46: 0 | H46: 0 | I46: 0 | J46: 0 | K46: 0 | L46: 0 | M46: 0 | N46: 0 | O46: 0 | P46: 0 | Q46: 0
A47: 6001 | B47: HERBERT A. AMMONS MIDDLE | C47: 0 | D47: 0 | E47: 0 | F47: 0 | G47: 0 | H47: 0 | I47: 0 | J47: 0 | K47: 0 | L47: 0 | M47: 0 | N47: 0 | O47: 0 | P47: 0 | Q47: 0
A48: 6004 | B48: SOMERSET ACADEMY MIDDLE | C48: 0 | D48: 0 | E48: 0 | F48: 0 | G48: 0 | H48: 0 | I48: 0 | J48: 0 | K48: 0 | L48: 0 | M48: 0 | N48: 0 | O48: 0 | P48: 0 | Q48: 0
A49: 6006 | B49: ARCHIMEDEAN CONSERVATORY | C49: 0 | D49: 0 | E49: 0 | F49: 0 | G49: 0 | H49: 0 | I49: 0 | J49: 0 | K49: 0 | L49: 0 | M49: 0 | N49: 0 | O49: 0 | P49: 0 | Q49: 0
A50: 6009 | B50: MATER ACADEMY EAST MIDDLE | C50: 0 | D50: 0 | E50: 0 | F50: 0 | G50: 0 | H50: 0 | I50: 0 | J50: 0 | K50: 0 | L50: 0 | M50: 0 | N50: 0 | O50: 0 | P50: 0 | Q50: 0
A51: 6010 | B51: FLORIDA INTERNATIONAL ACADEMY | C51: 0 | D51: 0 | E51: 0 | F51: 0 | G51: 0 | H51: 0 | I51: 0 | J51: 0 | K51: 0 | L51: 0 | M51: 0 | N51: 0 | O51: 0 | P51: 0 | Q51: 0
A52: 6011 | B52: ALLAPATTAH MIDDLE | C52: 0 | D52: 0 | E52: 0 | F52: 0 | G52: 0 | H52: 0 | I52: 0 | J52: 0 | K52: 0 | L52: 0 | M52: 0 | N52: 0 | O52: 0 | P52: 0 | Q52: 0
A53: 6012 | B53: MATER ACADEMY CHARTER MIDDLE | C53: 1 | D53: 0 | E53: 0 | F53: 0 | G53: 0 | H53: 1 | I53: 0 | J53: 0 | K53: 0 | L53: 1 | M53: 0 | N53: 0 | O53: 0 | P53: 0 | Q53: 0
A54: 6013 | B54: SOMERSET ACADEMY MIDDLE-SOUTH | C54: 0 | D54: 0 | E54: 0 | F54: 0 | G54: 0 | H54: 0 | I54: 0 | J54: 0 | K54: 0 | L54: 0 | M54: 0 | N54: 0 | O54: 0 | P54: 0 | Q54: 0
A55: 6020 | B55: ASPIRA RAUL A. MARTINEZ CHTR | C55: 0 | D55: 0 | E55: 0 | F55: 0 | G55: 0 | H55: 0 | I55: 0 | J55: 0 | K55: 0 | L55: 0 | M55: 0 | N55: 0 | O55: 0 | P55: 0 | Q55: 0
A56: 6021 | B56: ARVIDA MIDDLE SCHOOL | C56: 0 | D56: 0 | E56: 0 | F56: 0 | G56: 0 | H56: 0 | I56: 0 | J56: 0 | K56: 0 | L56: 0 | M56: 0 | N56: 0 | O56: 0 | P56: 0 | Q56: 0
A57: 6022 | B57: PINECREST ACADEMY CHARTER MIDD | C57: 0 | D57: 0 | E57: 0 | F57: 0 | G57: 0 | H57: 0 | I57: 0 | J57: 0 | K57: 0 | L57: 0 | M57: 0 | N57: 0 | O57: 0 | P57: 0 | Q57: 0
A58: 6023 | B58: ANDOVER MIDDLE SCHOOL | C58: 0 | D58: 0 | E58: 0 | F58: 0 | G58: 0 | H58: 0 | I58: 0 | J58: 0 | K58: 0 | L58: 0 | M58: 0 | N58: 0 | O58: 0 | P58: 0 | Q58: 0
A59: 6028 | B59: RENAISSANCE MIDDLE CHARTER | C59: 0 | D59: 0 | E59: 0 | F59: 0 | G59: 0 | H59: 0 | I59: 0 | J59: 0 | K59: 0 | L59: 0 | M59: 0 | N59: 0 | O59: 0 | P59: 0 | Q59: 0
A60: 6030 | B60: DORAL ACADEMY CHARTER MIDDLE | C60: 0 | D60: 0 | E60: 0 | F60: 0 | G60: 0 | H60: 0 | I60: 0 | J60: 0 | K60: 0 | L60: 0 | M60: 0 | N60: 0 | O60: 0 | P60: 0 | Q60: 0
A61: 6031 | B61: BROWNSVILLE MIDDLE | C61: 0 | D61: 0 | E61: 0 | F61: 0 | G61: 0 | H61: 0 | I61: 0 | J61: 0 | K61: 0 | L61: 0 | M61: 0 | N61: 0 | O61: 0 | P61: 0 | Q61: 0
A62: 6033 | B62: MATER ACADEMY LAKES MIDDLE | C62: 0 | D62: 0 | E62: 0 | F62: 0 | G62: 0 | H62: 0 | I62: 0 | J62: 0 | K62: 0 | L62: 0 | M62: 0 | N62: 0 | O62: 0 | P62: 0 | Q62: 0
A63: 6040 | B63: DOCTORS CHARTER/MIAMI SHORES | C63: 0 | D63: 0 | E63: 0 | F63: 0 | G63: 0 | H63: 0 | I63: 0 | J63: 0 | K63: 0 | L63: 0 | M63: 0 | N63: 0 | O63: 0 | P63: 0 | Q63: 0
A64: 6041 | B64: PAUL W. BELL MIDDLE | C64: 0 | D64: 0 | E64: 0 | F64: 0 | G64: 0 | H64: 0 | I64: 0 | J64: 0 | K64: 0 | L64: 0 | M64: 0 | N64: 0 | O64: 0 | P64: 0 | Q64: 0
A65: 6042 | B65: MATER GARDENS ACADEMY MIDDLE | C65: 0 | D65: 0 | E65: 0 | F65: 0 | G65: 0 | H65: 0 | I65: 0 | J65: 0 | K65: 0 | L65: 0 | M65: 0 | N65: 0 | O65: 0 | P65: 0 | Q65: 0
A66: 6045 | B66: INTL. STUDIES CHARTER MIDDLE | C66: 0 | D66: 0 | E66: 0 | F66: 0 | G66: 0 | H66: 0 | I66: 0 | J66: 0 | K66: 0 | L66: 0 | M66: 0 | N66: 0 | O66: 0 | P66: 0 | Q66: 0
A67: 6047 | B67: MATER ACADEMY MIDDLE-INTL STUD | C67: 0 | D67: 0 | E67: 0 | F67: 0 | G67: 0 | H67: 0 | I67: 0 | J67: 0 | K67: 0 | L67: 0 | M67: 0 | N67: 0 | O67: 0 | P67: 0 | Q67: 0
A68: 6048 | B68: MIAMI COMMUNITY CHARTER MIDDLE | C68: 0 | D68: 0 | E68: 0 | F68: 0 | G68: 0 | H68: 0 | I68: 0 | J68: 0 | K68: 0 | L68: 0 | M68: 0 | N68: 0 | O68: 0 | P68: 0 | Q68: 0
A69: 6049 | B69: RIVER CITIES COMMUNITY CHARTER | C69: 0 | D69: 0 | E69: 0 | F69: 0 | G69: 0 | H69: 0 | I69: 0 | J69: 0 | K69: 0 | L69: 0 | M69: 0 | N69: 0 | O69: 0 | P69: 0 | Q69: 0
A70: 6051 | B70: CAROL CITY MIDDLE | C70: 0 | D70: 0 | E70: 0 | F70: 0 | G70: 0 | H70: 0 | I70: 0 | J70: 0 | K70: 0 | L70: 0 | M70: 0 | N70: 0 | O70: 0 | P70: 0 | Q70: 0
A71: 6052 | B71: ZELDA GLAZER MIDDLE SCHOOL | C71: 0 | D71: 0 | E71: 0 | F71: 0 | G71: 0 | H71: 0 | I71: 0 | J71: 0 | K71: 0 | L71: 0 | M71: 0 | N71: 0 | O71: 0 | P71: 0 | Q71: 0
A72: 6053 | B72: SOMERSET ACAD MIDDLE (S-MIAMI) | C72: 0 | D72: 0 | E72: 0 | F72: 0 | G72: 0 | H72: 0 | I72: 0 | J72: 0 | K72: 0 | L72: 0 | M72: 0 | N72: 0 | O72: 0 | P72: 0 | Q72: 0
A73: 6060 | B73: ASPIRA SOUTH YOUTH LEADERSHIP | C73: 0 | D73: 0 | E73: 0 | F73: 0 | G73: 0 | H73: 0 | I73: 0 | J73: 0 | K73: 0 | L73: 0 | M73: 0 | N73: 0 | O73: 0 | P73: 0 | Q73: 0
A74: 6061 | B74: CAMPBELL DRIVE MIDDLE | C74: 0 | D74: 0 | E74: 0 | F74: 0 | G74: 0 | H74: 0 | I74: 0 | J74: 0 | K74: 0 | L74: 0 | M74: 0 | N74: 0 | O74: 0 | P74: 0 | Q74: 0
A75: 6070 | B75: ASPIRA EUGENIO MARIA DE HOSTOS | C75: 0 | D75: 0 | E75: 0 | F75: 0 | G75: 0 | H75: 0 | I75: 0 | J75: 0 | K75: 0 | L75: 0 | M75: 0 | N75: 0 | O75: 0 | P75: 0 | Q75: 0
A76: 6071 | B76: GEORGE WASHINGTON CARVER | C76: 0 | D76: 0 | E76: 0 | F76: 0 | G76: 0 | H76: 0 | I76: 0 | J76: 0 | K76: 0 | L76: 0 | M76: 0 | N76: 0 | O76: 0 | P76: 0 | Q76: 0
A77: 6081 | B77: CENTENNIAL MIDDLE | C77: 0 | D77: 0 | E77: 0 | F77: 0 | G77: 0 | H77: 0 | I77: 0 | J77: 0 | K77: 0 | L77: 0 | M77: 0 | N77: 0 | O77: 0 | P77: 0 | Q77: 0
A78: 6091 | B78: CITRUS GROVE MIDDLE SCHOOL | C78: 0 | D78: 0 | E78: 0 | F78: 0 | G78: 0 | H78: 0 | I78: 0 | J78: 0 | K78: 0 | L78: 0 | M78: 0 | N78: 0 | O78: 0 | P78: 0 | Q78: 0
A79: 6111 | B79: CUTLER RIDGE MIDDLE | C79: 0 | D79: 0 | E79: 0 | F79: 0 | G79: 0 | H79: 0 | I79: 0 | J79: 0 | K79: 0 | L79: 0 | M79: 0 | N79: 0 | O79: 0 | P79: 0 | Q79: 0
A80: 6121 | B80: RUBEN DARIO MIDDLE | C80: 0 | D80: 0 | E80: 0 | F80: 0 | G80: 0 | H80: 0 | I80: 0 | J80: 0 | K80: 0 | L80: 0 | M80: 0 | N80: 0 | O80: 0 | P80: 0 | Q80: 0
A81: 6141 | B81: CHARLES R. DREW MIDDLE | C81: 0 | D81: 0 | E81: 0 | F81: 0 | G81: 0 | H81: 0 | I81: 0 | J81: 0 | K81: 0 | L81: 0 | M81: 0 | N81: 0 | O81: 0 | P81: 0 | Q81: 0
A82: 6151 | B82: DORAL MIDDLE SCHOOL | C82: 0 | D82: 0 | E82: 0 | F82: 0 | G82: 0 | H82: 0 | I82: 0 | J82: 0 | K82: 0 | L82: 0 | M82: 0 | N82: 0 | O82: 0 | P82: 0 | Q82: 0
A83: 6161 | B83: LAWTON CHILES MIDDLE SCHOOL | C83: 0 | D83: 0 | E83: 0 | F83: 0 | G83: 0 | H83: 0 | I83: 0 | J83: 0 | K83: 0 | L83: 0 | M83: 0 | N83: 0 | O83: 0 | P83: 0 | Q83: 0
A84: 6171 | B84: HENRY H. FILER MIDDLE | C84: 0 | D84: 0 | E84: 0 | F84: 0 | G84: 0 | H84: 0 | I84: 0 | J84: 0 | K84: 0 | L84: 0 | M84: 0 | N84: 0 | O84: 0 | P84: 0 | Q84: 0
A85: 6211 | B85: GLADES MIDDLE | C85: 0 | D85: 0 | E85: 0 | F85: 0 | G85: 0 | H85: 0 | I85: 0 | J85: 0 | K85: 0 | L85: 0 | M85: 0 | N85: 0 | O85: 0 | P85: 0 | Q85: 0
A86: 6221 | B86: HAMMOCKS MIDDLE | C86: 0 | D86: 0 | E86: 0 | F86: 0 | G86: 0 | H86: 0 | I86: 0 | J86: 0 | K86: 0 | L86: 0 | M86: 0 | N86: 0 | O86: 0 | P86: 0 | Q86: 0
A87: 6231 | B87: HIALEAH MIDDLE | C87: 0 | D87: 0 | E87: 0 | F87: 0 | G87: 0 | H87: 0 | I87: 0 | J87: 0 | K87: 0 | L87: 0 | M87: 0 | N87: 0 | O87: 0 | P87: 0 | Q87: 0
A88: 6241 | B88: HIGHLAND OAKS MIDDLE | C88: 0 | D88: 0 | E88: 0 | F88: 0 | G88: 0 | H88: 0 | I88: 0 | J88: 0 | K88: 0 | L88: 0 | M88: 0 | N88: 0 | O88: 0 | P88: 0 | Q88: 0
A89: 6251 | B89: HOMESTEAD MIDDLE | C89: 0 | D89: 0 | E89: 0 | F89: 0 | G89: 0 | H89: 0 | I89: 0 | J89: 0 | K89: 0 | L89: 0 | M89: 0 | N89: 0 | O89: 0 | P89: 0 | Q89: 0
A90: 6281 | B90: THOMAS JEFFERSON MIDDLE | C90: 0 | D90: 0 | E90: 0 | F90: 0 | G90: 0 | H90: 0 | I90: 0 | J90: 0 | K90: 0 | L90: 0 | M90: 0 | N90: 0 | O90: 0 | P90: 0 | Q90: 0
A91: 6301 | B91: JOHN F. KENNEDY MIDDLE | C91: 0 | D91: 0 | E91: 0 | F91: 0 | G91: 0 | H91: 0 | I91: 0 | J91: 0 | K91: 0 | L91: 0 | M91: 0 | N91: 0 | O91: 0 | P91: 0 | Q91: 0
A92: 6331 | B92: KINLOCH PARK MIDDLE | C92: 0 | D92: 0 | E92: 0 | F92: 0 | G92: 0 | H92: 0 | I92: 0 | J92: 0 | K92: 0 | L92: 0 | M92: 0 | N92: 0 | O92: 0 | P92: 0 | Q92: 0
A93: 6351 | B93: LAKE STEVENS MIDDLE | C93: 0 | D93: 0 | E93: 0 | F93: 0 | G93: 0 | H93: 0 | I93: 0 | J93: 0 | K93: 0 | L93: 0 | M93: 0 | N93: 0 | O93: 0 | P93: 0 | Q93: 0
A94: 6361 | B94: JOSE DE DIEGO MIDDLE SCHOOL | C94: 0 | D94: 0 | E94: 0 | F94: 0 | G94: 0 | H94: 0 | I94: 0 | J94: 0 | K94: 0 | L94: 0 | M94: 0 | N94: 0 | O94: 0 | P94: 0 | Q94: 0
A95: 6391 | B95: MADISON MIDDLE SCHOOL | C95: 0 | D95: 0 | E95: 0 | F95: 0 | G95: 0 | H95: 0 | I95: 0 | J95: 0 | K95: 0 | L95: 0 | M95: 0 | N95: 0 | O95: 0 | P95: 0 | Q95: 0
A96: 6411 | B96: HORACE MANN MIDDLE | C96: 0 | D96: 0 | E96: 0 | F96: 0 | G96: 0 | H96: 0 | I96: 0 | J96: 0 | K96: 0 | L96: 0 | M96: 0 | N96: 0 | O96: 0 | P96: 0 | Q96: 0
A97: 6421 | B97: JOSE MARTI MIDDLE | C97: 0 | D97: 0 | E97: 0 | F97: 0 | G97: 0 | H97: 0 | I97: 0 | J97: 0 | K97: 0 | L97: 0 | M97: 0 | N97: 0 | O97: 0 | P97: 0 | Q97: 0
A98: 6431 | B98: MAYS MIDDLE | C98: 0 | D98: 0 | E98: 0 | F98: 0 | G98: 0 | H98: 0 | I98: 0 | J98: 0 | K98: 0 | L98: 0 | M98: 0 | N98: 0 | O98: 0 | P98: 0 | Q98: 0
A99: 6441 | B99: HOWARD D. MCMILLAN MIDDLE | C99: 0 | D99: 0 | E99: 0 | F99: 0 | G99: 0 | H99: 0 | I99: 0 | J99: 0 | K99: 0 | L99: 0 | M99: 0 | N99: 0 | O99: 0 | P99: 0 | Q99: 0
